Workbook

Sheet PI vs gap
A1: Measurement | B1: Hall
A2: Type | B2: Gap dependence
A4: Project | B4: ='10 mm'!B5 -> 504314
A5: PS serial no | B5: ='10 mm'!B7 -> 2410108
A7: Measurement date | B7: =LEFT('10 mm'!B4,10) -> 01-10-2024
A11: Nominal gap [mm] | B11: Encoder [counts] | C11: Encoder [mm] | D11: PI [T^2mm^3] | E11: PI spec [T^2mm^3] | F11: Encoder value at 10 mm gap:
A12: ='10 mm'!$B$53 -> 10 | B12: ='10 mm'!$B$55 -> 19.7529 | C12: =-1*($F$12-B12)+10 -> 10.00035 | D12: ='10 mm'!$K$3 -> 10528.78677 | F12: 19.75255
A13: ='15 mm'!$B$53 -> 15 | B13: ='15 mm'!$B$55 -> 24.7551 | C13: =-1*($F$12-B13)+10 -> 15.00255 | D13: ='15 mm'!$K$3 -> 7171.12785
A14: ='20 mm'!$B$53 -> 20 | B14: ='20 mm'!$B$55 -> 29.7553 | C14: 20.00275 | D14: ='20 mm'!$K$3 -> 4952.563365
A15: ='30 mm'!$B$53 -> 30 | B15: ='30 mm'!$B$55 -> 39.7522 | C15: 29.99965 | D15: ='30 mm'!$K$3 -> 2431.054461
A16: ='100 mm'!$B$53 -> 100 | B16: ='100 mm'!$B$55 -> 109.7515 | C16: 99.99895 | D16: ='100 mm'!$K$3 -> 38.1719345
A47: Measuring series at larger gaps:
A48: Reference magnet
A49: Tref | B49: 21.38 | C49: degC
A50: Hall ref field | B50: 0.505 | C50: T
A51: NMR ref field | B51: 0.50627 | C51: T
A53: Offset from Faro

Sheet 10 mm
A1: =IF('DF raw data'!A1="","",'DF raw data'!A1) -> Number of header lines | B1: =IF('DF raw data'!B1="","",'DF raw data'!B1) -> 54 | C1: =IF('DF raw data'!C1="","",'DF raw data'!C1) ->  | D1: =IF('DF raw data'!D1="","",'DF raw data'!D1) ->  | F1: T_coeff | G1: -0.001 | H1: /degC | J1: IBy total | K1: =J1267*1000 -> -1.743736529 | L1: muTm | M1: =L1267*1000 -> -37.7835427 | R1: DF ref | S1: 1
A2: =IF('DF raw data'!A2="","",'DF raw data'!A2) -> Measured by | B2: =IF('DF raw data'!B2="","",'DF raw data'!B2) -> Danfysik | C2: =IF('DF raw data'!C2="","",'DF raw data'!C2) ->  | D2: =IF('DF raw data'!D2="","",'DF raw data'!D2) ->  | F2: Tcorr | G2: 20 | H2: degC | J2: JBy total | K2: =K1267 -> -9.269054835 | L2: muTm^2 | M2: =M1267 -> -10.26810982
A3: =IF('DF raw data'!A3="","",'DF raw data'!A3) -> Operator | B3: =IF('DF raw data'!B3="","",'DF raw data'!B3) -> PMHA | C3: =IF('DF raw data'!C3="","",'DF raw data'!C3) ->  | D3: =IF('DF raw data'!D3="","",'DF raw data'!D3) ->  | F3: Step | G3: =A68-A67 -> 0.5 | H3: mm | J3: PI total | K3: =N1267 -> 10528.78677 | L3: T^2mm^3
A4: =IF('DF raw data'!A4="","",'DF raw data'!A4) -> Data-time | B4: =IF('DF raw data'!B4="","",'DF raw data'!B4) -> 01-10-2024, 22:01:13 | C4: =IF('DF raw data'!C4="","",'DF raw data'!C4) ->  | D4: =IF('DF raw data'!D4="","",'DF raw data'!D4) -> 
A5: =IF('DF raw data'!A5="","",'DF raw data'!A5) -> Project | B5: =IF('DF raw data'!B5="","",'DF raw data'!B5) -> 504314 | C5: =IF('DF raw data'!C5="","",'DF raw data'!C5) ->  | D5: Bamb avr | F5: =(AVERAGE(B67:B107) + AVERAGE(B1227:B1267))/2 -> -1.347307529e-05 | G5: =(AVERAGE(C67:C107) + AVERAGE(C1227:C1267))/2 -> 0.0001449368049 | H5: =(AVERAGE(D67:D107) + AVERAGE(D1227:D1267))/2 -> -3.799627805e-05
A6: =IF('DF raw data'!A6="","",'DF raw data'!A6) -> Magnet type | B6: =IF('DF raw data'!B6="","",'DF raw data'!B6) -> Dipole | C6: =IF('DF raw data'!C6="","",'DF raw data'!C6) -> 
A7: =IF('DF raw data'!A7="","",'DF raw data'!A7) -> Magnet nr. | B7: =IF('DF raw data'!B7="","",'DF raw data'!B7) -> 2410108 | C7: =IF('DF raw data'!C7="","",'DF raw data'!C7) -> 
A8: =IF('DF raw data'!A8="","",'DF raw data'!A8) -> Meas. number | B8: =IF('DF raw data'!B8="","",'DF raw data'!B8) -> 918 | C8: =IF('DF raw data'!C8="","",'DF raw data'!C8) -> 
A9: =IF('DF raw data'!A9="","",'DF raw data'!A9) -> Add. info | B9: =IF('DF raw data'!B9="","",'DF raw data'!B9) -> X-alignment scan 3) | C9: =IF('DF raw data'!C9="","",'DF raw data'!C9) ->  | D9: =IF('DF raw data'!D9="","",'DF raw data'!D9) -> 
A10: =IF('DF raw data'!A10="","",'DF raw data'!A10) -> Device | B10: =IF('DF raw data'!B10="","",'DF raw data'!B10) -> (HAL) HALL-PROBE | C10: =IF('DF raw data'!C10="","",'DF raw data'!C10) ->  | D10: =IF('DF raw data'!D10="","",'DF raw data'!D10) -> 
A11: =IF('DF raw data'!A11="","",'DF raw data'!A11) -> Goal | B11: =IF('DF raw data'!B11="","",'DF raw data'!B11) -> (AXI) AXis Integral (Line, EFB) | C11: =IF('DF raw data'!C11="","",'DF raw data'!C11) ->  | D11: =IF('DF raw data'!D11="","",'DF raw data'!D11) -> 
A12: =IF('DF raw data'!A12="","",'DF raw data'!A12) -> Power supply mode | B12: =IF('DF raw data'!B12="","",'DF raw data'!B12) -> (PM) Permanent Magnet (no MPS in use) | C12: =IF('DF raw data'!C12="","",'DF raw data'!C12) ->  | D12: =IF('DF raw data'!D12="","",'DF raw data'!D12) -> 
A13: =IF('DF raw data'!A13="","",'DF raw data'!A13) -> Data format | B13: =IF('DF raw data'!B13="","",'DF raw data'!B13) -> Raw data text file | C13: =IF('DF raw data'!C13="","",'DF raw data'!C13) ->  | D13: =IF('DF raw data'!D13="","",'DF raw data'!D13) -> 
A14: =IF('DF raw data'!A14="","",'DF raw data'!A14) -> Direction of the pos. x-axis | B14: =IF('DF raw data'!B14="","",'DF raw data'!B14) -> See test program | C14: =IF('DF raw data'!C14="","",'DF raw data'!C14) ->  | D14: =IF('DF raw data'!D14="","",'DF raw data'!D14) -> 
A15: =IF('DF raw data'!A15="","",'DF raw data'!A15) -> Direction of the pos. y-axis | B15: =IF('DF raw data'!B15="","",'DF raw data'!B15) -> Vertical up | C15: =IF('DF raw data'!C15="","",'DF raw data'!C15) ->  | D15: =IF('DF raw data'!D15="","",'DF raw data'!D15) -> 
A16: =IF('DF raw data'!A16="","",'DF raw data'!A16) -> Direction of the pos. z-axis | B16: =IF('DF raw data'!B16="","",'DF raw data'!B16) -> See test program | C16: =IF('DF raw data'!C16="","",'DF raw data'!C16) ->  | D16: =IF('DF raw data'!D16="","",'DF raw data'!D16) -> 
A17: =IF('DF raw data'!A17="","",'DF raw data'!A17) -> Mapper type | B17: =IF('DF raw data'!B17="","",'DF raw data'!B17) -> Precision Hall Mapper | C17: =IF('DF raw data'!C17="","",'DF raw data'!C17) ->  | D17: =IF('DF raw data'!D17="","",'DF raw data'!D17) -> 
A18: =IF('DF raw data'!A18="","",'DF raw data'!A18) -> Mapper Danfysik Reg. Number | B18: =IF('DF raw data'!B18="","",'DF raw data'!B18) -> 2033-D (mapper 1) | C18: =IF('DF raw data'!C18="","",'DF raw data'!C18) ->  | D18: =IF('DF raw data'!D18="","",'DF raw data'!D18) -> 
A19: =IF('DF raw data'!A19="","",'DF raw data'!A19) -> Measurement consept | B19: =IF('DF raw data'!B19="","",'DF raw data'!B19) -> Square line grid | C19: =IF('DF raw data'!C19="","",'DF raw data'!C19) ->  | D19: =IF('DF raw data'!D19="","",'DF raw data'!D19) -> 
A20: =IF('DF raw data'!A20="","",'DF raw data'!A20) -> Mode | B20: =IF('DF raw data'!B20="","",'DF raw data'!B20) -> On-the-fly measurement | C20: =IF('DF raw data'!C20="","",'DF raw data'!C20) ->  | D20: =IF('DF raw data'!D20="","",'DF raw data'!D20) -> 
A21: =IF('DF raw data'!A21="","",'DF raw data'!A21) ->  | B21: =IF('DF raw data'!B21="","",'DF raw data'!B21) ->  | C21: =IF('DF raw data'!C21="","",'DF raw data'!C21) ->  | D21: =IF('DF raw data'!D21="","",'DF raw data'!D21) -> 
A22: =IF('DF raw data'!A22="","",'DF raw data'!A22) -> Probe Name | B22: =IF('DF raw data'!B22="","",'DF raw data'!B22) -> ID12_By | C22: =IF('DF raw data'!C22="","",'DF raw data'!C22) ->  | D22: =IF('DF raw data'!D22="","",'DF raw data'!D22) -> 
A23: =IF('DF raw data'!A23="","",'DF raw data'!A23) -> Probe Type | B23: =IF('DF raw data'!B23="","",'DF raw data'!B23) -> DF_ID_3D_Bxyz | C23: =IF('DF raw data'!C23="","",'DF raw data'!C23) ->  | D23: =IF('DF raw data'!D23="","",'DF raw data'!D23) -> 
A24: =IF('DF raw data'!A24="","",'DF raw data'!A24) -> Probe Danfysik Reg. Number | B24: =IF('DF raw data'!B24="","",'DF raw data'!B24) -> 2277 | C24: =IF('DF raw data'!C24="","",'DF raw data'!C24) ->  | D24: =IF('DF raw data'!D24="","",'DF raw data'!D24) -> 
A25: =IF('DF raw data'!A25="","",'DF raw data'!A25) -> Probe Axis | B25: =IF('DF raw data'!B25="","",'DF raw data'!B25) -> By | C25: =IF('DF raw data'!C25="","",'DF raw data'!C25) ->  | D25: =IF('DF raw data'!D25="","",'DF raw data'!D25) -> 
A26: =IF('DF raw data'!A26="","",'DF raw data'!A26) -> Probe Current Supply | B26: =IF('DF raw data'!B26="","",'DF raw data'!B26) -> 1825-D | C26: =IF('DF raw data'!C26="","",'DF raw data'!C26) ->  | D26: =IF('DF raw data'!D26="","",'DF raw data'!D26) -> 
A27: =IF('DF raw data'!A27="","",'DF raw data'!A27) -> Probe Gain Correction | B27: =IF('DF raw data'!B27="","",'DF raw data'!B27) -> 0.99614 | C27: =IF('DF raw data'!C27="","",'DF raw data'!C27) ->  | D27: =IF('DF raw data'!D27="","",'DF raw data'!D27) -> 
A28: =IF('DF raw data'!A28="","",'DF raw data'!A28) -> Probe Offset Correction | B28: =IF('DF raw data'!B28="","",'DF raw data'!B28) -> 0.0027502 | C28: =IF('DF raw data'!C28="","",'DF raw data'!C28) ->  | D28: =IF('DF raw data'!D28="","",'DF raw data'!D28) -> 
A29: =IF('DF raw data'!A29="","",'DF raw data'!A29) -> DVM Number | B29: =IF('DF raw data'!B29="","",'DF raw data'!B29) -> 2 | C29: =IF('DF raw data'!C29="","",'DF raw data'!C29) ->  | D29: =IF('DF raw data'!D29="","",'DF raw data'!D29) -> 
A30: =IF('DF raw data'!A30="","",'DF raw data'!A30) -> DVM Type | B30: =IF('DF raw data'!B30="","",'DF raw data'!B30) -> K2701 | C30: =IF('DF raw data'!C30="","",'DF raw data'!C30) ->  | D30: =IF('DF raw data'!D30="","",'DF raw data'!D30) -> 
A31: =IF('DF raw data'!A31="","",'DF raw data'!A31) -> DVM Danfysik Reg. Number | B31: =IF('DF raw data'!B31="","",'DF raw data'!B31) -> 1743-D | C31: =IF('DF raw data'!C31="","",'DF raw data'!C31) ->  | D31: =IF('DF raw data'!D31="","",'DF raw data'!D31) -> 
A32: =IF('DF raw data'!A32="","",'DF raw data'!A32) -> Probe Name | B32: =IF('DF raw data'!B32="","",'DF raw data'!B32) -> ID12_Bx | C32: =IF('DF raw data'!C32="","",'DF raw data'!C32) ->  | D32: =IF('DF raw data'!D32="","",'DF raw data'!D32) -> 
A33: =IF('DF raw data'!A33="","",'DF raw data'!A33) -> Probe Type | B33: =IF('DF raw data'!B33="","",'DF raw data'!B33) -> DF_ID_3D_Bxyz | C33: =IF('DF raw data'!C33="","",'DF raw data'!C33) ->  | D33: =IF('DF raw data'!D33="","",'DF raw data'!D33) -> 
A34: =IF('DF raw data'!A34="","",'DF raw data'!A34) -> Probe Danfysik Reg. Number | B34: =IF('DF raw data'!B34="","",'DF raw data'!B34) -> 2277 | C34: =IF('DF raw data'!C34="","",'DF raw data'!C34) ->  | D34: =IF('DF raw data'!D34="","",'DF raw data'!D34) -> 
A35: =IF('DF raw data'!A35="","",'DF raw data'!A35) -> Probe Axis | B35: =IF('DF raw data'!B35="","",'DF raw data'!B35) -> Bx | C35: =IF('DF raw data'!C35="","",'DF raw data'!C35) ->  | D35: =IF('DF raw data'!D35="","",'DF raw data'!D35) -> 
A36: =IF('DF raw data'!A36="","",'DF raw data'!A36) -> Probe Current Supply | B36: =IF('DF raw data'!B36="","",'DF raw data'!B36) -> 1825-D | C36: =IF('DF raw data'!C36="","",'DF raw data'!C36) ->  | D36: =IF('DF raw data'!D36="","",'DF raw data'!D36) -> 
A37: =IF('DF raw data'!A37="","",'DF raw data'!A37) -> Probe Gain Correction | B37: =IF('DF raw data'!B37="","",'DF raw data'!B37) -> 1 | C37: =IF('DF raw data'!C37="","",'DF raw data'!C37) ->  | D37: =IF('DF raw data'!D37="","",'DF raw data'!D37) -> 
A38: =IF('DF raw data'!A38="","",'DF raw data'!A38) -> Probe Offset Correction | B38: =IF('DF raw data'!B38="","",'DF raw data'!B38) -> -0.1755 | C38: =IF('DF raw data'!C38="","",'DF raw data'!C38) ->  | D38: =IF('DF raw data'!D38="","",'DF raw data'!D38) -> 
A39: =IF('DF raw data'!A39="","",'DF raw data'!A39) -> DVM Number | B39: =IF('DF raw data'!B39="","",'DF raw data'!B39) -> 3 | C39: =IF('DF raw data'!C39="","",'DF raw data'!C39) ->  | D39: =IF('DF raw data'!D39="","",'DF raw data'!D39) -> 
A40: =IF('DF raw data'!A40="","",'DF raw data'!A40) -> DVM Type | B40: =IF('DF raw data'!B40="","",'DF raw data'!B40) -> K2701 | C40: =IF('DF raw data'!C40="","",'DF raw data'!C40) ->  | D40: =IF('DF raw data'!D40="","",'DF raw data'!D40) -> 
A41: =IF('DF raw data'!A41="","",'DF raw data'!A41) -> DVM Danfysik Reg. Number | B41: =IF('DF raw data'!B41="","",'DF raw data'!B41) -> 1744-D | C41: =IF('DF raw data'!C41="","",'DF raw data'!C41) ->  | D41: =IF('DF raw data'!D41="","",'DF raw data'!D41) -> 
A42: =IF('DF raw data'!A42="","",'DF raw data'!A42) -> Probe Name | B42: =IF('DF raw data'!B42="","",'DF raw data'!B42) -> ID12_Bz | C42: =IF('DF raw data'!C42="","",'DF raw data'!C42) ->  | D42: =IF('DF raw data'!D42="","",'DF raw data'!D42) -> 
A43: =IF('DF raw data'!A43="","",'DF raw data'!A43) -> Probe Type | B43: =IF('DF raw data'!B43="","",'DF raw data'!B43) -> DF_ID_3D_Bxyz | C43: =IF('DF raw data'!C43="","",'DF raw data'!C43) ->  | D43: =IF('DF raw data'!D43="","",'DF raw data'!D43) -> 
A44: =IF('DF raw data'!A44="","",'DF raw data'!A44) -> Probe Danfysik Reg. Number | B44: =IF('DF raw data'!B44="","",'DF raw data'!B44) -> 2277 | C44: =IF('DF raw data'!C44="","",'DF raw data'!C44) ->  | D44: =IF('DF raw data'!D44="","",'DF raw data'!D44) -> 
A45: =IF('DF raw data'!A45="","",'DF raw data'!A45) -> Probe Axis | B45: =IF('DF raw data'!B45="","",'DF raw data'!B45) -> Bz | C45: =IF('DF raw data'!C45="","",'DF raw data'!C45) ->  | D45: =IF('DF raw data'!D45="","",'DF raw data'!D45) -> 
A46: =IF('DF raw data'!A46="","",'DF raw data'!A46) -> Probe Current Supply | B46: =IF('DF raw data'!B46="","",'DF raw data'!B46) -> 1825-D | C46: =IF('DF raw data'!C46="","",'DF raw data'!C46) ->  | D46: =IF('DF raw data'!D46="","",'DF raw data'!D46) -> 
A47: =IF('DF raw data'!A47="","",'DF raw data'!A47) -> Probe Gain Correction | B47: =IF('DF raw data'!B47="","",'DF raw data'!B47) -> 1 | C47: =IF('DF raw data'!C47="","",'DF raw data'!C47) ->  | D47: =IF('DF raw data'!D47="","",'DF raw data'!D47) -> 
A48: =IF('DF raw data'!A48="","",'DF raw data'!A48) -> Probe Offset Correction | B48: =IF('DF raw data'!B48="","",'DF raw data'!B48) -> 0.0073192 | C48: =IF('DF raw data'!C48="","",'DF raw data'!C48) ->  | D48: =IF('DF raw data'!D48="","",'DF raw data'!D48) -> 
A49: =IF('DF raw data'!A49="","",'DF raw data'!A49) -> DVM Number | B49: =IF('DF raw data'!B49="","",'DF raw data'!B49) -> 8 | C49: =IF('DF raw data'!C49="","",'DF raw data'!C49) ->  | D49: =IF('DF raw data'!D49="","",'DF raw data'!D49) -> 
A50: =IF('DF raw data'!A50="","",'DF raw data'!A50) -> DVM Type | B50: =IF('DF raw data'!B50="","",'DF raw data'!B50) -> K2700 | C50: =IF('DF raw data'!C50="","",'DF raw data'!C50) ->  | D50: =IF('DF raw data'!D50="","",'DF raw data'!D50) -> 
A51: =IF('DF raw data'!A51="","",'DF raw data'!A51) -> DVM Danfysik Reg. Number | B51: =IF('DF raw data'!B51="","",'DF raw data'!B51) -> 1756-D | C51: =IF('DF raw data'!C51="","",'DF raw data'!C51) ->  | D51: =IF('DF raw data'!D51="","",'DF raw data'!D51) -> 
A52: =IF('DF raw data'!A52="","",'DF raw data'!A52) -> NTC voltage | B52: =IF('DF raw data'!B52="","",'DF raw data'!B52) -> 0.42026 | C52: =IF('DF raw data'!C52="","",'DF raw data'!C52) ->  | D52: =IF('DF raw data'!D52="","",'DF raw data'!D52) -> 
A53: =IF('DF raw data'!A53="","",'DF raw data'!A53) -> PS-Gap: | B53: =IF('DF raw data'!B53="","",'DF raw data'!B53) -> 10 | C53: =IF('DF raw data'!C53="","",'DF raw data'!C53) ->  | D53: =IF('DF raw data'!D53="","",'DF raw data'!D53) -> 
A54: =IF('DF raw data'!A54="","",'DF raw data'!A54) -> PS-Temperature: | B54: =IF('DF raw data'!B54="","",'DF raw data'!B54) -> 24.2 | C54: =IF('DF raw data'!C54="","",'DF raw data'!C54) ->  | D54: =IF('DF raw data'!D54="","",'DF raw data'!D54) -> 
A55: =IF('DF raw data'!A55="","",'DF raw data'!A55) -> PS-Encoder: | B55: =IF('DF raw data'!B55="","",'DF raw data'!B55) -> 19.7529 | C55: =IF('DF raw data'!C55="","",'DF raw data'!C55) ->  | D55: =IF('DF raw data'!D55="","",'DF raw data'!D55) -> 
A56: =IF('DF raw data'!A56="","",'DF raw data'!A56) ->  | B56: =IF('DF raw data'!B56="","",'DF raw data'!B56) -> 
A57: =IF('DF raw data'!A57="","",'DF raw data'!A57) -> Monitor-Index | B57: =IF('DF raw data'!B57="","",'DF raw data'!B57) -> [1,1,4]
A58: =IF('DF raw data'!A58="","",'DF raw data'!A58) ->  | B58: =IF('DF raw data'!B58="","",'DF raw data'!B58) -> 
A59: =IF('DF raw data'!A59="","",'DF raw data'!A59) -> Time [s] | B59: =IF('DF raw data'!B59="","",'DF raw data'!B59) -> Y [mm]
A60: =IF('DF raw data'!A60="","",'DF raw data'!A60) ->  | B60: =IF('DF raw data'!B60="","",'DF raw data'!B60) -> 
A61: =IF('DF raw data'!A61="","",'DF raw data'!A61) -> 208.4 | B61: =IF('DF raw data'!B61="","",'DF raw data'!B61) -> 31.38
A62: =IF('DF raw data'!A62="","",'DF raw data'!A62) ->  | B62: =IF('DF raw data'!B62="","",'DF raw data'!B62) -> 
A63: =IF('DF raw data'!A63="","",'DF raw data'!A63) -> Measurement-Index | B63: =IF('DF raw data'!B63="","",'DF raw data'!B63) -> [1,1,1201,2]
A64: =IF('DF raw data'!A64="","",'DF raw data'!A64) ->  | B64: =IF('DF raw data'!B64="","",'DF raw data'!B64) -> 
A65: =IF('DF raw data'!A65="","",'DF raw data'!A65) -> Z [mm] | B65: =IF('DF raw data'!B65="","",'DF raw data'!B65) -> By [T] | C65: =IF('DF raw data'!C65="","",'DF raw data'!C65) -> Bx [T] | D65: =IF('DF raw data'!D65="","",'DF raw data'!D65) -> Bz [T] | F65: By_corr | G65: Bx_corr | H65: Bz_corr | J65: Iy | K65: Jy | L65: Ix | M65: Jx | N65: PI
A66: =IF('DF raw data'!A66="","",'DF raw data'!A66) -> [1, 0, 0, 0] | B66: =IF('DF raw data'!B66="","",'DF raw data'!B66) ->  | C66: =IF('DF raw data'!C66="","",'DF raw data'!C66) ->  | D66: =IF('DF raw data'!D66="","",'DF raw data'!D66) -> 
A67: =IF('DF raw data'!A67="","",'DF raw data'!A67) -> -300 | B67: =IF('DF raw data'!B67="","",'DF raw data'!B67) -> -1.67589e-05 | C67: =IF('DF raw data'!C67="","",'DF raw data'!C67) -> 0.000161986 | D67: =IF('DF raw data'!D67="","",'DF raw data'!D67) -> -3.29431e-05 | F67: =(1-$G$1*($B$54-$G$2))*(B67-F$5) -> -3.299625171e-06 | G67: =(1-$G$1*($B$54-$G$2))*(C67-G$5) -> 1.712080174e-05 | H67: =(1-$G$1*($B$54-$G$2))*(D67-H$5) -> 5.074401397e-06 | J67: =F67*$G$3+J66 -> -1.649812586e-06 | K67: =J67*$G$3+K66 -> -8.249062928e-07 | L67: =G67*$G$3+L66 -> 8.560400871e-06 | M67: =L67*$G$3+M66 -> 4.280200435e-06 | N67: =(J67^2+L67^2)*$G$3+N66 -> 3.800117232e-11
A68: =IF('DF raw data'!A68="","",'DF raw data'!A68) -> -299.5 | B68: =IF('DF raw data'!B68="","",'DF raw data'!B68) -> 3.80558e-06 | C68: =IF('DF raw data'!C68="","",'DF raw data'!C68) -> 0.000160221 | D68: =IF('DF raw data'!D68="","",'DF raw data'!D68) -> -3.39939e-05 | F68: 1.735122564e-05 | G68: 1.534838874e-05 | H68: 4.019188037e-06 | J68: =F68*$G$3+J67 -> 7.025800237e-06 | K68: =J68*$G$3+K67 -> 2.687993826e-06 | L68: =G68*$G$3+L67 -> 1.623459524e-05 | M68: =L68*$G$3+M67 -> 1.239749806e-05 | N68: =(J68^2+L68^2)*$G$3+N67 -> 1.944631481e-10
A69: =IF('DF raw data'!A69="","",'DF raw data'!A69) -> -299 | B69: =IF('DF raw data'!B69="","",'DF raw data'!B69) -> -1.0287e-05 | C69: =IF('DF raw data'!C69="","",'DF raw data'!C69) -> 0.000159328 | D69: =IF('DF raw data'!D69="","",'DF raw data'!D69) -> -3.55387e-05 | F69: 3.199456809e-06 | G69: 1.445163814e-05 | H69: 2.467899877e-06 | J69: 8.625528641e-06 | K69: 7.000758146e-06 | L69: 2.346041431e-05 | M69: 2.412770521e-05 | N69: 5.068585402e-10
A70: =IF('DF raw data'!A70="","",'DF raw data'!A70) -> -298.5 | B70: =IF('DF raw data'!B70="","",'DF raw data'!B70) -> -2.27881e-06 | C70: =IF('DF raw data'!C70="","",'DF raw data'!C70) -> 0.000150138 | D70: =IF('DF raw data'!D70="","",'DF raw data'!D70) -> -3.63499e-05 | F70: 1.124128121e-05 | G70: 5.223040141e-06 | H70: 1.653292837e-06 | J70: 1.424616924e-05 | K70: 1.412384277e-05 | L70: 2.607193438e-05 | M70: 3.71636724e-05 | N70: 9.482080905e-10
A71: =IF('DF raw data'!A71="","",'DF raw data'!A71) -> -298 | B71: =IF('DF raw data'!B71="","",'DF raw data'!B71) -> -7.46757e-06 | C71: =IF('DF raw data'!C71="","",'DF raw data'!C71) -> 0.000147034 | D71: =IF('DF raw data'!D71="","",'DF raw data'!D71) -> -3.64742e-05 | F71: 6.030728415e-06 | G71: 2.106003341e-06 | H71: 1.528470777e-06 | J71: 1.726153345e-05 | K71: 2.275460949e-05 | L71: 2.712493605e-05 | M71: 5.072614043e-05 | N71: 1.465069437e-09
A72: =IF('DF raw data'!A72="","",'DF raw data'!A72) -> -297.5 | B72: =IF('DF raw data'!B72="","",'DF raw data'!B72) -> -1.36819e-05 | C72: =IF('DF raw data'!C72="","",'DF raw data'!C72) -> 0.000151972 | D72: =IF('DF raw data'!D72="","",'DF raw data'!D72) -> -3.59824e-05 | F72: -2.097017711e-07 | G72: 7.064742941e-06 | H72: 2.022336337e-06 | J72: 1.715668257e-05 | K72: 3.133295078e-05 | L72: 3.065730752e-05 | M72: 6.605479419e-05 | N72: 2.082180568e-09
A73: =IF('DF raw data'!A73="","",'DF raw data'!A73) -> -297 | B73: =IF('DF raw data'!B73="","",'DF raw data'!B73) -> -8.68553e-06 | C73: =IF('DF raw data'!C73="","",'DF raw data'!C73) -> 0.000151792 | D73: =IF('DF raw data'!D73="","",'DF raw data'!D73) -> -3.536e-05 | F73: 4.807652983e-06 | G73: 6.883986941e-06 | H73: 2.647350417e-06 | J73: 1.956050906e-05 | K73: 4.111320531e-05 | L73: 3.4099301e-05 | M73: 8.310444469e-05 | N73: 2.854868489e-09
A74: =IF('DF raw data'!A74="","",'DF raw data'!A74) -> -296.5 | B74: =IF('DF raw data'!B74="","",'DF raw data'!B74) -> -7.34008e-06 | C74: =IF('DF raw data'!C74="","",'DF raw data'!C74) -> 0.000155947 | D74: =IF('DF raw data'!D74="","",'DF raw data'!D74) -> -3.54995e-05 | F74: 6.158753873e-06 | G74: 1.105643794e-05 | H74: 2.507264517e-06 | J74: 2.263988599e-05 | K74: 5.24331483e-05 | L74: 3.962751997e-05 | M74: 0.0001029182047 | N74: 3.896320877e-09
A75: =IF('DF raw data'!A75="","",'DF raw data'!A75) -> -296 | B75: =IF('DF raw data'!B75="","",'DF raw data'!B75) -> 1.2443e-06 | C75: =IF('DF raw data'!C75="","",'DF raw data'!C75) -> 0.000156946 | D75: =IF('DF raw data'!D75="","",'DF raw data'!D75) -> -3.60142e-05 | F75: 1.477918827e-05 | G75: 1.205963374e-05 | H75: 1.990402777e-06 | J75: 3.002948013e-05 | K75: 6.744788837e-05 | L75: 4.565733684e-05 | M75: 0.0001257468731 | N75: 5.389501919e-09
A76: =IF('DF raw data'!A76="","",'DF raw data'!A76) -> -295.5 | B76: =IF('DF raw data'!B76="","",'DF raw data'!B76) -> -2.02162e-05 | C76: =IF('DF raw data'!C76="","",'DF raw data'!C76) -> 0.000157836 | D76: =IF('DF raw data'!D76="","",'DF raw data'!D76) -> -3.59092e-05 | F76: -6.771445831e-06 | G76: 1.295337174e-05 | H76: 2.095843777e-06 | J76: 2.664375721e-05 | K76: 8.076976698e-05 | L76: 5.213402271e-05 | M76: 0.0001518138844 | N76: 7.10342498e-09
A77: =IF('DF raw data'!A77="","",'DF raw data'!A77) -> -295 | B77: =IF('DF raw data'!B77="","",'DF raw data'!B77) -> 4.19113e-06 | C77: =IF('DF raw data'!C77="","",'DF raw data'!C77) -> 0.000168372 | D77: =IF('DF raw data'!D77="","",'DF raw data'!D77) -> -3.5839e-05 | F77: 1.773839495e-05 | G77: 2.353362294e-05 | H77: 2.166338617e-06 | J77: 3.551295469e-05 | K77: 9.852624432e-05 | L77: 6.390083418e-05 | M77: 0.0001837643015 | N77: 9.77566826e-09
A78: =IF('DF raw data'!A78="","",'DF raw data'!A78) -> -294.5 | B78: =IF('DF raw data'!B78="","",'DF raw data'!B78) -> -1.41306e-05 | C78: =IF('DF raw data'!C78="","",'DF raw data'!C78) -> 0.000155182 | D78: =IF('DF raw data'!D78="","",'DF raw data'!D78) -> -3.5838e-05 | F78: -6.602863111e-07 | G78: 1.028822494e-05 | H78: 2.167342817e-06 | J78: 3.518281154e-05 | K78: 0.0001161176501 | L78: 6.904494665e-05 | M78: 0.0002182867749 | N78: 1.27781857e-08
A79: =IF('DF raw data'!A79="","",'DF raw data'!A79) -> -294 | B79: =IF('DF raw data'!B79="","",'DF raw data'!B79) -> -5.80237e-06 | C79: =IF('DF raw data'!C79="","",'DF raw data'!C79) -> 0.000154358 | D79: =IF('DF raw data'!D79="","",'DF raw data'!D79) -> -3.59857e-05 | F79: 7.702922255e-06 | G79: 9.460764141e-06 | H79: 2.019022477e-06 | J79: 3.903427266e-05 | K79: 0.0001356347864 | L79: 7.377532872e-05 | M79: 0.0002551744392 | N79: 1.626142249e-08
A80: =IF('DF raw data'!A80="","",'DF raw data'!A80) -> -293.5 | B80: =IF('DF raw data'!B80="","",'DF raw data'!B80) -> -4.58491e-06 | C80: =IF('DF raw data'!C80="","",'DF raw data'!C80) -> 0.000159096 | D80: =IF('DF raw data'!D80="","",'DF raw data'!D80) -> -3.63337e-05 | F80: 8.925495587e-06 | G80: 1.421866374e-05 | H80: 1.669560877e-06 | J80: 4.349702046e-05 | K80: 0.0001573832966 | L80: 8.088466059e-05 | M80: 0.0002956167695 | N80: 2.047858204e-08
A81: =IF('DF raw data'!A81="","",'DF raw data'!A81) -> -293 | B81: =IF('DF raw data'!B81="","",'DF raw data'!B81) -> -1.18881e-05 | C81: =IF('DF raw data'!C81="","",'DF raw data'!C81) -> 0.0001594 | D81: =IF('DF raw data'!D81="","",'DF raw data'!D81) -> -3.62104e-05 | F81: 1.591632189e-06 | G81: 1.452394054e-05 | H81: 1.793378737e-06 | J81: 4.429283655e-05 | K81: 0.0001795297149 | L81: 8.814663086e-05 | M81: 0.0003396900849 | N81: 2.534442399e-08
A82: =IF('DF raw data'!A82="","",'DF raw data'!A82) -> -292.5 | B82: =IF('DF raw data'!B82="","",'DF raw data'!B82) -> -1.63089e-05 | C82: =IF('DF raw data'!C82="","",'DF raw data'!C82) -> 0.000160877 | D82: =IF('DF raw data'!D82="","",'DF raw data'!D82) -> -3.52608e-05 | F82: -2.847735171e-06 | G82: 1.600714394e-05 | H82: 2.746967057e-06 | J82: 4.286896897e-05 | K82: 0.0002009641994 | L82: 9.615020283e-05 | M82: 0.0003877651864 | N82: 3.088572899e-08
A83: =IF('DF raw data'!A83="","",'DF raw data'!A83) -> -292 | B83: =IF('DF raw data'!B83="","",'DF raw data'!B83) -> -3.56098e-06 | C83: =IF('DF raw data'!C83="","",'DF raw data'!C83) -> 0.00017123 | D83: =IF('DF raw data'!D83="","",'DF raw data'!D83) -> -3.47953e-05 | F83: 9.953726093e-06 | G83: 2.640362654e-05 | H83: 3.214422157e-06 | J83: 4.784583201e-05 | K83: 0.0002248871154 | L83: 0.0001093520161 | M83: 0.0004424411944 | N83: 3.800927253e-08
A84: =IF('DF raw data'!A84="","",'DF raw data'!A84) -> -291.5 | B84: =IF('DF raw data'!B84="","",'DF raw data'!B84) -> -1.37765e-06 | C84: =IF('DF raw data'!C84="","",'DF raw data'!C84) -> 0.000166146 | D84: =IF('DF raw data'!D84="","",'DF raw data'!D84) -> -4.30515e-05 | F84: 1.214622608e-05 | G84: 2.129827374e-05 | H84: -5.076453883e-06 | J84: 5.391894505e-05 | K84: 0.0002518465879 | L84: 0.000120001153 | M84: 0.0005024417709 | N84: 4.66630372e-08
A85: =IF('DF raw data'!A85="","",'DF raw data'!A85) -> -291 | B85: =IF('DF raw data'!B85="","",'DF raw data'!B85) -> -4.13791e-06 | C85: =IF('DF raw data'!C85="","",'DF raw data'!C85) -> 0.000161153 | D85: =IF('DF raw data'!D85="","",'DF raw data'!D85) -> -3.4373e-05 | F85: 9.374372987e-06 | G85: 1.628430314e-05 | H85: 3.638495817e-06 | J85: 5.860613154e-05 | K85: 0.0002811496537 | L85: 0.0001281433045 | M85: 0.0005665134232 | N85: 5.659072978e-08
A86: =IF('DF raw data'!A86="","",'DF raw data'!A86) -> -290.5 | B86: =IF('DF raw data'!B86="","",'DF raw data'!B86) -> -3.8794e-06 | C86: =IF('DF raw data'!C86="","",'DF raw data'!C86) -> 0.000166659 | D86: =IF('DF raw data'!D86="","",'DF raw data'!D86) -> -3.78774e-05 | F86: 9.633968729e-06 | G86: 2.181342834e-05 | H86: 1.193773366e-07 | J86: 6.342311591e-05 | K86: 0.0003128612117 | L86: 0.0001390500187 | M86: 0.0006360384325 | N86: 6.826942945e-08
A87: =IF('DF raw data'!A87="","",'DF raw data'!A87) -> -290 | B87: =IF('DF raw data'!B87="","",'DF raw data'!B87) -> -6.18924e-06 | C87: =IF('DF raw data'!C87="","",'DF raw data'!C87) -> 0.000170119 | D87: =IF('DF raw data'!D87="","",'DF raw data'!D87) -> -3.21026e-05 | F87: 7.314427401e-06 | G87: 2.528796034e-05 | H87: 5.918431497e-06 | J87: 6.708032961e-05 | K87: 0.0003464013765 | L87: 0.0001516939989 | M87: 0.000711885432 | N87: 8.202484941e-08
A88: =IF('DF raw data'!A88="","",'DF raw data'!A88) -> -289.5 | B88: =IF('DF raw data'!B88="","",'DF raw data'!B88) -> 4.0627e-06 | C88: =IF('DF raw data'!C88="","",'DF raw data'!C88) -> 0.000181274 | D88: =IF('DF raw data'!D88="","",'DF raw data'!D88) -> -3.53561e-05 | F88: 1.760942555e-05 | G88: 3.648981134e-05 | H88: 2.651266797e-06 | J88: 7.588504238e-05 | K88: 0.0003843438977 | L88: 0.0001699389046 | M88: 0.0007968548842 | N88: 9.934373488e-08
A89: =IF('DF raw data'!A89="","",'DF raw data'!A89) -> -289 | B89: =IF('DF raw data'!B89="","",'DF raw data'!B89) -> -2.01479e-05 | C89: =IF('DF raw data'!C89="","",'DF raw data'!C89) -> 0.000174866 | D89: =IF('DF raw data'!D89="","",'DF raw data'!D89) -> -4.26714e-05 | F89: -6.702858971e-06 | G89: 3.005489774e-05 | H89: -4.694757463e-06 | J89: 7.25336129e-05 | K89: 0.0004206107041 | L89: 0.0001849663534 | M89: 0.000889338061 | N89: 1.190805733e-07
A90: =IF('DF raw data'!A90="","",'DF raw data'!A90) -> -288.5 | B90: =IF('DF raw data'!B90="","",'DF raw data'!B90) -> 4.12724e-06 | C90: =IF('DF raw data'!C90="","",'DF raw data'!C90) -> 0.000170671 | D90: =IF('DF raw data'!D90="","",'DF raw data'!D90) -> -3.62958e-05 | F90: 1.767423662e-05 | G90: 2.584227874e-05 | H90: 1.707620057e-06 | J90: 8.137073121e-05 | K90: 0.0004612960697 | L90: 0.0001978874928 | M90: 0.0009882818074 | N90: 1.419709012e-07
A91: =IF('DF raw data'!A91="","",'DF raw data'!A91) -> -288 | B91: =IF('DF raw data'!B91="","",'DF raw data'!B91) -> -1.07928e-05 | C91: =IF('DF raw data'!C91="","",'DF raw data'!C91) -> 0.000172454 | D91: =IF('DF raw data'!D91="","",'DF raw data'!D91) -> -4.58934e-05 | F91: 2.691532449e-06 | G91: 2.763276734e-05 | H91: -7.930289863e-06 | J91: 8.271649743e-05 | K91: 0.0005026543184 | L91: 0.0002117038765 | M91: 0.001094133746 | N91: 1.678011763e-07
A92: =IF('DF raw data'!A92="","",'DF raw data'!A92) -> -287.5 | B92: =IF('DF raw data'!B92="","",'DF raw data'!B92) -> -4.70771e-06 | C92: =IF('DF raw data'!C92="","",'DF raw data'!C92) -> 0.000163997 | D92: =IF('DF raw data'!D92="","",'DF raw data'!D92) -> -4.45336e-05 | F92: 8.802179827e-06 | G92: 1.914024794e-05 | H92: -6.564778703e-06 | J92: 8.711758734e-05 | K92: 0.0005462131121 | L92: 0.0002212740004 | M92: 0.001204770746 | N92: 1.96077005e-07
A93: =IF('DF raw data'!A93="","",'DF raw data'!A93) -> -287 | B93: =IF('DF raw data'!B93="","",'DF raw data'!B93) -> -6.81671e-06 | C93: =IF('DF raw data'!C93="","",'DF raw data'!C93) -> 0.000169574 | D93: =IF('DF raw data'!D93="","",'DF raw data'!D93) -> -5.23172e-05 | F93: 6.684322027e-06 | G93: 2.474067134e-05 | H93: -1.438106982e-05 | J93: 9.045974836e-05 | K93: 0.0005914429863 | L93: 0.0002336443361 | M93: 0.001321592914 | N93: 2.274633259e-07
A94: =IF('DF raw data'!A94="","",'DF raw data'!A94) -> -286.5 | B94: =IF('DF raw data'!B94="","",'DF raw data'!B94) -> -1.69474e-05 | C94: =IF('DF raw data'!C94="","",'DF raw data'!C94) -> 0.000175075 | D94: =IF('DF raw data'!D94="","",'DF raw data'!D94) -> -3.84356e-05 | F94: -3.488916871e-06 | G94: 3.026477554e-05 | H94: -4.411671034e-07 | J94: 8.871528992e-05 | K94: 0.0006358006312 | L94: 0.0002487767239 | M94: 0.001445981276 | N94: 2.623434564e-07
A95: =IF('DF raw data'!A95="","",'DF raw data'!A95) -> -286 | B95: =IF('DF raw data'!B95="","",'DF raw data'!B95) -> -7.27115e-06 | C95: =IF('DF raw data'!C95="","",'DF raw data'!C95) -> 0.000180307 | D95: =IF('DF raw data'!D95="","",'DF raw data'!D95) -> -4.32323e-05 | F95: 6.227973379e-06 | G95: 3.551874994e-05 | H95: -5.258013243e-06 | J95: 9.182927661e-05 | K95: 0.0006817152695 | L95: 0.0002665360989 | M95: 0.001579249325 | N95: 3.020805104e-07
A96: =IF('DF raw data'!A96="","",'DF raw data'!A96) -> -285.5 | B96: =IF('DF raw data'!B96="","",'DF raw data'!B96) -> -2.02073e-06 | C96: =IF('DF raw data'!C96="","",'DF raw data'!C96) -> 0.000167275 | D96: =IF('DF raw data'!D96="","",'DF raw data'!D96) -> -3.9194e-05 | F96: 1.150044514e-05 | G96: 2.243201554e-05 | H96: -1.202752383e-06 | J96: 9.757949918e-05 | K96: 0.0007305050191 | L96: 0.0002777521066 | M96: 0.001718125379 | N96: 3.454145061e-07
A97: =IF('DF raw data'!A97="","",'DF raw data'!A97) -> -285 | B97: =IF('DF raw data'!B97="","",'DF raw data'!B97) -> -5.8616e-06 | C97: =IF('DF raw data'!C97="","",'DF raw data'!C97) -> 0.000163676 | D97: =IF('DF raw data'!D97="","",'DF raw data'!D97) -> -4.36526e-05 | F97: 7.643443489e-06 | G97: 1.881789974e-05 | H97: -5.680078503e-06 | J97: 0.0001014012209 | K97: 0.0007812056296 | L97: 0.0002871610565 | M97: 0.001861705907 | N97: 3.917863461e-07
A98: =IF('DF raw data'!A98="","",'DF raw data'!A98) -> -284.5 | B98: =IF('DF raw data'!B98="","",'DF raw data'!B98) -> -1.573e-05 | C98: =IF('DF raw data'!C98="","",'DF raw data'!C98) -> 0.00017065 | D98: =IF('DF raw data'!D98="","",'DF raw data'!D98) -> -3.87553e-05 | F98: -2.266403791e-06 | G98: 2.582119054e-05 | H98: -7.622098434e-07 | J98: 0.000100268019 | K98: 0.0008313396391 | L98: 0.0003000716518 | M98: 0.002011741733 | N98: 4.41834682e-07
A99: =IF('DF raw data'!A99="","",'DF raw data'!A99) -> -284 | B99: =IF('DF raw data'!B99="","",'DF raw data'!B99) -> -1.07361e-05 | C99: =IF('DF raw data'!C99="","",'DF raw data'!C99) -> 0.000165831 | D99: =IF('DF raw data'!D99="","",'DF raw data'!D99) -> -3.46714e-05 | F99: 2.748470589e-06 | G99: 2.098195074e-05 | H99: 3.338842537e-06 | J99: 0.0001016422543 | K99: 0.0008821607663 | L99: 0.0003105626271 | M99: 0.002167023046 | N99: 4.952248286e-07
A100: =IF('DF raw data'!A100="","",'DF raw data'!A100) -> -283.5 | B100: =IF('DF raw data'!B100="","",'DF raw data'!B100) -> -4.97161e-06 | C100: =IF('DF raw data'!C100="","",'DF raw data'!C100) -> 0.000161986 | D100: =IF('DF raw data'!D100="","",'DF raw data'!D100) -> -3.31302e-05 | F100: 8.537171447e-06 | G100: 1.712080174e-05 | H100: 4.886515577e-06 | J100: 0.0001059108401 | K100: 0.0009351161863 | L100: 0.000319123028 | M100: 0.00232658456 | N100: 5.517531352e-07
A101: =IF('DF raw data'!A101="","",'DF raw data'!A101) -> -283 | B101: =IF('DF raw data'!B101="","",'DF raw data'!B101) -> -6.14914e-07 | C101: =IF('DF raw data'!C101="","",'DF raw data'!C101) -> 0.000171978 | D101: =IF('DF raw data'!D101="","",'DF raw data'!D101) -> -3.38557e-05 | F101: 1.291216557e-05 | G101: 2.715476814e-05 | H101: 4.157968477e-06 | J101: 0.0001123669228 | K101: 0.0009912996477 | L101: 0.0003327004121 | M101: 0.002492934766 | N101: 6.134110799e-07
A102: =IF('DF raw data'!A102="","",'DF raw data'!A102) -> -282.5 | B102: =IF('DF raw data'!B102="","",'DF raw data'!B102) -> -3.7524e-06 | C102: =IF('DF raw data'!C102="","",'DF raw data'!C102) -> 0.000170059 | D102: =IF('DF raw data'!D102="","",'DF raw data'!D102) -> -3.61707e-05 | F102: 9.761502129e-06 | G102: 2.522770834e-05 | H102: 1.833245477e-06 | J102: 0.0001172476739 | K102: 0.001049923485 | L102: 0.0003453142662 | M102: 0.002665591899 | N102: 6.799055597e-07
A103: =IF('DF raw data'!A103="","",'DF raw data'!A103) -> -282 | B103: =IF('DF raw data'!B103="","",'DF raw data'!B103) -> -5.21597e-06 | C103: =IF('DF raw data'!C103="","",'DF raw data'!C103) -> 0.000169171 | D103: =IF('DF raw data'!D103="","",'DF raw data'!D103) -> -5.14298e-05 | F103: 8.291785135e-06 | G103: 2.433597874e-05 | H103: -1.348994274e-05 | J103: 0.0001213935665 | K103: 0.001110620268 | L103: 0.0003574822556 | M103: 0.002844333027 | N103: 7.511705402e-07
A104: =IF('DF raw data'!A104="","",'DF raw data'!A104) -> -281.5 | B104: =IF('DF raw data'!B104="","",'DF raw data'!B104) -> 2.3141e-07 | C104: =IF('DF raw data'!C104="","",'DF raw data'!C104) -> 0.000162139 | D104: =IF('DF raw data'!D104="","",'DF raw data'!D104) -> -5.45717e-05 | F104: 1.376204413e-05 | G104: 1.727444434e-05 | H104: -1.664503872e-05 | J104: 0.0001282745885 | K104: 0.001174757562 | L104: 0.0003661194778 | M104: 0.003027392766 | N104: 8.264194612e-07
A105: =IF('DF raw data'!A105="","",'DF raw data'!A105) -> -281 | B105: =IF('DF raw data'!B105="","",'DF raw data'!B105) -> -8.10398e-06 | C105: =IF('DF raw data'!C105="","",'DF raw data'!C105) -> 0.000159769 | D105: =IF('DF raw data'!D105="","",'DF raw data'!D105) -> -4.33168e-05 | F105: 5.391645493e-06 | G105: 1.489449034e-05 | H105: -5.342868143e-06 | J105: 0.0001309704113 | K105: 0.001240242768 | L105: 0.000373566723 | M105: 0.003214176128 | N105: 9.047721338e-07
A106: =IF('DF raw data'!A106="","",'DF raw data'!A106) -> -280.5 | B106: =IF('DF raw data'!B106="","",'DF raw data'!B106) -> -7.39956e-06 | C106: =IF('DF raw data'!C106="","",'DF raw data'!C106) -> 0.00016126 | D106: =IF('DF raw data'!D106="","",'DF raw data'!D106) -> -4.27841e-05 | F106: 6.099024057e-06 | G106: 1.639175254e-05 | H106: -4.807930803e-06 | J106: 0.0001340199233 | K106: 0.001307252729 | L106: 0.0003817625992 | M106: 0.003405057427 | N106: 9.866241448e-07
A107: =IF('DF raw data'!A107="","",'DF raw data'!A107) -> -280 | B107: =IF('DF raw data'!B107="","",'DF raw data'!B107) -> 4.58443e-06 | C107: =IF('DF raw data'!C107="","",'DF raw data'!C107) -> 0.000173223 | D107: =IF('DF raw data'!D107="","",'DF raw data'!D107) -> -4.96404e-05 | F107: 1.813334681e-05 | G107: 2.840499714e-05 | H107: -1.169302726e-05 | J107: 0.0001430865967 | K107: 0.001378796028 | L107: 0.0003959650978 | M107: 0.003603039976 | N107: 1.075255211e-06
A108: =IF('DF raw data'!A108="","",'DF raw data'!A108) -> -279.5 | B108: =IF('DF raw data'!B108="","",'DF raw data'!B108) -> -1.34185e-05 | C108: =IF('DF raw data'!C108="","",'DF raw data'!C108) -> 0.000176792 | D108: =IF('DF raw data'!D108="","",'DF raw data'!D108) -> -4.70898e-05 | F108: 5.480450891e-08 | G108: 3.198898694e-05 | H108: -9.131714743e-06 | J108: 0.000143113999 | K108: 0.001450353027 | L108: 0.0004119595913 | M108: 0.003809019772 | N108: 1.170351372e-06
A109: =IF('DF raw data'!A109="","",'DF raw data'!A109) -> -279 | B109: =IF('DF raw data'!B109="","",'DF raw data'!B109) -> -1.08616e-05 | C109: =IF('DF raw data'!C109="","",'DF raw data'!C109) -> 0.000173662 | D109: =IF('DF raw data'!D109="","",'DF raw data'!D109) -> -3.87785e-05 | F109: 2.622443489e-06 | G109: 2.884584094e-05 | H109: -7.855072834e-07 | J109: 0.0001444252207 | K109: 0.001522565638 | L109: 0.0004263825117 | M109: 0.004022211028 | N109: 1.271681717e-06
A110: =IF('DF raw data'!A110="","",'DF raw data'!A110) -> -278.5 | B110: =IF('DF raw data'!B110="","",'DF raw data'!B110) -> -4.00102e-06 | C110: =IF('DF raw data'!C110="","",'DF raw data'!C110) -> 0.000162741 | D110: =IF('DF raw data'!D110="","",'DF raw data'!D110) -> -4.7905e-05 | F110: 9.511837925e-06 | G110: 1.787897274e-05 | H110: -9.950338583e-06 | J110: 0.0001491811397 | K110: 0.001597156208 | L110: 0.0004353219981 | M110: 0.004239872027 | N110: 1.377561845e-06
A111: =IF('DF raw data'!A111="","",'DF raw data'!A111) -> -278 | B111: =IF('DF raw data'!B111="","",'DF raw data'!B111) -> -6.62826e-06 | C111: =IF('DF raw data'!C111="","",'DF raw data'!C111) -> 0.000163251 | D111: =IF('DF raw data'!D111="","",'DF raw data'!D111) -> -4.67932e-05 | F111: 6.873563517e-06 | G111: 1.839111474e-05 | H111: -8.833869023e-06 | J111: 0.0001526179214 | K111: 0.001673465168 | L111: 0.0004445175555 | M111: 0.004462130804 | N111: 1.488005888e-06
A112: =IF('DF raw data'!A112="","",'DF raw data'!A112) -> -277.5 | B112: =IF('DF raw data'!B112="","",'DF raw data'!B112) -> -3.04488e-06 | C112: =IF('DF raw data'!C112="","",'DF raw data'!C112) -> 0.000168298 | D112: =IF('DF raw data'!D112="","",'DF raw data'!D112) -> -4.04037e-05 | F112: 1.047199371e-05 | G112: 2.345931214e-05 | H112: -2.417533123e-06 | J112: 0.0001578539183 | K112: 0.001752392127 | L112: 0.0004562472116 | M112: 0.00469025441 | N112: 1.604545577e-06
A113: =IF('DF raw data'!A113="","",'DF raw data'!A113) -> -277 | B113: =IF('DF raw data'!B113="","",'DF raw data'!B113) -> -2.79403e-06 | C113: =IF('DF raw data'!C113="","",'DF raw data'!C113) -> 0.000168652 | D113: =IF('DF raw data'!D113="","",'DF raw data'!D113) -> -3.21103e-05 | F113: 1.072389728e-05 | G113: 2.381479894e-05 | H113: 5.910699157e-06 | J113: 0.0001632158669 | K113: 0.001834000061 | L113: 0.000468154611 | M113: 0.004924331716 | N113: 1.727449656e-06
A114: =IF('DF raw data'!A114="","",'DF raw data'!A114) -> -276.5 | B114: =IF('DF raw data'!B114="","",'DF raw data'!B114) -> 8.9972e-06 | C114: =IF('DF raw data'!C114="","",'DF raw data'!C114) -> 0.000168745 | D114: =IF('DF raw data'!D114="","",'DF raw data'!D114) -> -3.82549e-05 | F114: 2.256465045e-05 | G114: 2.390818954e-05 | H114: -2.597081634e-07 | J114: 0.0001744981922 | K114: 0.001921249157 | L114: 0.0004801087058 | M114: 0.005164386069 | N114: 1.857926651e-06
A115: =IF('DF raw data'!A115="","",'DF raw data'!A115) -> -276 | B115: =IF('DF raw data'!B115="","",'DF raw data'!B115) -> 3.92682e-06 | C115: =IF('DF raw data'!C115="","",'DF raw data'!C115) -> 0.000177315 | D115: =IF('DF raw data'!D115="","",'DF raw data'!D115) -> -2.33738e-05 | F115: 1.747297485e-05 | G115: 3.251418354e-05 | H115: 1.468389246e-05 | J115: 0.0001832346796 | K115: 0.002012866497 | L115: 0.0004963657976 | M115: 0.005412568967 | N115: 1.997903627e-06
A116: =IF('DF raw data'!A116="","",'DF raw data'!A116) -> -275.5 | B116: =IF('DF raw data'!B116="","",'DF raw data'!B116) -> 2.71734e-06 | C116: =IF('DF raw data'!C116="","",'DF raw data'!C116) -> 0.000180623 | D116: =IF('DF raw data'!D116="","",'DF raw data'!D116) -> -3.53424e-05 | F116: 1.625841504e-05 | G116: 3.583607714e-05 | H116: 2.665024337e-06 | J116: 0.0001913638871 | K116: 0.00210854844 | L116: 0.0005142838361 | M116: 0.005669710885 | N116: 2.148457628e-06
A117: =IF('DF raw data'!A117="","",'DF raw data'!A117) -> -275 | B117: =IF('DF raw data'!B117="","",'DF raw data'!B117) -> 7.84351e-06 | C117: =IF('DF raw data'!C117="","",'DF raw data'!C117) -> 0.00018217 | D117: =IF('DF raw data'!D117="","",'DF raw data'!D117) -> -3.72688e-05 | F117: 2.140611495e-05 | G117: 3.738957454e-05 | H117: 7.305334566e-07 | J117: 0.0002020669446 | K117: 0.002209581913 | L117: 0.0005329786234 | M117: 0.005936200197 | N117: 2.310906259e-06
A118: =IF('DF raw data'!A118="","",'DF raw data'!A118) -> -274.5 | B118: =IF('DF raw data'!B118="","",'DF raw data'!B118) -> -7.52633e-06 | C118: =IF('DF raw data'!C118="","",'DF raw data'!C118) -> 0.000187973 | D118: =IF('DF raw data'!D118="","",'DF raw data'!D118) -> -4.48641e-05 | F118: 5.971721623e-06 | G118: 4.321694714e-05 | H118: -6.896666803e-06 | J118: 0.0002050528054 | K118: 0.002312108315 | L118: 0.000554587097 | M118: 0.006213493746 | N118: 2.48571301e-06
A119: =IF('DF raw data'!A119="","",'DF raw data'!A119) -> -274 | B119: =IF('DF raw data'!B119="","",'DF raw data'!B119) -> -2.86511e-08 | C119: =IF('DF raw data'!C119="","",'DF raw data'!C119) -> 0.000181077 | D119: =IF('DF raw data'!D119="","",'DF raw data'!D119) -> -4.86694e-05 | F119: 1.350089077e-05 | G119: 3.629198394e-05 | H119: -1.071794906e-05 | J119: 0.0002118032508 | K119: 0.002418009941 | L119: 0.0005727330889 | M119: 0.00649986029 | N119: 2.672154914e-06
A120: =IF('DF raw data'!A120="","",'DF raw data'!A120) -> -273.5 | B120: =IF('DF raw data'!B120="","",'DF raw data'!B120) -> 3.23586e-06 | C120: =IF('DF raw data'!C120="","",'DF raw data'!C120) -> 0.000168788 | D120: =IF('DF raw data'!D120="","",'DF raw data'!D120) -> -4.46787e-05 | F120: 1.677911282e-05 | G120: 2.395137014e-05 | H120: -6.710488123e-06 | J120: 0.0002201928072 | K120: 0.002528106344 | L120: 0.000584708774 | M120: 0.006792214677 | N120: 2.867339525e-06
A121: =IF('DF raw data'!A121="","",'DF raw data'!A121) -> -273 | B121: =IF('DF raw data'!B121="","",'DF raw data'!B121) -> -1.42557e-05 | C121: =IF('DF raw data'!C121="","",'DF raw data'!C121) -> 0.000177645 | D121: =IF('DF raw data'!D121="","",'DF raw data'!D121) -> -4.05013e-05 | F121: -7.859117311e-07 | G121: 3.284556954e-05 | H121: -2.515543043e-06 | J121: 0.0002197998513 | K121: 0.00263800627 | L121: 0.0006011315588 | M121: 0.007092780457 | N121: 3.072175088e-06
A122: =IF('DF raw data'!A122="","",'DF raw data'!A122) -> -272.5 | B122: =IF('DF raw data'!B122="","",'DF raw data'!B122) -> -1.63088e-05 | C122: =IF('DF raw data'!C122="","",'DF raw data'!C122) -> 0.000179038 | D122: =IF('DF raw data'!D122="","",'DF raw data'!D122) -> -3.54107e-05 | F122: -2.847634751e-06 | G122: 3.424442014e-05 | H122: 2.596437477e-06 | J122: 0.0002183760339 | K122: 0.002747194287 | L122: 0.0006182537689 | M122: 0.007401907341 | N122: 3.287137996e-06
A123: =IF('DF raw data'!A123="","",'DF raw data'!A123) -> -272 | B123: =IF('DF raw data'!B123="","",'DF raw data'!B123) -> -1.30386e-05 | C123: =IF('DF raw data'!C123="","",'DF raw data'!C123) -> 0.000175285 | D123: =IF('DF raw data'!D123="","",'DF raw data'!D123) -> -4.02605e-05 | F123: 4.363000889e-07 | G123: 3.047565754e-05 | H123: -2.273731683e-06 | J123: 0.000218594184 | K123: 0.002856491379 | L123: 0.0006334915976 | M123: 0.00771865314 | N123: 3.511685506e-06
A124: =IF('DF raw data'!A124="","",'DF raw data'!A124) -> -271.5 | B124: =IF('DF raw data'!B124="","",'DF raw data'!B124) -> -3.49492e-06 | C124: =IF('DF raw data'!C124="","",'DF raw data'!C124) -> 0.000175734 | D124: =IF('DF raw data'!D124="","",'DF raw data'!D124) -> -3.80841e-05 | F124: 1.002006354e-05 | G124: 3.092654334e-05 | H124: -8.819080341e-08 | J124: 0.0002236042158 | K124: 0.002968293487 | L124: 0.0006489548693 | M124: 0.008043130574 | N124: 3.74725614e-06
A125: =IF('DF raw data'!A125="","",'DF raw data'!A125) -> -271 | B125: =IF('DF raw data'!B125="","",'DF raw data'!B125) -> -6.37692e-06 | C125: =IF('DF raw data'!C125="","",'DF raw data'!C125) -> 0.000185669 | D125: =IF('DF raw data'!D125="","",'DF raw data'!D125) -> -3.92585e-05 | F125: 7.125959145e-06 | G125: 4.090327034e-05 | H125: -1.267523283e-06 | J125: 0.0002271671953 | K125: 0.003081877084 | L125: 0.0006694065045 | M125: 0.008377833827 | N125: 3.997111142e-06
A126: =IF('DF raw data'!A126="","",'DF raw data'!A126) -> -270.5 | B126: =IF('DF raw data'!B126="","",'DF raw data'!B126) -> -1.5734e-05 | C126: =IF('DF raw data'!C126="","",'DF raw data'!C126) -> 0.000188171 | D126: =IF('DF raw data'!D126="","",'DF raw data'!D126) -> -3.25476e-05 | F126: -2.270420591e-06 | G126: 4.341577874e-05 | H126: 5.471562497e-06 | J126: 0.000226031985 | K126: 0.003194893077 | L126: 0.0006911143938 | M126: 0.008723391024 | N126: 4.261475923e-06
A127: =IF('DF raw data'!A127="","",'DF raw data'!A127) -> -270 | B127: =IF('DF raw data'!B127="","",'DF raw data'!B127) -> -2.53061e-06 | C127: =IF('DF raw data'!C127="","",'DF raw data'!C127) -> 0.000179454 | D127: =IF('DF raw data'!D127="","",'DF raw data'!D127) -> -4.31826e-05 | F127: 1.098842365e-05 | G127: 3.466216734e-05 | H127: -5.208104503e-06 | J127: 0.0002315261969 | K127: 0.003310656175 | L127: 0.0007084454775 | M127: 0.009077613762 | N127: 4.539225611e-06
A128: =IF('DF raw data'!A128="","",'DF raw data'!A128) -> -269.5 | B128: =IF('DF raw data'!B128="","",'DF raw data'!B128) -> -6.00145e-06 | C128: =IF('DF raw data'!C128="","",'DF raw data'!C128) -> 0.000178344 | D128: =IF('DF raw data'!D128="","",'DF raw data'!D128) -> -2.55632e-05 | F128: 7.503006119e-06 | G128: 3.354750534e-05 | H128: 1.248529698e-05 | J128: =F128*$G$3+J127 -> 0.0002352776999 | K128: =J128*$G$3+K127 -> 0.003428295025 | L128: =G128*$G$3+L127 -> 0.0007252192302 | M128: =L128*$G$3+M127 -> 0.009440223377 | N128: =(J128^2+L128^2)*$G$3+N127 -> 4.829874875e-06
A129: =IF('DF raw data'!A129="","",'DF raw data'!A129) -> -269 | B129: =IF('DF raw data'!B129="","",'DF raw data'!B129) -> 1.1749e-05 | C129: =IF('DF raw data'!C129="","",'DF raw data'!C129) -> 0.000183565 | D129: =IF('DF raw data'!D129="","",'DF raw data'!D129) -> -3.39112e-05 | F129: 2.532800801e-05 | G129: 3.879043354e-05 | H129: 4.102235377e-06 | J129: 0.0002479417039 | K129: 0.003552265877 | L129: 0.000744614447 | M129: 0.009812530601 | N129: 5.137837756e-06
A130: =IF('DF raw data'!A130="","",'DF raw data'!A130) -> -268.5 | B130: =IF('DF raw data'!B130="","",'DF raw data'!B130) -> -2.52526e-06 | C130: =IF('DF raw data'!C130="","",'DF raw data'!C130) -> 0.000177643 | D130: =IF('DF raw data'!D130="","",'DF raw data'!D130) -> -5.1436e-05 | F130: 1.099379612e-05 | G130: 3.284356114e-05 | H130: -1.349616878e-05 | J130: 0.000253438602 | K130: 0.003678985178 | L130: 0.0007610362275 | M130: 0.01019304871 | N130: 5.459541389e-06
A131: =IF('DF raw data'!A131="","",'DF raw data'!A131) -> -268 | B131: =IF('DF raw data'!B131="","",'DF raw data'!B131) -> -5.47604e-06 | C131: =IF('DF raw data'!C131="","",'DF raw data'!C131) -> 0.000176049 | D131: =IF('DF raw data'!D131="","",'DF raw data'!D131) -> -4.55233e-05 | F131: =(1-$G$1*($B$54-$G$2))*(B131-F$5) -> 8.030622841e-06 | G131: =(1-$G$1*($B$54-$G$2))*(C131-G$5) -> 3.124286634e-05 | H131: =(1-$G$1*($B$54-$G$2))*(D131-H$5) -> -7.558635443e-06 | J131: 0.0002574539134 | K131: 0.003807712135 | L131: 0.0007766576607 | M131: 0.01058137755 | N131: 5.794281208e-06
A132: =IF('DF raw data'!A132="","",'DF raw data'!A132) -> -267.5 | B132: =IF('DF raw data'!B132="","",'DF raw data'!B132) -> -1.54046e-05 | C132: =IF('DF raw data'!C132="","",'DF raw data'!C132) -> 0.000171385 | D132: =IF('DF raw data'!D132="","",'DF raw data'!D132) -> -4.68305e-05 | F132: -1.939637111e-06 | G132: 2.655927754e-05 | H132: -8.871325683e-06 | J132: 0.0002564840949 | K132: 0.003935954182 | L132: 0.0007899372995 | M132: 0.01097634619 | N132: 6.139173722e-06
A133: =IF('DF raw data'!A133="","",'DF raw data'!A133) -> -267 | B133: =IF('DF raw data'!B133="","",'DF raw data'!B133) -> -1.192e-06 | C133: =IF('DF raw data'!C133="","",'DF raw data'!C133) -> 0.000180448 | D133: =IF('DF raw data'!D133="","",'DF raw data'!D133) -> -3.27891e-05 | F133: 1.233265581e-05 | G133: 3.566034214e-05 | H133: 5.229048197e-06 | J133: 0.0002626504228 | K133: 0.004067279394 | L133: 0.0008077674705 | M133: 0.01138022993 | N133: 6.499910488e-06
A134: =IF('DF raw data'!A134="","",'DF raw data'!A134) -> -266.5 | B134: =IF('DF raw data'!B134="","",'DF raw data'!B134) -> 2.15072e-06 | C134: =IF('DF raw data'!C134="","",'DF raw data'!C134) -> 0.000180835 | D134: =IF('DF raw data'!D134="","",'DF raw data'!D134) -> -5.08216e-05 | F134: 1.568941523e-05 | G134: 3.604896754e-05 | H134: -1.28791883e-05 | J134: 0.0002704951304 | K134: 0.004202526959 | L134: 0.0008257919543 | M134: 0.01179312591 | N134: 6.877460471e-06
A135: =IF('DF raw data'!A135="","",'DF raw data'!A135) -> -266 | B135: =IF('DF raw data'!B135="","",'DF raw data'!B135) -> -2.46802e-06 | C135: =IF('DF raw data'!C135="","",'DF raw data'!C135) -> 0.000176556 | D135: =IF('DF raw data'!D135="","",'DF raw data'!D135) -> -4.11298e-05 | F135: 1.105127652e-05 | G135: 3.175199574e-05 | H135: -3.146682743e-06 | J135: 0.0002760207686 | K135: 0.004340537343 | L135: 0.0008416679522 | M135: 0.01221395988 | N135: 7.269756675e-06
A136: =IF('DF raw data'!A136="","",'DF raw data'!A136) -> -265.5 | B136: =IF('DF raw data'!B136="","",'DF raw data'!B136) -> -7.2003e-06 | C136: =IF('DF raw data'!C136="","",'DF raw data'!C136) -> 0.000184244 | D136: =IF('DF raw data'!D136="","",'DF raw data'!D136) -> -5.3513e-05 | F136: 6.299120949e-06 | G136: 3.947228534e-05 | H136: -1.558189218e-05 | J136: 0.0002791703291 | K136: 0.004480122508 | L136: 0.0008614040949 | M136: 0.01264466193 | N136: 7.679733218e-06
A137: =IF('DF raw data'!A137="","",'DF raw data'!A137) -> -265 | B137: =IF('DF raw data'!B137="","",'DF raw data'!B137) -> -9.70438e-06 | C137: =IF('DF raw data'!C137="","",'DF raw data'!C137) -> 0.000184654 | D137: =IF('DF raw data'!D137="","",'DF raw data'!D137) -> -4.47606e-05 | F137: 3.784523813e-06 | G137: 3.988400734e-05 | H137: -6.792732103e-06 | J137: 0.000281062591 | K137: 0.004620653803 | L137: 0.0008813460985 | M137: 0.01308533498 | N137: 8.107616781e-06
A138: =IF('DF raw data'!A138="","",'DF raw data'!A138) -> -264.5 | B138: =IF('DF raw data'!B138="","",'DF raw data'!B138) -> -2.80927e-05 | C138: =IF('DF raw data'!C138="","",'DF raw data'!C138) -> 0.000185498 | D138: =IF('DF raw data'!D138="","",'DF raw data'!D138) -> -4.0719e-05 | F138: -1.468102713e-05 | G138: 4.073155214e-05 | H138: -2.734157383e-06 | J138: 0.0002737220774 | K138: 0.004757514842 | L138: 0.0009017118746 | M138: 0.01353619092 | N138: 8.551620821e-06
A139: =IF('DF raw data'!A139="","",'DF raw data'!A139) -> -264 | B139: =IF('DF raw data'!B139="","",'DF raw data'!B139) -> -9.95794e-06 | C139: =IF('DF raw data'!C139="","",'DF raw data'!C139) -> 0.000184905 | D139: =IF('DF raw data'!D139="","",'DF raw data'!D139) -> -4.88754e-05 | F139: 3.529898861e-06 | G139: 4.013606154e-05 | H139: -1.092481426e-05 | J139: 0.0002754870269 | K139: 0.004895258356 | L139: 0.0009217799054 | M139: 0.01399708087 | N139: 9.014406469e-06
A140: =IF('DF raw data'!A140="","",'DF raw data'!A140) -> -263.5 | B140: =IF('DF raw data'!B140="","",'DF raw data'!B140) -> -3.94203e-06 | C140: =IF('DF raw data'!C140="","",'DF raw data'!C140) -> 0.000175882 | D140: =IF('DF raw data'!D140="","",'DF raw data'!D140) -> -3.98967e-05 | F140: 9.571075683e-06 | G140: 3.107516494e-05 | H140: -1.908403723e-06 | J140: 0.0002802725647 | K140: 0.005035394638 | L140: 0.0009373174878 | M140: 0.01446573961 | N140: 9.492964861e-06
A141: =IF('DF raw data'!A141="","",'DF raw data'!A141) -> -263 | B141: =IF('DF raw data'!B141="","",'DF raw data'!B141) -> -2.15169e-06 | C141: =IF('DF raw data'!C141="","",'DF raw data'!C141) -> 0.000180336 | D141: =IF('DF raw data'!D141="","",'DF raw data'!D141) -> -3.48239e-05 | F141: 1.136893511e-05 | G141: 3.554787174e-05 | H141: 3.185702037e-06 | J141: 0.0002859570323 | K141: 0.005178373154 | L141: 0.0009550914237 | M141: 0.01494328533 | N141: 9.989950387e-06
A142: =IF('DF raw data'!A142="","",'DF raw data'!A142) -> -262.5 | B142: =IF('DF raw data'!B142="","",'DF raw data'!B142) -> -5.80061e-06 | C142: =IF('DF raw data'!C142="","",'DF raw data'!C142) -> 0.00018361 | D142: =IF('DF raw data'!D142="","",'DF raw data'!D142) -> -3.8729e-05 | F142: 7.704689647e-06 | G142: 3.883562254e-05 | H142: -7.357993834e-07 | J142: 0.0002898093771 | K142: 0.005323277843 | L142: 0.000974509235 | M142: 0.01543053994 | N142: 1.050677925e-05
A143: =IF('DF raw data'!A143="","",'DF raw data'!A143) -> -262 | B143: =IF('DF raw data'!B143="","",'DF raw data'!B143) -> -1.24564e-05 | C143: =IF('DF raw data'!C143="","",'DF raw data'!C143) -> 0.000174238 | D143: =IF('DF raw data'!D143="","",'DF raw data'!D143) -> -4.87367e-05 | F143: 1.020945329e-06 | G143: 2.942426014e-05 | H143: -1.078553172e-05 | J143: 0.0002903198498 | K143: 0.005468437767 | L143: 0.000989221365 | M143: 0.01592515063 | N143: 1.103820151e-05
A144: =IF('DF raw data'!A144="","",'DF raw data'!A144) -> -261.5 | B144: =IF('DF raw data'!B144="","",'DF raw data'!B144) -> -1.47722e-05 | C144: =IF('DF raw data'!C144="","",'DF raw data'!C144) -> 0.0001741 | D144: =IF('DF raw data'!D144="","",'DF raw data'!D144) -> -3.42037e-05 | F144: -1.304581031e-06 | G144: 2.928568054e-05 | H144: 3.808506877e-06 | J144: 0.0002896675592 | K144: 0.005613271547 | L144: 0.001003864205 | M144: 0.01642708273 | N144: 1.158402683e-05
A145: =IF('DF raw data'!A145="","",'DF raw data'!A145) -> -261 | B145: =IF('DF raw data'!B145="","",'DF raw data'!B145) -> -1.84201e-05 | C145: =IF('DF raw data'!C145="","",'DF raw data'!C145) -> 0.000179368 | D145: =IF('DF raw data'!D145="","",'DF raw data'!D145) -> -3.97494e-05 | F145: -4.967802211e-06 | G145: 3.457580614e-05 | H145: -1.760485063e-06 | J145: 0.0002871836581 | K145: 0.005756863376 | L145: 0.001021152108 | M145: 0.01693765878 | N145: 1.214663987e-05
A146: =IF('DF raw data'!A146="","",'DF raw data'!A146) -> -260.5 | B146: =IF('DF raw data'!B146="","",'DF raw data'!B146) -> 9.37875e-06 | C146: =IF('DF raw data'!C146="","",'DF raw data'!C146) -> 0.000182637 | D146: =IF('DF raw data'!D146="","",'DF raw data'!D146) -> -3.39375e-05 | F146: 2.294780296e-05 | G146: 3.785853594e-05 | H146: 4.075824917e-06 | J146: 0.0002986575596 | K146: 0.005906192156 | L146: 0.001040081376 | M146: 0.01745769947 | N146: 1.273212267e-05
A147: =IF('DF raw data'!A147="","",'DF raw data'!A147) -> -260 | B147: =IF('DF raw data'!B147="","",'DF raw data'!B147) -> 5.59938e-06 | C147: =IF('DF raw data'!C147="","",'DF raw data'!C147) -> 0.000183619 | D147: =IF('DF raw data'!D147="","",'DF raw data'!D147) -> -3.42302e-05 | F147: 1.91525596e-05 | G147: 3.884466034e-05 | H147: 3.781895577e-06 | J147: 0.0003082338394 | K147: 0.006060309076 | L147: 0.001059503707 | M147: 0.01798745132 | N147: 1.334090078e-05
A148: =IF('DF raw data'!A148="","",'DF raw data'!A148) -> -259.5 | B148: =IF('DF raw data'!B148="","",'DF raw data'!B148) -> 6.04835e-06 | C148: =IF('DF raw data'!C148="","",'DF raw data'!C148) -> 0.000182299 | D148: =IF('DF raw data'!D148="","",'DF raw data'!D148) -> -3.53091e-05 | F148: 1.960341528e-05 | G148: 3.751911634e-05 | H148: 2.698464197e-06 | J148: 0.0003180355471 | K148: 0.006219326849 | L148: 0.001078263265 | M148: 0.01852658296 | N148: 1.397279992e-05
A149: =IF('DF raw data'!A149="","",'DF raw data'!A149) -> -259 | B149: =IF('DF raw data'!B149="","",'DF raw data'!B149) -> 9.84071e-06 | C149: =IF('DF raw data'!C149="","",'DF raw data'!C149) -> 0.000184875 | D149: =IF('DF raw data'!D149="","",'DF raw data'!D149) -> -5.46177e-05 | F149: 2.341170319e-05 | G149: 4.010593554e-05 | H149: -1.669123192e-05 | J149: 0.0003297413987 | K149: 0.006384197549 | L149: 0.001098316232 | M149: 0.01907574107 | N149: 1.463031388e-05
A150: =IF('DF raw data'!A150="","",'DF raw data'!A150) -> -258.5 | B150: =IF('DF raw data'!B150="","",'DF raw data'!B150) -> -4.58078e-06 | C150: =IF('DF raw data'!C150="","",'DF raw data'!C150) -> 0.000182071 | D150: =IF('DF raw data'!D150="","",'DF raw data'!D150) -> -4.27169e-05 | F150: 8.929642933e-06 | G150: 3.729015874e-05 | H150: -4.740448563e-06 | J150: 0.0003342062201 | K150: 0.006551300659 | L150: 0.001116961312 | M150: 0.01963422173 | N150: 1.530996207e-05
A151: =IF('DF raw data'!A151="","",'DF raw data'!A151) -> -258 | B151: =IF('DF raw data'!B151="","",'DF raw data'!B151) -> 6.75287e-06 | C151: =IF('DF raw data'!C151="","",'DF raw data'!C151) -> 0.000184489 | D151: =IF('DF raw data'!D151="","",'DF raw data'!D151) -> -3.49159e-05 | F151: 2.031089426e-05 | G151: 3.971831434e-05 | H151: 3.093315637e-06 | J151: 0.0003443616673 | K151: 0.006723481492 | L151: 0.001136820469 | M151: 0.02020263196 | N151: 1.601543494e-05
A152: =IF('DF raw data'!A152="","",'DF raw data'!A152) -> -257.5 | B152: =IF('DF raw data'!B152="","",'DF raw data'!B152) -> -1.12956e-06 | C152: =IF('DF raw data'!C152="","",'DF raw data'!C152) -> 0.000176926 | D152: =IF('DF raw data'!D152="","",'DF raw data'!D152) -> -3.04888e-05 | F152: 1.239535806e-05 | G152: 3.212354974e-05 | H152: 7.539009457e-06 | J152: 0.0003505593463 | K152: 0.006898761165 | L152: 0.001152882244 | M152: 0.02077907308 | N152: 1.67414496e-05
A153: =IF('DF raw data'!A153="","",'DF raw data'!A153) -> -257 | B153: =IF('DF raw data'!B153="","",'DF raw data'!B153) -> 2.52663e-06 | C153: =IF('DF raw data'!C153="","",'DF raw data'!C153) -> 0.000180078 | D153: =IF('DF raw data'!D153="","",'DF raw data'!D153) -> -3.7797e-05 | F153: 1.606690405e-05 | G153: 3.528878814e-05 | H153: 2.001150166e-07 | J153: 0.0003585927983 | K153: 0.007078057565 | L153: 0.001170526638 | M153: 0.0213643364 | N153: 1.74908103e-05
A154: =IF('DF raw data'!A154="","",'DF raw data'!A154) -> -256.5 | B154: =IF('DF raw data'!B154="","",'DF raw data'!B154) -> -4.19493e-07 | C154: =IF('DF raw data'!C154="","",'DF raw data'!C154) -> 0.000186725 | D154: =IF('DF raw data'!D154="","",'DF raw data'!D154) -> -3.86589e-05 | F154: 1.310840734e-05 | G154: 4.196370554e-05 | H154: -6.654049634e-07 | J154: 0.000365147002 | K154: 0.007260631066 | L154: 0.001191508491 | M154: 0.02196009065 | N154: 1.826732271e-05
A155: =IF('DF raw data'!A155="","",'DF raw data'!A155) -> -256 | B155: =IF('DF raw data'!B155="","",'DF raw data'!B155) -> -1.221e-05 | C155: =IF('DF raw data'!C155="","",'DF raw data'!C155) -> 0.000177391 | D155: =IF('DF raw data'!D155="","",'DF raw data'!D155) -> -3.36701e-05 | F155: 1.268380209e-06 | G155: 3.259050274e-05 | H155: 4.344347997e-06 | J155: 0.0003657811921 | K155: 0.007443521662 | L155: 0.001207803742 | M155: 0.02256399252 | N155: 1.906361559e-05
A156: =IF('DF raw data'!A156="","",'DF raw data'!A156) -> -255.5 | B156: =IF('DF raw data'!B156="","",'DF raw data'!B156) -> -3.3742e-06 | C156: =IF('DF raw data'!C156="","",'DF raw data'!C156) -> 0.000170722 | D156: =IF('DF raw data'!D156="","",'DF raw data'!D156) -> -2.66916e-05 | F156: 1.014129057e-05 | G156: 2.589349294e-05 | H156: 1.13521577e-05 | J156: 0.0003708518374 | K156: 0.00762894758 | L156: 0.001220750489 | M156: 0.02317436776 | N156: 1.987749701e-05
A157: =IF('DF raw data'!A157="","",'DF raw data'!A157) -> -255 | B157: =IF('DF raw data'!B157="","",'DF raw data'!B157) -> -2.48075e-06 | C157: =IF('DF raw data'!C157="","",'DF raw data'!C157) -> 0.000175405 | D157: =IF('DF raw data'!D157="","",'DF raw data'!D157) -> -2.15038e-05 | F157: 1.103849306e-05 | G157: 3.059616154e-05 | H157: 1.656174646e-05 | J157: 0.0003763710839 | K157: 0.007817133122 | L157: 0.001236048569 | M157: 0.02379239205 | N157: 2.071223264e-05
A158: =IF('DF raw data'!A158="","",'DF raw data'!A158) -> -254.5 | B158: =IF('DF raw data'!B158="","",'DF raw data'!B158) -> -1.59077e-07 | C158: =IF('DF raw data'!C158="","",'DF raw data'!C158) -> 0.00019059 | D158: =IF('DF raw data'!D158="","",'DF raw data'!D158) -> -4.51093e-05 | F158: 1.336991709e-05 | G158: 4.584493854e-05 | H158: -7.142896643e-06 | J158: 0.0003830560424 | K158: 0.008008661143 | L158: 0.001258971039 | M158: 0.02442187757 | N158: 2.157810264e-05
A159: =IF('DF raw data'!A159="","",'DF raw data'!A159) -> -254 | B159: =IF('DF raw data'!B159="","",'DF raw data'!B159) -> -5.41009e-07 | C159: =IF('DF raw data'!C159="","",'DF raw data'!C159) -> 0.000179037 | D159: =IF('DF raw data'!D159="","",'DF raw data'!D159) -> -4.88356e-05 | F159: 1.298638097e-05 | G159: 3.424341594e-05 | H159: -1.08848471e-05 | J159: 0.0003895492329 | K159: 0.00820343576 | L159: 0.001276092747 | M159: 0.02505992394 | N159: 2.246818329e-05
A160: =IF('DF raw data'!A160="","",'DF raw data'!A160) -> -253.5 | B160: =IF('DF raw data'!B160="","",'DF raw data'!B160) -> -4.90049e-06 | C160: =IF('DF raw data'!C160="","",'DF raw data'!C160) -> 0.000166922 | D160: =IF('DF raw data'!D160="","",'DF raw data'!D160) -> -4.38154e-05 | F160: 8.608590151e-06 | G160: 2.207753294e-05 | H160: -5.843562263e-06 | J160: 0.000393853528 | K160: 0.008400362524 | L160: 0.001287131513 | M160: 0.0257034897 | N160: 2.337409736e-05
A161: =IF('DF raw data'!A161="","",'DF raw data'!A161) -> -253 | B161: =IF('DF raw data'!B161="","",'DF raw data'!B161) -> 4.20197e-06 | C161: =IF('DF raw data'!C161="","",'DF raw data'!C161) -> 0.000168407 | D161: =IF('DF raw data'!D161="","",'DF raw data'!D161) -> -5.25418e-05 | F161: 1.774928048e-05 | G161: 2.356876994e-05 | H161: -1.460661314e-05 | J161: 0.0004027281682 | K161: 0.008601726608 | L161: 0.001298915898 | M161: 0.02635294765 | N161: 2.42987836e-05
A162: =IF('DF raw data'!A162="","",'DF raw data'!A162) -> -252.5 | B162: =IF('DF raw data'!B162="","",'DF raw data'!B162) -> -5.47957e-06 | C162: =IF('DF raw data'!C162="","",'DF raw data'!C162) -> 0.000178548 | D162: =IF('DF raw data'!D162="","",'DF raw data'!D162) -> -4.00718e-05 | F162: 8.027078015e-06 | G162: 3.375236214e-05 | H162: -2.084239143e-06 | J162: 0.0004067417073 | K162: 0.008805097462 | L162: 0.001315792079 | M162: 0.02701084369 | N162: 2.524715741e-05
A163: =IF('DF raw data'!A163="","",'DF raw data'!A163) -> -252 | B163: =IF('DF raw data'!B163="","",'DF raw data'!B163) -> -4.07558e-06 | C163: =IF('DF raw data'!C163="","",'DF raw data'!C163) -> 0.000185923 | D163: =IF('DF raw data'!D163="","",'DF raw data'!D163) -> -3.15156e-05 | F163: 9.436964773e-06 | G163: 4.115833714e-05 | H163: 6.507896897e-06 | J163: 0.0004114601896 | K163: 0.009010827556 | L163: 0.001336371248 | M163: 0.02767902931 | N163: 2.622475121e-05
A164: =IF('DF raw data'!A164="","",'DF raw data'!A164) -> -251.5 | B164: =IF('DF raw data'!B164="","",'DF raw data'!B164) -> 6.18327e-06 | C164: =IF('DF raw data'!C164="","",'DF raw data'!C164) -> 0.000175552 | D164: =IF('DF raw data'!D164="","",'DF raw data'!D164) -> -4.58012e-05 | F164: 1.973890194e-05 | G164: 3.074377894e-05 | H164: -7.837702623e-06 | J164: 0.0004213296406 | K164: 0.009221492377 | L164: 0.001351743137 | M164: 0.02835490088 | N164: 2.72271153e-05
A165: =IF('DF raw data'!A165="","",'DF raw data'!A165) -> -251 | B165: =IF('DF raw data'!B165="","",'DF raw data'!B165) -> 6.12352e-06 | C165: =IF('DF raw data'!C165="","",'DF raw data'!C165) -> 0.000176978 | D165: =IF('DF raw data'!D165="","",'DF raw data'!D165) -> -5.22455e-05 | F165: 1.967890099e-05 | G165: 3.217576814e-05 | H165: -1.430906868e-05 | J165: 0.0004311690911 | K165: 0.009437076922 | L165: 0.001367831021 | M165: 0.02903881639 | N165: 2.825554954e-05
A166: =IF('DF raw data'!A166="","",'DF raw data'!A166) -> -250.5 | B166: =IF('DF raw data'!B166="","",'DF raw data'!B166) -> 1.03287e-07 | C166: =IF('DF raw data'!C166="","",'DF raw data'!C166) -> 0.000186149 | D166: =IF('DF raw data'!D166="","",'DF raw data'!D166) -> -5.4562e-05 | F166: 1.363338301e-05 | G166: 4.138528634e-05 | H166: -1.663529798e-05 | J166: 0.0004379857826 | K166: 0.009656069814 | L166: 0.001388523664 | M166: 0.02973307822 | N166: 2.93154643e-05
A167: =IF('DF raw data'!A167="","",'DF raw data'!A167) -> -250 | B167: =IF('DF raw data'!B167="","",'DF raw data'!B167) -> -6.05732e-06 | C167: =IF('DF raw data'!C167="","",'DF raw data'!C167) -> 0.000182669 | D167: =IF('DF raw data'!D167="","",'DF raw data'!D167) -> -3.79918e-05 | F167: 7.446901465e-06 | G167: 3.789067034e-05 | H167: 4.496856585e-09 | J167: 0.0004417092333 | K167: 0.00987692443 | L167: 0.001407469 | M167: 0.03043681272 | N167: 3.040350231e-05
A168: =IF('DF raw data'!A168="","",'DF raw data'!A168) -> -249.5 | B168: =IF('DF raw data'!B168="","",'DF raw data'!B168) -> 1.8167e-06 | C168: =IF('DF raw data'!C168="","",'DF raw data'!C168) -> 0.000174516 | D168: =IF('DF raw data'!D168="","",'DF raw data'!D168) -> -2.94468e-05 | F168: 1.535399235e-05 | G168: 2.970342774e-05 | H168: 8.585385857e-06 | J168: 0.0004493862295 | K168: 0.01010161755 | L168: 0.001422320713 | M168: 0.03114797308 | N168: 3.151597441e-05
A169: =IF('DF raw data'!A169="","",'DF raw data'!A169) -> -249 | B169: =IF('DF raw data'!B169="","",'DF raw data'!B169) -> -1.70505e-06 | C169: =IF('DF raw data'!C169="","",'DF raw data'!C169) -> 0.000173575 | D169: =IF('DF raw data'!D169="","",'DF raw data'!D169) -> -3.18864e-05 | F169: 1.1817451e-05 | G169: 2.875847554e-05 | H169: 6.135539537e-06 | J169: 0.000455294955 | K169: 0.01032926502 | L169: 0.001436699951 | M169: 0.03186632305 | N169: 3.265167453e-05
A170: =IF('DF raw data'!A170="","",'DF raw data'!A170) -> -248.5 | B170: =IF('DF raw data'!B170="","",'DF raw data'!B170) -> 6.81519e-06 | C170: =IF('DF raw data'!C170="","",'DF raw data'!C170) -> 0.000179355 | D170: =IF('DF raw data'!D170="","",'DF raw data'!D170) -> -3.20323e-05 | F170: 2.037347601e-05 | G170: 3.456275154e-05 | H170: 5.989026757e-06 | J170: 0.000465481693 | K170: 0.01056200587 | L170: 0.001453981327 | M170: 0.03259331372 | N170: 3.381704199e-05
A171: =IF('DF raw data'!A171="","",'DF raw data'!A171) -> -248 | B171: =IF('DF raw data'!B171="","",'DF raw data'!B171) -> 4.45499e-06 | C171: =IF('DF raw data'!C171="","",'DF raw data'!C171) -> 0.000176352 | D171: =IF('DF raw data'!D171="","",'DF raw data'!D171) -> -4.75926e-05 | F171: 1.800336317e-05 | G171: 3.154713894e-05 | H171: -9.636626503e-06 | J171: 0.0004744833746 | K171: 0.01079924756 | L171: 0.001469754896 | M171: 0.03332819117 | N171: 3.500969895e-05
A172: =IF('DF raw data'!A172="","",'DF raw data'!A172) -> -247.5 | B172: =IF('DF raw data'!B172="","",'DF raw data'!B172) -> -7.72892e-06 | C172: =IF('DF raw data'!C172="","",'DF raw data'!C172) -> 0.000167679 | D172: =IF('DF raw data'!D172="","",'DF raw data'!D172) -> -2.90112e-05 | F172: 5.768280745e-06 | G172: 2.283771234e-05 | H172: 9.022815377e-06 | J172: 0.000477367515 | K172: 0.01103793131 | L172: 0.001481173753 | M172: 0.03406877804 | N172: 3.622057667e-05
A173: =IF('DF raw data'!A173="","",'DF raw data'!A173) -> -247 | B173: =IF('DF raw data'!B173="","",'DF raw data'!B173) -> -2.97927e-07 | C173: =IF('DF raw data'!C173="","",'DF raw data'!C173) -> 0.000175256 | D173: =IF('DF raw data'!D173="","",'DF raw data'!D173) -> -2.85584e-05 | F173: 1.323048392e-05 | G173: 3.044653574e-05 | H173: 9.477517137e-06 | J173: 0.0004839827569 | K173: 0.01127992269 | L173: 0.00149639702 | M173: 0.03481697655 | N173: 3.745729834e-05
A174: =IF('DF raw data'!A174="","",'DF raw data'!A174) -> -246.5 | B174: =IF('DF raw data'!B174="","",'DF raw data'!B174) -> 9.21276e-07 | C174: =IF('DF raw data'!C174="","",'DF raw data'!C174) -> 0.000186262 | D174: =IF('DF raw data'!D174="","",'DF raw data'!D174) -> -3.15867e-05 | F174: 1.445480757e-05 | G174: 4.149876094e-05 | H174: 6.436498277e-06 | J174: 0.0004912101607 | K174: 0.01152552777 | L174: 0.001517146401 | M174: 0.03557554975 | N174: 3.872880865e-05
A175: =IF('DF raw data'!A175="","",'DF raw data'!A175) -> -246 | B175: =IF('DF raw data'!B175="","",'DF raw data'!B175) -> -4.58644e-06 | C175: =IF('DF raw data'!C175="","",'DF raw data'!C175) -> 0.000183498 | D175: =IF('DF raw data'!D175="","",'DF raw data'!D175) -> -3.39911e-05 | F175: 8.923959161e-06 | G175: 3.872315214e-05 | H175: 4.021999797e-06 | J175: 0.0004956721403 | K175: 0.01177336384 | L175: 0.001536507977 | M175: 0.03634380374 | N175: 4.003208247e-05
A176: =IF('DF raw data'!A176="","",'DF raw data'!A176) -> -245.5 | B176: =IF('DF raw data'!B176="","",'DF raw data'!B176) -> -1.30433e-05 | C176: =IF('DF raw data'!C176="","",'DF raw data'!C176) -> 0.000168624 | D176: =IF('DF raw data'!D176="","",'DF raw data'!D176) -> -3.29717e-05 | F176: 4.315803489e-07 | G176: 2.378668134e-05 | H176: 5.045681277e-06 | J176: 0.0004958879305 | K176: 0.01202130781 | L176: 0.001548401318 | M176: 0.0371180044 | N176: 4.135380821e-05
A177: =IF('DF raw data'!A177="","",'DF raw data'!A177) -> -245 | B177: =IF('DF raw data'!B177="","",'DF raw data'!B177) -> -8.3056e-06 | C177: =IF('DF raw data'!C177="","",'DF raw data'!C177) -> 0.000175349 | D177: =IF('DF raw data'!D177="","",'DF raw data'!D177) -> -2.85677e-05 | F177: 5.189178689e-06 | G177: 3.053992634e-05 | H177: 9.468178077e-06 | J177: 0.0004984825198 | K177: 0.01227054907 | L177: 0.001563671281 | M177: 0.03789984004 | N177: 4.270058456e-05
A178: =IF('DF raw data'!A178="","",'DF raw data'!A178) -> -244.5 | B178: =IF('DF raw data'!B178="","",'DF raw data'!B178) -> 6.56244e-06 | C178: =IF('DF raw data'!C178="","",'DF raw data'!C178) -> 0.000181502 | D178: =IF('DF raw data'!D178="","",'DF raw data'!D178) -> -3.73951e-05 | F178: 2.011966446e-05 | G178: 3.671876894e-05 | H178: 6.037029966e-07 | J178: 0.0005085423521 | K178: 0.01252482024 | L178: 0.001582030665 | M178: 0.03869085537 | N178: 4.408130273e-05
A179: =IF('DF raw data'!A179="","",'DF raw data'!A179) -> -244 | B179: =IF('DF raw data'!B179="","",'DF raw data'!B179) -> -3.23603e-06 | C179: =IF('DF raw data'!C179="","",'DF raw data'!C179) -> 0.000179571 | D179: =IF('DF raw data'!D179="","",'DF raw data'!D179) -> -4.21878e-05 | F179: 1.028004088e-05 | G179: 3.477965874e-05 | H179: -4.209126343e-06 | J179: 0.0005136823725 | K179: 0.01278166143 | L179: 0.001599420495 | M179: 0.03949056562 | N179: 4.549231048e-05
A180: =IF('DF raw data'!A180="","",'DF raw data'!A180) -> -243.5 | B180: =IF('DF raw data'!B180="","",'DF raw data'!B180) -> -1.20795e-05 | C180: =IF('DF raw data'!C180="","",'DF raw data'!C180) -> 0.000176303 | D180: =IF('DF raw data'!D180="","",'DF raw data'!D180) -> -3.73199e-05 | F180: 1.399428309e-06 | G180: 3.149793314e-05 | H180: 6.792188366e-07 | J180: 0.0005143820866 | K180: 0.01303885247 | L180: 0.001615169461 | M180: 0.04029815035 | N180: 4.692899114e-05
A181: =IF('DF raw data'!A181="","",'DF raw data'!A181) -> -243 | B181: =IF('DF raw data'!B181="","",'DF raw data'!B181) -> 1.63801e-06 | C181: =IF('DF raw data'!C181="","",'DF raw data'!C181) -> 0.000177276 | D181: =IF('DF raw data'!D181="","",'DF raw data'!D181) -> -5.04355e-05 | F181: 1.517455185e-05 | G181: 3.247501974e-05 | H181: -1.249146668e-05 | J181: 0.0005219693626 | K181: 0.01329983715 | L181: 0.001631406971 | M181: 0.04111385384 | N181: 4.83959615e-05
A182: =IF('DF raw data'!A182="","",'DF raw data'!A182) -> -242.5 | B182: =IF('DF raw data'!B182="","",'DF raw data'!B182) -> 1.38079e-05 | C182: =IF('DF raw data'!C182="","",'DF raw data'!C182) -> 0.000173556 | D182: =IF('DF raw data'!D182="","",'DF raw data'!D182) -> -4.78297e-05 | F182: 2.739555539e-05 | G182: 2.873939574e-05 | H182: -9.874722323e-06 | J182: 0.0005356671403 | K182: 0.01356767073 | L182: 0.001645776669 | M182: 0.04193674217 | N182: 4.989372157e-05
A183: =IF('DF raw data'!A183="","",'DF raw data'!A183) -> -242 | B183: =IF('DF raw data'!B183="","",'DF raw data'!B183) -> -4.13094e-07 | C183: =IF('DF raw data'!C183="","",'DF raw data'!C183) -> 0.000179125 | D183: =IF('DF raw data'!D183="","",'DF raw data'!D183) -> -4.85261e-05 | F183: 1.311483321e-05 | G183: 3.433178554e-05 | H183: -1.05740472e-05 | J183: 0.0005422245569 | K183: 0.013838783 | L183: 0.001662942562 | M183: 0.04276821345 | N183: 5.142341429e-05
A184: =IF('DF raw data'!A184="","",'DF raw data'!A184) -> -241.5 | B184: =IF('DF raw data'!B184="","",'DF raw data'!B184) -> -7.91516e-06 | C184: =IF('DF raw data'!C184="","",'DF raw data'!C184) -> 0.000186109 | D184: =IF('DF raw data'!D184="","",'DF raw data'!D184) -> -3.79671e-05 | F184: 5.581258537e-06 | G184: 4.134511834e-05 | H184: 2.930059659e-08 | J184: 0.0005450151861 | K184: 0.0141112906 | L184: 0.001683615121 | M184: 0.04361002101 | N184: 5.2989215e-05
A185: =IF('DF raw data'!A185="","",'DF raw data'!A185) -> -241 | B185: =IF('DF raw data'!B185="","",'DF raw data'!B185) -> -1.38553e-06 | C185: =IF('DF raw data'!C185="","",'DF raw data'!C185) -> 0.000188671 | D185: =IF('DF raw data'!D185="","",'DF raw data'!D185) -> -3.08996e-05 | F185: 1.213831298e-05 | G185: 4.391787874e-05 | H185: 7.126484097e-06 | J185: 0.0005510843426 | K185: 0.01438683277 | L185: 0.00170557406 | M185: 0.04446280804 | N185: 5.459555341e-05
A186: =IF('DF raw data'!A186="","",'DF raw data'!A186) -> -240.5 | B186: =IF('DF raw data'!B186="","",'DF raw data'!B186) -> 4.835e-06 | C186: =IF('DF raw data'!C186="","",'DF raw data'!C186) -> 0.000191453 | D186: =IF('DF raw data'!D186="","",'DF raw data'!D186) -> -4.08972e-05 | F186: 1.838496921e-05 | G186: 4.671156314e-05 | H186: -2.913105823e-06 | J186: 0.0005602768272 | K186: 0.01466697118 | L186: 0.001728929842 | M186: 0.04532727296 | N186: 5.624710767e-05
A187: =IF('DF raw data'!A187="","",'DF raw data'!A187) -> -240 | B187: =IF('DF raw data'!B187="","",'DF raw data'!B187) -> -1.25372e-06 | C187: =IF('DF raw data'!C187="","",'DF raw data'!C187) -> 0.000189969 | D187: =IF('DF raw data'!D187="","",'DF raw data'!D187) -> -3.65953e-05 | F187: 1.227067658e-05 | G187: 4.522133034e-05 | H187: 1.406862157e-06 | J187: 0.0005664121655 | K187: 0.01495017726 | L187: 0.001751540507 | M187: 0.04620304322 | N187: 5.794146612e-05
A188: =IF('DF raw data'!A188="","",'DF raw data'!A188) -> -239.5 | B188: =IF('DF raw data'!B188="","",'DF raw data'!B188) -> 7.06641e-06 | C188: =IF('DF raw data'!C188="","",'DF raw data'!C188) -> 0.000184301 | D188: =IF('DF raw data'!D188="","",'DF raw data'!D188) -> -2.42954e-05 | F188: 2.062575113e-05 | G188: 3.952952474e-05 | H188: 1.375842174e-05 | J188: 0.0005767250411 | K188: 0.01523853978 | L188: 0.001771305269 | M188: 0.04708869585 | N188: 5.967653318e-05
A189: =IF('DF raw data'!A189="","",'DF raw data'!A189) -> -239 | B189: =IF('DF raw data'!B189="","",'DF raw data'!B189) -> -2.92329e-06 | C189: =IF('DF raw data'!C189="","",'DF raw data'!C189) -> 0.000185031 | D189: =IF('DF raw data'!D189="","",'DF raw data'!D189) -> -3.03455e-05 | F189: 1.059409439e-05 | G189: 4.026259074e-05 | H189: 7.682911317e-06 | J189: 0.0005820220883 | K189: 0.01552955083 | L189: 0.001791436565 | M189: 0.04798441413 | N189: 6.145053052e-05
A190: =IF('DF raw data'!A190="","",'DF raw data'!A190) -> -238.5 | B190: =IF('DF raw data'!B190="","",'DF raw data'!B190) -> 7.52373e-06 | C190: =IF('DF raw data'!C190="","",'DF raw data'!C190) -> 0.000187028 | D190: =IF('DF raw data'!D190="","",'DF raw data'!D190) -> -3.82419e-05 | F190: 2.108499187e-05 | G190: 4.226797814e-05 | H190: -2.466535634e-07 | J190: 0.0005925645842 | K190: 0.01582583312 | L190: 0.001812570554 | M190: 0.04889069941 | N190: 6.326880292e-05
A191: =IF('DF raw data'!A191="","",'DF raw data'!A191) -> -238 | B191: =IF('DF raw data'!B191="","",'DF raw data'!B191) -> 3.87658e-06 | C191: =IF('DF raw data'!C191="","",'DF raw data'!C191) -> 0.000187664 | D191: =IF('DF raw data'!D191="","",'DF raw data'!D191) -> -4.48772e-05 | F191: 1.742252384e-05 | G191: 4.290664934e-05 | H191: -6.909821823e-06 | J191: 0.0006012758462 | K191: 0.01612647104 | L191: 0.001834023879 | M191: 0.04980771135 | N191: 6.513139104e-05
A192: =IF('DF raw data'!A192="","",'DF raw data'!A192) -> -237.5 | B192: =IF('DF raw data'!B192="","",'DF raw data'!B192) -> -3.56229e-07 | C192: =IF('DF raw data'!C192="","",'DF raw data'!C192) -> 0.00018878 | D192: =IF('DF raw data'!D192="","",'DF raw data'!D192) -> -3.76379e-05 | F192: 1.317193705e-05 | G192: 4.402733654e-05 | H192: 3.598832366e-07 | J192: =F192*$G$3+J191 -> 0.0006078618147 | K192: =J192*$G$3+K191 -> 0.01643040195 | L192: =G192*$G$3+L191 -> 0.001856037547 | M192: =L192*$G$3+M191 -> 0.05073573012 | N192: =(J192^2+L192^2)*$G$3+N191 -> 6.703857672e-05
A193: =IF('DF raw data'!A193="","",'DF raw data'!A193) -> -237 | B193: =IF('DF raw data'!B193="","",'DF raw data'!B193) -> -2.22255e-06 | C193: =IF('DF raw data'!C193="","",'DF raw data'!C193) -> 0.000182569 | D193: =IF('DF raw data'!D193="","",'DF raw data'!D193) -> -2.45399e-05 | F193: 1.12977775e-05 | G193: 3.779025034e-05 | H193: 1.351289484e-05 | J193: 0.0006135107034 | K193: 0.0167371573 | L193: 0.001874932672 | M193: 0.05167319646 | N193: 6.898446067e-05
A194: =IF('DF raw data'!A194="","",'DF raw data'!A194) -> -236.5 | B194: =IF('DF raw data'!B194="","",'DF raw data'!B194) -> 1.58473e-05 | C194: =IF('DF raw data'!C194="","",'DF raw data'!C194) -> 0.000189156 | D194: =IF('DF raw data'!D194="","",'DF raw data'!D194) -> -3.1216e-05 | F194: 2.944352087e-05 | G194: 4.440491574e-05 | H194: 6.808755217e-06 | J194: 0.0006282324639 | K194: 0.01705127354 | L194: 0.00189713513 | M194: 0.05262176403 | N194: 7.098135954e-05
A195: =IF('DF raw data'!A195="","",'DF raw data'!A195) -> -236 | B195: =IF('DF raw data'!B195="","",'DF raw data'!B195) -> 4.63924e-06 | C195: =IF('DF raw data'!C195="","",'DF raw data'!C195) -> 0.000191902 | D195: =IF('DF raw data'!D195="","",'DF raw data'!D195) -> -3.55722e-05 | F195: =(1-$G$1*($B$54-$G$2))*(B195-F$5) -> 1.818838702e-05 | G195: =(1-$G$1*($B$54-$G$2))*(C195-G$5) -> 4.716244894e-05 | H195: =(1-$G$1*($B$54-$G$2))*(D195-H$5) -> 2.434259177e-06 | J195: 0.0006373266574 | K195: 0.01736993686 | L195: 0.001920716354 | M195: 0.0535821222 | N195: 7.302902783e-05
A196: =IF('DF raw data'!A196="","",'DF raw data'!A196) -> -235.5 | B196: =IF('DF raw data'!B196="","",'DF raw data'!B196) -> -3.87414e-06 | C196: =IF('DF raw data'!C196="","",'DF raw data'!C196) -> 0.000182623 | D196: =IF('DF raw data'!D196="","",'DF raw data'!D196) -> -4.60106e-05 | F196: 9.639250821e-06 | G196: 3.784447714e-05 | H196: -8.047982103e-06 | J196: 0.0006421462828 | K196: 0.01769101001 | L196: 0.001939638593 | M196: 0.0545519415 | N196: 7.511630269e-05
A197: =IF('DF raw data'!A197="","",'DF raw data'!A197) -> -235 | B197: =IF('DF raw data'!B197="","",'DF raw data'!B197) -> 7.78801e-06 | C197: =IF('DF raw data'!C197="","",'DF raw data'!C197) -> 0.000181823 | D197: =IF('DF raw data'!D197="","",'DF raw data'!D197) -> -5.06511e-05 | F197: 2.135038185e-05 | G197: 3.704111714e-05 | H197: -1.27079722e-05 | J197: 0.0006528214737 | K197: 0.01801742074 | L197: 0.001958159151 | M197: 0.05553102107 | N197: 7.724658426e-05
A198: =IF('DF raw data'!A198="","",'DF raw data'!A198) -> -234.5 | B198: =IF('DF raw data'!B198="","",'DF raw data'!B198) -> 6.56629e-06 | C198: =IF('DF raw data'!C198="","",'DF raw data'!C198) -> 0.000183992 | D198: =IF('DF raw data'!D198="","",'DF raw data'!D198) -> -4.33359e-05 | F198: 2.012353063e-05 | G198: 3.921922694e-05 | H198: -5.362048363e-06 | J198: 0.000662883239 | K198: 0.01834886236 | L198: 0.001977768765 | M198: 0.05651990546 | N198: 7.942207599e-05
A199: =IF('DF raw data'!A199="","",'DF raw data'!A199) -> -234 | B199: =IF('DF raw data'!B199="","",'DF raw data'!B199) -> -1.23344e-05 | C199: =IF('DF raw data'!C199="","",'DF raw data'!C199) -> 0.000175661 | D199: =IF('DF raw data'!D199="","",'DF raw data'!D199) -> -3.94168e-05 | F199: 1.143457729e-06 | G199: 3.085323674e-05 | H199: -1.426488143e-06 | J199: 0.0006634549679 | K199: 0.01868058985 | L199: 0.001993195383 | M199: 0.05751650315 | N199: 8.162857616e-05
A200: =IF('DF raw data'!A200="","",'DF raw data'!A200) -> -233.5 | B200: =IF('DF raw data'!B200="","",'DF raw data'!B200) -> -3.55307e-06 | C200: =IF('DF raw data'!C200="","",'DF raw data'!C200) -> 0.000172267 | D200: =IF('DF raw data'!D200="","",'DF raw data'!D200) -> -4.69979e-05 | F200: 9.961669315e-06 | G200: 2.744498194e-05 | H200: -9.039428763e-06 | J200: 0.0006684358025 | K200: 0.01901480775 | L200: 0.002006917874 | M200: 0.05851996209 | N200: 8.386583905e-05
... 1079 more rows

Sheet 15 mm
A1: =IF('DF raw data'!E1="","",'DF raw data'!E1) -> Number of header lines | B1: =IF('DF raw data'!F1="","",'DF raw data'!F1) -> 54 | C1: =IF('DF raw data'!C1="","",'DF raw data'!C1) ->  | D1: =IF('DF raw data'!D1="","",'DF raw data'!D1) ->  | F1: T_coeff | G1: -0.001 | H1: /degC | J1: IBy total | K1: =J1267*1000 -> -5.056188385 | L1: muTm | M1: =L1267*1000 -> -27.5456642 | R1: DF ref | S1: 1
A2: =IF('DF raw data'!E2="","",'DF raw data'!E2) -> Measured by | B2: =IF('DF raw data'!F2="","",'DF raw data'!F2) -> Danfysik | C2: =IF('DF raw data'!C2="","",'DF raw data'!C2) ->  | D2: =IF('DF raw data'!D2="","",'DF raw data'!D2) ->  | F2: Tcorr | G2: 20 | H2: degC | J2: JBy total | K2: =K1267 -> -8.977667762 | L2: muTm^2 | M2: =M1267 -> -6.757520358
A3: =IF('DF raw data'!E3="","",'DF raw data'!E3) -> Operator | B3: =IF('DF raw data'!F3="","",'DF raw data'!F3) -> PMHA | C3: =IF('DF raw data'!C3="","",'DF raw data'!C3) ->  | D3: =IF('DF raw data'!D3="","",'DF raw data'!D3) ->  | F3: Step | G3: =A68-A67 -> 0.5 | H3: mm | J3: PI total | K3: =N1267 -> 7171.12785 | L3: T^2mm^3
A4: =IF('DF raw data'!E4="","",'DF raw data'!E4) -> Data-time | B4: =IF('DF raw data'!F4="","",'DF raw data'!F4) -> 01-10-2024, 22:36:17 | C4: =IF('DF raw data'!C4="","",'DF raw data'!C4) ->  | D4: =IF('DF raw data'!D4="","",'DF raw data'!D4) -> 
A5: =IF('DF raw data'!E5="","",'DF raw data'!E5) -> Project | B5: =IF('DF raw data'!F5="","",'DF raw data'!F5) -> 504314 | C5: =IF('DF raw data'!C5="","",'DF raw data'!C5) ->  | D5: Bamb avr | F5: =(AVERAGE(B67:B107) + AVERAGE(B1227:B1267))/2 -> -1.84603742e-05 | G5: =(AVERAGE(C67:C107) + AVERAGE(C1227:C1267))/2 -> -3.650910417e-05 | H5: =(AVERAGE(D67:D107) + AVERAGE(D1227:D1267))/2 -> -5.049703049e-05
A6: =IF('DF raw data'!E6="","",'DF raw data'!E6) -> Magnet type | B6: =IF('DF raw data'!F6="","",'DF raw data'!F6) -> Dipole | C6: =IF('DF raw data'!C6="","",'DF raw data'!C6) -> 
A7: =IF('DF raw data'!E7="","",'DF raw data'!E7) -> Magnet nr. | B7: =IF('DF raw data'!F7="","",'DF raw data'!F7) -> 2410108 | C7: =IF('DF raw data'!C7="","",'DF raw data'!C7) -> 
A8: =IF('DF raw data'!E8="","",'DF raw data'!E8) -> Meas. number | B8: =IF('DF raw data'!F8="","",'DF raw data'!F8) -> 926 | C8: =IF('DF raw data'!C8="","",'DF raw data'!C8) -> 
A9: =IF('DF raw data'!E9="","",'DF raw data'!E9) -> Add. info | B9: =IF('DF raw data'!F9="","",'DF raw data'!F9) ->  | C9: =IF('DF raw data'!C9="","",'DF raw data'!C9) ->  | D9: =IF('DF raw data'!D9="","",'DF raw data'!D9) -> 
A10: =IF('DF raw data'!E10="","",'DF raw data'!E10) -> Device | B10: =IF('DF raw data'!F10="","",'DF raw data'!F10) -> (HAL) HALL-PROBE | C10: =IF('DF raw data'!C10="","",'DF raw data'!C10) ->  | D10: =IF('DF raw data'!D10="","",'DF raw data'!D10) -> 
A11: =IF('DF raw data'!E11="","",'DF raw data'!E11) -> Goal | B11: =IF('DF raw data'!F11="","",'DF raw data'!F11) -> (AXI) AXis Integral (Line, EFB) | C11: =IF('DF raw data'!C11="","",'DF raw data'!C11) ->  | D11: =IF('DF raw data'!D11="","",'DF raw data'!D11) -> 
A12: =IF('DF raw data'!E12="","",'DF raw data'!E12) -> Power supply mode | B12: =IF('DF raw data'!F12="","",'DF raw data'!F12) -> (PM) Permanent Magnet (no MPS in use) | C12: =IF('DF raw data'!C12="","",'DF raw data'!C12) ->  | D12: =IF('DF raw data'!D12="","",'DF raw data'!D12) -> 
A13: =IF('DF raw data'!E13="","",'DF raw data'!E13) -> Data format | B13: =IF('DF raw data'!F13="","",'DF raw data'!F13) -> Raw data text file | C13: =IF('DF raw data'!C13="","",'DF raw data'!C13) ->  | D13: =IF('DF raw data'!D13="","",'DF raw data'!D13) -> 
A14: =IF('DF raw data'!E14="","",'DF raw data'!E14) -> Direction of the pos. x-axis | B14: =IF('DF raw data'!F14="","",'DF raw data'!F14) -> See test program | C14: =IF('DF raw data'!C14="","",'DF raw data'!C14) ->  | D14: =IF('DF raw data'!D14="","",'DF raw data'!D14) -> 
A15: =IF('DF raw data'!E15="","",'DF raw data'!E15) -> Direction of the pos. y-axis | B15: =IF('DF raw data'!F15="","",'DF raw data'!F15) -> Vertical up | C15: =IF('DF raw data'!C15="","",'DF raw data'!C15) ->  | D15: =IF('DF raw data'!D15="","",'DF raw data'!D15) -> 
A16: =IF('DF raw data'!E16="","",'DF raw data'!E16) -> Direction of the pos. z-axis | B16: =IF('DF raw data'!F16="","",'DF raw data'!F16) -> See test program | C16: =IF('DF raw data'!C16="","",'DF raw data'!C16) ->  | D16: =IF('DF raw data'!D16="","",'DF raw data'!D16) -> 
A17: =IF('DF raw data'!E17="","",'DF raw data'!E17) -> Mapper type | B17: =IF('DF raw data'!F17="","",'DF raw data'!F17) -> Precision Hall Mapper | C17: =IF('DF raw data'!C17="","",'DF raw data'!C17) ->  | D17: =IF('DF raw data'!D17="","",'DF raw data'!D17) -> 
A18: =IF('DF raw data'!E18="","",'DF raw data'!E18) -> Mapper Danfysik Reg. Number | B18: =IF('DF raw data'!F18="","",'DF raw data'!F18) -> 2033-D (mapper 1) | C18: =IF('DF raw data'!C18="","",'DF raw data'!C18) ->  | D18: =IF('DF raw data'!D18="","",'DF raw data'!D18) -> 
A19: =IF('DF raw data'!E19="","",'DF raw data'!E19) -> Measurement consept | B19: =IF('DF raw data'!F19="","",'DF raw data'!F19) -> Square line grid | C19: =IF('DF raw data'!C19="","",'DF raw data'!C19) ->  | D19: =IF('DF raw data'!D19="","",'DF raw data'!D19) -> 
A20: =IF('DF raw data'!E20="","",'DF raw data'!E20) -> Mode | B20: =IF('DF raw data'!F20="","",'DF raw data'!F20) -> On-the-fly measurement | C20: =IF('DF raw data'!C20="","",'DF raw data'!C20) ->  | D20: =IF('DF raw data'!D20="","",'DF raw data'!D20) -> 
A21: =IF('DF raw data'!E21="","",'DF raw data'!E21) ->  | B21: =IF('DF raw data'!F21="","",'DF raw data'!F21) ->  | C21: =IF('DF raw data'!C21="","",'DF raw data'!C21) ->  | D21: =IF('DF raw data'!D21="","",'DF raw data'!D21) -> 
A22: =IF('DF raw data'!E22="","",'DF raw data'!E22) -> Probe Name | B22: =IF('DF raw data'!F22="","",'DF raw data'!F22) -> ID12_By | C22: =IF('DF raw data'!C22="","",'DF raw data'!C22) ->  | D22: =IF('DF raw data'!D22="","",'DF raw data'!D22) -> 
A23: =IF('DF raw data'!E23="","",'DF raw data'!E23) -> Probe Type | B23: =IF('DF raw data'!F23="","",'DF raw data'!F23) -> DF_ID_3D_Bxyz | C23: =IF('DF raw data'!C23="","",'DF raw data'!C23) ->  | D23: =IF('DF raw data'!D23="","",'DF raw data'!D23) -> 
A24: =IF('DF raw data'!E24="","",'DF raw data'!E24) -> Probe Danfysik Reg. Number | B24: =IF('DF raw data'!F24="","",'DF raw data'!F24) -> 2277 | C24: =IF('DF raw data'!C24="","",'DF raw data'!C24) ->  | D24: =IF('DF raw data'!D24="","",'DF raw data'!D24) -> 
A25: =IF('DF raw data'!E25="","",'DF raw data'!E25) -> Probe Axis | B25: =IF('DF raw data'!F25="","",'DF raw data'!F25) -> By | C25: =IF('DF raw data'!C25="","",'DF raw data'!C25) ->  | D25: =IF('DF raw data'!D25="","",'DF raw data'!D25) -> 
A26: =IF('DF raw data'!E26="","",'DF raw data'!E26) -> Probe Current Supply | B26: =IF('DF raw data'!F26="","",'DF raw data'!F26) -> 1825-D | C26: =IF('DF raw data'!C26="","",'DF raw data'!C26) ->  | D26: =IF('DF raw data'!D26="","",'DF raw data'!D26) -> 
A27: =IF('DF raw data'!E27="","",'DF raw data'!E27) -> Probe Gain Correction | B27: =IF('DF raw data'!F27="","",'DF raw data'!F27) -> 0.99614 | C27: =IF('DF raw data'!C27="","",'DF raw data'!C27) ->  | D27: =IF('DF raw data'!D27="","",'DF raw data'!D27) -> 
A28: =IF('DF raw data'!E28="","",'DF raw data'!E28) -> Probe Offset Correction | B28: =IF('DF raw data'!F28="","",'DF raw data'!F28) -> 0.0027502 | C28: =IF('DF raw data'!C28="","",'DF raw data'!C28) ->  | D28: =IF('DF raw data'!D28="","",'DF raw data'!D28) -> 
A29: =IF('DF raw data'!E29="","",'DF raw data'!E29) -> DVM Number | B29: =IF('DF raw data'!F29="","",'DF raw data'!F29) -> 2 | C29: =IF('DF raw data'!C29="","",'DF raw data'!C29) ->  | D29: =IF('DF raw data'!D29="","",'DF raw data'!D29) -> 
A30: =IF('DF raw data'!E30="","",'DF raw data'!E30) -> DVM Type | B30: =IF('DF raw data'!F30="","",'DF raw data'!F30) -> K2701 | C30: =IF('DF raw data'!C30="","",'DF raw data'!C30) ->  | D30: =IF('DF raw data'!D30="","",'DF raw data'!D30) -> 
A31: =IF('DF raw data'!E31="","",'DF raw data'!E31) -> DVM Danfysik Reg. Number | B31: =IF('DF raw data'!F31="","",'DF raw data'!F31) -> 1743-D | C31: =IF('DF raw data'!C31="","",'DF raw data'!C31) ->  | D31: =IF('DF raw data'!D31="","",'DF raw data'!D31) -> 
A32: =IF('DF raw data'!E32="","",'DF raw data'!E32) -> Probe Name | B32: =IF('DF raw data'!F32="","",'DF raw data'!F32) -> ID12_Bx | C32: =IF('DF raw data'!C32="","",'DF raw data'!C32) ->  | D32: =IF('DF raw data'!D32="","",'DF raw data'!D32) -> 
A33: =IF('DF raw data'!E33="","",'DF raw data'!E33) -> Probe Type | B33: =IF('DF raw data'!F33="","",'DF raw data'!F33) -> DF_ID_3D_Bxyz | C33: =IF('DF raw data'!C33="","",'DF raw data'!C33) ->  | D33: =IF('DF raw data'!D33="","",'DF raw data'!D33) -> 
A34: =IF('DF raw data'!E34="","",'DF raw data'!E34) -> Probe Danfysik Reg. Number | B34: =IF('DF raw data'!F34="","",'DF raw data'!F34) -> 2277 | C34: =IF('DF raw data'!C34="","",'DF raw data'!C34) ->  | D34: =IF('DF raw data'!D34="","",'DF raw data'!D34) -> 
A35: =IF('DF raw data'!E35="","",'DF raw data'!E35) -> Probe Axis | B35: =IF('DF raw data'!F35="","",'DF raw data'!F35) -> Bx | C35: =IF('DF raw data'!C35="","",'DF raw data'!C35) ->  | D35: =IF('DF raw data'!D35="","",'DF raw data'!D35) -> 
A36: =IF('DF raw data'!E36="","",'DF raw data'!E36) -> Probe Current Supply | B36: =IF('DF raw data'!F36="","",'DF raw data'!F36) -> 1825-D | C36: =IF('DF raw data'!C36="","",'DF raw data'!C36) ->  | D36: =IF('DF raw data'!D36="","",'DF raw data'!D36) -> 
A37: =IF('DF raw data'!E37="","",'DF raw data'!E37) -> Probe Gain Correction | B37: =IF('DF raw data'!F37="","",'DF raw data'!F37) -> 1 | C37: =IF('DF raw data'!C37="","",'DF raw data'!C37) ->  | D37: =IF('DF raw data'!D37="","",'DF raw data'!D37) -> 
A38: =IF('DF raw data'!E38="","",'DF raw data'!E38) -> Probe Offset Correction | B38: =IF('DF raw data'!F38="","",'DF raw data'!F38) -> -0.1755 | C38: =IF('DF raw data'!C38="","",'DF raw data'!C38) ->  | D38: =IF('DF raw data'!D38="","",'DF raw data'!D38) -> 
A39: =IF('DF raw data'!E39="","",'DF raw data'!E39) -> DVM Number | B39: =IF('DF raw data'!F39="","",'DF raw data'!F39) -> 3 | C39: =IF('DF raw data'!C39="","",'DF raw data'!C39) ->  | D39: =IF('DF raw data'!D39="","",'DF raw data'!D39) -> 
A40: =IF('DF raw data'!E40="","",'DF raw data'!E40) -> DVM Type | B40: =IF('DF raw data'!F40="","",'DF raw data'!F40) -> K2701 | C40: =IF('DF raw data'!C40="","",'DF raw data'!C40) ->  | D40: =IF('DF raw data'!D40="","",'DF raw data'!D40) -> 
A41: =IF('DF raw data'!E41="","",'DF raw data'!E41) -> DVM Danfysik Reg. Number | B41: =IF('DF raw data'!F41="","",'DF raw data'!F41) -> 1744-D | C41: =IF('DF raw data'!C41="","",'DF raw data'!C41) ->  | D41: =IF('DF raw data'!D41="","",'DF raw data'!D41) -> 
A42: =IF('DF raw data'!E42="","",'DF raw data'!E42) -> Probe Name | B42: =IF('DF raw data'!F42="","",'DF raw data'!F42) -> ID12_Bz | C42: =IF('DF raw data'!C42="","",'DF raw data'!C42) ->  | D42: =IF('DF raw data'!D42="","",'DF raw data'!D42) -> 
A43: =IF('DF raw data'!E43="","",'DF raw data'!E43) -> Probe Type | B43: =IF('DF raw data'!F43="","",'DF raw data'!F43) -> DF_ID_3D_Bxyz | C43: =IF('DF raw data'!C43="","",'DF raw data'!C43) ->  | D43: =IF('DF raw data'!D43="","",'DF raw data'!D43) -> 
A44: =IF('DF raw data'!E44="","",'DF raw data'!E44) -> Probe Danfysik Reg. Number | B44: =IF('DF raw data'!F44="","",'DF raw data'!F44) -> 2277 | C44: =IF('DF raw data'!C44="","",'DF raw data'!C44) ->  | D44: =IF('DF raw data'!D44="","",'DF raw data'!D44) -> 
A45: =IF('DF raw data'!E45="","",'DF raw data'!E45) -> Probe Axis | B45: =IF('DF raw data'!F45="","",'DF raw data'!F45) -> Bz | C45: =IF('DF raw data'!C45="","",'DF raw data'!C45) ->  | D45: =IF('DF raw data'!D45="","",'DF raw data'!D45) -> 
A46: =IF('DF raw data'!E46="","",'DF raw data'!E46) -> Probe Current Supply | B46: =IF('DF raw data'!F46="","",'DF raw data'!F46) -> 1825-D | C46: =IF('DF raw data'!C46="","",'DF raw data'!C46) ->  | D46: =IF('DF raw data'!D46="","",'DF raw data'!D46) -> 
A47: =IF('DF raw data'!E47="","",'DF raw data'!E47) -> Probe Gain Correction | B47: =IF('DF raw data'!F47="","",'DF raw data'!F47) -> 1 | C47: =IF('DF raw data'!C47="","",'DF raw data'!C47) ->  | D47: =IF('DF raw data'!D47="","",'DF raw data'!D47) -> 
A48: =IF('DF raw data'!E48="","",'DF raw data'!E48) -> Probe Offset Correction | B48: =IF('DF raw data'!F48="","",'DF raw data'!F48) -> 0.0073192 | C48: =IF('DF raw data'!C48="","",'DF raw data'!C48) ->  | D48: =IF('DF raw data'!D48="","",'DF raw data'!D48) -> 
A49: =IF('DF raw data'!E49="","",'DF raw data'!E49) -> DVM Number | B49: =IF('DF raw data'!F49="","",'DF raw data'!F49) -> 8 | C49: =IF('DF raw data'!C49="","",'DF raw data'!C49) ->  | D49: =IF('DF raw data'!D49="","",'DF raw data'!D49) -> 
A50: =IF('DF raw data'!E50="","",'DF raw data'!E50) -> DVM Type | B50: =IF('DF raw data'!F50="","",'DF raw data'!F50) -> K2700 | C50: =IF('DF raw data'!C50="","",'DF raw data'!C50) ->  | D50: =IF('DF raw data'!D50="","",'DF raw data'!D50) -> 
A51: =IF('DF raw data'!E51="","",'DF raw data'!E51) -> DVM Danfysik Reg. Number | B51: =IF('DF raw data'!F51="","",'DF raw data'!F51) -> 1756-D | C51: =IF('DF raw data'!C51="","",'DF raw data'!C51) ->  | D51: =IF('DF raw data'!D51="","",'DF raw data'!D51) -> 
A52: =IF('DF raw data'!E52="","",'DF raw data'!E52) -> NTC voltage | B52: =IF('DF raw data'!F52="","",'DF raw data'!F52) -> 0.42026 | C52: =IF('DF raw data'!C52="","",'DF raw data'!C52) ->  | D52: =IF('DF raw data'!D52="","",'DF raw data'!D52) -> 
A53: =IF('DF raw data'!E53="","",'DF raw data'!E53) -> PS-Gap: | B53: =IF('DF raw data'!F53="","",'DF raw data'!F53) -> 15 | C53: =IF('DF raw data'!C53="","",'DF raw data'!C53) ->  | D53: =IF('DF raw data'!D53="","",'DF raw data'!D53) -> 
A54: =IF('DF raw data'!E54="","",'DF raw data'!E54) -> PS-Temperature: | B54: =IF('DF raw data'!F54="","",'DF raw data'!F54) -> 24.2 | C54: =IF('DF raw data'!C54="","",'DF raw data'!C54) ->  | D54: =IF('DF raw data'!D54="","",'DF raw data'!D54) -> 
A55: =IF('DF raw data'!E55="","",'DF raw data'!E55) -> PS-Encoder: | B55: =IF('DF raw data'!F55="","",'DF raw data'!F55) -> 24.7551 | C55: =IF('DF raw data'!C55="","",'DF raw data'!C55) ->  | D55: =IF('DF raw data'!D55="","",'DF raw data'!D55) -> 
A56: =IF('DF raw data'!E56="","",'DF raw data'!E56) ->  | B56: =IF('DF raw data'!F56="","",'DF raw data'!F56) -> 
A57: =IF('DF raw data'!E57="","",'DF raw data'!E57) -> Monitor-Index | B57: =IF('DF raw data'!F57="","",'DF raw data'!F57) -> [1,1,4]
A58: =IF('DF raw data'!E58="","",'DF raw data'!E58) ->  | B58: =IF('DF raw data'!F58="","",'DF raw data'!F58) -> 
A59: =IF('DF raw data'!E59="","",'DF raw data'!E59) -> Time [s] | B59: =IF('DF raw data'!F59="","",'DF raw data'!F59) -> Y [mm]
A60: =IF('DF raw data'!E60="","",'DF raw data'!E60) ->  | B60: =IF('DF raw data'!F60="","",'DF raw data'!F60) -> 
A61: =IF('DF raw data'!E61="","",'DF raw data'!E61) -> 208.3 | B61: =IF('DF raw data'!F61="","",'DF raw data'!F61) -> 31.38
A62: =IF('DF raw data'!E62="","",'DF raw data'!E62) ->  | B62: =IF('DF raw data'!F62="","",'DF raw data'!F62) -> 
A63: =IF('DF raw data'!E63="","",'DF raw data'!E63) -> Measurement-Index | B63: =IF('DF raw data'!F63="","",'DF raw data'!F63) -> [1,1,1201,2]
A64: =IF('DF raw data'!E64="","",'DF raw data'!E64) ->  | B64: =IF('DF raw data'!F64="","",'DF raw data'!F64) -> 
A65: =IF('DF raw data'!E65="","",'DF raw data'!E65) -> Z [mm] | B65: =IF('DF raw data'!F65="","",'DF raw data'!F65) -> By [T] | C65: =IF('DF raw data'!G65="","",'DF raw data'!G65) -> Bx [T] | D65: =IF('DF raw data'!H65="","",'DF raw data'!H65) -> Bz [T] | F65: By_corr | G65: Bx_corr | H65: Bz_corr | J65: Iy | K65: Jy | L65: Ix | M65: Jx | N65: PI
B66: =IF('DF raw data'!F66="","",'DF raw data'!F66) ->  | C66: =IF('DF raw data'!G66="","",'DF raw data'!G66) ->  | D66: =IF('DF raw data'!H66="","",'DF raw data'!H66) -> 
A67: =IF('DF raw data'!E67="","",'DF raw data'!E67) -> -300 | B67: =IF('DF raw data'!F67="","",'DF raw data'!F67) -> -1.76601e-05 | C67: =IF('DF raw data'!G67="","",'DF raw data'!G67) -> 1.58596e-05 | D67: =IF('DF raw data'!H67="","",'DF raw data'!H67) -> -4.88236e-05 | F67: =(1-$G$1*($B$54-$G$2))*(B67-F$5) -> 8.036353467e-07 | G67: =(1-$G$1*($B$54-$G$2))*(C67-G$5) -> 5.258865273e-05 | H67: =(1-$G$1*($B$54-$G$2))*(D67-H$5) -> 1.680458896e-06 | J67: =F67*$G$3+J66 -> 4.018176734e-07 | K67: =J67*$G$3+K66 -> 2.009088367e-07 | L67: =G67*$G$3+L66 -> 2.629432636e-05 | M67: =L67*$G$3+M66 -> 1.314716318e-05 | N67: =(J67^2+L67^2)*$G$3+N66 -> 3.457765282e-10
A68: =IF('DF raw data'!E68="","",'DF raw data'!E68) -> -299.5 | B68: =IF('DF raw data'!F68="","",'DF raw data'!F68) -> -1.30467e-05 | C68: =IF('DF raw data'!G68="","",'DF raw data'!G68) -> 1.05959e-05 | D68: =IF('DF raw data'!H68="","",'DF raw data'!H68) -> -4.90868e-05 | F68: 5.436411627e-06 | G68: 4.730284519e-05 | H68: 1.416153456e-06 | J68: =F68*$G$3+J67 -> 3.120023487e-06 | K68: =J68*$G$3+K67 -> 1.76092058e-06 | L68: =G68*$G$3+L67 -> 4.994574896e-05 | M68: =L68*$G$3+M67 -> 3.812003766e-05 | N68: =(J68^2+L68^2)*$G$3+N67 -> 1.597932721e-09
A69: =IF('DF raw data'!E69="","",'DF raw data'!E69) -> -299 | B69: =IF('DF raw data'!F69="","",'DF raw data'!F69) -> -1.32388e-05 | C69: =IF('DF raw data'!G69="","",'DF raw data'!G69) -> -1.89536e-07 | D69: =IF('DF raw data'!H69="","",'DF raw data'!H69) -> -4.9558e-05 | F69: 5.243504807e-06 | G69: 3.647211035e-05 | H69: 9.429744159e-07 | J69: 5.74177589e-06 | K69: 4.631808525e-06 | L69: 6.818180413e-05 | M69: 7.221093973e-05 | N69: 3.938795923e-09
A70: =IF('DF raw data'!E70="","",'DF raw data'!E70) -> -298.5 | B70: =IF('DF raw data'!F70="","",'DF raw data'!F70) -> -1.20212e-05 | C70: =IF('DF raw data'!G70="","",'DF raw data'!G70) -> -1.26348e-06 | D70: =IF('DF raw data'!H70="","",'DF raw data'!H70) -> -4.9808e-05 | F70: 6.466218727e-06 | G70: 3.539365579e-05 | H70: 6.919244159e-07 | J70: 8.974885253e-06 | K70: 9.119251152e-06 | L70: 8.587863203e-05 | M70: 0.0001151502557 | N70: 7.666639926e-09
A71: =IF('DF raw data'!E71="","",'DF raw data'!E71) -> -298 | B71: =IF('DF raw data'!F71="","",'DF raw data'!F71) -> -1.71469e-05 | C71: =IF('DF raw data'!G71="","",'DF raw data'!G71) -> -2.26535e-06 | D71: =IF('DF raw data'!H71="","",'DF raw data'!H71) -> -4.98726e-05 | F71: 1.318990787e-06 | G71: 3.438757794e-05 | H71: 6.270530959e-07 | J71: 9.634380647e-06 | K71: 1.393644148e-05 | L71: 0.000103072421 | M71: 0.0001666864662 | N71: 1.302501256e-08
A72: =IF('DF raw data'!E72="","",'DF raw data'!E72) -> -297.5 | B72: =IF('DF raw data'!F72="","",'DF raw data'!F72) -> -8.30484e-06 | C72: =IF('DF raw data'!G72="","",'DF raw data'!G72) -> 2.78728e-06 | D72: =IF('DF raw data'!H72="","",'DF raw data'!H72) -> -5.00259e-05 | F72: 1.019818744e-05 | G72: 3.946142898e-05 | H72: 4.731092359e-07 | J72: 1.473347437e-05 | K72: 2.130317866e-05 | L72: 0.0001228031355 | M72: 0.000228088034 | N72: 2.067385523e-08
A73: =IF('DF raw data'!E73="","",'DF raw data'!E73) -> -297 | B73: =IF('DF raw data'!F73="","",'DF raw data'!F73) -> -2.04145e-05 | C73: =IF('DF raw data'!G73="","",'DF raw data'!G73) -> 3.64583e-06 | D73: =IF('DF raw data'!H73="","",'DF raw data'!H73) -> -4.97915e-05 | F73: -1.962333133e-06 | G73: 4.032358489e-05 | H73: 7.084937159e-07 | J73: 1.37523078e-05 | K73: 2.817933256e-05 | L73: 0.0001429649279 | M73: 0.0002995704979 | N73: 3.098790353e-08
A74: =IF('DF raw data'!E74="","",'DF raw data'!E74) -> -296.5 | B74: =IF('DF raw data'!F74="","",'DF raw data'!F74) -> -1.4264e-05 | C74: =IF('DF raw data'!G74="","",'DF raw data'!G74) -> -8.54267e-07 | D74: =IF('DF raw data'!H74="","",'DF raw data'!H74) -> -4.93008e-05 | F74: 4.213998967e-06 | G74: 3.580458748e-05 | H74: 1.201254656e-06 | J74: 1.585930728e-05 | K74: 3.61089862e-05 | L74: 0.0001608672217 | M74: 0.0003800041088 | N74: 4.405279384e-08
A75: =IF('DF raw data'!E75="","",'DF raw data'!E75) -> -296 | B75: =IF('DF raw data'!F75="","",'DF raw data'!F75) -> -1.17653e-05 | C75: =IF('DF raw data'!G75="","",'DF raw data'!G75) -> 5.73394e-06 | D75: =IF('DF raw data'!H75="","",'DF raw data'!H75) -> -4.92603e-05 | F75: 6.723193507e-06 | G75: 4.242046495e-05 | H75: 1.241924756e-06 | J75: 1.922090404e-05 | K75: 4.571943822e-05 | L75: 0.0001820774542 | M75: 0.0004710428359 | N75: 6.081361508e-08
A76: =IF('DF raw data'!E76="","",'DF raw data'!E76) -> -295.5 | B76: =IF('DF raw data'!F76="","",'DF raw data'!F76) -> -8.04874e-06 | C76: =IF('DF raw data'!G76="","",'DF raw data'!G76) -> 4.59888e-06 | D76: =IF('DF raw data'!H76="","",'DF raw data'!H76) -> -4.97611e-05 | F76: 1.045536306e-05 | G76: 4.12806377e-05 | H76: 7.390213959e-07 | J76: 2.444858557e-05 | K76: 5.7943731e-05 | L76: 0.000202717773 | M76: 0.0005724017224 | N76: 8.165972949e-08
A77: =IF('DF raw data'!E77="","",'DF raw data'!E77) -> -295 | B77: =IF('DF raw data'!F77="","",'DF raw data'!F77) -> -1.50323e-05 | C77: =IF('DF raw data'!G77="","",'DF raw data'!G77) -> 1.37539e-06 | D77: =IF('DF raw data'!H77="","",'DF raw data'!H77) -> -5.01551e-05 | F77: 3.442472107e-06 | G77: 3.804360904e-05 | H77: 3.433665959e-07 | J77: 2.616982162e-05 | K77: 7.102864181e-05 | L77: 0.0002217395775 | M77: 0.0006832715111 | N77: 1.065863794e-07
A78: =IF('DF raw data'!E78="","",'DF raw data'!E78) -> -294.5 | B78: =IF('DF raw data'!F78="","",'DF raw data'!F78) -> -9.71451e-06 | C78: =IF('DF raw data'!G78="","",'DF raw data'!G78) -> 2.15189e-06 | D78: =IF('DF raw data'!H78="","",'DF raw data'!H78) -> -5.01775e-05 | F78: 8.782596825e-06 | G78: 3.882337034e-05 | H78: 3.208725159e-07 | J78: 3.056112003e-05 | K78: 8.630920183e-05 | L78: 0.0002411512627 | M78: 0.0008038471425 | N78: 1.361303362e-07
A79: =IF('DF raw data'!E79="","",'DF raw data'!E79) -> -294 | B79: =IF('DF raw data'!F79="","",'DF raw data'!F79) -> -1.97097e-05 | C79: =IF('DF raw data'!G79="","",'DF raw data'!G79) -> 4.68738e-06 | D79: =IF('DF raw data'!H79="","",'DF raw data'!H79) -> -4.96158e-05 | F79: -1.254572973e-06 | G79: 4.13695094e-05 | H79: 8.849316559e-07 | J79: 2.993383354e-05 | K79: 0.0001012761186 | L79: 0.0002618360174 | M79: 0.0009347651512 | N79: 1.708574034e-07
A80: =IF('DF raw data'!E80="","",'DF raw data'!E80) -> -293.5 | B80: =IF('DF raw data'!F80="","",'DF raw data'!F80) -> -1.29187e-05 | C80: =IF('DF raw data'!G80="","",'DF raw data'!G80) -> 4.60152e-07 | D80: =IF('DF raw data'!H80="","",'DF raw data'!H80) -> -4.89538e-05 | F80: 5.564949227e-06 | G80: 3.712452704e-05 | H80: 1.549712056e-06 | J80: 3.271630816e-05 | K80: 0.0001176342727 | L80: 0.0002803982809 | M80: 0.001074964292 | N80: 2.107041798e-07
A81: =IF('DF raw data'!E81="","",'DF raw data'!E81) -> -293 | B81: =IF('DF raw data'!F81="","",'DF raw data'!F81) -> -8.24161e-06 | C81: =IF('DF raw data'!G81="","",'DF raw data'!G81) -> 2.98523e-06 | D81: =IF('DF raw data'!H81="","",'DF raw data'!H81) -> -4.89497e-05 | F81: 1.0261683e-05 | G81: 3.966021037e-05 | H81: 1.553829276e-06 | J81: 3.784714966e-05 | K81: 0.0001365578475 | L81: 0.0003002283861 | M81: 0.001225078485 | N81: 2.56488925e-07
A82: =IF('DF raw data'!E82="","",'DF raw data'!E82) -> -292.5 | B82: =IF('DF raw data'!F82="","",'DF raw data'!F82) -> -5.80655e-06 | C82: =IF('DF raw data'!G82="","",'DF raw data'!G82) -> 9.63089e-06 | D82: =IF('DF raw data'!H82="","",'DF raw data'!H82) -> -4.96805e-05 | F82: 1.270697026e-05 | G82: 4.633378214e-05 | H82: 8.199599159e-07 | J82: 4.420063479e-05 | K82: 0.0001586581649 | L82: 0.0003233952772 | M82: 0.001386776123 | N82: 3.097580257e-07
A83: =IF('DF raw data'!E83="","",'DF raw data'!E83) -> -292 | B83: =IF('DF raw data'!F83="","",'DF raw data'!F83) -> -6.70309e-06 | C83: =IF('DF raw data'!G83="","",'DF raw data'!G83) -> 3.74078e-06 | D83: =IF('DF raw data'!H83="","",'DF raw data'!H83) -> -5.03074e-05 | F83: 1.180666479e-05 | G83: 4.041893368e-05 | H83: 1.904269359e-07 | J83: 5.010396718e-05 | K83: 0.0001837101485 | L83: 0.000343604744 | M83: 0.001558578495 | N83: 3.700453396e-07
A84: =IF('DF raw data'!E84="","",'DF raw data'!E84) -> -291.5 | B84: =IF('DF raw data'!F84="","",'DF raw data'!F84) -> -1.41395e-05 | C84: =IF('DF raw data'!G84="","",'DF raw data'!G84) -> -1.21985e-06 | D84: =IF('DF raw data'!H84="","",'DF raw data'!H84) -> -4.37675e-05 | F84: 4.339021867e-06 | G84: 3.543746904e-05 | H84: 6.757794516e-06 | J84: 5.227347812e-05 | K84: 0.0002098468876 | L84: 0.0003613234785 | M84: 0.001739240235 | N84: 4.366889259e-07
A85: =IF('DF raw data'!E85="","",'DF raw data'!E85) -> -291 | B85: =IF('DF raw data'!F85="","",'DF raw data'!F85) -> -1.12509e-05 | C85: =IF('DF raw data'!G85="","",'DF raw data'!G85) -> 7.5786e-07 | D85: =IF('DF raw data'!H85="","",'DF raw data'!H85) -> -5.21363e-05 | F85: 7.239753987e-06 | G85: 3.742348542e-05 | H85: -1.646154444e-06 | J85: 5.589335511e-05 | K85: 0.0002377935651 | L85: 0.0003800352212 | M85: 0.001929257845 | N85: 5.104643442e-07
A86: =IF('DF raw data'!E86="","",'DF raw data'!E86) -> -290.5 | B86: =IF('DF raw data'!F86="","",'DF raw data'!F86) -> -1.05458e-05 | C86: =IF('DF raw data'!G86="","",'DF raw data'!G86) -> -4.5797e-06 | D86: =IF('DF raw data'!H86="","",'DF raw data'!H86) -> -5.24584e-05 | F86: 7.947815407e-06 | G86: 3.206350767e-05 | H86: -1.969607264e-06 | J86: 5.986726281e-05 | K86: 0.0002677271965 | L86: 0.0003960669751 | M86: 0.002127291333 | N86: 5.906909131e-07
A87: =IF('DF raw data'!E87="","",'DF raw data'!E87) -> -290 | B87: =IF('DF raw data'!F87="","",'DF raw data'!F87) -> -1.44602e-05 | C87: =IF('DF raw data'!G87="","",'DF raw data'!G87) -> -7.42854e-06 | D87: =IF('DF raw data'!H87="","",'DF raw data'!H87) -> -4.30547e-05 | F87: 4.016974927e-06 | G87: 2.920270254e-05 | H87: 7.473588276e-06 | J87: 6.187575028e-05 | K87: 0.0002986650717 | L87: 0.0004106683263 | M87: 0.002332625496 | N87: 6.769294545e-07
A88: =IF('DF raw data'!E88="","",'DF raw data'!E88) -> -289.5 | B88: =IF('DF raw data'!F88="","",'DF raw data'!F88) -> -1.00926e-05 | C88: =IF('DF raw data'!G88="","",'DF raw data'!G88) -> -7.88794e-06 | D88: =IF('DF raw data'!H88="","",'DF raw data'!H88) -> -5.98461e-05 | F88: 8.402918847e-06 | G88: 2.874137306e-05 | H88: -9.388335604e-06 | J88: 6.60772097e-05 | K88: 0.0003317036765 | L88: 0.0004250390129 | M88: 0.002545145002 | N88: 7.694416345e-07
A89: =IF('DF raw data'!E89="","",'DF raw data'!E89) -> -289 | B89: =IF('DF raw data'!F89="","",'DF raw data'!F89) -> -5.6775e-06 | C89: =IF('DF raw data'!G89="","",'DF raw data'!G89) -> -4.14093e-07 | D89: =IF('DF raw data'!H89="","",'DF raw data'!H89) -> -5.10896e-05 | F89: 1.283656227e-05 | G89: 3.624661022e-05 | H89: -5.950583041e-07 | J89: 7.249549083e-05 | K89: 0.0003679514219 | L89: 0.000443162318 | M89: 0.002766726161 | N89: 8.702658527e-07
A90: =IF('DF raw data'!E90="","",'DF raw data'!E90) -> -288.5 | B90: =IF('DF raw data'!F90="","",'DF raw data'!F90) -> -1.61906e-05 | C90: =IF('DF raw data'!G90="","",'DF raw data'!G90) -> 3.13866e-06 | D90: =IF('DF raw data'!H90="","",'DF raw data'!H90) -> -4.24234e-05 | F90: 2.279307247e-06 | G90: 3.981428478e-05 | H90: 8.107539736e-06 | J90: 7.363514446e-05 | K90: 0.0004047689941 | L90: 0.0004630694604 | M90: 0.002998260892 | N90: 9.801935825e-07
A91: =IF('DF raw data'!E91="","",'DF raw data'!E91) -> -288 | B91: =IF('DF raw data'!F91="","",'DF raw data'!F91) -> -4.45868e-06 | C91: =IF('DF raw data'!G91="","",'DF raw data'!G91) -> -5.1245e-06 | D91: =IF('DF raw data'!H91="","",'DF raw data'!H91) -> -5.32393e-05 | F91: 1.406050131e-05 | G91: 3.151641951e-05 | H91: -2.753787044e-06 | J91: 8.066539511e-05 | K91: 0.0004451016917 | L91: 0.0004788276701 | M91: 0.003237674727 | N91: 1.098085004e-06
A92: =IF('DF raw data'!E92="","",'DF raw data'!E92) -> -287.5 | B92: =IF('DF raw data'!F92="","",'DF raw data'!F92) -> -1.1568e-05 | C92: =IF('DF raw data'!G92="","",'DF raw data'!G92) -> 2.23281e-06 | D92: =IF('DF raw data'!H92="","",'DF raw data'!H92) -> -5.69671e-05 | F92: 6.921322167e-06 | G92: 3.890463021e-05 | H92: -6.497243804e-06 | J92: 8.41260562e-05 | K92: 0.0004871647198 | L92: 0.0004982799852 | M92: 0.003486814719 | N92: 1.225765073e-06
A93: =IF('DF raw data'!E93="","",'DF raw data'!E93) -> -287 | B93: =IF('DF raw data'!F93="","",'DF raw data'!F93) -> -1.2339e-05 | C93: =IF('DF raw data'!G93="","",'DF raw data'!G93) -> 6.58668e-06 | D93: =IF('DF raw data'!H93="","",'DF raw data'!H93) -> -5.39284e-05 | F93: 6.147083967e-06 | G93: 4.327678646e-05 | H93: -3.445781264e-06 | J93: 8.719959818e-05 | K93: 0.0005307645189 | L93: 0.0005199183785 | M93: 0.003746773908 | N93: 1.364724518e-06
A94: =IF('DF raw data'!E94="","",'DF raw data'!E94) -> -286.5 | B94: =IF('DF raw data'!F94="","",'DF raw data'!F94) -> -1.5483e-05 | C94: =IF('DF raw data'!G94="","",'DF raw data'!G94) -> 8.77195e-06 | D94: =IF('DF raw data'!H94="","",'DF raw data'!H94) -> -4.68989e-05 | F94: 2.989879167e-06 | G94: 4.54712346e-05 | H94: 3.613242636e-06 | J94: 8.869453776e-05 | K94: 0.0005751117878 | L94: 0.0005426539958 | M94: 0.004018100906 | N94: 1.515894558e-06
A95: =IF('DF raw data'!E95="","",'DF raw data'!E95) -> -286 | B95: =IF('DF raw data'!F95="","",'DF raw data'!F95) -> -1.91294e-05 | C95: =IF('DF raw data'!G95="","",'DF raw data'!G95) -> 7.43937e-06 | D95: =IF('DF raw data'!H95="","",'DF raw data'!H95) -> -5.56547e-05 | F95: -6.718357133e-07 | G95: 4.413305776e-05 | H95: -5.179331724e-06 | J95: 8.835861991e-05 | K95: 0.0006192910977 | L95: 0.0005647205246 | M95: 0.004300461169 | N95: 1.679252816e-06
A96: =IF('DF raw data'!E96="","",'DF raw data'!E96) -> -285.5 | B96: =IF('DF raw data'!F96="","",'DF raw data'!F96) -> -2.285e-05 | C96: =IF('DF raw data'!G96="","",'DF raw data'!G96) -> -1.40909e-06 | D96: =IF('DF raw data'!H96="","",'DF raw data'!H96) -> -4.844e-05 | F96: -4.408062233e-06 | G96: 3.524743423e-05 | H96: 2.065670016e-06 | J96: 8.615458879e-05 | K96: 0.0006623683921 | L96: 0.0005823442418 | M96: 0.004591633289 | N96: 1.852526531e-06
A97: =IF('DF raw data'!E97="","",'DF raw data'!E97) -> -285 | B97: =IF('DF raw data'!F97="","",'DF raw data'!F97) -> -1.59334e-05 | C97: =IF('DF raw data'!G97="","",'DF raw data'!G97) -> 2.46104e-06 | D97: =IF('DF raw data'!H97="","",'DF raw data'!H97) -> -4.37423e-05 | F97: 2.537587487e-06 | G97: 3.913381877e-05 | H97: 6.783100356e-06 | J97: 8.742338253e-05 | K97: 0.0007060800834 | L97: 0.0006019111511 | M97: 0.004892588865 | N97: 2.037496472e-06
A98: =IF('DF raw data'!E98="","",'DF raw data'!E98) -> -284.5 | B98: =IF('DF raw data'!F98="","",'DF raw data'!F98) -> -1.09963e-05 | C98: =IF('DF raw data'!G98="","",'DF raw data'!G98) -> 7.02726e-06 | D98: =IF('DF raw data'!H98="","",'DF raw data'!H98) -> -4.95417e-05 | F98: 7.495423307e-06 | G98: 4.37192169e-05 | H98: 9.593428759e-07 | J98: 9.117109419e-05 | K98: 0.0007516656305 | L98: 0.0006237707596 | M98: 0.005204474245 | N98: 2.236197536e-06
A99: =IF('DF raw data'!E99="","",'DF raw data'!E99) -> -284 | B99: =IF('DF raw data'!F99="","",'DF raw data'!F99) -> -4.24684e-07 | C99: =IF('DF raw data'!G99="","",'DF raw data'!G99) -> 8.33795e-06 | D99: =IF('DF raw data'!H99="","",'DF raw data'!H99) -> -4.94986e-05 | F99: 1.811144009e-05 | G99: 4.50354118e-05 | H99: 1.002623896e-06 | J99: 0.0001002268142 | K99: 0.0008017790376 | L99: 0.0006462884655 | M99: 0.005527618478 | N99: 2.450064634e-06
A100: =IF('DF raw data'!E100="","",'DF raw data'!E100) -> -283.5 | B100: =IF('DF raw data'!F100="","",'DF raw data'!F100) -> -6.51001e-06 | C100: =IF('DF raw data'!G100="","",'DF raw data'!G100) -> 8.46021e-06 | D100: =IF('DF raw data'!H100="","",'DF raw data'!H100) -> -5.14715e-05 | F100: 1.200055572e-05 | G100: 4.515818529e-05 | H100: -9.785622841e-07 | J100: 0.0001062270921 | K100: 0.0008548925836 | L100: 0.0006688675581 | M100: 0.005862052257 | N100: 2.679398636e-06
A101: =IF('DF raw data'!E101="","",'DF raw data'!E101) -> -283 | B101: =IF('DF raw data'!F101="","",'DF raw data'!F101) -> -1.24043e-05 | C101: =IF('DF raw data'!G101="","",'DF raw data'!G101) -> -1.87345e-07 | D101: =IF('DF raw data'!H101="","",'DF raw data'!H101) -> -5.18639e-05 | F101: 6.081509707e-06 | G101: 3.647431056e-05 | H101: -1.372610364e-06 | J101: 0.0001092678469 | K101: 0.0009095265071 | L101: 0.0006871047134 | M101: 0.006205604613 | N101: 2.921424811e-06
A102: =IF('DF raw data'!E102="","",'DF raw data'!E102) -> -282.5 | B102: =IF('DF raw data'!F102="","",'DF raw data'!F102) -> -1.18213e-05 | C102: =IF('DF raw data'!G102="","",'DF raw data'!G102) -> -1.25028e-06 | D102: =IF('DF raw data'!H102="","",'DF raw data'!H102) -> -6.18741e-05 | F102: 6.666958307e-06 | G102: 3.540691123e-05 | H102: -1.14248532e-05 | J102: 0.0001126013261 | K102: 0.0009658271702 | L102: 0.000704808169 | M102: 0.006558008698 | N102: 3.176141618e-06
A103: =IF('DF raw data'!E103="","",'DF raw data'!E103) -> -282 | B103: =IF('DF raw data'!F103="","",'DF raw data'!F103) -> -3.21958e-05 | C103: =IF('DF raw data'!G103="","",'DF raw data'!G103) -> -5.18457e-06 | D103: =IF('DF raw data'!H103="","",'DF raw data'!H103) -> -6.18593e-05 | F103: -1.379311459e-05 | G103: 3.145609721e-05 | H103: -1.140999104e-05 | J103: 0.0001057047688 | K103: 0.001018679555 | L103: 0.0007205362176 | M103: 0.006918276807 | N103: 3.441314587e-06
A104: =IF('DF raw data'!E104="","",'DF raw data'!E104) -> -281.5 | B104: =IF('DF raw data'!F104="","",'DF raw data'!F104) -> -6.89452e-06 | C104: =IF('DF raw data'!G104="","",'DF raw data'!G104) -> -1.70677e-05 | D104: =IF('DF raw data'!H104="","",'DF raw data'!H104) -> -5.13164e-05 | F104: 1.161443078e-05 | G104: 1.952305807e-05 | H104: -8.228108641e-07 | J104: 0.0001115119842 | K104: 0.001074435547 | L104: 0.0007302977467 | M104: 0.00728342568 | N104: 3.714199448e-06
A105: =IF('DF raw data'!E105="","",'DF raw data'!E105) -> -281 | B105: =IF('DF raw data'!F105="","",'DF raw data'!F105) -> -7.60111e-06 | C105: =IF('DF raw data'!G105="","",'DF raw data'!G105) -> -1.53886e-05 | D105: =IF('DF raw data'!H105="","",'DF raw data'!H105) -> -4.86854e-05 | F105: 1.09048731e-05 | G105: 2.120921029e-05 | H105: 1.819239336e-06 | J105: 0.0001169644207 | K105: 0.001132917757 | L105: 0.0007409023518 | M105: 0.007653876856 | N105: 3.995507934e-06
A106: =IF('DF raw data'!E106="","",'DF raw data'!E106) -> -280.5 | B106: =IF('DF raw data'!F106="","",'DF raw data'!F106) -> -4.84843e-06 | C106: =IF('DF raw data'!G106="","",'DF raw data'!G106) -> 2.69872e-08 | D106: =IF('DF raw data'!H106="","",'DF raw data'!H106) -> -4.50129e-05 | F106: 1.366911436e-05 | G106: 3.668954295e-05 | H106: 5.507163836e-06 | J106: 0.0001237989779 | K106: 0.001194817246 | L106: 0.0007592471233 | M106: 0.008033500418 | N106: 4.291399124e-06
A107: =IF('DF raw data'!E107="","",'DF raw data'!E107) -> -280 | B107: =IF('DF raw data'!F107="","",'DF raw data'!F107) -> -8.05251e-06 | C107: =IF('DF raw data'!G107="","",'DF raw data'!G107) -> 4.17878e-06 | D107: =IF('DF raw data'!H107="","",'DF raw data'!H107) -> -4.3975e-05 | F107: 1.045157722e-05 | G107: 4.085877328e-05 | H107: 6.549423016e-06 | J107: 0.0001290247665 | K107: 0.001259329629 | L107: 0.0007796765099 | M107: 0.008423338673 | N107: 4.603670549e-06
A108: =IF('DF raw data'!E108="","",'DF raw data'!E108) -> -279.5 | B108: =IF('DF raw data'!F108="","",'DF raw data'!F108) -> -1.09948e-05 | C108: =IF('DF raw data'!G108="","",'DF raw data'!G108) -> -2.79987e-06 | D108: =IF('DF raw data'!H108="","",'DF raw data'!H108) -> -5.18614e-05 | F108: 7.496929607e-06 | G108: 3.385081295e-05 | H108: -1.370099864e-06 | J108: 0.0001327732313 | K108: 0.001325716245 | L108: 0.0007966019164 | M108: 0.008821639631 | N108: 4.929772221e-06
A109: =IF('DF raw data'!E109="","",'DF raw data'!E109) -> -279 | B109: =IF('DF raw data'!F109="","",'DF raw data'!F109) -> -1.52214e-05 | C109: =IF('DF raw data'!G109="","",'DF raw data'!G109) -> -8.96333e-06 | D109: =IF('DF raw data'!H109="","",'DF raw data'!H109) -> -5.52349e-05 | F109: 3.252577887e-06 | G109: 2.766146642e-05 | H109: -4.757768564e-06 | J109: 0.0001343995203 | K109: 0.001392916005 | L109: 0.0008104326496 | M109: 0.009226855956 | N109: 5.267204377e-06
A110: =IF('DF raw data'!E110="","",'DF raw data'!E110) -> -278.5 | B110: =IF('DF raw data'!F110="","",'DF raw data'!F110) -> 7.39714e-06 | C110: =IF('DF raw data'!G110="","",'DF raw data'!G110) -> -8.25067e-06 | D110: =IF('DF raw data'!H110="","",'DF raw data'!H110) -> -5.71828e-05 | F110: 2.596611575e-05 | G110: 2.837711959e-05 | H110: -6.713849744e-06 | J110: 0.0001473825782 | K110: 0.001466607294 | L110: 0.0008246212094 | M110: 0.00963916656 | N110: 5.618065258e-06
A111: =IF('DF raw data'!E111="","",'DF raw data'!E111) -> -278 | B111: =IF('DF raw data'!F111="","",'DF raw data'!F111) -> -1.28603e-05 | C111: =IF('DF raw data'!G111="","",'DF raw data'!G111) -> -9.07784e-06 | D111: =IF('DF raw data'!H111="","",'DF raw data'!H111) -> -4.0475e-05 | F111: 5.623594507e-06 | G111: 2.754647548e-05 | H111: 1.006412302e-05 | J111: 0.0001501943754 | K111: 0.001541704482 | L111: 0.0008383944471 | M111: 0.01005836378 | N111: 5.980797058e-06
A112: =IF('DF raw data'!E112="","",'DF raw data'!E112) -> -277.5 | B112: =IF('DF raw data'!F112="","",'DF raw data'!F112) -> -1.17574e-05 | C112: =IF('DF raw data'!G112="","",'DF raw data'!G112) -> -7.92375e-06 | D112: =IF('DF raw data'!H112="","",'DF raw data'!H112) -> -6.1496e-05 | F112: 6.731126687e-06 | G112: 2.870541266e-05 | H112: -1.104516518e-05 | J112: 0.0001535599388 | K112: 0.001618484451 | L112: 0.0008527471535 | M112: 0.01048473736 | N112: 6.356176239e-06
A113: =IF('DF raw data'!E113="","",'DF raw data'!E113) -> -277 | B113: =IF('DF raw data'!F113="","",'DF raw data'!F113) -> -1.00996e-05 | C113: =IF('DF raw data'!G113="","",'DF raw data'!G113) -> -1.2548e-06 | D113: =IF('DF raw data'!H113="","",'DF raw data'!H113) -> -4.91866e-05 | F113: 8.395889447e-06 | G113: 3.540237225e-05 | H113: 1.315934296e-06 | J113: 0.0001577578835 | K113: 0.001697363393 | L113: 0.0008704483396 | M113: 0.01091996153 | N113: 6.74746017e-06
A114: =IF('DF raw data'!E114="","",'DF raw data'!E114) -> -276.5 | B114: =IF('DF raw data'!F114="","",'DF raw data'!F114) -> -8.87902e-06 | C114: =IF('DF raw data'!G114="","",'DF raw data'!G114) -> -1.46241e-06 | D114: =IF('DF raw data'!H114="","",'DF raw data'!H114) -> -5.40115e-05 | F114: 9.621595883e-06 | G114: 3.519389028e-05 | H114: -3.529230284e-06 | J114: 0.0001625686814 | K114: 0.001778647734 | L114: 0.0008880452847 | M114: 0.01136398417 | N114: 7.154986672e-06
A115: =IF('DF raw data'!E115="","",'DF raw data'!E115) -> -276 | B115: =IF('DF raw data'!F115="","",'DF raw data'!F115) -> -1.03574e-05 | C115: =IF('DF raw data'!G115="","",'DF raw data'!G115) -> -3.0977e-06 | D115: =IF('DF raw data'!H115="","",'DF raw data'!H115) -> -4.67363e-05 | F115: 8.137006687e-06 | G115: 3.355173207e-05 | H115: 3.776525556e-06 | J115: 0.0001666371848 | K115: 0.001861966326 | L115: 0.0009048211508 | M115: 0.01181639475 | N115: 7.578221305e-06
A116: =IF('DF raw data'!E116="","",'DF raw data'!E116) -> -275.5 | B116: =IF('DF raw data'!F116="","",'DF raw data'!F116) -> -4.33665e-06 | C116: =IF('DF raw data'!G116="","",'DF raw data'!G116) -> -1.01798e-05 | D116: =IF('DF raw data'!H116="","",'DF raw data'!H116) -> -4.384e-05 | F116: 1.418304384e-05 | G116: 2.643988725e-05 | H116: 6.684990016e-06 | J116: 0.0001737287067 | K116: 0.001948830679 | L116: 0.0009180410944 | M116: 0.0122754153 | N116: 8.014711863e-06
A117: =IF('DF raw data'!E117="","",'DF raw data'!E117) -> -275 | B117: =IF('DF raw data'!F117="","",'DF raw data'!F117) -> -5.80443e-06 | C117: =IF('DF raw data'!G117="","",'DF raw data'!G117) -> -8.42504e-06 | D117: =IF('DF raw data'!H117="","",'DF raw data'!H117) -> -5.29584e-05 | F117: 1.270909916e-05 | G117: 2.820201724e-05 | H117: -2.471707264e-06 | J117: 0.0001800832563 | K117: 0.002038872308 | L117: 0.000932142103 | M117: 0.01274148635 | N117: 8.465371302e-06
A118: =IF('DF raw data'!E118="","",'DF raw data'!E118) -> -274.5 | B118: =IF('DF raw data'!F118="","",'DF raw data'!F118) -> -1.34978e-05 | C118: =IF('DF raw data'!G118="","",'DF raw data'!G118) -> -9.61013e-06 | D118: =IF('DF raw data'!H118="","",'DF raw data'!H118) -> -4.53029e-05 | F118: 4.983417007e-06 | G118: 2.701194986e-05 | H118: 5.215945836e-06 | J118: 0.0001825749648 | K118: 0.00213015979 | L118: 0.0009456480779 | M118: 0.01321431039 | N118: 8.929163255e-06
A119: =IF('DF raw data'!E119="","",'DF raw data'!E119) -> -274 | B119: =IF('DF raw data'!F119="","",'DF raw data'!F119) -> -2.86817e-05 | C119: =IF('DF raw data'!G119="","",'DF raw data'!G119) -> -1.1065e-05 | D119: =IF('DF raw data'!H119="","",'DF raw data'!H119) -> -4.68204e-05 | F119: -1.026425537e-05 | G119: 2.555096941e-05 | H119: 3.692072336e-06 | J119: 0.0001774428371 | K119: 0.002218881209 | L119: 0.0009584235626 | M119: 0.01369352217 | N119: 9.404194098e-06
A120: =IF('DF raw data'!E120="","",'DF raw data'!E120) -> -273.5 | B120: =IF('DF raw data'!F120="","",'DF raw data'!F120) -> -2.38124e-05 | C120: =IF('DF raw data'!G120="","",'DF raw data'!G120) -> -9.76871e-06 | D120: =IF('DF raw data'!H120="","",'DF raw data'!H120) -> -4.6494e-05 | F120: -5.374504313e-06 | G120: 2.685270382e-05 | H120: 4.019843216e-06 | J120: 0.0001747555849 | K120: 0.002306259001 | L120: 0.0009718499146 | M120: 0.01417944712 | N120: 9.891709983e-06
A121: =IF('DF raw data'!E121="","",'DF raw data'!E121) -> -273 | B121: =IF('DF raw data'!F121="","",'DF raw data'!F121) -> -2.07302e-05 | C121: =IF('DF raw data'!G121="","",'DF raw data'!G121) -> -1.24855e-05 | D121: =IF('DF raw data'!H121="","",'DF raw data'!H121) -> -5.67657e-05 | F121: -2.279359073e-06 | G121: 2.412450331e-05 | H121: -6.294997924e-06 | J121: 0.0001736159054 | K121: 0.002393066954 | L121: 0.0009839121662 | M121: 0.01467140321 | N121: 1.03908228e-05
A122: =IF('DF raw data'!E122="","",'DF raw data'!E122) -> -272.5 | B122: =IF('DF raw data'!F122="","",'DF raw data'!F122) -> -1.55437e-05 | C122: =IF('DF raw data'!G122="","",'DF raw data'!G122) -> -4.78581e-06 | D122: =IF('DF raw data'!H122="","",'DF raw data'!H122) -> -5.19165e-05 | F122: 2.928924227e-06 | G122: 3.1856532e-05 | H122: -1.425431284e-06 | J122: 0.0001750803675 | K122: 0.002480607137 | L122: 0.0009998404322 | M122: 0.01517132342 | N122: 1.090598981e-05
A123: =IF('DF raw data'!E123="","",'DF raw data'!E123) -> -272 | B123: =IF('DF raw data'!F123="","",'DF raw data'!F123) -> -1.27262e-05 | C123: =IF('DF raw data'!G123="","",'DF raw data'!G123) -> -7.26969e-07 | D123: =IF('DF raw data'!H123="","",'DF raw data'!H123) -> -4.97161e-05 | F123: 5.758257727e-06 | G123: 3.593242014e-05 | H123: 7.842103959e-07 | J123: 0.0001779594964 | K123: 0.002569586886 | L123: 0.001017806642 | M123: 0.01568022674 | N123: 1.143978978e-05
A124: =IF('DF raw data'!E124="","",'DF raw data'!E124) -> -271.5 | B124: =IF('DF raw data'!F124="","",'DF raw data'!F124) -> 9.76506e-07 | C124: =IF('DF raw data'!G124="","",'DF raw data'!G124) -> -6.72909e-06 | D124: =IF('DF raw data'!H124="","",'DF raw data'!H124) -> -3.62802e-05 | F124: 1.951851509e-05 | G124: 2.990509023e-05 | H124: 1.427654118e-05 | J124: 0.0001877187539 | K124: 0.002663446263 | L124: 0.001032759187 | M124: 0.01619660634 | N124: 1.199070472e-05
A125: =IF('DF raw data'!E125="","",'DF raw data'!E125) -> -271 | B125: =IF('DF raw data'!F125="","",'DF raw data'!F125) -> -5.4877e-06 | C125: =IF('DF raw data'!G125="","",'DF raw data'!G125) -> -6.92795e-06 | D125: =IF('DF raw data'!H125="","",'DF raw data'!H125) -> -4.71955e-05 | F125: 1.302715943e-05 | G125: 2.970539502e-05 | H125: 3.315396916e-06 | J125: 0.0001942323336 | K125: 0.002760562429 | L125: 0.001047611885 | M125: 0.01672041228 | N125: 1.255831315e-05
A126: =IF('DF raw data'!E126="","",'DF raw data'!E126) -> -270.5 | B126: =IF('DF raw data'!F126="","",'DF raw data'!F126) -> -1.2339e-05 | C126: =IF('DF raw data'!G126="","",'DF raw data'!G126) -> -4.68536e-06 | D126: =IF('DF raw data'!H126="","",'DF raw data'!H126) -> -5.39836e-05 | F126: 6.147083967e-06 | G126: 3.195740389e-05 | H126: -3.501213104e-06 | J126: 0.0001973058756 | K126: 0.002859215367 | L126: 0.001063590587 | M126: 0.01725220757 | N126: 1.314339042e-05
A127: =IF('DF raw data'!E127="","",'DF raw data'!E127) -> -270 | B127: =IF('DF raw data'!F127="","",'DF raw data'!F127) -> 1.4353e-06 | C127: =IF('DF raw data'!G127="","",'DF raw data'!G127) -> -3.97607e-06 | D127: =IF('DF raw data'!H127="","",'DF raw data'!H127) -> -5.2393e-05 | F127: 1.997923603e-05 | G127: 3.266967291e-05 | H127: -1.903932584e-06 | J127: 0.0002072954936 | K127: 0.002962863114 | L127: 0.001079925423 | M127: 0.01779217029 | N127: 1.374799559e-05
A128: =IF('DF raw data'!E128="","",'DF raw data'!E128) -> -269.5 | B128: =IF('DF raw data'!F128="","",'DF raw data'!F128) -> -1.48409e-05 | C128: =IF('DF raw data'!G128="","",'DF raw data'!G128) -> 5.38835e-08 | D128: =IF('DF raw data'!H128="","",'DF raw data'!H128) -> -4.88384e-05 | F128: 3.634675987e-06 | G128: 3.671655222e-05 | H128: 1.665596736e-06 | J128: 0.0002091128316 | K128: 0.00306741953 | L128: 0.001098283699 | M128: 0.01834131214 | N128: 1.437297322e-05
A129: =IF('DF raw data'!E129="","",'DF raw data'!E129) -> -269 | B129: =IF('DF raw data'!F129="","",'DF raw data'!F129) -> -2.00973e-05 | C129: =IF('DF raw data'!G129="","",'DF raw data'!G129) -> -2.20409e-06 | D129: =IF('DF raw data'!H129="","",'DF raw data'!H129) -> -4.48376e-05 | F129: -1.643800893e-06 | G129: 3.444909523e-05 | H129: 5.683200096e-06 | J129: 0.0002082909312 | K129: 0.003171564995 | L129: 0.001115508247 | M129: 0.01889906626 | N129: 1.50168451e-05
A130: =IF('DF raw data'!E130="","",'DF raw data'!E130) -> -268.5 | B130: =IF('DF raw data'!F130="","",'DF raw data'!F130) -> -4.90585e-07 | C130: =IF('DF raw data'!G130="","",'DF raw data'!G130) -> 2.94937e-06 | D130: =IF('DF raw data'!H130="","",'DF raw data'!H130) -> -4.64711e-05 | F130: 1.804526231e-05 | G130: 3.962419976e-05 | H130: 4.042839396e-06 | J130: 0.0002173135623 | K130: 0.003280221777 | L130: 0.001135320347 | M130: 0.01946672643 | N130: 1.568493384e-05
A131: =IF('DF raw data'!E131="","",'DF raw data'!E131) -> -268 | B131: =IF('DF raw data'!F131="","",'DF raw data'!F131) -> -4.92214e-06 | C131: =IF('DF raw data'!G131="","",'DF raw data'!G131) -> 4.71686e-06 | D131: =IF('DF raw data'!H131="","",'DF raw data'!H131) -> -2.99494e-05 | F131: =(1-$G$1*($B$54-$G$2))*(B131-F$5) -> 1.359509478e-05 | G131: =(1-$G$1*($B$54-$G$2))*(C131-G$5) -> 4.139911322e-05 | H131: =(1-$G$1*($B$54-$G$2))*(D131-H$5) -> 2.063393054e-05 | J131: 0.0002241111097 | K131: 0.003392277331 | L131: 0.001156019904 | M131: 0.02004473638 | N131: 1.637823774e-05
A132: =IF('DF raw data'!E132="","",'DF raw data'!E132) -> -267.5 | B132: =IF('DF raw data'!F132="","",'DF raw data'!F132) -> -2.27853e-05 | C132: =IF('DF raw data'!G132="","",'DF raw data'!G132) -> 2.37169e-07 | D132: =IF('DF raw data'!H132="","",'DF raw data'!H132) -> -4.9672e-05 | F132: -4.343090493e-06 | G132: 3.690060752e-05 | H132: 8.284956159e-07 | J132: =F132*$G$3+J131 -> 0.0002219395645 | K132: =J132*$G$3+K131 -> 0.003503247114 | L132: =G132*$G$3+L131 -> 0.001174470207 | M132: =L132*$G$3+M131 -> 0.02063197149 | N132: =(J132^2+L132^2)*$G$3+N131 -> 1.709255646e-05
A133: =IF('DF raw data'!E133="","",'DF raw data'!E133) -> -267 | B133: =IF('DF raw data'!F133="","",'DF raw data'!F133) -> -1.37506e-05 | C133: =IF('DF raw data'!G133="","",'DF raw data'!G133) -> 7.4663e-06 | D133: =IF('DF raw data'!H133="","",'DF raw data'!H133) -> -5.08063e-05 | F133: 4.729555247e-06 | G133: 4.416010087e-05 | H133: -3.105684441e-07 | J133: 0.0002243043421 | K133: 0.003615399285 | L133: 0.001196550258 | M133: 0.02123024662 | N133: 1.783357894e-05
A134: =IF('DF raw data'!E134="","",'DF raw data'!E134) -> -266.5 | B134: =IF('DF raw data'!F134="","",'DF raw data'!F134) -> -1.79141e-05 | C134: =IF('DF raw data'!G134="","",'DF raw data'!G134) -> 5.85942e-06 | D134: =IF('DF raw data'!H134="","",'DF raw data'!H134) -> -5.23669e-05 | F134: 5.485685467e-07 | G134: 4.254647197e-05 | H134: -1.877722964e-06 | J134: 0.0002245786264 | K134: 0.003727688598 | L134: 0.001217823494 | M134: 0.02183915836 | N134: 1.860034375e-05
A135: =IF('DF raw data'!E135="","",'DF raw data'!E135) -> -266 | B135: =IF('DF raw data'!F135="","",'DF raw data'!F135) -> -4.20633e-06 | C135: =IF('DF raw data'!G135="","",'DF raw data'!G135) -> -7.36739e-07 | D135: =IF('DF raw data'!H135="","",'DF raw data'!H135) -> -4.72061e-05 | F135: 1.431391118e-05 | G135: 3.59226091e-05 | H135: 3.304752396e-06 | J135: 0.000231735582 | K135: 0.003843556389 | L135: 0.001235784798 | M135: 0.02245705076 | N135: 1.939077648e-05
A136: =IF('DF raw data'!E136="","",'DF raw data'!E136) -> -265.5 | B136: =IF('DF raw data'!F136="","",'DF raw data'!F136) -> -1.22748e-05 | C136: =IF('DF raw data'!G136="","",'DF raw data'!G136) -> -3.85351e-06 | D136: =IF('DF raw data'!H136="","",'DF raw data'!H136) -> -5.39063e-05 | F136: 6.211553607e-06 | G136: 3.279274766e-05 | H136: -3.423588444e-06 | J136: 0.0002348413588 | K136: 0.003960977068 | L136: 0.001252181172 | M136: 0.02308314135 | N136: 2.020233055e-05
A137: =IF('DF raw data'!E137="","",'DF raw data'!E137) -> -265 | B137: =IF('DF raw data'!F137="","",'DF raw data'!F137) -> -3.75259e-06 | C137: =IF('DF raw data'!G137="","",'DF raw data'!G137) -> 8.59121e-07 | D137: =IF('DF raw data'!H137="","",'DF raw data'!H137) -> -5.51231e-05 | F137: 1.476955689e-05 | G137: 3.752517171e-05 | H137: -4.645499004e-06 | J137: 0.0002422261372 | K137: 0.004082090137 | L137: 0.001270943758 | M137: 0.02371861323 | N137: 2.103931632e-05
A138: =IF('DF raw data'!E138="","",'DF raw data'!E138) -> -264.5 | B138: =IF('DF raw data'!F138="","",'DF raw data'!F138) -> -1.29801e-05 | C138: =IF('DF raw data'!G138="","",'DF raw data'!G138) -> 1.8573e-06 | D138: =IF('DF raw data'!H138="","",'DF raw data'!H138) -> -5.33694e-05 | F138: 5.503291347e-06 | G138: 3.852754307e-05 | H138: -2.884433464e-06 | J138: 0.0002449777829 | K138: 0.004204579028 | L138: 0.001290207529 | M138: 0.02436371699 | N138: 2.190164111e-05
A139: =IF('DF raw data'!E139="","",'DF raw data'!E139) -> -264 | B139: =IF('DF raw data'!F139="","",'DF raw data'!F139) -> -1.91958e-05 | C139: =IF('DF raw data'!G139="","",'DF raw data'!G139) -> 2.34172e-07 | D139: =IF('DF raw data'!H139="","",'DF raw data'!H139) -> -5.19182e-05 | F139: -7.385145933e-07 | G139: 3.689759793e-05 | H139: -1.427138424e-06 | J139: 0.0002446085256 | K139: 0.004326883291 | L139: 0.001308656328 | M139: 0.02501804516 | N139: 2.278784847e-05
A140: =IF('DF raw data'!E140="","",'DF raw data'!E140) -> -263.5 | B140: =IF('DF raw data'!F140="","",'DF raw data'!F140) -> -2.37457e-05 | C140: =IF('DF raw data'!G140="","",'DF raw data'!G140) -> 1.52362e-05 | D140: =IF('DF raw data'!H140="","",'DF raw data'!H140) -> -5.04408e-05 | F140: -5.307524173e-06 | G140: 5.196263445e-05 | H140: 5.646665585e-08 | J140: 0.0002419547635 | K140: 0.004447860673 | L140: 0.001334637646 | M140: 0.02568536398 | N140: 2.370774835e-05
A141: =IF('DF raw data'!E141="","",'DF raw data'!E141) -> -263 | B141: =IF('DF raw data'!F141="","",'DF raw data'!F141) -> -1.77894e-05 | C141: =IF('DF raw data'!G141="","",'DF raw data'!G141) -> 1.17311e-05 | D141: =IF('DF raw data'!H141="","",'DF raw data'!H141) -> -4.71274e-05 | F141: 6.737922867e-07 | G141: 4.844281303e-05 | H141: 3.383782936e-06 | J141: 0.0002422916596 | K141: 0.004569006503 | L141: 0.001358859052 | M141: 0.02636479351 | N141: 2.466034993e-05
A142: =IF('DF raw data'!E142="","",'DF raw data'!E142) -> -262.5 | B142: =IF('DF raw data'!F142="","",'DF raw data'!F142) -> -1.74734e-05 | C142: =IF('DF raw data'!G142="","",'DF raw data'!G142) -> 3.41354e-06 | D142: =IF('DF raw data'!H142="","",'DF raw data'!H142) -> -4.01752e-05 | F142: 9.911194867e-07 | G142: 4.009031927e-05 | H142: 1.036518218e-05 | J142: 0.0002427872194 | K142: 0.004690400112 | L142: 0.001378904212 | M142: 0.02705424561 | N142: 2.564051116e-05
A143: =IF('DF raw data'!E143="","",'DF raw data'!E143) -> -262 | B143: =IF('DF raw data'!F143="","",'DF raw data'!F143) -> -4.53475e-06 | C143: =IF('DF raw data'!G143="","",'DF raw data'!G143) -> -9.55376e-06 | D143: =IF('DF raw data'!H143="","",'DF raw data'!H143) -> -3.45527e-05 | F143: 1.398411182e-05 | G143: 2.706855661e-05 | H143: 1.601129668e-05 | J143: 0.0002497792753 | K143: 0.00481528975 | L143: 0.00139243849 | M143: 0.02775046486 | N143: 2.664114848e-05
A144: =IF('DF raw data'!E144="","",'DF raw data'!E144) -> -261.5 | B144: =IF('DF raw data'!F144="","",'DF raw data'!F144) -> -1.81105e-05 | C144: =IF('DF raw data'!G144="","",'DF raw data'!G144) -> -4.24702e-06 | D144: =IF('DF raw data'!H144="","",'DF raw data'!H144) -> -4.6194e-05 | F144: 3.513436667e-07 | G144: 3.239758492e-05 | H144: 4.321103216e-06 | J144: 0.0002499549471 | K144: 0.004940267224 | L144: 0.001408637283 | M144: 0.0284547835 | N144: 2.766451671e-05
A145: =IF('DF raw data'!E145="","",'DF raw data'!E145) -> -261 | B145: =IF('DF raw data'!F145="","",'DF raw data'!F145) -> -1.54228e-05 | C145: =IF('DF raw data'!G145="","",'DF raw data'!G145) -> -6.40565e-06 | D145: =IF('DF raw data'!H145="","",'DF raw data'!H145) -> -4.08805e-05 | F145: 3.050332007e-06 | G145: 3.022988868e-05 | H145: 9.656919916e-06 | J145: 0.0002514801131 | K145: 0.00506600728 | L145: 0.001423752227 | M145: 0.02916665961 | N145: 2.870967304e-05
A146: =IF('DF raw data'!E146="","",'DF raw data'!E146) -> -260.5 | B146: =IF('DF raw data'!F146="","",'DF raw data'!F146) -> -2.38731e-05 | C146: =IF('DF raw data'!G146="","",'DF raw data'!G146) -> -6.07836e-06 | D146: =IF('DF raw data'!H146="","",'DF raw data'!H146) -> -5.16567e-05 | F146: -5.435459253e-06 | G146: 3.055855329e-05 | H146: -1.164540124e-06 | J146: 0.0002487623835 | K146: 0.005190388472 | L146: 0.001439031504 | M146: 0.02988617536 | N146: 2.977602024e-05
A147: =IF('DF raw data'!E147="","",'DF raw data'!E147) -> -260 | B147: =IF('DF raw data'!F147="","",'DF raw data'!F147) -> -1.38217e-05 | C147: =IF('DF raw data'!G147="","",'DF raw data'!G147) -> -1.3563e-05 | D147: =IF('DF raw data'!H147="","",'DF raw data'!H147) -> -3.96576e-05 | F147: 4.658156627e-06 | G147: 2.304247781e-05 | H147: 1.08849561e-05 | J147: 0.0002510914618 | K147: 0.005315934203 | L147: 0.001450552742 | M147: 0.03061145173 | N147: 3.085959533e-05
A148: =IF('DF raw data'!E148="","",'DF raw data'!E148) -> -259.5 | B148: =IF('DF raw data'!F148="","",'DF raw data'!F148) -> -1.40733e-05 | C148: =IF('DF raw data'!G148="","",'DF raw data'!G148) -> -1.38235e-05 | D148: =IF('DF raw data'!H148="","",'DF raw data'!H148) -> -4.69416e-05 | F148: 4.405499907e-06 | G148: 2.278088371e-05 | H148: 3.570363296e-06 | J148: 0.0002532942118 | K148: 0.005442581309 | L148: 0.001461943184 | M148: 0.03134242333 | N148: 3.196031324e-05
A149: =IF('DF raw data'!E149="","",'DF raw data'!E149) -> -259 | B149: =IF('DF raw data'!F149="","",'DF raw data'!F149) -> -9.71671e-06 | C149: =IF('DF raw data'!G149="","",'DF raw data'!G149) -> -1.34005e-05 | D149: =IF('DF raw data'!H149="","",'DF raw data'!H149) -> -4.68342e-05 | F149: 8.780387585e-06 | G149: 2.320566031e-05 | H149: 3.678214376e-06 | J149: 0.0002576844056 | K149: 0.005571423511 | L149: 0.001473546014 | M149: 0.03207919633 | N149: 3.30791828e-05
A150: =IF('DF raw data'!E150="","",'DF raw data'!E150) -> -258.5 | B150: =IF('DF raw data'!F150="","",'DF raw data'!F150) -> -2.40637e-05 | C150: =IF('DF raw data'!G150="","",'DF raw data'!G150) -> -1.31191e-05 | D150: =IF('DF raw data'!H150="","",'DF raw data'!H150) -> -5.42683e-05 | F150: -5.626859773e-06 | G150: 2.348824219e-05 | H150: -3.787108844e-06 | J150: 0.0002548709757 | K150: 0.005698858999 | L150: 0.001485290136 | M150: 0.0328218414 | N150: 3.42147058e-05
A151: =IF('DF raw data'!E151="","",'DF raw data'!E151) -> -258 | B151: =IF('DF raw data'!F151="","",'DF raw data'!F151) -> -2.28548e-05 | C151: =IF('DF raw data'!G151="","",'DF raw data'!G151) -> -1.32714e-05 | D151: =IF('DF raw data'!H151="","",'DF raw data'!H151) -> -4.11526e-05 | F151: -4.412882393e-06 | G151: 2.333530253e-05 | H151: 9.383677096e-06 | J151: 0.0002526645345 | K151: 0.005825191267 | L151: 0.001496957787 | M151: 0.03357032029 | N151: 3.536706679e-05
A152: =IF('DF raw data'!E152="","",'DF raw data'!E152) -> -257.5 | B152: =IF('DF raw data'!F152="","",'DF raw data'!F152) -> -2.43901e-05 | C152: =IF('DF raw data'!G152="","",'DF raw data'!G152) -> -5.38843e-06 | D152: =IF('DF raw data'!H152="","",'DF raw data'!H152) -> -4.51071e-05 | F152: -5.954630653e-06 | G152: 3.1251381e-05 | H152: 5.412568196e-06 | J152: 0.0002496872191 | K152: 0.005950034876 | L152: 0.001512583477 | M152: 0.03432661203 | N152: 3.654219303e-05
A153: =IF('DF raw data'!E153="","",'DF raw data'!E153) -> -257 | B153: =IF('DF raw data'!F153="","",'DF raw data'!F153) -> -2.24017e-05 | C153: =IF('DF raw data'!G153="","",'DF raw data'!G153) -> -3.39749e-06 | D153: =IF('DF raw data'!H153="","",'DF raw data'!H153) -> -4.84993e-05 | F153: -3.957879373e-06 | G153: 3.325068295e-05 | H153: 2.006120956e-06 | J153: 0.0002477082795 | K153: 0.006073889016 | L153: 0.001529208819 | M153: 0.03509121644 | N153: 3.774211253e-05
A154: =IF('DF raw data'!E154="","",'DF raw data'!E154) -> -256.5 | B154: =IF('DF raw data'!F154="","",'DF raw data'!F154) -> -1.80441e-05 | C154: =IF('DF raw data'!G154="","",'DF raw data'!G154) -> -4.38267e-06 | D154: =IF('DF raw data'!H154="","",'DF raw data'!H154) -> -4.95896e-05 | F154: 4.180225467e-07 | G154: 3.226136519e-05 | H154: 9.112416959e-07 | J154: 0.0002479172907 | K154: 0.006197847661 | L154: 0.001545339501 | M154: 0.03586388619 | N154: 3.896688111e-05
A155: =IF('DF raw data'!E155="","",'DF raw data'!E155) -> -256 | B155: =IF('DF raw data'!F155="","",'DF raw data'!F155) -> -2.29732e-05 | C155: =IF('DF raw data'!G155="","",'DF raw data'!G155) -> -1.37213e-05 | D155: =IF('DF raw data'!H155="","",'DF raw data'!H155) -> -5.60802e-05 | F155: -4.531779673e-06 | G155: 2.288351295e-05 | H155: -5.606618824e-06 | J155: 0.0002456514009 | K155: 0.006320673362 | L155: 0.001556781258 | M155: 0.03664227682 | N155: 4.020883736e-05
A156: =IF('DF raw data'!E156="","",'DF raw data'!E156) -> -255.5 | B156: =IF('DF raw data'!F156="","",'DF raw data'!F156) -> -1.59959e-05 | C156: =IF('DF raw data'!G156="","",'DF raw data'!G156) -> -1.49844e-05 | D156: =IF('DF raw data'!H156="","",'DF raw data'!H156) -> -4.63969e-05 | F156: 2.474824987e-06 | G156: 2.161510793e-05 | H156: 4.117351036e-06 | J156: 0.0002468888134 | K156: 0.006444117768 | L156: 0.001567588812 | M156: 0.03742607123 | N156: 4.146798174e-05
A157: =IF('DF raw data'!E157="","",'DF raw data'!E157) -> -255 | B157: =IF('DF raw data'!F157="","",'DF raw data'!F157) -> -1.19593e-05 | C157: =IF('DF raw data'!G157="","",'DF raw data'!G157) -> -8.41432e-06 | D157: =IF('DF raw data'!H157="","",'DF raw data'!H157) -> -4.66912e-05 | F157: 6.528378707e-06 | G157: 2.821278226e-05 | H157: 3.821814976e-06 | J157: 0.0002501530027 | K157: 0.00656919427 | L157: 0.001581695203 | M157: 0.03821691883 | N157: 4.275014986e-05
A158: =IF('DF raw data'!E158="","",'DF raw data'!E158) -> -254.5 | B158: =IF('DF raw data'!F158="","",'DF raw data'!F158) -> -7.98378e-06 | C158: =IF('DF raw data'!G158="","",'DF raw data'!G158) -> -1.13986e-05 | D158: =IF('DF raw data'!H158="","",'DF raw data'!H158) -> -5.13855e-05 | F158: 1.052059589e-05 | G158: 2.521596829e-05 | H158: -8.922010841e-07 | J158: 0.0002554133007 | K158: 0.00669690092 | L158: 0.001594303187 | M158: 0.03901407042 | N158: 4.405366917e-05
A159: =IF('DF raw data'!E159="","",'DF raw data'!E159) -> -254 | B159: =IF('DF raw data'!F159="","",'DF raw data'!F159) -> -1.42606e-05 | C159: =IF('DF raw data'!G159="","",'DF raw data'!G159) -> -7.38215e-06 | D159: =IF('DF raw data'!H159="","",'DF raw data'!H159) -> -5.47127e-05 | F159: 4.217413247e-06 | G159: 2.924928738e-05 | H159: -4.233375324e-06 | J159: 0.0002575220073 | K159: 0.006825661924 | L159: 0.001608927831 | M159: 0.03981853434 | N159: 4.538115234e-05
A160: =IF('DF raw data'!E160="","",'DF raw data'!E160) -> -253.5 | B160: =IF('DF raw data'!F160="","",'DF raw data'!F160) -> -2.86274e-06 | C160: =IF('DF raw data'!G160="","",'DF raw data'!G160) -> -1.861e-05 | D160: =IF('DF raw data'!H160="","",'DF raw data'!H160) -> -4.41562e-05 | F160: 1.566314426e-05 | G160: 1.797428041e-05 | H160: 6.367461976e-06 | J160: 0.0002653535794 | K160: 0.006958338713 | L160: 0.001617914971 | M160: 0.04062749182 | N160: 4.672518303e-05
A161: =IF('DF raw data'!E161="","",'DF raw data'!E161) -> -253 | B161: =IF('DF raw data'!F161="","",'DF raw data'!F161) -> -4.12987e-06 | C161: =IF('DF raw data'!G161="","",'DF raw data'!G161) -> -2.2763e-05 | D161: =IF('DF raw data'!H161="","",'DF raw data'!H161) -> -6.61161e-05 | F161: 1.439069231e-05 | G161: 1.380383781e-05 | H161: -1.56846696e-05 | J161: 0.0002725489256 | K161: 0.007094613176 | L161: 0.00162481689 | M161: 0.04143990027 | N161: 4.808233945e-05
A162: =IF('DF raw data'!E162="","",'DF raw data'!E162) -> -252.5 | B162: =IF('DF raw data'!F162="","",'DF raw data'!F162) -> -8.68666e-06 | C162: =IF('DF raw data'!G162="","",'DF raw data'!G162) -> -1.358e-05 | D162: =IF('DF raw data'!H162="","",'DF raw data'!H162) -> -5.40749e-05 | F162: 9.814763795e-06 | G162: 2.302540641e-05 | H162: -3.592896564e-06 | J162: 0.0002774563075 | K162: 0.00723334133 | L162: 0.001636329593 | M162: 0.04225806507 | N162: 4.945961772e-05
A163: =IF('DF raw data'!E163="","",'DF raw data'!E163) -> -252 | B163: =IF('DF raw data'!F163="","",'DF raw data'!F163) -> 4.38319e-06 | C163: =IF('DF raw data'!G163="","",'DF raw data'!G163) -> -7.47896e-06 | D163: =IF('DF raw data'!H163="","",'DF raw data'!H163) -> -5.31395e-05 | F163: 2.293950716e-05 | G163: 2.915207077e-05 | H163: -2.653567884e-06 | J163: 0.0002889260611 | K163: 0.007377804361 | L163: 0.001650905628 | M163: 0.04308351788 | N163: 5.086410155e-05
A164: =IF('DF raw data'!E164="","",'DF raw data'!E164) -> -251.5 | B164: =IF('DF raw data'!F164="","",'DF raw data'!F164) -> -5.16961e-06 | C164: =IF('DF raw data'!G164="","",'DF raw data'!G164) -> -6.17111e-06 | D164: =IF('DF raw data'!H164="","",'DF raw data'!H164) -> -4.35198e-05 | F164: 1.33465854e-05 | G164: 3.046541374e-05 | H164: 7.006534856e-06 | J164: 0.0002955993538 | K164: 0.007525604037 | L164: 0.001666138335 | M164: 0.04391658705 | N164: 5.229579952e-05
A165: =IF('DF raw data'!E165="","",'DF raw data'!E165) -> -251 | B165: =IF('DF raw data'!F165="","",'DF raw data'!F165) -> -9.07454e-06 | C165: =IF('DF raw data'!G165="","",'DF raw data'!G165) -> -4.6183e-06 | D165: =IF('DF raw data'!H165="","",'DF raw data'!H165) -> -4.91195e-05 | F165: 9.425254699e-06 | G165: 3.202474555e-05 | H165: 1.383316116e-06 | J165: 0.0003003119811 | K165: 0.007675760028 | L165: 0.001682150708 | M165: 0.0447576624 | N165: 5.375570866e-05
A166: =IF('DF raw data'!E166="","",'DF raw data'!E166) -> -250.5 | B166: =IF('DF raw data'!F166="","",'DF raw data'!F166) -> -4.46293e-06 | C166: =IF('DF raw data'!G166="","",'DF raw data'!G166) -> -1.08029e-05 | D166: =IF('DF raw data'!H166="","",'DF raw data'!H166) -> -4.66987e-05 | F166: 1.405623346e-05 | G166: 2.581417023e-05 | H166: 3.814283476e-06 | J166: 0.0003073400979 | K166: 0.007829430077 | L166: 0.001695057793 | M166: 0.0456051913 | N166: 5.523954809e-05
A167: =IF('DF raw data'!E167="","",'DF raw data'!E167) -> -250 | B167: =IF('DF raw data'!F167="","",'DF raw data'!F167) -> 5.73249e-06 | C167: =IF('DF raw data'!G167="","",'DF raw data'!G167) -> -8.13557e-06 | D167: =IF('DF raw data'!H167="","",'DF raw data'!H167) -> -5.93e-05 | F167: 2.429447422e-05 | G167: 2.849270301e-05 | H167: -8.839941984e-06 | J167: 0.000319487335 | K167: 0.007989173744 | L167: 0.001709304145 | M167: 0.04645984337 | N167: 5.67514445e-05
A168: =IF('DF raw data'!E168="","",'DF raw data'!E168) -> -249.5 | B168: =IF('DF raw data'!F168="","",'DF raw data'!F168) -> -1.57995e-05 | C168: =IF('DF raw data'!G168="","",'DF raw data'!G168) -> -7.17827e-06 | D168: =IF('DF raw data'!H168="","",'DF raw data'!H168) -> -5.27249e-05 | F168: 2.672049867e-06 | G168: 2.945402367e-05 | H168: -2.237226564e-06 | J168: 0.0003208233599 | K168: 0.008149585424 | L168: 0.001724031157 | M168: 0.04732185895 | N168: 5.828905003e-05
A169: =IF('DF raw data'!E169="","",'DF raw data'!E169) -> -249 | B169: =IF('DF raw data'!F169="","",'DF raw data'!F169) -> -4.65858e-06 | C169: =IF('DF raw data'!G169="","",'DF raw data'!G169) -> -7.74782e-06 | D169: =IF('DF raw data'!H169="","",'DF raw data'!H169) -> -4.1189e-05 | F169: 1.385976173e-05 | G169: 2.888208156e-05 | H169: 9.347124216e-06 | J169: 0.0003277532408 | K169: 0.008313462045 | L169: 0.001738472197 | M169: 0.04819109505 | N169: 5.985390391e-05
A170: =IF('DF raw data'!E170="","",'DF raw data'!E170) -> -248.5 | B170: =IF('DF raw data'!F170="","",'DF raw data'!F170) -> -9.71854e-06 | C170: =IF('DF raw data'!G170="","",'DF raw data'!G170) -> -1.48803e-05 | D170: =IF('DF raw data'!H170="","",'DF raw data'!H170) -> -4.40142e-05 | F170: 8.778549899e-06 | G170: 2.171964515e-05 | H170: 6.510058376e-06 | J170: 0.0003321425157 | K170: 0.008479533303 | L170: 0.00174933202 | M170: 0.04906576106 | N170: 6.143914449e-05
A171: =IF('DF raw data'!E171="","",'DF raw data'!E171) -> -248 | B171: =IF('DF raw data'!F171="","",'DF raw data'!F171) -> -5.36273e-06 | C171: =IF('DF raw data'!G171="","",'DF raw data'!G171) -> -1.44103e-05 | D171: =IF('DF raw data'!H171="","",'DF raw data'!H171) -> -4.23187e-05 | F171: 1.31526543e-05 | G171: 2.219161915e-05 | H171: 8.212679476e-06 | J171: 0.0003387188429 | K171: 0.008648892724 | L171: 0.00176042783 | M171: 0.04994597497 | N171: 6.304606279e-05
A172: =IF('DF raw data'!E172="","",'DF raw data'!E172) -> -247.5 | B172: =IF('DF raw data'!F172="","",'DF raw data'!F172) -> -1.77274e-05 | C172: =IF('DF raw data'!G172="","",'DF raw data'!G172) -> -1.483e-05 | D172: =IF('DF raw data'!H172="","",'DF raw data'!H172) -> -4.37499e-05 | F172: 7.360526867e-07 | G172: 2.177015641e-05 | H172: 6.775468436e-06 | J172: 0.0003390868692 | K172: 0.008818436159 | L172: 0.001771312908 | M172: 0.05083163143 | N172: 6.467232745e-05
A173: =IF('DF raw data'!E173="","",'DF raw data'!E173) -> -247 | B173: =IF('DF raw data'!F173="","",'DF raw data'!F173) -> -4.97105e-06 | C173: =IF('DF raw data'!G173="","",'DF raw data'!G173) -> -2.12338e-05 | D173: =IF('DF raw data'!H173="","",'DF raw data'!H173) -> -5.35344e-05 | F173: 1.354597936e-05 | G173: 1.533946045e-05 | H173: -3.050126464e-06 | J173: 0.0003458598589 | K173: 0.008991366088 | L173: 0.001778982638 | M173: 0.05172112275 | N173: 6.631452659e-05
A174: =IF('DF raw data'!E174="","",'DF raw data'!E174) -> -246.5 | B174: =IF('DF raw data'!F174="","",'DF raw data'!F174) -> 7.35282e-07 | C174: =IF('DF raw data'!G174="","",'DF raw data'!G174) -> -1.77159e-05 | D174: =IF('DF raw data'!H174="","",'DF raw data'!H174) -> -5.94813e-05 | F174: 1.927627795e-05 | G174: 1.887213563e-05 | H174: -9.022003444e-06 | J174: 0.0003554979979 | K174: 0.009169115087 | L174: 0.001788418706 | M174: 0.0526153321 | N174: 6.797693674e-05
A175: =IF('DF raw data'!E175="","",'DF raw data'!E175) -> -246 | B175: =IF('DF raw data'!F175="","",'DF raw data'!F175) -> -1.21438e-05 | C175: =IF('DF raw data'!G175="","",'DF raw data'!G175) -> -2.1316e-05 | D175: =IF('DF raw data'!H175="","",'DF raw data'!H175) -> -5.8416e-05 | F175: 6.343103807e-06 | G175: 1.525691521e-05 | H175: -7.952229184e-06 | J175: 0.0003586695498 | K175: 0.009348449862 | L175: 0.001796047163 | M175: 0.05351335568 | N175: 6.965415136e-05
A176: =IF('DF raw data'!E176="","",'DF raw data'!E176) -> -245.5 | B176: =IF('DF raw data'!F176="","",'DF raw data'!F176) -> -1.10558e-05 | C176: =IF('DF raw data'!G176="","",'DF raw data'!G176) -> -1.33985e-05 | D176: =IF('DF raw data'!H176="","",'DF raw data'!H176) -> -5.63312e-05 | F176: 7.435673407e-06 | G176: 2.320766871e-05 | H176: -5.858673024e-06 | J176: 0.0003623873865 | K176: 0.009529643555 | L176: 0.001807650998 | M176: 0.05441718118 | N176: 7.135361474e-05
A177: =IF('DF raw data'!E177="","",'DF raw data'!E177) -> -245 | B177: =IF('DF raw data'!F177="","",'DF raw data'!F177) -> -7.66238e-06 | C177: =IF('DF raw data'!G177="","",'DF raw data'!G177) -> -7.63194e-06 | D177: =IF('DF raw data'!H177="","",'DF raw data'!H177) -> -5.28172e-05 | F177: 1.084334577e-05 | G177: 2.899844826e-05 | H177: -2.329914224e-06 | J177: 0.0003678090594 | K177: 0.009713548085 | L177: 0.001822150222 | M177: 0.05532825629 | N177: 7.308137221e-05
A178: =IF('DF raw data'!E178="","",'DF raw data'!E178) -> -244.5 | B178: =IF('DF raw data'!F178="","",'DF raw data'!F178) -> -1.28549e-05 | C178: =IF('DF raw data'!G178="","",'DF raw data'!G178) -> -1.06354e-05 | D178: =IF('DF raw data'!H178="","",'DF raw data'!H178) -> -4.88844e-05 | F178: 5.629017187e-06 | G178: 2.598237373e-05 | H178: 1.619403536e-06 | J178: 0.000370623568 | K178: 0.009898859869 | L178: 0.001835141409 | M178: 0.05624582699 | N178: 7.483392512e-05
A179: =IF('DF raw data'!E179="","",'DF raw data'!E179) -> -244 | B179: =IF('DF raw data'!F179="","",'DF raw data'!F179) -> -1.72107e-05 | C179: =IF('DF raw data'!G179="","",'DF raw data'!G179) -> -1.55538e-05 | D179: =IF('DF raw data'!H179="","",'DF raw data'!H179) -> -5.00733e-05 | F179: 1.254922827e-06 | G179: 2.104331645e-05 | H179: 4.255101559e-07 | J179: 0.0003712510294 | K179: 0.01008448538 | L179: 0.001845663067 | M179: 0.05716865853 | N179: 7.660607486e-05
A180: =IF('DF raw data'!E180="","",'DF raw data'!E180) -> -243.5 | B180: =IF('DF raw data'!F180="","",'DF raw data'!F180) -> -1.82304e-05 | C180: =IF('DF raw data'!G180="","",'DF raw data'!G180) -> -2.87399e-05 | D180: =IF('DF raw data'!H180="","",'DF raw data'!H180) -> -5.87607e-05 | F180: 2.309400867e-07 | G180: 7.801834826e-06 | H180: -8.298376924e-06 | J180: 0.0003713664994 | K180: 0.01027016863 | L180: 0.001849563984 | M180: 0.05809344052 | N180: 7.838547486e-05
A181: =IF('DF raw data'!E181="","",'DF raw data'!E181) -> -243 | B181: =IF('DF raw data'!F181="","",'DF raw data'!F181) -> -1.85557e-05 | C181: =IF('DF raw data'!G181="","",'DF raw data'!G181) -> -3.25368e-05 | D181: =IF('DF raw data'!H181="","",'DF raw data'!H181) -> -5.09926e-05 | F181: -9.572617326e-08 | G181: 3.988987846e-06 | H181: -4.976509041e-07 | J181: 0.0003713186363 | K181: 0.01045582795 | L181: 0.001851558478 | M181: 0.05901921976 | N181: 8.016854803e-05
A182: =IF('DF raw data'!E182="","",'DF raw data'!E182) -> -242.5 | B182: =IF('DF raw data'!F182="","",'DF raw data'!F182) -> -1.9391e-05 | C182: =IF('DF raw data'!G182="","",'DF raw data'!G182) -> -1.78142e-05 | D182: =IF('DF raw data'!H182="","",'DF raw data'!H182) -> -4.74345e-05 | F182: -9.345344333e-07 | G182: 1.877342277e-05 | H182: 3.075393116e-06 | J182: 0.0003708513691 | K182: 0.01064125364 | L182: 0.00186094519 | M182: 0.05994969235 | N182: 8.196887189e-05
A183: =IF('DF raw data'!E183="","",'DF raw data'!E183) -> -242 | B183: =IF('DF raw data'!F183="","",'DF raw data'!F183) -> -7.34992e-06 | C183: =IF('DF raw data'!G183="","",'DF raw data'!G183) -> -1.49093e-05 | D183: =IF('DF raw data'!H183="","",'DF raw data'!H183) -> -4.08698e-05 | F183: 1.11571181e-05 | G183: 2.169052335e-05 | H183: 9.667664856e-06 | J183: 0.0003764299282 | K183: 0.0108294686 | L183: 0.001871790451 | M183: 0.06088558758 | N183: 8.379152139e-05
A184: =IF('DF raw data'!E184="","",'DF raw data'!E184) -> -241.5 | B184: =IF('DF raw data'!F184="","",'DF raw data'!F184) -> -1.1831e-05 | C184: =IF('DF raw data'!G184="","",'DF raw data'!G184) -> -1.35615e-05 | D184: =IF('DF raw data'!H184="","",'DF raw data'!H184) -> -4.69146e-05 | F184: 6.657217567e-06 | G184: 2.304398411e-05 | H184: 3.597476696e-06 | J184: 0.0003797585369 | K184: 0.01101934787 | L184: 0.001883312443 | M184: 0.0618272438 | N184: 8.563706254e-05
A185: =IF('DF raw data'!E185="","",'DF raw data'!E185) -> -241 | B185: =IF('DF raw data'!F185="","",'DF raw data'!F185) -> -6.96109e-06 | C185: =IF('DF raw data'!G185="","",'DF raw data'!G185) -> -1.73852e-05 | D185: =IF('DF raw data'!H185="","",'DF raw data'!H185) -> -4.76747e-05 | F185: 1.154758119e-05 | G185: 1.920422457e-05 | H185: 2.834184276e-06 | J185: 0.0003855323275 | K185: 0.01121211403 | L185: 0.001892914556 | M185: 0.06277370108 | N185: 8.750294288e-05
A186: =IF('DF raw data'!E186="","",'DF raw data'!E186) -> -240.5 | B186: =IF('DF raw data'!F186="","",'DF raw data'!F186) -> -9.45163e-06 | C186: =IF('DF raw data'!G186="","",'DF raw data'!G186) -> -1.66767e-05 | D186: =IF('DF raw data'!H186="","",'DF raw data'!H186) -> -6.04054e-05 | F186: 9.046580921e-06 | G186: 1.991570027e-05 | H186: -9.949984664e-06 | J186: 0.000390055618 | K186: 0.01140714184 | L186: 0.001902872406 | M186: 0.06372513728 | N186: 8.938947627e-05
A187: =IF('DF raw data'!E187="","",'DF raw data'!E187) -> -240 | B187: =IF('DF raw data'!F187="","",'DF raw data'!F187) -> -9.39175e-06 | C187: =IF('DF raw data'!G187="","",'DF raw data'!G187) -> -1.32288e-05 | D187: =IF('DF raw data'!H187="","",'DF raw data'!H187) -> -5.3761e-05 | F187: 9.106712417e-06 | G187: 2.337808145e-05 | H187: -3.277678184e-06 | J187: 0.0003946089742 | K187: 0.01160444633 | L187: 0.001914561446 | M187: 0.064682418 | N187: 9.130010716e-05
A188: =IF('DF raw data'!E188="","",'DF raw data'!E188) -> -239.5 | B188: =IF('DF raw data'!F188="","",'DF raw data'!F188) -> -1.08053e-05 | C188: =IF('DF raw data'!G188="","",'DF raw data'!G188) -> -1.28029e-05 | D188: =IF('DF raw data'!H188="","",'DF raw data'!H188) -> -4.7571e-05 | F188: 7.687225507e-06 | G188: 2.380577023e-05 | H188: 2.938319816e-06 | J188: 0.000398452587 | K188: 0.01180367262 | L188: 0.001926464332 | M188: 0.06564565017 | N188: 9.32351218e-05
A189: =IF('DF raw data'!E189="","",'DF raw data'!E189) -> -239 | B189: =IF('DF raw data'!F189="","",'DF raw data'!F189) -> -1.13875e-05 | C189: =IF('DF raw data'!G189="","",'DF raw data'!G189) -> -1.08934e-05 | D189: =IF('DF raw data'!H189="","",'DF raw data'!H189) -> -3.91678e-05 | F189: 7.102580267e-06 | G189: 2.572329013e-05 | H189: 1.137681326e-05 | J189: 0.0004020038771 | K189: 0.01200467456 | L189: 0.001939325977 | M189: 0.06661531316 | N189: 9.519641798e-05
A190: =IF('DF raw data'!E190="","",'DF raw data'!E190) -> -238.5 | B190: =IF('DF raw data'!F190="","",'DF raw data'!F190) -> -8.75206e-06 | C190: =IF('DF raw data'!G190="","",'DF raw data'!G190) -> -1.97757e-05 | D190: =IF('DF raw data'!H190="","",'DF raw data'!H190) -> -5.22207e-05 | F190: 9.749089115e-06 | G190: 1.680368447e-05 | H190: -1.730908924e-06 | J190: 0.0004068784217 | K190: 0.01220811377 | L190: 0.001947727819 | M190: 0.06758917707 | N190: 9.717601484e-05
A191: =IF('DF raw data'!E191="","",'DF raw data'!E191) -> -238 | B191: =IF('DF raw data'!F191="","",'DF raw data'!F191) -> -9.39493e-06 | C191: =IF('DF raw data'!G191="","",'DF raw data'!G191) -> -1.98503e-05 | D191: =IF('DF raw data'!H191="","",'DF raw data'!H191) -> -4.88424e-05 | F191: 9.103519061e-06 | G191: 1.672877115e-05 | H191: 1.661579936e-06 | J191: 0.0004114301812 | K191: 0.01241382886 | L191: 0.001956092204 | M191: 0.06856722317 | N191: 9.917380059e-05
A192: =IF('DF raw data'!E192="","",'DF raw data'!E192) -> -237.5 | B192: =IF('DF raw data'!F192="","",'DF raw data'!F192) -> -2.13794e-05 | C192: =IF('DF raw data'!G192="","",'DF raw data'!G192) -> -1.70072e-05 | D192: =IF('DF raw data'!H192="","",'DF raw data'!H192) -> -4.41034e-05 | F192: -2.931285713e-06 | G192: 1.958381217e-05 | H192: 6.420483736e-06 | J192: 0.0004099645383 | K192: 0.01261881113 | L192: 0.001965884111 | M192: 0.06955016523 | N192: 0.0001011901862
A193: =IF('DF raw data'!E193="","",'DF raw data'!E193) -> -237 | B193: =IF('DF raw data'!F193="","",'DF raw data'!F193) -> -1.15791e-05 | C193: =IF('DF raw data'!G193="","",'DF raw data'!G193) -> -1.21625e-05 | D193: =IF('DF raw data'!H193="","",'DF raw data'!H193) -> -3.97645e-05 | F193: 6.910175547e-06 | G193: 2.444885991e-05 | H193: 1.077760712e-05 | J193: 0.0004134196261 | K193: 0.01282552094 | L193: 0.001978108541 | M193: 0.0705392195 | N193: 0.0001032321008
A194: =IF('DF raw data'!E194="","",'DF raw data'!E194) -> -236.5 | B194: =IF('DF raw data'!F194="","",'DF raw data'!F194) -> -2.01637e-05 | C194: =IF('DF raw data'!G194="","",'DF raw data'!G194) -> -1.19448e-05 | D194: =IF('DF raw data'!H194="","",'DF raw data'!H194) -> -4.15349e-05 | F194: -1.710479773e-06 | G194: 2.466747425e-05 | H194: 8.999771436e-06 | J194: 0.0004125643862 | K194: 0.01303180314 | L194: 0.001990442278 | M194: 0.07153444063 | N194: 0.0001052981357
A195: =IF('DF raw data'!E195="","",'DF raw data'!E195) -> -236 | B195: =IF('DF raw data'!F195="","",'DF raw data'!F195) -> -1.04845e-05 | C195: =IF('DF raw data'!G195="","",'DF raw data'!G195) -> -2.42457e-05 | D195: =IF('DF raw data'!H195="","",'DF raw data'!H195) -> -4.83948e-05 | F195: =(1-$G$1*($B$54-$G$2))*(B195-F$5) -> 8.009372867e-06 | G195: =(1-$G$1*($B$54-$G$2))*(C195-G$5) -> 1.231491047e-05 | H195: =(1-$G$1*($B$54-$G$2))*(D195-H$5) -> 2.111059856e-06 | J195: 0.0004165690726 | K195: 0.01324008767 | L195: 0.001996599733 | M195: 0.0725327405 | N195: 0.0001073781059
A196: =IF('DF raw data'!E196="","",'DF raw data'!E196) -> -235.5 | B196: =IF('DF raw data'!F196="","",'DF raw data'!F196) -> -8.62487e-06 | C196: =IF('DF raw data'!G196="","",'DF raw data'!G196) -> -2.64561e-05 | D196: =IF('DF raw data'!H196="","",'DF raw data'!H196) -> -5.07564e-05 | F196: 9.876813313e-06 | G196: 1.009522679e-05 | H196: -2.604588641e-07 | J196: =F196*$G$3+J195 -> 0.0004215074793 | K196: =J196*$G$3+K195 -> 0.01345084141 | L196: =G196*$G$3+L195 -> 0.002001647346 | M196: =L196*$G$3+M195 -> 0.07353356417 | N196: =(J196^2+L196^2)*$G$3+N195 -> 0.0001094702362
A197: =IF('DF raw data'!E197="","",'DF raw data'!E197) -> -235 | B197: =IF('DF raw data'!F197="","",'DF raw data'!F197) -> -1.68248e-05 | C197: =IF('DF raw data'!G197="","",'DF raw data'!G197) -> -1.71774e-05 | D197: =IF('DF raw data'!H197="","",'DF raw data'!H197) -> -5.23976e-05 | F197: 1.642443607e-06 | G197: 1.941289733e-05 | H197: -1.908551904e-06 | J197: 0.0004223287011 | K197: 0.01366200576 | L197: 0.002011353795 | M197: 0.07453924107 | N197: 0.000111582189
A198: =IF('DF raw data'!E198="","",'DF raw data'!E198) -> -234.5 | B198: =IF('DF raw data'!F198="","",'DF raw data'!F198) -> -1.48416e-05 | C198: =IF('DF raw data'!G198="","",'DF raw data'!G198) -> -1.01728e-05 | D198: =IF('DF raw data'!H198="","",'DF raw data'!H198) -> -4.76796e-05 | F198: 3.633973047e-06 | G198: 2.644691665e-05 | H198: 2.829263696e-06 | J198: 0.0004241456876 | K198: 0.01387407861 | L198: 0.002024577253 | M198: 0.0755515297 | N198: 0.0001137215953
A199: =IF('DF raw data'!E199="","",'DF raw data'!E199) -> -234 | B199: =IF('DF raw data'!F199="","",'DF raw data'!F199) -> -1.95814e-05 | C199: =IF('DF raw data'!G199="","",'DF raw data'!G199) -> -1.24548e-05 | D199: =IF('DF raw data'!H199="","",'DF raw data'!H199) -> -5.00143e-05 | F199: -1.125734113e-06 | G199: 2.415533225e-05 | H199: 4.847579559e-07 | J199: 0.0004235828206 | K199: 0.01408587002 | L199: 0.002036654919 | M199: 0.07656985716 | N199: 0.0001158852882
A200: =IF('DF raw data'!E200="","",'DF raw data'!E200) -> -233.5 | B200: =IF('DF raw data'!F200="","",'DF raw data'!F200) -> -1.19561e-05 | C200: =IF('DF raw data'!G200="","",'DF raw data'!G200) -> -1.25431e-05 | D200: =IF('DF raw data'!H200="","",'DF raw data'!H200) -> -5.17001e-05 | F200: 6.531592147e-06 | G200: 2.406666139e-05 | H200: -1.208122404e-06 | J200: 0.0004268486166 | K200: 0.01429929433 | L200: 0.00204868825 | M200: 0.07759420128 | N200: 0.0001180749498
... 1079 more rows

Sheet 20 mm
A1: =IF('DF raw data'!I1="","",'DF raw data'!I1) -> Number of header lines | B1: =IF('DF raw data'!J1="","",'DF raw data'!J1) -> 54 | C1: =IF('DF raw data'!C1="","",'DF raw data'!C1) ->  | D1: =IF('DF raw data'!D1="","",'DF raw data'!D1) ->  | F1: T_coeff | G1: -0.001 | H1: /degC | J1: IBy total | K1: =J1267*1000 -> -4.094403082 | L1: muTm | M1: =L1267*1000 -> -26.29175037 | R1: DF ref | S1: 1
A2: =IF('DF raw data'!I2="","",'DF raw data'!I2) -> Measured by | B2: =IF('DF raw data'!J2="","",'DF raw data'!J2) -> Danfysik | C2: =IF('DF raw data'!C2="","",'DF raw data'!C2) ->  | D2: =IF('DF raw data'!D2="","",'DF raw data'!D2) ->  | F2: Tcorr | G2: 20 | H2: degC | J2: JBy total | K2: =K1267 -> -7.828062958 | L2: muTm^2 | M2: =M1267 -> -8.497626137
A3: =IF('DF raw data'!I3="","",'DF raw data'!I3) -> Operator | B3: =IF('DF raw data'!J3="","",'DF raw data'!J3) -> PMHA | C3: =IF('DF raw data'!C3="","",'DF raw data'!C3) ->  | D3: =IF('DF raw data'!D3="","",'DF raw data'!D3) ->  | F3: Step | G3: =A68-A67 -> 0.5 | H3: mm | J3: PI total | K3: =N1267 -> 4952.563365 | L3: T^2mm^3
A4: =IF('DF raw data'!I4="","",'DF raw data'!I4) -> Data-time | B4: =IF('DF raw data'!J4="","",'DF raw data'!J4) -> 01-10-2024, 22:40:20 | C4: =IF('DF raw data'!C4="","",'DF raw data'!C4) ->  | D4: =IF('DF raw data'!D4="","",'DF raw data'!D4) -> 
A5: =IF('DF raw data'!I5="","",'DF raw data'!I5) -> Project | B5: =IF('DF raw data'!J5="","",'DF raw data'!J5) -> 504314 | C5: =IF('DF raw data'!C5="","",'DF raw data'!C5) ->  | D5: Bamb avr | F5: =(AVERAGE(B67:B107) + AVERAGE(B1227:B1267))/2 -> -1.517881704e-05 | G5: =(AVERAGE(C67:C107) + AVERAGE(C1227:C1267))/2 -> 9.558682927e-05 | H5: =(AVERAGE(D67:D107) + AVERAGE(D1227:D1267))/2 -> -4.281260244e-05
A6: =IF('DF raw data'!I6="","",'DF raw data'!I6) -> Magnet type | B6: =IF('DF raw data'!J6="","",'DF raw data'!J6) -> Dipole | C6: =IF('DF raw data'!C6="","",'DF raw data'!C6) -> 
A7: =IF('DF raw data'!I7="","",'DF raw data'!I7) -> Magnet nr. | B7: =IF('DF raw data'!J7="","",'DF raw data'!J7) -> 2410108 | C7: =IF('DF raw data'!C7="","",'DF raw data'!C7) -> 
A8: =IF('DF raw data'!I8="","",'DF raw data'!I8) -> Meas. number | B8: =IF('DF raw data'!J8="","",'DF raw data'!J8) -> 927 | C8: =IF('DF raw data'!C8="","",'DF raw data'!C8) -> 
A9: =IF('DF raw data'!I9="","",'DF raw data'!I9) -> Add. info | B9: =IF('DF raw data'!J9="","",'DF raw data'!J9) ->  | C9: =IF('DF raw data'!C9="","",'DF raw data'!C9) ->  | D9: =IF('DF raw data'!D9="","",'DF raw data'!D9) -> 
A10: =IF('DF raw data'!I10="","",'DF raw data'!I10) -> Device | B10: =IF('DF raw data'!J10="","",'DF raw data'!J10) -> (HAL) HALL-PROBE | C10: =IF('DF raw data'!C10="","",'DF raw data'!C10) ->  | D10: =IF('DF raw data'!D10="","",'DF raw data'!D10) -> 
A11: =IF('DF raw data'!I11="","",'DF raw data'!I11) -> Goal | B11: =IF('DF raw data'!J11="","",'DF raw data'!J11) -> (AXI) AXis Integral (Line, EFB) | C11: =IF('DF raw data'!C11="","",'DF raw data'!C11) ->  | D11: =IF('DF raw data'!D11="","",'DF raw data'!D11) -> 
A12: =IF('DF raw data'!I12="","",'DF raw data'!I12) -> Power supply mode | B12: =IF('DF raw data'!J12="","",'DF raw data'!J12) -> (PM) Permanent Magnet (no MPS in use) | C12: =IF('DF raw data'!C12="","",'DF raw data'!C12) ->  | D12: =IF('DF raw data'!D12="","",'DF raw data'!D12) -> 
A13: =IF('DF raw data'!I13="","",'DF raw data'!I13) -> Data format | B13: =IF('DF raw data'!J13="","",'DF raw data'!J13) -> Raw data text file | C13: =IF('DF raw data'!C13="","",'DF raw data'!C13) ->  | D13: =IF('DF raw data'!D13="","",'DF raw data'!D13) -> 
A14: =IF('DF raw data'!I14="","",'DF raw data'!I14) -> Direction of the pos. x-axis | B14: =IF('DF raw data'!J14="","",'DF raw data'!J14) -> See test program | C14: =IF('DF raw data'!C14="","",'DF raw data'!C14) ->  | D14: =IF('DF raw data'!D14="","",'DF raw data'!D14) -> 
A15: =IF('DF raw data'!I15="","",'DF raw data'!I15) -> Direction of the pos. y-axis | B15: =IF('DF raw data'!J15="","",'DF raw data'!J15) -> Vertical up | C15: =IF('DF raw data'!C15="","",'DF raw data'!C15) ->  | D15: =IF('DF raw data'!D15="","",'DF raw data'!D15) -> 
A16: =IF('DF raw data'!I16="","",'DF raw data'!I16) -> Direction of the pos. z-axis | B16: =IF('DF raw data'!J16="","",'DF raw data'!J16) -> See test program | C16: =IF('DF raw data'!C16="","",'DF raw data'!C16) ->  | D16: =IF('DF raw data'!D16="","",'DF raw data'!D16) -> 
A17: =IF('DF raw data'!I17="","",'DF raw data'!I17) -> Mapper type | B17: =IF('DF raw data'!J17="","",'DF raw data'!J17) -> Precision Hall Mapper | C17: =IF('DF raw data'!C17="","",'DF raw data'!C17) ->  | D17: =IF('DF raw data'!D17="","",'DF raw data'!D17) -> 
A18: =IF('DF raw data'!I18="","",'DF raw data'!I18) -> Mapper Danfysik Reg. Number | B18: =IF('DF raw data'!J18="","",'DF raw data'!J18) -> 2033-D (mapper 1) | C18: =IF('DF raw data'!C18="","",'DF raw data'!C18) ->  | D18: =IF('DF raw data'!D18="","",'DF raw data'!D18) -> 
A19: =IF('DF raw data'!I19="","",'DF raw data'!I19) -> Measurement consept | B19: =IF('DF raw data'!J19="","",'DF raw data'!J19) -> Square line grid | C19: =IF('DF raw data'!C19="","",'DF raw data'!C19) ->  | D19: =IF('DF raw data'!D19="","",'DF raw data'!D19) -> 
A20: =IF('DF raw data'!I20="","",'DF raw data'!I20) -> Mode | B20: =IF('DF raw data'!J20="","",'DF raw data'!J20) -> On-the-fly measurement | C20: =IF('DF raw data'!C20="","",'DF raw data'!C20) ->  | D20: =IF('DF raw data'!D20="","",'DF raw data'!D20) -> 
A21: =IF('DF raw data'!I21="","",'DF raw data'!I21) ->  | B21: =IF('DF raw data'!J21="","",'DF raw data'!J21) ->  | C21: =IF('DF raw data'!C21="","",'DF raw data'!C21) ->  | D21: =IF('DF raw data'!D21="","",'DF raw data'!D21) -> 
A22: =IF('DF raw data'!I22="","",'DF raw data'!I22) -> Probe Name | B22: =IF('DF raw data'!J22="","",'DF raw data'!J22) -> ID12_By | C22: =IF('DF raw data'!C22="","",'DF raw data'!C22) ->  | D22: =IF('DF raw data'!D22="","",'DF raw data'!D22) -> 
A23: =IF('DF raw data'!I23="","",'DF raw data'!I23) -> Probe Type | B23: =IF('DF raw data'!J23="","",'DF raw data'!J23) -> DF_ID_3D_Bxyz | C23: =IF('DF raw data'!C23="","",'DF raw data'!C23) ->  | D23: =IF('DF raw data'!D23="","",'DF raw data'!D23) -> 
A24: =IF('DF raw data'!I24="","",'DF raw data'!I24) -> Probe Danfysik Reg. Number | B24: =IF('DF raw data'!J24="","",'DF raw data'!J24) -> 2277 | C24: =IF('DF raw data'!C24="","",'DF raw data'!C24) ->  | D24: =IF('DF raw data'!D24="","",'DF raw data'!D24) -> 
A25: =IF('DF raw data'!I25="","",'DF raw data'!I25) -> Probe Axis | B25: =IF('DF raw data'!J25="","",'DF raw data'!J25) -> By | C25: =IF('DF raw data'!C25="","",'DF raw data'!C25) ->  | D25: =IF('DF raw data'!D25="","",'DF raw data'!D25) -> 
A26: =IF('DF raw data'!I26="","",'DF raw data'!I26) -> Probe Current Supply | B26: =IF('DF raw data'!J26="","",'DF raw data'!J26) -> 1825-D | C26: =IF('DF raw data'!C26="","",'DF raw data'!C26) ->  | D26: =IF('DF raw data'!D26="","",'DF raw data'!D26) -> 
A27: =IF('DF raw data'!I27="","",'DF raw data'!I27) -> Probe Gain Correction | B27: =IF('DF raw data'!J27="","",'DF raw data'!J27) -> 0.99614 | C27: =IF('DF raw data'!C27="","",'DF raw data'!C27) ->  | D27: =IF('DF raw data'!D27="","",'DF raw data'!D27) -> 
A28: =IF('DF raw data'!I28="","",'DF raw data'!I28) -> Probe Offset Correction | B28: =IF('DF raw data'!J28="","",'DF raw data'!J28) -> 0.0027502 | C28: =IF('DF raw data'!C28="","",'DF raw data'!C28) ->  | D28: =IF('DF raw data'!D28="","",'DF raw data'!D28) -> 
A29: =IF('DF raw data'!I29="","",'DF raw data'!I29) -> DVM Number | B29: =IF('DF raw data'!J29="","",'DF raw data'!J29) -> 2 | C29: =IF('DF raw data'!C29="","",'DF raw data'!C29) ->  | D29: =IF('DF raw data'!D29="","",'DF raw data'!D29) -> 
A30: =IF('DF raw data'!I30="","",'DF raw data'!I30) -> DVM Type | B30: =IF('DF raw data'!J30="","",'DF raw data'!J30) -> K2701 | C30: =IF('DF raw data'!C30="","",'DF raw data'!C30) ->  | D30: =IF('DF raw data'!D30="","",'DF raw data'!D30) -> 
A31: =IF('DF raw data'!I31="","",'DF raw data'!I31) -> DVM Danfysik Reg. Number | B31: =IF('DF raw data'!J31="","",'DF raw data'!J31) -> 1743-D | C31: =IF('DF raw data'!C31="","",'DF raw data'!C31) ->  | D31: =IF('DF raw data'!D31="","",'DF raw data'!D31) -> 
A32: =IF('DF raw data'!I32="","",'DF raw data'!I32) -> Probe Name | B32: =IF('DF raw data'!J32="","",'DF raw data'!J32) -> ID12_Bx | C32: =IF('DF raw data'!C32="","",'DF raw data'!C32) ->  | D32: =IF('DF raw data'!D32="","",'DF raw data'!D32) -> 
A33: =IF('DF raw data'!I33="","",'DF raw data'!I33) -> Probe Type | B33: =IF('DF raw data'!J33="","",'DF raw data'!J33) -> DF_ID_3D_Bxyz | C33: =IF('DF raw data'!C33="","",'DF raw data'!C33) ->  | D33: =IF('DF raw data'!D33="","",'DF raw data'!D33) -> 
A34: =IF('DF raw data'!I34="","",'DF raw data'!I34) -> Probe Danfysik Reg. Number | B34: =IF('DF raw data'!J34="","",'DF raw data'!J34) -> 2277 | C34: =IF('DF raw data'!C34="","",'DF raw data'!C34) ->  | D34: =IF('DF raw data'!D34="","",'DF raw data'!D34) -> 
A35: =IF('DF raw data'!I35="","",'DF raw data'!I35) -> Probe Axis | B35: =IF('DF raw data'!J35="","",'DF raw data'!J35) -> Bx | C35: =IF('DF raw data'!C35="","",'DF raw data'!C35) ->  | D35: =IF('DF raw data'!D35="","",'DF raw data'!D35) -> 
A36: =IF('DF raw data'!I36="","",'DF raw data'!I36) -> Probe Current Supply | B36: =IF('DF raw data'!J36="","",'DF raw data'!J36) -> 1825-D | C36: =IF('DF raw data'!C36="","",'DF raw data'!C36) ->  | D36: =IF('DF raw data'!D36="","",'DF raw data'!D36) -> 
A37: =IF('DF raw data'!I37="","",'DF raw data'!I37) -> Probe Gain Correction | B37: =IF('DF raw data'!J37="","",'DF raw data'!J37) -> 1 | C37: =IF('DF raw data'!C37="","",'DF raw data'!C37) ->  | D37: =IF('DF raw data'!D37="","",'DF raw data'!D37) -> 
A38: =IF('DF raw data'!I38="","",'DF raw data'!I38) -> Probe Offset Correction | B38: =IF('DF raw data'!J38="","",'DF raw data'!J38) -> -0.1755 | C38: =IF('DF raw data'!C38="","",'DF raw data'!C38) ->  | D38: =IF('DF raw data'!D38="","",'DF raw data'!D38) -> 
A39: =IF('DF raw data'!I39="","",'DF raw data'!I39) -> DVM Number | B39: =IF('DF raw data'!J39="","",'DF raw data'!J39) -> 3 | C39: =IF('DF raw data'!C39="","",'DF raw data'!C39) ->  | D39: =IF('DF raw data'!D39="","",'DF raw data'!D39) -> 
A40: =IF('DF raw data'!I40="","",'DF raw data'!I40) -> DVM Type | B40: =IF('DF raw data'!J40="","",'DF raw data'!J40) -> K2701 | C40: =IF('DF raw data'!C40="","",'DF raw data'!C40) ->  | D40: =IF('DF raw data'!D40="","",'DF raw data'!D40) -> 
A41: =IF('DF raw data'!I41="","",'DF raw data'!I41) -> DVM Danfysik Reg. Number | B41: =IF('DF raw data'!J41="","",'DF raw data'!J41) -> 1744-D | C41: =IF('DF raw data'!C41="","",'DF raw data'!C41) ->  | D41: =IF('DF raw data'!D41="","",'DF raw data'!D41) -> 
A42: =IF('DF raw data'!I42="","",'DF raw data'!I42) -> Probe Name | B42: =IF('DF raw data'!J42="","",'DF raw data'!J42) -> ID12_Bz | C42: =IF('DF raw data'!C42="","",'DF raw data'!C42) ->  | D42: =IF('DF raw data'!D42="","",'DF raw data'!D42) -> 
A43: =IF('DF raw data'!I43="","",'DF raw data'!I43) -> Probe Type | B43: =IF('DF raw data'!J43="","",'DF raw data'!J43) -> DF_ID_3D_Bxyz | C43: =IF('DF raw data'!C43="","",'DF raw data'!C43) ->  | D43: =IF('DF raw data'!D43="","",'DF raw data'!D43) -> 
A44: =IF('DF raw data'!I44="","",'DF raw data'!I44) -> Probe Danfysik Reg. Number | B44: =IF('DF raw data'!J44="","",'DF raw data'!J44) -> 2277 | C44: =IF('DF raw data'!C44="","",'DF raw data'!C44) ->  | D44: =IF('DF raw data'!D44="","",'DF raw data'!D44) -> 
A45: =IF('DF raw data'!I45="","",'DF raw data'!I45) -> Probe Axis | B45: =IF('DF raw data'!J45="","",'DF raw data'!J45) -> Bz | C45: =IF('DF raw data'!C45="","",'DF raw data'!C45) ->  | D45: =IF('DF raw data'!D45="","",'DF raw data'!D45) -> 
A46: =IF('DF raw data'!I46="","",'DF raw data'!I46) -> Probe Current Supply | B46: =IF('DF raw data'!J46="","",'DF raw data'!J46) -> 1825-D | C46: =IF('DF raw data'!C46="","",'DF raw data'!C46) ->  | D46: =IF('DF raw data'!D46="","",'DF raw data'!D46) -> 
A47: =IF('DF raw data'!I47="","",'DF raw data'!I47) -> Probe Gain Correction | B47: =IF('DF raw data'!J47="","",'DF raw data'!J47) -> 1 | C47: =IF('DF raw data'!C47="","",'DF raw data'!C47) ->  | D47: =IF('DF raw data'!D47="","",'DF raw data'!D47) -> 
A48: =IF('DF raw data'!I48="","",'DF raw data'!I48) -> Probe Offset Correction | B48: =IF('DF raw data'!J48="","",'DF raw data'!J48) -> 0.0073192 | C48: =IF('DF raw data'!C48="","",'DF raw data'!C48) ->  | D48: =IF('DF raw data'!D48="","",'DF raw data'!D48) -> 
A49: =IF('DF raw data'!I49="","",'DF raw data'!I49) -> DVM Number | B49: =IF('DF raw data'!J49="","",'DF raw data'!J49) -> 8 | C49: =IF('DF raw data'!C49="","",'DF raw data'!C49) ->  | D49: =IF('DF raw data'!D49="","",'DF raw data'!D49) -> 
A50: =IF('DF raw data'!I50="","",'DF raw data'!I50) -> DVM Type | B50: =IF('DF raw data'!J50="","",'DF raw data'!J50) -> K2700 | C50: =IF('DF raw data'!C50="","",'DF raw data'!C50) ->  | D50: =IF('DF raw data'!D50="","",'DF raw data'!D50) -> 
A51: =IF('DF raw data'!I51="","",'DF raw data'!I51) -> DVM Danfysik Reg. Number | B51: =IF('DF raw data'!J51="","",'DF raw data'!J51) -> 1756-D | C51: =IF('DF raw data'!C51="","",'DF raw data'!C51) ->  | D51: =IF('DF raw data'!D51="","",'DF raw data'!D51) -> 
A52: =IF('DF raw data'!I52="","",'DF raw data'!I52) -> NTC voltage | B52: =IF('DF raw data'!J52="","",'DF raw data'!J52) -> 0.42026 | C52: =IF('DF raw data'!C52="","",'DF raw data'!C52) ->  | D52: =IF('DF raw data'!D52="","",'DF raw data'!D52) -> 
A53: =IF('DF raw data'!I53="","",'DF raw data'!I53) -> PS-Gap: | B53: =IF('DF raw data'!J53="","",'DF raw data'!J53) -> 20 | C53: =IF('DF raw data'!C53="","",'DF raw data'!C53) ->  | D53: =IF('DF raw data'!D53="","",'DF raw data'!D53) -> 
A54: =IF('DF raw data'!I54="","",'DF raw data'!I54) -> PS-Temperature: | B54: =IF('DF raw data'!J54="","",'DF raw data'!J54) -> 24.2 | C54: =IF('DF raw data'!C54="","",'DF raw data'!C54) ->  | D54: =IF('DF raw data'!D54="","",'DF raw data'!D54) -> 
A55: =IF('DF raw data'!I55="","",'DF raw data'!I55) -> PS-Encoder: | B55: =IF('DF raw data'!J55="","",'DF raw data'!J55) -> 29.7553 | C55: =IF('DF raw data'!C55="","",'DF raw data'!C55) ->  | D55: =IF('DF raw data'!D55="","",'DF raw data'!D55) -> 
A56: =IF('DF raw data'!I56="","",'DF raw data'!I56) ->  | B56: =IF('DF raw data'!J56="","",'DF raw data'!J56) -> 
A57: =IF('DF raw data'!I57="","",'DF raw data'!I57) -> Monitor-Index | B57: =IF('DF raw data'!J57="","",'DF raw data'!J57) -> [1,1,4]
A58: =IF('DF raw data'!I58="","",'DF raw data'!I58) ->  | B58: =IF('DF raw data'!J58="","",'DF raw data'!J58) -> 
A59: =IF('DF raw data'!I59="","",'DF raw data'!I59) -> Time [s] | B59: =IF('DF raw data'!J59="","",'DF raw data'!J59) -> Y [mm]
A60: =IF('DF raw data'!I60="","",'DF raw data'!I60) ->  | B60: =IF('DF raw data'!J60="","",'DF raw data'!J60) -> 
A61: =IF('DF raw data'!I61="","",'DF raw data'!I61) -> 207.5 | B61: =IF('DF raw data'!J61="","",'DF raw data'!J61) -> 31.38
A62: =IF('DF raw data'!I62="","",'DF raw data'!I62) ->  | B62: =IF('DF raw data'!J62="","",'DF raw data'!J62) -> 
A63: =IF('DF raw data'!I63="","",'DF raw data'!I63) -> Measurement-Index | B63: =IF('DF raw data'!J63="","",'DF raw data'!J63) -> [1,1,1201,2]
A64: =IF('DF raw data'!I64="","",'DF raw data'!I64) ->  | B64: =IF('DF raw data'!J64="","",'DF raw data'!J64) -> 
A65: =IF('DF raw data'!I65="","",'DF raw data'!I65) -> Z [mm] | B65: =IF('DF raw data'!J65="","",'DF raw data'!J65) -> By [T] | C65: =IF('DF raw data'!K65="","",'DF raw data'!K65) -> Bx [T] | D65: =IF('DF raw data'!L65="","",'DF raw data'!L65) -> Bz [T] | F65: By_corr | G65: Bx_corr | H65: Bz_corr | J65: Iy | K65: Jy | L65: Ix | M65: Jx | N65: PI
A66: =IF('DF raw data'!I66="","",'DF raw data'!I66) -> [1, 0, 0, 0] | B66: =IF('DF raw data'!J66="","",'DF raw data'!J66) ->  | C66: =IF('DF raw data'!K66="","",'DF raw data'!K66) ->  | D66: =IF('DF raw data'!L66="","",'DF raw data'!L66) -> 
A67: =IF('DF raw data'!I67="","",'DF raw data'!I67) -> -300 | B67: =IF('DF raw data'!J67="","",'DF raw data'!J67) -> 3.40438e-06 | C67: =IF('DF raw data'!K67="","",'DF raw data'!K67) -> 0.000100126 | D67: =IF('DF raw data'!L67="","",'DF raw data'!L67) -> -4.23785e-05 | F67: =(1-$G$1*($B$54-$G$2))*(B67-F$5) -> 1.866124646e-05 | G67: =(1-$G$1*($B$54-$G$2))*(C67-G$5) -> 4.558235249e-06 | H67: =(1-$G$1*($B$54-$G$2))*(D67-H$5) -> 4.359256693e-07 | J67: =F67*$G$3+J66 -> 9.330623232e-06 | K67: =J67*$G$3+K66 -> 4.665311616e-06 | L67: =G67*$G$3+L66 -> 2.279117624e-06 | M67: =L67*$G$3+M66 -> 1.139558812e-06 | N67: =(J67^2+L67^2)*$G$3+N66 -> 4.612745352e-11
A68: =IF('DF raw data'!I68="","",'DF raw data'!I68) -> -299.5 | B68: =IF('DF raw data'!J68="","",'DF raw data'!J68) -> -2.16989e-06 | C68: =IF('DF raw data'!K68="","",'DF raw data'!K68) -> 0.000108706 | D68: =IF('DF raw data'!L68="","",'DF raw data'!L68) -> -4.21949e-05 | F68: 1.306356453e-05 | G68: 1.317427125e-05 | H68: 6.202967893e-07 | J68: =F68*$G$3+J67 -> 1.58624055e-05 | K68: =J68*$G$3+K67 -> 1.259651436e-05 | L68: =G68*$G$3+L67 -> 8.866253249e-06 | M68: =L68*$G$3+M67 -> 5.572685437e-06 | N68: =(J68^2+L68^2)*$G$3+N67 -> 2.112406309e-10
A69: =IF('DF raw data'!I69="","",'DF raw data'!I69) -> -299 | B69: =IF('DF raw data'!J69="","",'DF raw data'!J69) -> -1.02428e-05 | C69: =IF('DF raw data'!K69="","",'DF raw data'!K69) -> 0.000112683 | D69: =IF('DF raw data'!L69="","",'DF raw data'!L69) -> -4.16972e-05 | F69: 4.956748308e-06 | G69: 1.716797465e-05 | H69: 1.120087129e-06 | J69: 1.834077965e-05 | K69: 2.176690419e-05 | L69: 1.745024057e-05 | M69: 1.429780572e-05 | N69: 5.316881781e-10
A70: =IF('DF raw data'!I70="","",'DF raw data'!I70) -> -298.5 | B70: =IF('DF raw data'!J70="","",'DF raw data'!J70) -> -1.06276e-05 | C70: =IF('DF raw data'!K70="","",'DF raw data'!K70) -> 0.000107197 | D70: =IF('DF raw data'!L70="","",'DF raw data'!L70) -> -4.11494e-05 | F70: 4.570332148e-06 | G70: 1.165893345e-05 | H70: 1.670187889e-06 | J70: 2.062594573e-05 | K70: 3.207987705e-05 | L70: 2.32797073e-05 | M70: 2.593765937e-05 | N70: 1.015375383e-09
A71: =IF('DF raw data'!I71="","",'DF raw data'!I71) -> -298 | B71: =IF('DF raw data'!J71="","",'DF raw data'!J71) -> -1.27421e-05 | C71: =IF('DF raw data'!K71="","",'DF raw data'!K71) -> 0.000100957 | D71: =IF('DF raw data'!L71="","",'DF raw data'!L71) -> -4.07542e-05 | F71: 2.446951248e-06 | G71: 5.392725449e-06 | H71: 2.067047729e-06 | J71: 2.184942135e-05 | K71: 4.300458773e-05 | L71: 2.597607002e-05 | M71: 3.892569438e-05 | N71: 1.591452096e-09
A72: =IF('DF raw data'!I72="","",'DF raw data'!I72) -> -297.5 | B72: =IF('DF raw data'!J72="","",'DF raw data'!J72) -> -1.36392e-05 | C72: =IF('DF raw data'!K72="","",'DF raw data'!K72) -> 9.7738e-05 | D72: =IF('DF raw data'!L72="","",'DF raw data'!L72) -> -4.04665e-05 | F72: 1.546083428e-06 | G72: 2.160205649e-06 | H72: 2.355956069e-06 | J72: 2.262246306e-05 | K72: 5.431581926e-05 | L72: 2.705617285e-05 | M72: 5.245378081e-05 | N72: 2.213358258e-09
A73: =IF('DF raw data'!I73="","",'DF raw data'!I73) -> -297 | B73: =IF('DF raw data'!J73="","",'DF raw data'!J73) -> -1.33831e-05 | C73: =IF('DF raw data'!K73="","",'DF raw data'!K73) -> 0.000111668 | D73: =IF('DF raw data'!L73="","",'DF raw data'!L73) -> -4.03132e-05 | F73: 1.803259048e-06 | G73: 1.614871165e-05 | H73: 2.509899929e-06 | J73: 2.352409259e-05 | K73: 6.607786555e-05 | L73: 3.513052867e-05 | M73: 7.001904514e-05 | N73: 3.107126747e-09
A74: =IF('DF raw data'!I74="","",'DF raw data'!I74) -> -296.5 | B74: =IF('DF raw data'!J74="","",'DF raw data'!J74) -> -1.10767e-05 | C74: =IF('DF raw data'!K74="","",'DF raw data'!K74) -> 0.000111333 | D74: =IF('DF raw data'!L74="","",'DF raw data'!L74) -> -4.03468e-05 | F74: 4.119345928e-06 | G74: 1.581230465e-05 | H74: 2.476158809e-06 | J74: 2.558376555e-05 | K74: 7.886974833e-05 | L74: 4.3036681e-05 | M74: 9.153738564e-05 | N74: 4.360469232e-09
A75: =IF('DF raw data'!I75="","",'DF raw data'!I75) -> -296 | B75: =IF('DF raw data'!J75="","",'DF raw data'!J75) -> -1.34473e-05 | C75: =IF('DF raw data'!K75="","",'DF raw data'!K75) -> 9.97844e-05 | D75: =IF('DF raw data'!L75="","",'DF raw data'!L75) -> -4.02627e-05 | F75: 1.738789408e-06 | G75: 4.215200529e-06 | H75: 2.560612029e-06 | J75: 2.645316026e-05 | K75: 9.209632846e-05 | L75: 4.514428126e-05 | M75: 0.0001141095263 | N75: 5.729357141e-09
A76: =IF('DF raw data'!I76="","",'DF raw data'!I76) -> -295.5 | B76: =IF('DF raw data'!J76="","",'DF raw data'!J76) -> -1.35114e-05 | C76: =IF('DF raw data'!K76="","",'DF raw data'!K76) -> 0.000109331 | D76: =IF('DF raw data'!L76="","",'DF raw data'!L76) -> -4.00466e-05 | F76: 1.674420188e-06 | G76: 1.380189625e-05 | H76: 2.777619649e-06 | J76: 2.729037035e-05 | K76: 0.0001057415136 | L76: 5.204522938e-05 | M76: 0.000140132141 | N76: 7.456092249e-09
A77: =IF('DF raw data'!I77="","",'DF raw data'!I77) -> -295 | B77: =IF('DF raw data'!J77="","",'DF raw data'!J77) -> -8.45002e-06 | C77: =IF('DF raw data'!K77="","",'DF raw data'!K77) -> 9.65688e-05 | D77: =IF('DF raw data'!L77="","",'DF raw data'!L77) -> -4.00547e-05 | F77: 6.757057984e-06 | G77: 9.860950088e-07 | H77: 2.769485629e-06 | J77: 3.066889934e-05 | K77: 0.0001210759633 | L77: 5.253827689e-05 | M77: 0.0001664012794 | N77: 9.306518211e-09
A78: =IF('DF raw data'!I78="","",'DF raw data'!I78) -> -294.5 | B78: =IF('DF raw data'!J78="","",'DF raw data'!J78) -> -9.09067e-06 | C78: =IF('DF raw data'!K78="","",'DF raw data'!K78) -> 8.88068e-05 | D78: =IF('DF raw data'!L78="","",'DF raw data'!L78) -> -4.00649e-05 | F78: 6.113717254e-06 | G78: -6.808505391e-06 | H78: 2.759242789e-06 | J78: 3.372575797e-05 | K78: 0.0001379388423 | L78: 4.913402419e-05 | M78: 0.0001909682915 | N78: 1.108230775e-08
A79: =IF('DF raw data'!I79="","",'DF raw data'!I79) -> -294 | B79: =IF('DF raw data'!J79="","",'DF raw data'!J79) -> -1.27427e-05 | C79: =IF('DF raw data'!K79="","",'DF raw data'!K79) -> 9.75363e-05 | D79: =IF('DF raw data'!L79="","",'DF raw data'!L79) -> -3.98788e-05 | F79: 2.446348728e-06 | G79: 1.957658509e-06 | H79: 2.946124409e-06 | J79: 3.494893233e-05 | K79: 0.0001554133085 | L79: 5.011285345e-05 | M79: 0.0002160247182 | N79: 1.294867073e-08
A80: =IF('DF raw data'!I80="","",'DF raw data'!I80) -> -293.5 | B80: =IF('DF raw data'!J80="","",'DF raw data'!J80) -> -1.65872e-06 | C80: =IF('DF raw data'!K80="","",'DF raw data'!K80) -> 9.99358e-05 | D80: =IF('DF raw data'!L80="","",'DF raw data'!L80) -> -4.00997e-05 | F80: 1.357688144e-05 | G80: 4.367236409e-06 | H80: 2.724296629e-06 | J80: 4.173737305e-05 | K80: 0.000176281995 | L80: 5.229647165e-05 | M80: 0.0002421729541 | N80: 1.518713536e-08
A81: =IF('DF raw data'!I81="","",'DF raw data'!I81) -> -293 | B81: =IF('DF raw data'!J81="","",'DF raw data'!J81) -> -6.27116e-06 | C81: =IF('DF raw data'!K81="","",'DF raw data'!K81) -> 9.31289e-05 | D81: =IF('DF raw data'!L81="","",'DF raw data'!L81) -> -4.06029e-05 | F81: 8.945069196e-06 | G81: -2.468252571e-06 | H81: 2.218983189e-06 | J81: 4.620990765e-05 | K81: 0.0001993869488 | L81: 5.106234537e-05 | M81: 0.0002677041267 | N81: 1.75584947e-08
A82: =IF('DF raw data'!I82="","",'DF raw data'!I82) -> -292.5 | B82: =IF('DF raw data'!J82="","",'DF raw data'!J82) -> -8.89779e-06 | C82: =IF('DF raw data'!K82="","",'DF raw data'!K82) -> 9.90128e-05 | D82: =IF('DF raw data'!L82="","",'DF raw data'!L82) -> -4.09215e-05 | F82: 6.30740735e-06 | G82: 3.440359809e-06 | H82: 1.899045069e-06 | J82: 4.936361133e-05 | K82: 0.0002240687545 | L82: 5.278252527e-05 | M82: 0.0002940953894 | N82: 2.016987525e-08
A83: =IF('DF raw data'!I83="","",'DF raw data'!I83) -> -292 | B83: =IF('DF raw data'!J83="","",'DF raw data'!J83) -> -9.60227e-06 | C83: =IF('DF raw data'!K83="","",'DF raw data'!K83) -> 9.42243e-05 | D83: =IF('DF raw data'!L83="","",'DF raw data'!L83) -> -4.15007e-05 | F83: 5.599968534e-06 | G83: -1.368251891e-06 | H83: 1.317412429e-06 | J83: 5.21635956e-05 | K83: 0.0002501505523 | L83: 5.209839932e-05 | M83: 0.000320144589 | N83: 2.28875172e-08
A84: =IF('DF raw data'!I84="","",'DF raw data'!I84) -> -291.5 | B84: =IF('DF raw data'!J84="","",'DF raw data'!J84) -> -4.92139e-06 | C84: =IF('DF raw data'!K84="","",'DF raw data'!K84) -> 0.000102839 | D84: =IF('DF raw data'!L84="","",'DF raw data'!L84) -> -4.75459e-05 | F84: 1.030050823e-05 | G84: 7.282629849e-06 | H84: -4.753177411e-06 | J84: 5.731384971e-05 | K84: 0.0002788074771 | L84: 5.573971425e-05 | M84: 0.0003480144462 | N84: 2.608341376e-08
A85: =IF('DF raw data'!I85="","",'DF raw data'!I85) -> -291 | B85: =IF('DF raw data'!J85="","",'DF raw data'!J85) -> -3.49824e-05 | C85: =IF('DF raw data'!K85="","",'DF raw data'!K85) -> 9.78694e-05 | D85: =IF('DF raw data'!L85="","",'DF raw data'!L85) -> -2.77411e-05 | F85: -1.988675801e-05 | G85: 2.292157529e-06 | H85: 1.513480275e-05 | J85: 4.73704707e-05 | K85: 0.0003024927125 | L85: 5.688579301e-05 | M85: 0.0003764573427 | N85: 2.882339123e-08
A86: =IF('DF raw data'!I86="","",'DF raw data'!I86) -> -290.5 | B86: =IF('DF raw data'!J86="","",'DF raw data'!J86) -> -1.64606e-05 | C86: =IF('DF raw data'!K86="","",'DF raw data'!K86) -> 9.78266e-05 | D86: =IF('DF raw data'!L86="","",'DF raw data'!L86) -> -3.66837e-05 | F86: -1.287166452e-06 | G86: 2.249177769e-06 | H86: 6.154643829e-06 | J86: 4.672688748e-05 | K86: 0.0003258561562 | L86: 5.80103819e-05 | M86: 0.0004054625336 | N86: 3.159769444e-08
A87: =IF('DF raw data'!I87="","",'DF raw data'!I87) -> -290 | B87: =IF('DF raw data'!J87="","",'DF raw data'!J87) -> -1.07991e-06 | C87: =IF('DF raw data'!K87="","",'DF raw data'!K87) -> 9.15201e-05 | D87: =IF('DF raw data'!L87="","",'DF raw data'!L87) -> -4.33204e-05 | F87: 1.415812245e-05 | G87: -4.083809531e-06 | H87: -5.099303107e-07 | J87: 5.38059487e-05 | K87: 0.0003527591306 | L87: 5.596847713e-05 | M87: 0.0004334467722 | N87: 3.461146972e-08
A88: =IF('DF raw data'!I88="","",'DF raw data'!I88) -> -289.5 | B88: =IF('DF raw data'!J88="","",'DF raw data'!J88) -> -1.47782e-05 | C88: =IF('DF raw data'!K88="","",'DF raw data'!K88) -> 9.17486e-05 | D88: =IF('DF raw data'!L88="","",'DF raw data'!L88) -> -6.23852e-05 | F88: 4.022996281e-07 | G88: -3.854349831e-06 | H88: -1.965480247e-05 | J88: 5.400709852e-05 | K88: 0.0003797626798 | L88: 5.404130222e-05 | M88: 0.0004604674233 | N88: 3.753008423e-08
A89: =IF('DF raw data'!I89="","",'DF raw data'!I89) -> -289 | B89: =IF('DF raw data'!J89="","",'DF raw data'!J89) -> -1.94641e-05 | C89: =IF('DF raw data'!K89="","",'DF raw data'!K89) -> 9.33457e-05 | D89: =IF('DF raw data'!L89="","",'DF raw data'!L89) -> -4.86779e-05 | F89: -4.303281152e-06 | G89: -2.250542011e-06 | H89: -5.889931811e-06 | J89: 5.185545794e-05 | K89: 0.0004056904088 | L89: 5.291603121e-05 | M89: 0.0004869254389 | N89: 4.027463167e-08
A90: =IF('DF raw data'!I90="","",'DF raw data'!I90) -> -288.5 | B90: =IF('DF raw data'!J90="","",'DF raw data'!J90) -> -8.25184e-06 | C90: =IF('DF raw data'!K90="","",'DF raw data'!K90) -> 9.23493e-05 | D90: =IF('DF raw data'!L90="","",'DF raw data'!L90) -> -4.90733e-05 | F90: 6.95607034e-06 | G90: -3.251126891e-06 | H90: -6.286992491e-06 | J90: 5.533349311e-05 | K90: 0.0004333571553 | L90: 5.129046777e-05 | M90: 0.0005125706728 | N90: 4.312088544e-08
A91: =IF('DF raw data'!I91="","",'DF raw data'!I91) -> -288 | B91: =IF('DF raw data'!J91="","",'DF raw data'!J91) -> -1.35052e-05 | C91: =IF('DF raw data'!K91="","",'DF raw data'!K91) -> 9.90799e-05 | D91: =IF('DF raw data'!L91="","",'DF raw data'!L91) -> -4.94981e-05 | F91: 1.680646228e-06 | G91: 3.507741629e-06 | H91: -6.713576651e-06 | J91: 5.617381622e-05 | K91: 0.0004614440635 | L91: 5.304433858e-05 | M91: 0.0005390928421 | N91: 4.610548519e-08
A92: =IF('DF raw data'!I92="","",'DF raw data'!I92) -> -287.5 | B92: =IF('DF raw data'!J92="","",'DF raw data'!J92) -> -1.2798e-05 | C92: =IF('DF raw data'!K92="","",'DF raw data'!K92) -> 0.000100691 | D92: =IF('DF raw data'!L92="","",'DF raw data'!L92) -> -5.30923e-05 | F92: 2.390816468e-06 | G92: 5.125608249e-06 | H92: -1.032287229e-05 | J92: 5.736922446e-05 | K92: 0.0004901286757 | L92: 5.56071427e-05 | M92: 0.0005668964134 | N92: 4.92971763e-08
A93: =IF('DF raw data'!I93="","",'DF raw data'!I93) -> -287 | B93: =IF('DF raw data'!J93="","",'DF raw data'!J93) -> -1.35044e-05 | C93: =IF('DF raw data'!K93="","",'DF raw data'!K93) -> 9.70219e-05 | D93: =IF('DF raw data'!L93="","",'DF raw data'!L93) -> -5.08631e-05 | F93: 1.681449588e-06 | G93: 1.441098029e-06 | H93: -8.084309651e-06 | J93: 5.820994925e-05 | K93: 0.0005192336503 | L93: 5.632769172e-05 | M93: 0.0005950602593 | N93: 5.257777983e-08
A94: =IF('DF raw data'!I94="","",'DF raw data'!I94) -> -286.5 | B94: =IF('DF raw data'!J94="","",'DF raw data'!J94) -> -1.67095e-05 | C94: =IF('DF raw data'!K94="","",'DF raw data'!K94) -> 9.53667e-05 | D94: =IF('DF raw data'!L94="","",'DF raw data'!L94) -> -4.79875e-05 | F94: -1.537111832e-06 | G94: -2.210538112e-07 | H94: -5.196632131e-06 | J94: 5.744139334e-05 | K94: 0.000547954347 | L94: 5.621716481e-05 | M94: 0.0006231688417 | N94: 5.580772147e-08
A95: =IF('DF raw data'!I95="","",'DF raw data'!I95) -> -286 | B95: =IF('DF raw data'!J95="","",'DF raw data'!J95) -> -6.46341e-06 | C95: =IF('DF raw data'!K95="","",'DF raw data'!K95) -> 9.63978e-05 | D95: =IF('DF raw data'!L95="","",'DF raw data'!L95) -> -4.07137e-05 | F95: 8.752011746e-06 | G95: 8.143768088e-07 | H95: 2.107717829e-06 | J95: 6.181739921e-05 | K95: 0.0005788630466 | L95: 5.662435322e-05 | M95: 0.0006514810183 | N95: 5.932157558e-08
A96: =IF('DF raw data'!I96="","",'DF raw data'!I96) -> -285.5 | B96: =IF('DF raw data'!J96="","",'DF raw data'!J96) -> 3.53406e-06 | C96: =IF('DF raw data'!K96="","",'DF raw data'!K96) -> 0.000102484 | D96: =IF('DF raw data'!L96="","",'DF raw data'!L96) -> -4.47828e-05 | F96: 1.879147112e-05 | G96: 6.926138849e-06 | H96: -1.978472391e-06 | J96: 7.121313477e-05 | K96: 0.000614469614 | L96: 6.008742264e-05 | M96: 0.0006815247296 | N96: 6.366248004e-08
A97: =IF('DF raw data'!I97="","",'DF raw data'!I97) -> -285 | B97: =IF('DF raw data'!J97="","",'DF raw data'!J97) -> -1.42785e-05 | C97: =IF('DF raw data'!K97="","",'DF raw data'!K97) -> 9.20698e-05 | D97: =IF('DF raw data'!L97="","",'DF raw data'!L97) -> -4.26746e-05 | F97: 9.040983681e-07 | G97: -3.531800791e-06 | H97: 1.385820493e-07 | J97: 7.166518395e-05 | K97: 0.0006503022059 | L97: 5.832152225e-05 | M97: 0.0007106854907 | N97: 6.793112932e-08
A98: =IF('DF raw data'!I98="","",'DF raw data'!I98) -> -284.5 | B98: =IF('DF raw data'!J98="","",'DF raw data'!J98) -> -1.20386e-05 | C98: =IF('DF raw data'!K98="","",'DF raw data'!K98) -> 9.04967e-05 | D98: =IF('DF raw data'!L98="","",'DF raw data'!L98) -> -3.87547e-05 | F98: 3.153405948e-06 | G98: -5.111507811e-06 | H98: 4.074945629e-06 | J98: 7.324188693e-05 | K98: 0.0006869231494 | L98: 5.576576834e-05 | M98: 0.0007385683749 | N98: 7.216822678e-08
A99: =IF('DF raw data'!I99="","",'DF raw data'!I99) -> -284 | B99: =IF('DF raw data'!J99="","",'DF raw data'!J99) -> -7.74508e-06 | C99: =IF('DF raw data'!K99="","",'DF raw data'!K99) -> 9.11692e-05 | D99: =IF('DF raw data'!L99="","",'DF raw data'!L99) -> -4.01674e-05 | F99: 7.464958732e-06 | G99: -4.436183311e-06 | H99: 2.656312289e-06 | J99: 7.697436629e-05 | K99: 0.0007254103326 | L99: 5.354767668e-05 | M99: 0.0007653422132 | N99: 7.656443015e-08
A100: =IF('DF raw data'!I100="","",'DF raw data'!I100) -> -283.5 | B100: =IF('DF raw data'!J100="","",'DF raw data'!J100) -> -1.15257e-05 | C100: =IF('DF raw data'!K100="","",'DF raw data'!K100) -> 9.50916e-05 | D100: =IF('DF raw data'!L100="","",'DF raw data'!L100) -> -3.91953e-05 | F100: 3.668460128e-06 | G100: -4.973092312e-07 | H100: 3.632495109e-06 | J100: 7.880859636e-05 | K100: 0.0007648146307 | L100: 5.329902207e-05 | M100: 0.0007919917243 | N100: 8.109022046e-08
A101: =IF('DF raw data'!I101="","",'DF raw data'!I101) -> -283 | B101: =IF('DF raw data'!J101="","",'DF raw data'!J101) -> -5.50512e-06 | C101: =IF('DF raw data'!K101="","",'DF raw data'!K101) -> 0.00010293 | D101: =IF('DF raw data'!L101="","",'DF raw data'!L101) -> -3.63441e-05 | F101: 9.714326564e-06 | G101: 7.374012049e-06 | H101: 6.495670149e-06 | J101: 8.366575964e-05 | K101: 0.0008066475106 | L101: 5.698602809e-05 | M101: 0.0008204847383 | N101: 8.621390382e-08
A102: =IF('DF raw data'!I102="","",'DF raw data'!I102) -> -282.5 | B102: =IF('DF raw data'!J102="","",'DF raw data'!J102) -> -1.26712e-05 | C102: =IF('DF raw data'!K102="","",'DF raw data'!K102) -> 0.000101915 | D102: =IF('DF raw data'!L102="","",'DF raw data'!L102) -> -5.11752e-05 | F102: 2.518149028e-06 | G102: 6.354749049e-06 | H102: -8.397720471e-06 | J102: 8.492483415e-05 | K102: 0.0008491099276 | L102: 6.016340262e-05 | M102: 0.0008505664396 | N102: 9.162983506e-08
A103: =IF('DF raw data'!I103="","",'DF raw data'!I103) -> -282 | B103: =IF('DF raw data'!J103="","",'DF raw data'!J103) -> -1.94006e-05 | C103: =IF('DF raw data'!K103="","",'DF raw data'!K103) -> 9.3674e-05 | D103: =IF('DF raw data'!L103="","",'DF raw data'!L103) -> -4.79862e-05 | F103: -4.239514452e-06 | G103: -1.920863151e-06 | H103: -5.195326671e-06 | J103: 8.280507693e-05 | K103: 0.0008905124661 | L103: 5.920297104e-05 | M103: 0.0008801679252 | N103: 9.681067133e-08
A104: =IF('DF raw data'!I104="","",'DF raw data'!I104) -> -281.5 | B104: =IF('DF raw data'!J104="","",'DF raw data'!J104) -> -1.62592e-05 | C104: =IF('DF raw data'!K104="","",'DF raw data'!K104) -> 9.6028e-05 | D104: =IF('DF raw data'!L104="","",'DF raw data'!L104) -> -5.10478e-05 | F104: -1.084920572e-06 | G104: 4.430236488e-07 | H104: -8.269785391e-06 | J104: 8.226261664e-05 | K104: 0.0009316437744 | L104: 5.942448287e-05 | M104: 0.0009098801666 | N104: 1.01959875e-07
A105: =IF('DF raw data'!I105="","",'DF raw data'!I105) -> -281 | B105: =IF('DF raw data'!J105="","",'DF raw data'!J105) -> -1.83082e-05 | C105: =IF('DF raw data'!K105="","",'DF raw data'!K105) -> 0.000106264 | D105: =IF('DF raw data'!L105="","",'DF raw data'!L105) -> -5.2786e-05 | F105: -3.142526372e-06 | G105: 1.072201485e-05 | H105: -1.001528583e-05 | J105: 8.069135346e-05 | K105: 0.0009719894511 | L105: 6.478549029e-05 | M105: 0.0009422729117 | N105: 1.073140021e-07
A106: =IF('DF raw data'!I106="","",'DF raw data'!I106) -> -280.5 | B106: =IF('DF raw data'!J106="","",'DF raw data'!J106) -> -9.98528e-06 | C106: =IF('DF raw data'!K106="","",'DF raw data'!K106) -> 9.99877e-05 | D106: =IF('DF raw data'!L106="","",'DF raw data'!L106) -> -4.36245e-05 | F106: 5.215349892e-06 | G106: 4.419354389e-06 | H106: -8.153075307e-07 | J106: 8.32990284e-05 | K106: 0.001013638965 | L106: 6.699516749e-05 | M106: 0.0009757704955 | N106: 1.130275424e-07
A107: =IF('DF raw data'!I107="","",'DF raw data'!I107) -> -280 | B107: =IF('DF raw data'!J107="","",'DF raw data'!J107) -> -9.50187e-07 | C107: =IF('DF raw data'!K107="","",'DF raw data'!K107) -> 0.000101261 | D107: =IF('DF raw data'!L107="","",'DF raw data'!L107) -> -4.5766e-05 | F107: 1.428839028e-05 | G107: 5.698002249e-06 | H107: -2.965801831e-06 | J107: 9.044322354e-05 | K107: 0.001058860577 | L107: 6.984416861e-05 | M107: 0.00101069258 | N107: 1.195566347e-07
A108: =IF('DF raw data'!I108="","",'DF raw data'!I108) -> -279.5 | B108: =IF('DF raw data'!J108="","",'DF raw data'!J108) -> -3.96121e-06 | C108: =IF('DF raw data'!K108="","",'DF raw data'!K108) -> 0.000102187 | D108: =IF('DF raw data'!L108="","",'DF raw data'!L108) -> -4.60896e-05 | F108: 1.126472099e-05 | G108: 6.627891449e-06 | H108: -3.290760951e-06 | J108: 9.607558404e-05 | K108: 0.001106898369 | L108: 7.315811433e-05 | M108: 0.001047271637 | N108: 1.268479485e-07
A109: =IF('DF raw data'!I109="","",'DF raw data'!I109) -> -279 | B109: =IF('DF raw data'!J109="","",'DF raw data'!J109) -> -5.94723e-06 | C109: =IF('DF raw data'!K109="","",'DF raw data'!K109) -> 9.53254e-05 | D109: =IF('DF raw data'!L109="","",'DF raw data'!L109) -> -4.63366e-05 | F109: 9.270359702e-06 | G109: -2.625272712e-07 | H109: -3.538798351e-06 | J109: 0.0001007107639 | K109: 0.001157253751 | L109: 7.30268507e-05 | M109: 0.001083785062 | N109: 1.345857379e-07
A110: =IF('DF raw data'!I110="","",'DF raw data'!I110) -> -278.5 | B110: =IF('DF raw data'!J110="","",'DF raw data'!J110) -> -8.57588e-06 | C110: =IF('DF raw data'!K110="","",'DF raw data'!K110) -> 9.65293e-05 | D110: =IF('DF raw data'!L110="","",'DF raw data'!L110) -> -4.35397e-05 | F110: 6.630669372e-06 | G110: 9.464291088e-07 | H110: -7.301513707e-07 | J110: 0.0001040260986 | K110: 0.0012092668 | L110: 7.350006525e-05 | M110: 0.001120535095 | N110: 1.426975823e-07
A111: =IF('DF raw data'!I111="","",'DF raw data'!I111) -> -278 | B111: =IF('DF raw data'!J111="","",'DF raw data'!J111) -> 5.64707e-06 | C111: =IF('DF raw data'!K111="","",'DF raw data'!K111) -> 9.78353e-05 | D111: =IF('DF raw data'!L111="","",'DF raw data'!L111) -> -4.31826e-05 | F111: 2.091335576e-05 | G111: 2.257914309e-06 | H111: -3.715515507e-07 | J111: 0.0001144827765 | K111: 0.001266508189 | L111: 7.462902241e-05 | M111: 0.001157849606 | N111: 1.520354808e-07
A112: =IF('DF raw data'!I112="","",'DF raw data'!I112) -> -277.5 | B112: =IF('DF raw data'!J112="","",'DF raw data'!J112) -> -9.21206e-06 | C112: =IF('DF raw data'!K112="","",'DF raw data'!K112) -> 9.70603e-05 | D112: =IF('DF raw data'!L112="","",'DF raw data'!L112) -> -5.04383e-05 | F112: 5.991817416e-06 | G112: 1.479659309e-06 | H112: -7.657725491e-06 | J112: 0.0001174786852 | K112: 0.001325247531 | L112: 7.536885206e-05 | M112: 0.001195534032 | N112: 1.617763335e-07
A113: =IF('DF raw data'!I113="","",'DF raw data'!I113) -> -277 | B113: =IF('DF raw data'!J113="","",'DF raw data'!J113) -> -1.00484e-05 | C113: =IF('DF raw data'!K113="","",'DF raw data'!K113) -> 9.0967e-05 | D113: =IF('DF raw data'!L113="","",'DF raw data'!L113) -> -4.48363e-05 | F113: 5.151964788e-06 | G113: -4.639232551e-06 | H113: -2.032197091e-06 | J113: 0.0001200546676 | K113: 0.001385274865 | L113: 7.304923579e-05 | M113: 0.00123205865 | N113: 1.716509905e-07
A114: =IF('DF raw data'!I114="","",'DF raw data'!I114) -> -276.5 | B114: =IF('DF raw data'!J114="","",'DF raw data'!J114) -> -9.54357e-06 | C114: =IF('DF raw data'!K114="","",'DF raw data'!K114) -> 9.61954e-05 | D114: =IF('DF raw data'!L114="","",'DF raw data'!L114) -> -3.30014e-05 | F114: 5.658915074e-06 | G114: 6.111267288e-07 | H114: 9.852409489e-06 | J114: 0.0001228841251 | K114: 0.001446716928 | L114: 7.335479915e-05 | M114: 0.00126873605 | N114: 1.818917079e-07
A115: =IF('DF raw data'!I115="","",'DF raw data'!I115) -> -276 | B115: =IF('DF raw data'!J115="","",'DF raw data'!J115) -> -1.22323e-05 | C115: =IF('DF raw data'!K115="","",'DF raw data'!K115) -> 9.02481e-05 | D115: =IF('DF raw data'!L115="","",'DF raw data'!L115) -> -3.65513e-05 | F115: 2.958892408e-06 | G115: -5.361151931e-06 | H115: 6.287599909e-06 | J115: 0.0001243635713 | K115: 0.001508898713 | L115: 7.067422319e-05 | M115: 0.001304073161 | N115: 1.921222797e-07
A116: =IF('DF raw data'!I116="","",'DF raw data'!I116) -> -275.5 | B116: =IF('DF raw data'!J116="","",'DF raw data'!J116) -> 9.30245e-06 | C116: =IF('DF raw data'!K116="","",'DF raw data'!K116) -> 9.80508e-05 | D116: =IF('DF raw data'!L116="","",'DF raw data'!L116) -> -4.85552e-05 | F116: 2.458408836e-05 | G116: 2.474319409e-06 | H116: -5.766716471e-06 | J116: 0.0001366556155 | K116: 0.001577226521 | L116: 7.191138289e-05 | M116: 0.001340028853 | N116: 2.040452819e-07
A117: =IF('DF raw data'!I117="","",'DF raw data'!I117) -> -275 | B117: =IF('DF raw data'!J117="","",'DF raw data'!J117) -> -8.38242e-06 | C117: =IF('DF raw data'!K117="","",'DF raw data'!K117) -> 0.000104721 | D117: =IF('DF raw data'!L117="","",'DF raw data'!L117) -> -4.52832e-05 | F117: 6.824941904e-06 | G117: 9.172534249e-06 | H117: -2.480974071e-06 | J117: 0.0001400680864 | K117: 0.001647260564 | L117: 7.649765001e-05 | M117: 0.001378277678 | N117: 2.167807615e-07
A118: =IF('DF raw data'!I118="","",'DF raw data'!I118) -> -274.5 | B118: =IF('DF raw data'!J118="","",'DF raw data'!J118) -> -9.27991e-06 | C118: =IF('DF raw data'!K118="","",'DF raw data'!K118) -> 0.000101445 | D118: =IF('DF raw data'!L118="","",'DF raw data'!L118) -> -4.44034e-05 | F118: 5.923682446e-06 | G118: 5.882775049e-06 | H118: -1.597478911e-06 | J118: 0.0001430299277 | K118: 0.001718775528 | L118: 7.943903754e-05 | M118: 0.001417997196 | N118: 2.30164822e-07
A119: =IF('DF raw data'!I119="","",'DF raw data'!I119) -> -274 | B119: =IF('DF raw data'!J119="","",'DF raw data'!J119) -> -3.77556e-06 | C119: =IF('DF raw data'!K119="","",'DF raw data'!K119) -> 0.000109867 | D119: =IF('DF raw data'!L119="","",'DF raw data'!L119) -> -3.62024e-05 | F119: 1.145115072e-05 | G119: 1.434014745e-05 | H119: 6.637965289e-06 | J119: 0.000148755503 | K119: 0.001793153279 | L119: 8.660911126e-05 | M119: 0.001461301752 | N119: 2.449794909e-07
A120: =IF('DF raw data'!I120="","",'DF raw data'!I120) -> -273.5 | B120: =IF('DF raw data'!J120="","",'DF raw data'!J120) -> 5.26627e-06 | C120: =IF('DF raw data'!K120="","",'DF raw data'!K120) -> 0.000113492 | D120: =IF('DF raw data'!L120="","",'DF raw data'!L120) -> -4.87432e-05 | F120: 2.05309564e-05 | G120: 1.798037245e-05 | H120: -5.955506071e-06 | J120: 0.0001590209812 | K120: 0.00187266377 | L120: 9.559929749e-05 | M120: 0.001509101401 | N120: 2.621929399e-07
A121: =IF('DF raw data'!I121="","",'DF raw data'!I121) -> -273 | B121: =IF('DF raw data'!J121="","",'DF raw data'!J121) -> -8.00385e-06 | C121: =IF('DF raw data'!K121="","",'DF raw data'!K121) -> 0.000104459 | D121: =IF('DF raw data'!L121="","",'DF raw data'!L121) -> -3.62986e-05 | F121: 7.205101898e-06 | G121: 8.909433849e-06 | H121: 6.541361249e-06 | J121: 0.0001626235322 | K121: 0.001953975536 | L121: 0.0001000540144 | M121: 0.001559128408 | N121: 2.804215494e-07
A122: =IF('DF raw data'!I122="","",'DF raw data'!I122) -> -272.5 | B122: =IF('DF raw data'!J122="","",'DF raw data'!J122) -> 8.47087e-06 | C122: =IF('DF raw data'!K122="","",'DF raw data'!K122) -> 0.000101783 | D122: =IF('DF raw data'!L122="","",'DF raw data'!L122) -> -5.03449e-05 | F122: 2.374901572e-05 | G122: 6.222194649e-06 | H122: -7.563933211e-06 | J122: 0.00017449804 | K122: 0.002041224556 | L122: 0.0001031651117 | M122: 0.001610710964 | N122: 3.009678526e-07
A123: =IF('DF raw data'!I123="","",'DF raw data'!I123) -> -272 | B123: =IF('DF raw data'!J123="","",'DF raw data'!J123) -> -3.12849e-06 | C123: =IF('DF raw data'!K123="","",'DF raw data'!K123) -> 0.000102128 | D123: =IF('DF raw data'!L123="","",'DF raw data'!L123) -> -4.56727e-05 | F123: 1.210093841e-05 | G123: 6.568643649e-06 | H123: -2.872109971e-06 | J123: 0.0001805485092 | K123: 0.002131498811 | L123: 0.0001064494336 | M123: 0.001663935681 | N123: 3.229324756e-07
A124: =IF('DF raw data'!I124="","",'DF raw data'!I124) -> -271.5 | B124: =IF('DF raw data'!J124="","",'DF raw data'!J124) -> 7.0761e-07 | C124: =IF('DF raw data'!K124="","",'DF raw data'!K124) -> 0.000101719 | D124: =IF('DF raw data'!L124="","",'DF raw data'!L124) -> -3.35547e-05 | F124: 1.595315003e-05 | G124: 6.157925849e-06 | H124: 9.296785629e-06 | J124: 0.0001885250842 | K124: 0.002225761353 | L124: 0.0001095283965 | M124: 0.001718699879 | N124: 3.467015641e-07
A125: =IF('DF raw data'!I125="","",'DF raw data'!I125) -> -271 | B125: =IF('DF raw data'!J125="","",'DF raw data'!J125) -> -7.48597e-06 | C125: =IF('DF raw data'!K125="","",'DF raw data'!K125) -> 0.000102741 | D125: =IF('DF raw data'!L125="","",'DF raw data'!L125) -> -4.45492e-05 | F125: 7.725156994e-06 | G125: 7.184218249e-06 | H125: -1.743891271e-06 | J125: 0.0001923876627 | K125: 0.002321955184 | L125: 0.0001131205056 | M125: 0.001775260132 | N125: 3.716061949e-07
A126: =IF('DF raw data'!I126="","",'DF raw data'!I126) -> -270.5 | B126: =IF('DF raw data'!J126="","",'DF raw data'!J126) -> -4.66775e-06 | C126: =IF('DF raw data'!K126="","",'DF raw data'!K126) -> 9.69986e-05 | D126: =IF('DF raw data'!L126="","",'DF raw data'!L126) -> -4.34979e-05 | F126: 1.055521352e-05 | G126: 1.417700169e-06 | H126: -6.881758107e-07 | J126: 0.0001976652695 | K126: 0.002420787819 | L126: 0.0001138293557 | M126: 0.00183217481 | N126: 3.976205354e-07
A127: =IF('DF raw data'!I127="","",'DF raw data'!I127) -> -270 | B127: =IF('DF raw data'!J127="","",'DF raw data'!J127) -> -1.78633e-05 | C127: =IF('DF raw data'!K127="","",'DF raw data'!K127) -> 9.75078e-05 | D127: =IF('DF raw data'!L127="","",'DF raw data'!L127) -> -4.74118e-05 | F127: -2.695757792e-06 | G127: 1.929038809e-06 | H127: -4.618514191e-06 | J127: 0.0001963173906 | K127: 0.002518946514 | L127: 0.0001147938751 | M127: 0.001889571747 | N127: 4.234796112e-07
A128: =IF('DF raw data'!I128="","",'DF raw data'!I128) -> -269.5 | B128: =IF('DF raw data'!J128="","",'DF raw data'!J128) -> -6.46891e-06 | C128: =IF('DF raw data'!K128="","",'DF raw data'!K128) -> 0.000104068 | D128: =IF('DF raw data'!L128="","",'DF raw data'!L128) -> -3.22102e-05 | F128: 8.746488646e-06 | G128: 8.516791649e-06 | H128: 1.064693253e-05 | J128: 0.0002006906349 | K128: 0.002619291832 | L128: 0.0001190522709 | M128: 0.001949097883 | N128: 4.507046983e-07
A129: =IF('DF raw data'!I129="","",'DF raw data'!I129) -> -269 | B129: =IF('DF raw data'!J129="","",'DF raw data'!J129) -> -6.9048e-06 | C129: =IF('DF raw data'!K129="","",'DF raw data'!K129) -> 0.000107369 | D129: =IF('DF raw data'!L129="","",'DF raw data'!L129) -> -5.17988e-05 | F129: 8.308767908e-06 | G129: 1.183165585e-05 | H129: -9.023939591e-06 | J129: 0.0002048450189 | K129: 0.002721714341 | L129: 0.0001249680988 | M129: 0.002011581932 | N129: 4.79493952e-07
A130: =IF('DF raw data'!I130="","",'DF raw data'!I130) -> -268.5 | B130: =IF('DF raw data'!J130="","",'DF raw data'!J130) -> -1.14582e-05 | C130: =IF('DF raw data'!K130="","",'DF raw data'!K130) -> 0.000109046 | D130: =IF('DF raw data'!L130="","",'DF raw data'!L130) -> -4.47708e-05 | F130: 3.736243628e-06 | G130: 1.351569925e-05 | H130: -1.966421991e-06 | J130: 0.0002067131407 | K130: 0.002825070912 | L130: 0.0001317259485 | M130: 0.002077444906 | N130: 5.09534976e-07
A131: =IF('DF raw data'!I131="","",'DF raw data'!I131) -> -268 | B131: =IF('DF raw data'!J131="","",'DF raw data'!J131) -> 9.73285e-07 | C131: =IF('DF raw data'!K131="","",'DF raw data'!K131) -> 0.000106347 | D131: =IF('DF raw data'!L131="","",'DF raw data'!L131) -> -4.80665e-05 | F131: =(1-$G$1*($B$54-$G$2))*(B131-F$5) -> 1.621994087e-05 | G131: =(1-$G$1*($B$54-$G$2))*(C131-G$5) -> 1.080536345e-05 | H131: =(1-$G$1*($B$54-$G$2))*(D131-H$5) -> -5.275963931e-06 | J131: 0.0002148231111 | K131: 0.002932482467 | L131: 0.0001371286302 | M131: 0.002146009221 | N131: 5.420115912e-07
A132: =IF('DF raw data'!I132="","",'DF raw data'!I132) -> -267.5 | B132: =IF('DF raw data'!J132="","",'DF raw data'!J132) -> -7.4842e-06 | C132: =IF('DF raw data'!K132="","",'DF raw data'!K132) -> 0.00010077 | D132: =IF('DF raw data'!L132="","",'DF raw data'!L132) -> -4.72524e-05 | F132: 7.726934428e-06 | G132: 5.204940049e-06 | H132: -4.458444711e-06 | J132: =F132*$G$3+J131 -> 0.0002186865783 | K132: =J132*$G$3+K131 -> 0.003041825756 | L132: =G132*$G$3+L131 -> 0.0001397311002 | M132: =L132*$G$3+M131 -> 0.002215874771 | N132: =(J132^2+L132^2)*$G$3+N131 -> 5.756858912e-07
A133: =IF('DF raw data'!I133="","",'DF raw data'!I133) -> -267 | B133: =IF('DF raw data'!J133="","",'DF raw data'!J133) -> -2.0867e-05 | C133: =IF('DF raw data'!K133="","",'DF raw data'!K133) -> 9.83623e-05 | D133: =IF('DF raw data'!L133="","",'DF raw data'!L133) -> -5.90675e-05 | F133: -5.712073332e-06 | G133: 2.787127709e-06 | H133: -1.632316813e-05 | J133: 0.0002158305417 | K133: 0.003149741027 | L133: 0.0001411246641 | M133: 0.002286437103 | N133: 6.089353879e-07
A134: =IF('DF raw data'!I134="","",'DF raw data'!I134) -> -266.5 | B134: =IF('DF raw data'!J134="","",'DF raw data'!J134) -> -1.26138e-05 | C134: =IF('DF raw data'!K134="","",'DF raw data'!K134) -> 9.7514e-05 | D134: =IF('DF raw data'!L134="","",'DF raw data'!L134) -> -4.10574e-05 | F134: 2.575790108e-06 | G134: 1.935264849e-06 | H134: 1.762574289e-06 | J134: 0.0002171184367 | K134: 0.003258300245 | L134: 0.0001420922965 | M134: 0.002357483252 | N134: 6.426007061e-07
A135: =IF('DF raw data'!I135="","",'DF raw data'!I135) -> -266 | B135: =IF('DF raw data'!J135="","",'DF raw data'!J135) -> -9.98552e-06 | C135: =IF('DF raw data'!K135="","",'DF raw data'!K135) -> 9.59071e-05 | D135: =IF('DF raw data'!L135="","",'DF raw data'!L135) -> -4.32212e-05 | F135: 5.215108884e-06 | G135: 3.216158688e-07 | H135: -4.103136707e-07 | J135: 0.0002197259912 | K135: 0.003368163241 | L135: 0.0001422531044 | M135: 0.002428609804 | N135: 6.768584345e-07
A136: =IF('DF raw data'!I136="","",'DF raw data'!I136) -> -265.5 | B136: =IF('DF raw data'!J136="","",'DF raw data'!J136) -> -1.2992e-05 | C136: =IF('DF raw data'!K136="","",'DF raw data'!K136) -> 0.000108813 | D136: =IF('DF raw data'!L136="","",'DF raw data'!L136) -> -5.06082e-05 | F136: 2.196001668e-06 | G136: 1.328172065e-05 | H136: -7.828339071e-06 | J136: 0.000220823992 | K136: 0.003478575237 | L136: 0.0001488939648 | M136: 0.002503056786 | N136: 7.123247586e-07
A137: =IF('DF raw data'!I137="","",'DF raw data'!I137) -> -265 | B137: =IF('DF raw data'!J137="","",'DF raw data'!J137) -> -7.23062e-06 | C137: =IF('DF raw data'!K137="","",'DF raw data'!K137) -> 0.000103701 | D137: =IF('DF raw data'!L137="","",'DF raw data'!L137) -> -4.3116e-05 | F137: 7.981579464e-06 | G137: 8.148250249e-06 | H137: -3.046718307e-07 | J137: 0.0002248147817 | K137: 0.003590982628 | L137: 0.0001529680899 | M137: 0.002579540831 | N137: 7.492952199e-07
A138: =IF('DF raw data'!I138="","",'DF raw data'!I138) -> -264.5 | B138: =IF('DF raw data'!J138="","",'DF raw data'!J138) -> -6.32697e-06 | C138: =IF('DF raw data'!K138="","",'DF raw data'!K138) -> 9.68674e-05 | D138: =IF('DF raw data'!L138="","",'DF raw data'!L138) -> -5.34875e-05 | F138: 8.889024794e-06 | G138: 1.285949129e-06 | H138: -1.071973213e-05 | J138: 0.0002292592941 | K138: 0.003705612275 | L138: 0.0001536110644 | M138: 0.002656346363 | N138: 7.873733115e-07
A139: =IF('DF raw data'!I139="","",'DF raw data'!I139) -> -264 | B139: =IF('DF raw data'!J139="","",'DF raw data'!J139) -> -1.37681e-05 | C139: =IF('DF raw data'!K139="","",'DF raw data'!K139) -> 0.000104675 | D139: =IF('DF raw data'!L139="","",'DF raw data'!L139) -> -3.92741e-05 | F139: 1.416642048e-06 | G139: 9.126341049e-06 | H139: 3.553364149e-06 | J139: 0.0002299676152 | K139: 0.003820596083 | L139: 0.000158174235 | M139: 0.002735433481 | N139: 8.263254078e-07
A140: =IF('DF raw data'!I140="","",'DF raw data'!I140) -> -263.5 | B140: =IF('DF raw data'!J140="","",'DF raw data'!J140) -> -8.76011e-06 | C140: =IF('DF raw data'!K140="","",'DF raw data'!K140) -> 9.81837e-05 | D140: =IF('DF raw data'!L140="","",'DF raw data'!L140) -> -5.55848e-05 | F140: 6.445665606e-06 | G140: 2.607777589e-06 | H140: -1.282584079e-05 | J140: 0.000233190448 | K140: 0.003937191307 | L140: 0.0001594781238 | M140: 0.002815172543 | N140: 8.662309363e-07
A141: =IF('DF raw data'!I141="","",'DF raw data'!I141) -> -263 | B141: =IF('DF raw data'!J141="","",'DF raw data'!J141) -> -2.2887e-06 | C141: =IF('DF raw data'!K141="","",'DF raw data'!K141) -> 9.42906e-05 | D141: =IF('DF raw data'!L141="","",'DF raw data'!L141) -> -5.65602e-05 | F141: 1.294425553e-05 | G141: -1.301673431e-06 | H141: -1.380533747e-05 | J141: 0.0002396625757 | K141: 0.004057022594 | L141: 0.000158827287 | M141: 0.002894586186 | N141: 9.075630649e-07
A142: =IF('DF raw data'!I142="","",'DF raw data'!I142) -> -262.5 | B142: =IF('DF raw data'!J142="","",'DF raw data'!J142) -> -1.45368e-05 | C142: =IF('DF raw data'!K142="","",'DF raw data'!K142) -> 9.67392e-05 | D142: =IF('DF raw data'!L142="","",'DF raw data'!L142) -> -3.93962e-05 | F142: 6.447135081e-07 | G142: 1.157210689e-06 | H142: 3.430751329e-06 | J142: 0.0002399849325 | K142: 0.004177015061 | L142: 0.0001594058924 | M142: 0.002974289133 | N142: 9.490645681e-07
A143: =IF('DF raw data'!I143="","",'DF raw data'!I143) -> -262 | B143: =IF('DF raw data'!J143="","",'DF raw data'!J143) -> -1.02408e-05 | C143: =IF('DF raw data'!K143="","",'DF raw data'!K143) -> 9.49202e-05 | D143: =IF('DF raw data'!L143="","",'DF raw data'!L143) -> -4.47804e-05 | F143: 4.958756708e-06 | G143: -6.694291112e-07 | H143: -1.976062311e-06 | J143: 0.0002424643108 | K143: 0.004298247216 | L143: 0.0001590711778 | M143: 0.003053824721 | N143: 9.911108589e-07
A144: =IF('DF raw data'!I144="","",'DF raw data'!I144) -> -261.5 | B144: =IF('DF raw data'!J144="","",'DF raw data'!J144) -> -1.01754e-05 | C144: =IF('DF raw data'!K144="","",'DF raw data'!K144) -> 9.93525e-05 | D144: =IF('DF raw data'!L144="","",'DF raw data'!L144) -> -4.69727e-05 | F144: 5.024431388e-06 | G144: 3.781486549e-06 | H144: -4.177569971e-06 | J144: 0.0002449765265 | K144: 0.004420735479 | L144: 0.0001609619211 | M144: 0.003134305682 | N144: 1.034071978e-06
A145: =IF('DF raw data'!I145="","",'DF raw data'!I145) -> -261 | B145: =IF('DF raw data'!J145="","",'DF raw data'!J145) -> -7.2976e-06 | C145: =IF('DF raw data'!K145="","",'DF raw data'!K145) -> 8.99709e-05 | D145: =IF('DF raw data'!L145="","",'DF raw data'!L145) -> -3.88241e-05 | F145: 7.914318148e-06 | G145: -5.639516171e-06 | H145: 4.005254149e-06 | J145: 0.0002489336856 | K145: 0.004545202322 | L145: 0.000158142163 | M145: 0.003213376764 | N145: 1.07756044e-06
A146: =IF('DF raw data'!I146="","",'DF raw data'!I146) -> -260.5 | B146: =IF('DF raw data'!J146="","",'DF raw data'!J146) -> -4.21251e-06 | C146: =IF('DF raw data'!K146="","",'DF raw data'!K146) -> 8.99526e-05 | D146: =IF('DF raw data'!L146="","",'DF raw data'!L146) -> -5.37326e-05 | F146: 1.101236553e-05 | G146: -5.657893031e-06 | H146: -1.096586155e-05 | J146: 0.0002544398684 | K146: 0.004672422256 | L146: 0.0001553132165 | M146: 0.003291033372 | N146: 1.121991361e-06
A147: =IF('DF raw data'!I147="","",'DF raw data'!I147) -> -260 | B147: =IF('DF raw data'!J147="","",'DF raw data'!J147) -> 4.17458e-06 | C147: =IF('DF raw data'!K147="","",'DF raw data'!K147) -> 9.21257e-05 | D147: =IF('DF raw data'!L147="","",'DF raw data'!L147) -> -4.4587e-05 | F147: 1.94346813e-05 | G147: -3.475666011e-06 | H147: -1.781850031e-06 | J147: 0.000264157209 | K147: 0.004804500861 | L147: 0.0001535753835 | M147: 0.003367821064 | N147: 1.168673576e-06
A148: =IF('DF raw data'!I148="","",'DF raw data'!I148) -> -259.5 | B148: =IF('DF raw data'!J148="","",'DF raw data'!J148) -> -2.60736e-06 | C148: =IF('DF raw data'!K148="","",'DF raw data'!K148) -> 9.48472e-05 | D148: =IF('DF raw data'!L148="","",'DF raw data'!L148) -> -5.89184e-05 | F148: 1.262425716e-05 | G148: -7.427357112e-07 | H148: -1.617344191e-05 | J148: 0.0002704693376 | K148: 0.00493973553 | L148: 0.0001532040156 | M148: 0.003444423071 | N148: 1.216986142e-06
A149: =IF('DF raw data'!I149="","",'DF raw data'!I149) -> -259 | B149: =IF('DF raw data'!J149="","",'DF raw data'!J149) -> -1.25403e-05 | C149: =IF('DF raw data'!K149="","",'DF raw data'!K149) -> 9.67248e-05 | D149: =IF('DF raw data'!L149="","",'DF raw data'!L149) -> -5.53701e-05 | F149: 2.649598808e-06 | G149: 1.142750209e-06 | H149: -1.261023905e-05 | J149: 0.000271794137 | K149: 0.005075632598 | L149: 0.0001537753908 | M149: 0.003521310767 | N149: 1.265745604e-06
A150: =IF('DF raw data'!I150="","",'DF raw data'!I150) -> -258.5 | B150: =IF('DF raw data'!J150="","",'DF raw data'!J150) -> -1.65146e-05 | C150: =IF('DF raw data'!K150="","",'DF raw data'!K150) -> 0.00010079 | D150: =IF('DF raw data'!L150="","",'DF raw data'!L150) -> -5.23721e-05 | F150: -1.341393252e-06 | G150: 5.225024049e-06 | H150: -9.599647451e-06 | J150: 0.0002711234404 | K150: 0.005211194318 | L150: 0.0001563879028 | M150: 0.003599504718 | N150: 1.314728152e-06
A151: =IF('DF raw data'!I151="","",'DF raw data'!I151) -> -258 | B151: =IF('DF raw data'!J151="","",'DF raw data'!J151) -> -9.72576e-06 | C151: =IF('DF raw data'!K151="","",'DF raw data'!K151) -> 9.77892e-05 | D151: =IF('DF raw data'!L151="","",'DF raw data'!L151) -> -4.85984e-05 | F151: 5.475959876e-06 | G151: 2.211620689e-06 | H151: -5.810097911e-06 | J151: 0.0002738614203 | K151: 0.005348125028 | L151: 0.0001574937131 | M151: 0.003678251575 | N151: 1.364630326e-06
A152: =IF('DF raw data'!I152="","",'DF raw data'!I152) -> -257.5 | B152: =IF('DF raw data'!J152="","",'DF raw data'!J152) -> 5.84201e-07 | C152: =IF('DF raw data'!K152="","",'DF raw data'!K152) -> 9.81235e-05 | D152: =IF('DF raw data'!L152="","",'DF raw data'!L152) -> -4.08392e-05 | F152: 1.582922271e-05 | G152: 2.547324749e-06 | H152: 1.981690729e-06 | J152: 0.0002817760317 | K152: 0.005489013044 | L152: 0.0001587673755 | M152: 0.003757635262 | N152: 1.416932731e-06
A153: =IF('DF raw data'!I153="","",'DF raw data'!I153) -> -257 | B153: =IF('DF raw data'!J153="","",'DF raw data'!J153) -> -3.38276e-06 | C153: =IF('DF raw data'!K153="","",'DF raw data'!K153) -> 9.49863e-05 | D153: =IF('DF raw data'!L153="","",'DF raw data'!L153) -> -4.91447e-05 | F153: 1.184560048e-05 | G153: -6.030514912e-07 | H153: -6.358692371e-06 | J153: 0.0002876988319 | K153: 0.00563286246 | L153: 0.0001584658498 | M153: 0.003836868187 | N153: 1.470873753e-06
A154: =IF('DF raw data'!I154="","",'DF raw data'!I154) -> -256.5 | B154: =IF('DF raw data'!J154="","",'DF raw data'!J154) -> -9.78804e-06 | C154: =IF('DF raw data'!K154="","",'DF raw data'!K154) -> 9.43344e-05 | D154: =IF('DF raw data'!L154="","",'DF raw data'!L154) -> -5.11429e-05 | F154: 5.4134183e-06 | G154: -1.257689471e-06 | H154: -8.365284811e-06 | J154: 0.0002904055411 | K154: 0.005778065231 | L154: 0.000157837005 | M154: 0.00391578669 | N154: 1.525497702e-06
A155: =IF('DF raw data'!I155="","",'DF raw data'!I155) -> -256 | B155: =IF('DF raw data'!J155="","",'DF raw data'!J155) -> -1.40216e-06 | C155: =IF('DF raw data'!K155="","",'DF raw data'!K155) -> 0.000102139 | D155: =IF('DF raw data'!L155="","",'DF raw data'!L155) -> -4.05528e-05 | F155: 1.3834519e-05 | G155: 6.579689849e-06 | H155: 2.269293609e-06 | J155: 0.0002973228006 | K155: 0.005926726631 | L155: 0.0001611268499 | M155: 0.003996350115 | N155: 1.582679057e-06
A156: =IF('DF raw data'!I156="","",'DF raw data'!I156) -> -255.5 | B156: =IF('DF raw data'!J156="","",'DF raw data'!J156) -> -8.69969e-06 | C156: =IF('DF raw data'!K156="","",'DF raw data'!K156) -> 0.000105255 | D156: =IF('DF raw data'!L156="","",'DF raw data'!L156) -> -5.01539e-05 | F156: 6.50633937e-06 | G156: 9.708777049e-06 | H156: -7.372131011e-06 | J156: 0.0003005759702 | K156: 0.006077014616 | L156: 0.0001659812385 | M156: 0.004079340734 | N156: 1.6416269e-06
A157: =IF('DF raw data'!I157="","",'DF raw data'!I157) -> -255 | B157: =IF('DF raw data'!J157="","",'DF raw data'!J157) -> -5.56153e-06 | C157: =IF('DF raw data'!K157="","",'DF raw data'!K157) -> 0.000101757 | D157: =IF('DF raw data'!L157="","",'DF raw data'!L157) -> -4.83202e-05 | F157: 9.657679642e-06 | G157: 6.196085449e-06 | H157: -5.530729471e-06 | J157: 0.0003054048101 | K157: 0.006229717021 | L157: 0.0001690792812 | M157: 0.004163880375 | N157: 1.70255685e-06
A158: =IF('DF raw data'!I158="","",'DF raw data'!I158) -> -254.5 | B158: =IF('DF raw data'!J158="","",'DF raw data'!J158) -> 6.088e-06 | C158: =IF('DF raw data'!K158="","",'DF raw data'!K158) -> 9.65865e-05 | D158: =IF('DF raw data'!L158="","",'DF raw data'!L158) -> -3.14107e-05 | F158: 2.135613767e-05 | G158: 1.003869349e-06 | H158: 1.144979043e-05 | J158: 0.0003160828789 | K158: 0.006387758461 | L158: 0.0001695812159 | M158: 0.004248670983 | N158: 1.766889938e-06
A159: =IF('DF raw data'!I159="","",'DF raw data'!I159) -> -254 | B159: =IF('DF raw data'!J159="","",'DF raw data'!J159) -> -1.505e-05 | C159: =IF('DF raw data'!K159="","",'DF raw data'!K159) -> 9.49877e-05 | D159: =IF('DF raw data'!L159="","",'DF raw data'!L159) -> -3.84038e-05 | F159: 1.293580681e-07 | G159: -6.016456112e-07 | H159: 4.427319409e-06 | J159: 0.0003161475579 | K159: 0.00654583224 | L159: 0.0001692803931 | M159: 0.004333311179 | N159: 1.831192503e-06
A160: =IF('DF raw data'!I160="","",'DF raw data'!I160) -> -253.5 | B160: =IF('DF raw data'!J160="","",'DF raw data'!J160) -> -9.66189e-06 | C160: =IF('DF raw data'!K160="","",'DF raw data'!K160) -> 9.78536e-05 | D160: =IF('DF raw data'!L160="","",'DF raw data'!L160) -> -4.80857e-05 | F160: 5.54009813e-06 | G160: 2.276291169e-06 | H160: -5.295244571e-06 | J160: 0.000318917607 | K160: 0.006705291043 | L160: 0.0001704185386 | M160: 0.004418520448 | N160: 1.896567962e-06
A161: =IF('DF raw data'!I161="","",'DF raw data'!I161) -> -253 | B161: =IF('DF raw data'!J161="","",'DF raw data'!J161) -> -1.17182e-05 | C161: =IF('DF raw data'!K161="","",'DF raw data'!K161) -> 0.000100746 | D161: =IF('DF raw data'!L161="","",'DF raw data'!L161) -> -3.89512e-05 | F161: 3.475151628e-06 | G161: 5.180839249e-06 | H161: 3.877620329e-06 | J161: 0.0003206551828 | K161: 0.006865618634 | L161: 0.0001730089583 | M161: 0.004505024928 | N161: 1.962943885e-06
A162: =IF('DF raw data'!I162="","",'DF raw data'!I162) -> -252.5 | B162: =IF('DF raw data'!J162="","",'DF raw data'!J162) -> -1.01703e-05 | C162: =IF('DF raw data'!K162="","",'DF raw data'!K162) -> 9.50321e-05 | D162: =IF('DF raw data'!L162="","",'DF raw data'!L162) -> -5.47998e-05 | F162: 5.029552808e-06 | G162: -5.570591312e-07 | H162: -1.203754379e-05 | J162: 0.0003231699592 | K162: 0.007027203614 | L162: 0.0001727304287 | M162: 0.004591390142 | N162: 2.030081197e-06
A163: =IF('DF raw data'!I163="","",'DF raw data'!I163) -> -252 | B163: =IF('DF raw data'!J163="","",'DF raw data'!J163) -> -5.95059e-06 | C163: =IF('DF raw data'!K163="","",'DF raw data'!K163) -> 9.60337e-05 | D163: =IF('DF raw data'!L163="","",'DF raw data'!L163) -> -4.11202e-05 | F163: 9.26698559e-06 | G163: 4.487475888e-07 | H163: 1.699510529e-06 | J163: 0.000327803452 | K163: 0.00719110534 | L163: 0.0001729548025 | M163: 0.004677867543 | N163: 2.09876543e-06
A164: =IF('DF raw data'!I164="","",'DF raw data'!I164) -> -251.5 | B164: =IF('DF raw data'!J164="","",'DF raw data'!J164) -> -8.83139e-06 | C164: =IF('DF raw data'!K164="","",'DF raw data'!K164) -> 0.000103093 | D164: =IF('DF raw data'!L164="","",'DF raw data'!L164) -> -4.46438e-05 | F164: 6.37408623e-06 | G164: 7.537696649e-06 | H164: -1.838888591e-06 | J164: 0.0003309904951 | K164: 0.007356600588 | L164: 0.0001767236508 | M164: 0.004766229369 | N164: 2.169158409e-06
A165: =IF('DF raw data'!I165="","",'DF raw data'!I165) -> -251 | B165: =IF('DF raw data'!J165="","",'DF raw data'!J165) -> -2.23449e-05 | C165: =IF('DF raw data'!K165="","",'DF raw data'!K165) -> 9.74622e-05 | D165: =IF('DF raw data'!L165="","",'DF raw data'!L165) -> -5.19126e-05 | F165: -7.196180512e-06 | G165: 1.883247289e-06 | H165: -9.138217551e-06 | J165: 0.0003273924049 | K165: 0.00752029679 | L165: 0.0001776652745 | M165: 0.004855062006 | N165: 2.238533777e-06
A166: =IF('DF raw data'!I166="","",'DF raw data'!I166) -> -250.5 | B166: =IF('DF raw data'!J166="","",'DF raw data'!J166) -> -1.38886e-05 | C166: =IF('DF raw data'!K166="","",'DF raw data'!K166) -> 9.00437e-05 | D166: =IF('DF raw data'!L166="","",'DF raw data'!L166) -> -5.09144e-05 | F166: 1.295635948e-06 | G166: -5.566410411e-06 | H166: -8.135825111e-06 | J166: 0.0003280402228 | K166: 0.007684316902 | L166: 0.0001748820693 | M166: 0.00494250304 | N166: 2.30763084e-06
A167: =IF('DF raw data'!I167="","",'DF raw data'!I167) -> -250 | B167: =IF('DF raw data'!J167="","",'DF raw data'!J167) -> -4.86484e-06 | C167: =IF('DF raw data'!K167="","",'DF raw data'!K167) -> 9.71154e-05 | D167: =IF('DF raw data'!L167="","",'DF raw data'!L167) -> -3.57194e-05 | F167: 1.035729574e-05 | G167: 1.534990729e-06 | H167: 7.122993889e-06 | J167: 0.0003332188707 | K167: 0.007850926337 | L167: 0.0001756495646 | M167: 0.005030327823 | N167: 2.378574632e-06
A168: =IF('DF raw data'!I168="","",'DF raw data'!I168) -> -249.5 | B168: =IF('DF raw data'!J168="","",'DF raw data'!J168) -> -6.14039e-06 | C168: =IF('DF raw data'!K168="","",'DF raw data'!K168) -> 9.70022e-05 | D168: =IF('DF raw data'!L168="","",'DF raw data'!L168) -> -4.46044e-05 | F168: 9.07638843e-06 | G168: 1.421315289e-06 | H168: -1.799323111e-06 | J168: 0.0003377570649 | K168: 0.008019804869 | L168: 0.0001763602223 | M168: 0.005118507934 | N168: 2.451166014e-06
A169: =IF('DF raw data'!I169="","",'DF raw data'!I169) -> -249 | B169: =IF('DF raw data'!J169="","",'DF raw data'!J169) -> -1.27246e-06 | C169: =IF('DF raw data'!K169="","",'DF raw data'!K169) -> 0.000109054 | D169: =IF('DF raw data'!L169="","",'DF raw data'!L169) -> -4.29632e-05 | F169: 1.396476374e-05 | G169: 1.352373285e-05 | H169: -1.512300707e-07 | J169: 0.0003447394468 | K169: 0.008192174593 | L169: 0.0001831220887 | M169: 0.005210068978 | N169: 2.527355507e-06
A170: =IF('DF raw data'!I170="","",'DF raw data'!I170) -> -248.5 | B170: =IF('DF raw data'!J170="","",'DF raw data'!J170) -> -4.21906e-06 | C170: =IF('DF raw data'!K170="","",'DF raw data'!K170) -> 0.000101915 | D170: =IF('DF raw data'!L170="","",'DF raw data'!L170) -> -4.36165e-05 | F170: 1.100578802e-05 | G170: 6.354749049e-06 | H170: -8.072739307e-07 | J170: 0.0003502423408 | K170: 0.008367295763 | L170: 0.0001862994632 | M170: 0.00530321871 | N170: 2.6060441e-06
A171: =IF('DF raw data'!I171="","",'DF raw data'!I171) -> -248 | B171: =IF('DF raw data'!J171="","",'DF raw data'!J171) -> -1.35081e-05 | C171: =IF('DF raw data'!K171="","",'DF raw data'!K171) -> 9.06161e-05 | D171: =IF('DF raw data'!L171="","",'DF raw data'!L171) -> -4.50277e-05 | F171: 1.677734048e-06 | G171: -4.991606331e-06 | H171: -2.224400971e-06 | J171: 0.0003510812078 | K171: 0.008542836367 | L171: 0.0001838036601 | M171: 0.00539512054 | N171: 2.684565e-06
A172: =IF('DF raw data'!I172="","",'DF raw data'!I172) -> -247.5 | B172: =IF('DF raw data'!J172="","",'DF raw data'!J172) -> 2.44516e-06 | C172: =IF('DF raw data'!K172="","",'DF raw data'!K172) -> 9.55113e-05 | D172: =IF('DF raw data'!L172="","",'DF raw data'!L172) -> -4.53408e-05 | F172: 1.769799774e-05 | G172: -7.584649122e-08 | H172: -2.538815991e-06 | J172: 0.0003599302067 | K172: 0.00872280147 | L172: 0.0001837657368 | M172: 0.005487003408 | N172: 2.7662248e-06
A173: =IF('DF raw data'!I173="","",'DF raw data'!I173) -> -247 | B173: =IF('DF raw data'!J173="","",'DF raw data'!J173) -> -9.28682e-06 | C173: =IF('DF raw data'!K173="","",'DF raw data'!K173) -> 9.72099e-05 | D173: =IF('DF raw data'!L173="","",'DF raw data'!L173) -> -3.36955e-05 | F173: 5.916743424e-06 | G173: 1.629887629e-06 | H173: 9.155394269e-06 | J173: 0.0003628885784 | K173: 0.00890424576 | L173: 0.0001845806806 | M173: 0.005579293749 | N173: 2.849103874e-06
A174: =IF('DF raw data'!I174="","",'DF raw data'!I174) -> -246.5 | B174: =IF('DF raw data'!J174="","",'DF raw data'!J174) -> 2.44735e-06 | C174: =IF('DF raw data'!K174="","",'DF raw data'!K174) -> 0.00010332 | D174: =IF('DF raw data'!L174="","",'DF raw data'!L174) -> -4.87182e-05 | F174: 1.770019694e-05 | G174: 7.765650049e-06 | H174: -5.930401071e-06 | J174: 0.0003717386769 | K174: 0.009090115098 | L174: 0.0001884635056 | M174: 0.005673525501 | N174: 2.935957943e-06
A175: =IF('DF raw data'!I175="","",'DF raw data'!I175) -> -246 | B175: =IF('DF raw data'!J175="","",'DF raw data'!J175) -> -6.64438e-06 | C175: =IF('DF raw data'!K175="","",'DF raw data'!K175) -> 9.66793e-05 | D175: =IF('DF raw data'!L175="","",'DF raw data'!L175) -> -5.77587e-05 | F175: 8.570281672e-06 | G175: 1.097059109e-06 | H175: -1.500887117e-05 | J175: 0.0003760238177 | K175: 0.009278127007 | L175: 0.0001890120352 | M175: 0.005768031519 | N175: 3.024517673e-06
A176: =IF('DF raw data'!I176="","",'DF raw data'!I176) -> -245.5 | B176: =IF('DF raw data'!J176="","",'DF raw data'!J176) -> 1.09351e-06 | C176: =IF('DF raw data'!K176="","",'DF raw data'!K176) -> 9.34793e-05 | D176: =IF('DF raw data'!L176="","",'DF raw data'!L176) -> -3.58846e-05 | F176: 1.634067081e-05 | G176: -2.116380891e-06 | H176: 6.957100049e-06 | J176: 0.0003841941531 | K176: 0.009470224083 | L176: 0.0001879538448 | M176: 0.005862008441 | N176: 3.115983571e-06
A177: =IF('DF raw data'!I177="","",'DF raw data'!I177) -> -245 | B177: =IF('DF raw data'!J177="","",'DF raw data'!J177) -> -1.38285e-05 | C177: =IF('DF raw data'!K177="","",'DF raw data'!K177) -> 9.53088e-05 | D177: =IF('DF raw data'!L177="","",'DF raw data'!L177) -> -4.5106e-05 | F177: 1.355988368e-06 | G177: -2.791969912e-07 | H177: -2.303029831e-06 | J177: 0.0003848721473 | K177: 0.009662660157 | L177: 0.0001878142463 | M177: 0.005955915565 | N177: 3.207683951e-06
A178: =IF('DF raw data'!I178="","",'DF raw data'!I178) -> -244.5 | B178: =IF('DF raw data'!J178="","",'DF raw data'!J178) -> -6.45882e-06 | C178: =IF('DF raw data'!K178="","",'DF raw data'!K178) -> 9.48082e-05 | D178: =IF('DF raw data'!L178="","",'DF raw data'!L178) -> -4.7734e-05 | F178: 8.756621024e-06 | G178: -7.818995112e-07 | H178: -4.942067431e-06 | J178: 0.0003892504578 | K178: 0.009857285386 | L178: 0.0001874232965 | M178: 0.006049627213 | N178: 3.301005656e-06
A179: =IF('DF raw data'!I179="","",'DF raw data'!I179) -> -244 | B179: =IF('DF raw data'!J179="","",'DF raw data'!J179) -> -1.87691e-05 | C179: =IF('DF raw data'!K179="","",'DF raw data'!K179) -> 0.000106351 | D179: =IF('DF raw data'!L179="","",'DF raw data'!L179) -> -3.3642e-05 | F179: -3.605362152e-06 | G179: 1.080938025e-05 | H179: 9.209118969e-06 | J179: 0.0003874477767 | K179: 0.01005100927 | L179: 0.0001928279866 | M179: 0.006146041206 | N179: 3.394654863e-06
A180: =IF('DF raw data'!I180="","",'DF raw data'!I180) -> -243.5 | B180: =IF('DF raw data'!J180="","",'DF raw data'!J180) -> -1.26777e-05 | C180: =IF('DF raw data'!K180="","",'DF raw data'!K180) -> 0.000102813 | D180: =IF('DF raw data'!L180="","",'DF raw data'!L180) -> -4.0937e-05 | F180: 2.511621728e-06 | G180: 7.256520649e-06 | H180: 1.883479969e-06 | J180: 0.0003887035876 | K180: 0.01024536107 | L180: 0.000196456247 | M180: 0.00624426933 | N180: 3.489497631e-06
A181: =IF('DF raw data'!I181="","",'DF raw data'!I181) -> -243 | B181: =IF('DF raw data'!J181="","",'DF raw data'!J181) -> -1.17835e-05 | C181: =IF('DF raw data'!K181="","",'DF raw data'!K181) -> 0.000100249 | D181: =IF('DF raw data'!L181="","",'DF raw data'!L181) -> -3.6739e-05 | F181: 3.409577368e-06 | G181: 4.681751849e-06 | H181: 6.099111569e-06 | J181: 0.0003904083763 | K181: 0.01044056526 | L181: 0.0001987971229 | M181: 0.006343667891 | N181: 3.585467129e-06
A182: =IF('DF raw data'!I182="","",'DF raw data'!I182) -> -242.5 | B182: =IF('DF raw data'!J182="","",'DF raw data'!J182) -> -2.61331e-06 | C182: =IF('DF raw data'!K182="","",'DF raw data'!K182) -> 0.000107036 | D182: =IF('DF raw data'!L182="","",'DF raw data'!L182) -> -4.97329e-05 | F182: 1.261828217e-05 | G182: 1.149725725e-05 | H182: -6.949362811e-06 | J182: 0.0003967175174 | K182: 0.01063892401 | L182: 0.0002045457515 | M182: 0.006445940767 | N182: 3.685079005e-06
A183: =IF('DF raw data'!I183="","",'DF raw data'!I183) -> -242 | B183: =IF('DF raw data'!J183="","",'DF raw data'!J183) -> -1.24794e-05 | C183: =IF('DF raw data'!K183="","",'DF raw data'!K183) -> 9.97358e-05 | D183: =IF('DF raw data'!L183="","",'DF raw data'!L183) -> -5.05131e-05 | F183: 2.710754588e-06 | G183: 4.166396409e-06 | H183: -7.732839651e-06 | J183: 0.0003980728947 | K183: 0.01083796046 | L183: 0.0002066289497 | M183: 0.006549255242 | N183: 3.785657781e-06
A184: =IF('DF raw data'!I184="","",'DF raw data'!I184) -> -241.5 | B184: =IF('DF raw data'!J184="","",'DF raw data'!J184) -> 1.48569e-06 | C184: =IF('DF raw data'!K184="","",'DF raw data'!K184) -> 9.37202e-05 | D184: =IF('DF raw data'!L184="","",'DF raw data'!L184) -> -4.78891e-05 | F184: 1.673449797e-05 | G184: -1.874469111e-06 | H184: -5.097818851e-06 | J184: 0.0004064401436 | K184: 0.01104118053 | L184: 0.0002056917151 | M184: 0.006652101099 | N184: 3.889409117e-06
A185: =IF('DF raw data'!I185="","",'DF raw data'!I185) -> -241 | B185: =IF('DF raw data'!J185="","",'DF raw data'!J185) -> -7.55449e-06 | C185: =IF('DF raw data'!K185="","",'DF raw data'!K185) -> 9.19684e-05 | D185: =IF('DF raw data'!L185="","",'DF raw data'!L185) -> -3.78085e-05 | F185: 7.65634921e-06 | G185: -3.633626671e-06 | H185: 5.025119669e-06 | J185: 0.0004102683182 | K185: 0.01124631469 | L185: 0.0002038749018 | M185: 0.00675403855 | N185: 3.994351652e-06
A186: =IF('DF raw data'!I186="","",'DF raw data'!I186) -> -240.5 | B186: =IF('DF raw data'!J186="","",'DF raw data'!J186) -> -1.22921e-05 | C186: =IF('DF raw data'!K186="","",'DF raw data'!K186) -> 8.94771e-05 | D186: =IF('DF raw data'!L186="","",'DF raw data'!L186) -> -4.28185e-05 | F186: 2.898841248e-06 | G186: -6.135390131e-06 | H186: -5.922330732e-09 | J186: 0.0004117177389 | K186: 0.01145217356 | L186: 0.0002008072067 | M186: 0.006854442153 | N186: 4.099269167e-06
A187: =IF('DF raw data'!I187="","",'DF raw data'!I187) -> -240 | B187: =IF('DF raw data'!J187="","",'DF raw data'!J187) -> -4.85984e-06 | C187: =IF('DF raw data'!K187="","",'DF raw data'!K187) -> 9.56139e-05 | D187: =IF('DF raw data'!L187="","",'DF raw data'!L187) -> -4.34144e-05 | F187: 1.036231674e-05 | G187: 2.718442878e-08 | H187: -6.043251107e-07 | J187: 0.0004168988972 | K187: 0.01166062301 | L187: 0.000200820799 | M187: 0.006954852553 | N187: 4.206336009e-06
A188: =IF('DF raw data'!I188="","",'DF raw data'!I188) -> -239.5 | B188: =IF('DF raw data'!J188="","",'DF raw data'!J188) -> -3.19249e-06 | C188: =IF('DF raw data'!K188="","",'DF raw data'!K188) -> 0.000103422 | D188: =IF('DF raw data'!L188="","",'DF raw data'!L188) -> -4.59506e-05 | F188: 1.203666961e-05 | G188: 7.868078449e-06 | H188: -3.151177151e-06 | J188: 0.000422917232 | K188: 0.01187208163 | L188: 0.0002047548382 | M188: 0.007057229972 | N188: 4.316727773e-06
A189: =IF('DF raw data'!I189="","",'DF raw data'!I189) -> -239 | B189: =IF('DF raw data'!J189="","",'DF raw data'!J189) -> -1.68386e-05 | C189: =IF('DF raw data'!K189="","",'DF raw data'!K189) -> 0.000105649 | D189: =IF('DF raw data'!L189="","",'DF raw data'!L189) -> -4.68095e-05 | F189: -1.666754052e-06 | G189: 1.010443185e-05 | H189: -4.013684531e-06 | J189: 0.000422083855 | K189: 0.01208312355 | L189: 0.0002098070541 | M189: 0.007162133499 | N189: 4.427814664e-06
A190: =IF('DF raw data'!I190="","",'DF raw data'!I190) -> -238.5 | B190: =IF('DF raw data'!J190="","",'DF raw data'!J190) -> -1.50396e-05 | C190: =IF('DF raw data'!K190="","",'DF raw data'!K190) -> 0.000102843 | D190: =IF('DF raw data'!L190="","",'DF raw data'!L190) -> -5.43444e-05 | F190: 1.398017481e-07 | G190: 7.286646649e-06 | H190: -1.158023111e-05 | J190: 0.0004221537559 | K190: 0.01229420043 | L190: 0.0002134503774 | M190: 0.007268858688 | N190: 4.539702092e-06
A191: =IF('DF raw data'!I191="","",'DF raw data'!I191) -> -238 | B191: =IF('DF raw data'!J191="","",'DF raw data'!J191) -> -1.53016e-05 | C191: =IF('DF raw data'!K191="","",'DF raw data'!K191) -> 9.65366e-05 | D191: =IF('DF raw data'!L191="","",'DF raw data'!L191) -> -4.55164e-05 | F191: -1.232986519e-07 | G191: 9.537597688e-07 | H191: -2.715153511e-06 | J191: 0.0004220921066 | K191: 0.01250524649 | L191: 0.0002139272573 | M191: 0.007375822316 | N191: 4.651665401e-06
A192: =IF('DF raw data'!I192="","",'DF raw data'!I192) -> -237.5 | B192: =IF('DF raw data'!J192="","",'DF raw data'!J192) -> -9.15008e-06 | C192: =IF('DF raw data'!K192="","",'DF raw data'!K192) -> 9.82187e-05 | D192: =IF('DF raw data'!L192="","",'DF raw data'!L192) -> -4.69303e-05 | F192: 6.054057732e-06 | G192: 2.642924589e-06 | H192: -4.134991891e-06 | J192: 0.0004251191354 | K192: 0.01271780605 | L192: 0.0002152487196 | M192: 0.007483446676 | N192: 4.765194547e-06
A193: =IF('DF raw data'!I193="","",'DF raw data'!I193) -> -237 | B193: =IF('DF raw data'!J193="","",'DF raw data'!J193) -> -1.26126e-05 | C193: =IF('DF raw data'!K193="","",'DF raw data'!K193) -> 0.000100087 | D193: =IF('DF raw data'!L193="","",'DF raw data'!L193) -> -4.27693e-05 | F193: 2.576995148e-06 | G193: 4.519071449e-06 | H193: 4.348430927e-08 | J193: 0.000426407633 | K193: 0.01293100987 | L193: 0.0002175082553 | M193: 0.007592200804 | N193: 4.879761202e-06
A194: =IF('DF raw data'!I194="","",'DF raw data'!I194) -> -236.5 | B194: =IF('DF raw data'!J194="","",'DF raw data'!J194) -> -1.08155e-05 | C194: =IF('DF raw data'!K194="","",'DF raw data'!K194) -> 9.8077e-05 | D194: =IF('DF raw data'!L194="","",'DF raw data'!L194) -> -4.77683e-05 | F194: 4.381642968e-06 | G194: 2.500629449e-06 | H194: -4.976511491e-06 | J194: 0.0004285984545 | K194: 0.0131453091 | L194: 0.0002187585701 | M194: 0.007701580089 | N194: 4.995537176e-06
A195: =IF('DF raw data'!I195="","",'DF raw data'!I195) -> -236 | B195: =IF('DF raw data'!J195="","",'DF raw data'!J195) -> -1.50323e-05 | C195: =IF('DF raw data'!K195="","",'DF raw data'!K195) -> 9.80793e-05 | D195: =IF('DF raw data'!L195="","",'DF raw data'!L195) -> -6.55501e-05 | F195: =(1-$G$1*($B$54-$G$2))*(B195-F$5) -> 1.471324081e-07 | G195: =(1-$G$1*($B$54-$G$2))*(C195-G$5) -> 2.502939109e-06 | H195: =(1-$G$1*($B$54-$G$2))*(D195-H$5) -> -2.283299505e-05 | J195: 0.0004286720207 | K195: 0.01335964511 | L195: 0.0002200100396 | M195: 0.007811585109 | N195: 5.111619235e-06
A196: =IF('DF raw data'!I196="","",'DF raw data'!I196) -> -235.5 | B196: =IF('DF raw data'!J196="","",'DF raw data'!J196) -> -1.43377e-05 | C196: =IF('DF raw data'!K196="","",'DF raw data'!K196) -> 9.85605e-05 | D196: =IF('DF raw data'!L196="","",'DF raw data'!L196) -> -5.00565e-05 | F196: 8.446497281e-07 | G196: 2.986160149e-06 | H196: -7.274321931e-06 | J196: =F196*$G$3+J195 -> 0.0004290943456 | K196: =J196*$G$3+K195 -> 0.01357419228 | L196: =G196*$G$3+L195 -> 0.0002215031197 | M196: =L196*$G$3+M195 -> 0.007922336669 | N196: =(J196^2+L196^2)*$G$3+N195 -> 5.22821203e-06
A197: =IF('DF raw data'!I197="","",'DF raw data'!I197) -> -235 | B197: =IF('DF raw data'!J197="","",'DF raw data'!J197) -> -1.7869e-05 | C197: =IF('DF raw data'!K197="","",'DF raw data'!K197) -> 0.000105378 | D197: =IF('DF raw data'!L197="","",'DF raw data'!L197) -> -3.8539e-05 | F197: -2.701481732e-06 | G197: 9.832293649e-06 | H197: 4.291551569e-06 | J197: 0.0004277436047 | K197: 0.01378806408 | L197: 0.0002264192665 | M197: 0.008035546302 | N197: 5.345327167e-06
A198: =IF('DF raw data'!I198="","",'DF raw data'!I198) -> -234.5 | B198: =IF('DF raw data'!J198="","",'DF raw data'!J198) -> -1.66483e-05 | C198: =IF('DF raw data'!K198="","",'DF raw data'!K198) -> 9.3628e-05 | D198: =IF('DF raw data'!L198="","",'DF raw data'!L198) -> -4.35265e-05 | F198: -1.475654792e-06 | G198: -1.967056351e-06 | H198: -7.168959307e-07 | J198: 0.0004270057773 | K198: 0.01400156697 | L198: 0.0002254357383 | M198: 0.008148264171 | N198: 5.46190477e-06
A199: =IF('DF raw data'!I199="","",'DF raw data'!I199) -> -234 | B199: =IF('DF raw data'!J199="","",'DF raw data'!J199) -> -1.17147e-05 | C199: =IF('DF raw data'!K199="","",'DF raw data'!K199) -> 9.08376e-05 | D199: =IF('DF raw data'!L199="","",'DF raw data'!L199) -> -4.42868e-05 | F199: 3.478666328e-06 | G199: -4.769176031e-06 | H199: -1.480389191e-06 | J199: 0.0004287451105 | K199: 0.01421593953 | L199: 0.0002230511503 | M199: 0.008259789746 | N199: 5.578691863e-06
A200: =IF('DF raw data'!I200="","",'DF raw data'!I200) -> -233.5 | B200: =IF('DF raw data'!J200="","",'DF raw data'!J200) -> -1.0752e-05 | C200: =IF('DF raw data'!K200="","",'DF raw data'!K200) -> 0.000100055 | D200: =IF('DF raw data'!L200="","",'DF raw data'!L200) -> -4.67511e-05 | F200: 4.445409668e-06 | G200: 4.486937049e-06 | H200: -3.955039251e-06 | J200: 0.0004309678153 | K200: 0.01443142343 | L200: 0.0002252946188 | M200: 0.008372437056 | N200: 5.696937325e-06
... 1079 more rows

Sheet 30 mm
A1: =IF('DF raw data'!M1="","",'DF raw data'!M1) -> Number of header lines | B1: =IF('DF raw data'!N1="","",'DF raw data'!N1) -> 54 | C1: =IF('DF raw data'!C1="","",'DF raw data'!C1) ->  | D1: =IF('DF raw data'!D1="","",'DF raw data'!D1) ->  | F1: T_coeff | G1: -0.001 | H1: /degC | J1: IBy total | K1: =J1267*1000 -> -6.108052987 | L1: muTm | M1: =L1267*1000 -> -13.21301649 | R1: DF ref | S1: 1
A2: =IF('DF raw data'!M2="","",'DF raw data'!M2) -> Measured by | B2: =IF('DF raw data'!N2="","",'DF raw data'!N2) -> Danfysik | C2: =IF('DF raw data'!C2="","",'DF raw data'!C2) ->  | D2: =IF('DF raw data'!D2="","",'DF raw data'!D2) ->  | F2: Tcorr | G2: 20 | H2: degC | J2: JBy total | K2: =K1267 -> -7.121449858 | L2: muTm^2 | M2: =M1267 -> -2.531448169
A3: =IF('DF raw data'!M3="","",'DF raw data'!M3) -> Operator | B3: =IF('DF raw data'!N3="","",'DF raw data'!N3) -> PMHA | C3: =IF('DF raw data'!C3="","",'DF raw data'!C3) ->  | D3: =IF('DF raw data'!D3="","",'DF raw data'!D3) ->  | F3: Step | G3: =A68-A67 -> 0.5 | H3: mm | J3: PI total | K3: =N1267 -> 2431.054461 | L3: T^2mm^3
A4: =IF('DF raw data'!M4="","",'DF raw data'!M4) -> Data-time | B4: =IF('DF raw data'!N4="","",'DF raw data'!N4) -> 01-10-2024, 22:20:41 | C4: =IF('DF raw data'!C4="","",'DF raw data'!C4) ->  | D4: =IF('DF raw data'!D4="","",'DF raw data'!D4) -> 
A5: =IF('DF raw data'!M5="","",'DF raw data'!M5) -> Project | B5: =IF('DF raw data'!N5="","",'DF raw data'!N5) -> 504314 | C5: =IF('DF raw data'!C5="","",'DF raw data'!C5) ->  | D5: Bamb avr | F5: =(AVERAGE(B67:B107) + AVERAGE(B1227:B1267))/2 -> -2.100036488e-05 | G5: =(AVERAGE(C67:C107) + AVERAGE(C1227:C1267))/2 -> -3.561356867e-05 | H5: =(AVERAGE(D67:D107) + AVERAGE(D1227:D1267))/2 -> -4.875392073e-05
A6: =IF('DF raw data'!M6="","",'DF raw data'!M6) -> Magnet type | B6: =IF('DF raw data'!N6="","",'DF raw data'!N6) -> Dipole | C6: =IF('DF raw data'!C6="","",'DF raw data'!C6) -> 
A7: =IF('DF raw data'!M7="","",'DF raw data'!M7) -> Magnet nr. | B7: =IF('DF raw data'!N7="","",'DF raw data'!N7) -> 2410108 | C7: =IF('DF raw data'!C7="","",'DF raw data'!C7) -> 
A8: =IF('DF raw data'!M8="","",'DF raw data'!M8) -> Meas. number | B8: =IF('DF raw data'!N8="","",'DF raw data'!N8) -> 923 | C8: =IF('DF raw data'!C8="","",'DF raw data'!C8) -> 
A9: =IF('DF raw data'!M9="","",'DF raw data'!M9) -> Add. info | B9: =IF('DF raw data'!N9="","",'DF raw data'!N9) -> X-alignment scan 3) | C9: =IF('DF raw data'!C9="","",'DF raw data'!C9) ->  | D9: =IF('DF raw data'!D9="","",'DF raw data'!D9) -> 
A10: =IF('DF raw data'!M10="","",'DF raw data'!M10) -> Device | B10: =IF('DF raw data'!N10="","",'DF raw data'!N10) -> (HAL) HALL-PROBE | C10: =IF('DF raw data'!C10="","",'DF raw data'!C10) ->  | D10: =IF('DF raw data'!D10="","",'DF raw data'!D10) -> 
A11: =IF('DF raw data'!M11="","",'DF raw data'!M11) -> Goal | B11: =IF('DF raw data'!N11="","",'DF raw data'!N11) -> (AXI) AXis Integral (Line, EFB) | C11: =IF('DF raw data'!C11="","",'DF raw data'!C11) ->  | D11: =IF('DF raw data'!D11="","",'DF raw data'!D11) -> 
A12: =IF('DF raw data'!M12="","",'DF raw data'!M12) -> Power supply mode | B12: =IF('DF raw data'!N12="","",'DF raw data'!N12) -> (PM) Permanent Magnet (no MPS in use) | C12: =IF('DF raw data'!C12="","",'DF raw data'!C12) ->  | D12: =IF('DF raw data'!D12="","",'DF raw data'!D12) -> 
A13: =IF('DF raw data'!M13="","",'DF raw data'!M13) -> Data format | B13: =IF('DF raw data'!N13="","",'DF raw data'!N13) -> Raw data text file | C13: =IF('DF raw data'!C13="","",'DF raw data'!C13) ->  | D13: =IF('DF raw data'!D13="","",'DF raw data'!D13) -> 
A14: =IF('DF raw data'!M14="","",'DF raw data'!M14) -> Direction of the pos. x-axis | B14: =IF('DF raw data'!N14="","",'DF raw data'!N14) -> See test program | C14: =IF('DF raw data'!C14="","",'DF raw data'!C14) ->  | D14: =IF('DF raw data'!D14="","",'DF raw data'!D14) -> 
A15: =IF('DF raw data'!M15="","",'DF raw data'!M15) -> Direction of the pos. y-axis | B15: =IF('DF raw data'!N15="","",'DF raw data'!N15) -> Vertical up | C15: =IF('DF raw data'!C15="","",'DF raw data'!C15) ->  | D15: =IF('DF raw data'!D15="","",'DF raw data'!D15) -> 
A16: =IF('DF raw data'!M16="","",'DF raw data'!M16) -> Direction of the pos. z-axis | B16: =IF('DF raw data'!N16="","",'DF raw data'!N16) -> See test program | C16: =IF('DF raw data'!C16="","",'DF raw data'!C16) ->  | D16: =IF('DF raw data'!D16="","",'DF raw data'!D16) -> 
A17: =IF('DF raw data'!M17="","",'DF raw data'!M17) -> Mapper type | B17: =IF('DF raw data'!N17="","",'DF raw data'!N17) -> Precision Hall Mapper | C17: =IF('DF raw data'!C17="","",'DF raw data'!C17) ->  | D17: =IF('DF raw data'!D17="","",'DF raw data'!D17) -> 
A18: =IF('DF raw data'!M18="","",'DF raw data'!M18) -> Mapper Danfysik Reg. Number | B18: =IF('DF raw data'!N18="","",'DF raw data'!N18) -> 2033-D (mapper 1) | C18: =IF('DF raw data'!C18="","",'DF raw data'!C18) ->  | D18: =IF('DF raw data'!D18="","",'DF raw data'!D18) -> 
A19: =IF('DF raw data'!M19="","",'DF raw data'!M19) -> Measurement consept | B19: =IF('DF raw data'!N19="","",'DF raw data'!N19) -> Square line grid | C19: =IF('DF raw data'!C19="","",'DF raw data'!C19) ->  | D19: =IF('DF raw data'!D19="","",'DF raw data'!D19) -> 
A20: =IF('DF raw data'!M20="","",'DF raw data'!M20) -> Mode | B20: =IF('DF raw data'!N20="","",'DF raw data'!N20) -> On-the-fly measurement | C20: =IF('DF raw data'!C20="","",'DF raw data'!C20) ->  | D20: =IF('DF raw data'!D20="","",'DF raw data'!D20) -> 
A21: =IF('DF raw data'!M21="","",'DF raw data'!M21) ->  | B21: =IF('DF raw data'!N21="","",'DF raw data'!N21) ->  | C21: =IF('DF raw data'!C21="","",'DF raw data'!C21) ->  | D21: =IF('DF raw data'!D21="","",'DF raw data'!D21) -> 
A22: =IF('DF raw data'!M22="","",'DF raw data'!M22) -> Probe Name | B22: =IF('DF raw data'!N22="","",'DF raw data'!N22) -> ID12_By | C22: =IF('DF raw data'!C22="","",'DF raw data'!C22) ->  | D22: =IF('DF raw data'!D22="","",'DF raw data'!D22) -> 
A23: =IF('DF raw data'!M23="","",'DF raw data'!M23) -> Probe Type | B23: =IF('DF raw data'!N23="","",'DF raw data'!N23) -> DF_ID_3D_Bxyz | C23: =IF('DF raw data'!C23="","",'DF raw data'!C23) ->  | D23: =IF('DF raw data'!D23="","",'DF raw data'!D23) -> 
A24: =IF('DF raw data'!M24="","",'DF raw data'!M24) -> Probe Danfysik Reg. Number | B24: =IF('DF raw data'!N24="","",'DF raw data'!N24) -> 2277 | C24: =IF('DF raw data'!C24="","",'DF raw data'!C24) ->  | D24: =IF('DF raw data'!D24="","",'DF raw data'!D24) -> 
A25: =IF('DF raw data'!M25="","",'DF raw data'!M25) -> Probe Axis | B25: =IF('DF raw data'!N25="","",'DF raw data'!N25) -> By | C25: =IF('DF raw data'!C25="","",'DF raw data'!C25) ->  | D25: =IF('DF raw data'!D25="","",'DF raw data'!D25) -> 
A26: =IF('DF raw data'!M26="","",'DF raw data'!M26) -> Probe Current Supply | B26: =IF('DF raw data'!N26="","",'DF raw data'!N26) -> 1825-D | C26: =IF('DF raw data'!C26="","",'DF raw data'!C26) ->  | D26: =IF('DF raw data'!D26="","",'DF raw data'!D26) -> 
A27: =IF('DF raw data'!M27="","",'DF raw data'!M27) -> Probe Gain Correction | B27: =IF('DF raw data'!N27="","",'DF raw data'!N27) -> 0.99614 | C27: =IF('DF raw data'!C27="","",'DF raw data'!C27) ->  | D27: =IF('DF raw data'!D27="","",'DF raw data'!D27) -> 
A28: =IF('DF raw data'!M28="","",'DF raw data'!M28) -> Probe Offset Correction | B28: =IF('DF raw data'!N28="","",'DF raw data'!N28) -> 0.0027502 | C28: =IF('DF raw data'!C28="","",'DF raw data'!C28) ->  | D28: =IF('DF raw data'!D28="","",'DF raw data'!D28) -> 
A29: =IF('DF raw data'!M29="","",'DF raw data'!M29) -> DVM Number | B29: =IF('DF raw data'!N29="","",'DF raw data'!N29) -> 2 | C29: =IF('DF raw data'!C29="","",'DF raw data'!C29) ->  | D29: =IF('DF raw data'!D29="","",'DF raw data'!D29) -> 
A30: =IF('DF raw data'!M30="","",'DF raw data'!M30) -> DVM Type | B30: =IF('DF raw data'!N30="","",'DF raw data'!N30) -> K2701 | C30: =IF('DF raw data'!C30="","",'DF raw data'!C30) ->  | D30: =IF('DF raw data'!D30="","",'DF raw data'!D30) -> 
A31: =IF('DF raw data'!M31="","",'DF raw data'!M31) -> DVM Danfysik Reg. Number | B31: =IF('DF raw data'!N31="","",'DF raw data'!N31) -> 1743-D | C31: =IF('DF raw data'!C31="","",'DF raw data'!C31) ->  | D31: =IF('DF raw data'!D31="","",'DF raw data'!D31) -> 
A32: =IF('DF raw data'!M32="","",'DF raw data'!M32) -> Probe Name | B32: =IF('DF raw data'!N32="","",'DF raw data'!N32) -> ID12_Bx | C32: =IF('DF raw data'!C32="","",'DF raw data'!C32) ->  | D32: =IF('DF raw data'!D32="","",'DF raw data'!D32) -> 
A33: =IF('DF raw data'!M33="","",'DF raw data'!M33) -> Probe Type | B33: =IF('DF raw data'!N33="","",'DF raw data'!N33) -> DF_ID_3D_Bxyz | C33: =IF('DF raw data'!C33="","",'DF raw data'!C33) ->  | D33: =IF('DF raw data'!D33="","",'DF raw data'!D33) -> 
A34: =IF('DF raw data'!M34="","",'DF raw data'!M34) -> Probe Danfysik Reg. Number | B34: =IF('DF raw data'!N34="","",'DF raw data'!N34) -> 2277 | C34: =IF('DF raw data'!C34="","",'DF raw data'!C34) ->  | D34: =IF('DF raw data'!D34="","",'DF raw data'!D34) -> 
A35: =IF('DF raw data'!M35="","",'DF raw data'!M35) -> Probe Axis | B35: =IF('DF raw data'!N35="","",'DF raw data'!N35) -> Bx | C35: =IF('DF raw data'!C35="","",'DF raw data'!C35) ->  | D35: =IF('DF raw data'!D35="","",'DF raw data'!D35) -> 
A36: =IF('DF raw data'!M36="","",'DF raw data'!M36) -> Probe Current Supply | B36: =IF('DF raw data'!N36="","",'DF raw data'!N36) -> 1825-D | C36: =IF('DF raw data'!C36="","",'DF raw data'!C36) ->  | D36: =IF('DF raw data'!D36="","",'DF raw data'!D36) -> 
A37: =IF('DF raw data'!M37="","",'DF raw data'!M37) -> Probe Gain Correction | B37: =IF('DF raw data'!N37="","",'DF raw data'!N37) -> 1 | C37: =IF('DF raw data'!C37="","",'DF raw data'!C37) ->  | D37: =IF('DF raw data'!D37="","",'DF raw data'!D37) -> 
A38: =IF('DF raw data'!M38="","",'DF raw data'!M38) -> Probe Offset Correction | B38: =IF('DF raw data'!N38="","",'DF raw data'!N38) -> -0.1755 | C38: =IF('DF raw data'!C38="","",'DF raw data'!C38) ->  | D38: =IF('DF raw data'!D38="","",'DF raw data'!D38) -> 
A39: =IF('DF raw data'!M39="","",'DF raw data'!M39) -> DVM Number | B39: =IF('DF raw data'!N39="","",'DF raw data'!N39) -> 3 | C39: =IF('DF raw data'!C39="","",'DF raw data'!C39) ->  | D39: =IF('DF raw data'!D39="","",'DF raw data'!D39) -> 
A40: =IF('DF raw data'!M40="","",'DF raw data'!M40) -> DVM Type | B40: =IF('DF raw data'!N40="","",'DF raw data'!N40) -> K2701 | C40: =IF('DF raw data'!C40="","",'DF raw data'!C40) ->  | D40: =IF('DF raw data'!D40="","",'DF raw data'!D40) -> 
A41: =IF('DF raw data'!M41="","",'DF raw data'!M41) -> DVM Danfysik Reg. Number | B41: =IF('DF raw data'!N41="","",'DF raw data'!N41) -> 1744-D | C41: =IF('DF raw data'!C41="","",'DF raw data'!C41) ->  | D41: =IF('DF raw data'!D41="","",'DF raw data'!D41) -> 
A42: =IF('DF raw data'!M42="","",'DF raw data'!M42) -> Probe Name | B42: =IF('DF raw data'!N42="","",'DF raw data'!N42) -> ID12_Bz | C42: =IF('DF raw data'!C42="","",'DF raw data'!C42) ->  | D42: =IF('DF raw data'!D42="","",'DF raw data'!D42) -> 
A43: =IF('DF raw data'!M43="","",'DF raw data'!M43) -> Probe Type | B43: =IF('DF raw data'!N43="","",'DF raw data'!N43) -> DF_ID_3D_Bxyz | C43: =IF('DF raw data'!C43="","",'DF raw data'!C43) ->  | D43: =IF('DF raw data'!D43="","",'DF raw data'!D43) -> 
A44: =IF('DF raw data'!M44="","",'DF raw data'!M44) -> Probe Danfysik Reg. Number | B44: =IF('DF raw data'!N44="","",'DF raw data'!N44) -> 2277 | C44: =IF('DF raw data'!C44="","",'DF raw data'!C44) ->  | D44: =IF('DF raw data'!D44="","",'DF raw data'!D44) -> 
A45: =IF('DF raw data'!M45="","",'DF raw data'!M45) -> Probe Axis | B45: =IF('DF raw data'!N45="","",'DF raw data'!N45) -> Bz | C45: =IF('DF raw data'!C45="","",'DF raw data'!C45) ->  | D45: =IF('DF raw data'!D45="","",'DF raw data'!D45) -> 
A46: =IF('DF raw data'!M46="","",'DF raw data'!M46) -> Probe Current Supply | B46: =IF('DF raw data'!N46="","",'DF raw data'!N46) -> 1825-D | C46: =IF('DF raw data'!C46="","",'DF raw data'!C46) ->  | D46: =IF('DF raw data'!D46="","",'DF raw data'!D46) -> 
A47: =IF('DF raw data'!M47="","",'DF raw data'!M47) -> Probe Gain Correction | B47: =IF('DF raw data'!N47="","",'DF raw data'!N47) -> 1 | C47: =IF('DF raw data'!C47="","",'DF raw data'!C47) ->  | D47: =IF('DF raw data'!D47="","",'DF raw data'!D47) -> 
A48: =IF('DF raw data'!M48="","",'DF raw data'!M48) -> Probe Offset Correction | B48: =IF('DF raw data'!N48="","",'DF raw data'!N48) -> 0.0073192 | C48: =IF('DF raw data'!C48="","",'DF raw data'!C48) ->  | D48: =IF('DF raw data'!D48="","",'DF raw data'!D48) -> 
A49: =IF('DF raw data'!M49="","",'DF raw data'!M49) -> DVM Number | B49: =IF('DF raw data'!N49="","",'DF raw data'!N49) -> 8 | C49: =IF('DF raw data'!C49="","",'DF raw data'!C49) ->  | D49: =IF('DF raw data'!D49="","",'DF raw data'!D49) -> 
A50: =IF('DF raw data'!M50="","",'DF raw data'!M50) -> DVM Type | B50: =IF('DF raw data'!N50="","",'DF raw data'!N50) -> K2700 | C50: =IF('DF raw data'!C50="","",'DF raw data'!C50) ->  | D50: =IF('DF raw data'!D50="","",'DF raw data'!D50) -> 
A51: =IF('DF raw data'!M51="","",'DF raw data'!M51) -> DVM Danfysik Reg. Number | B51: =IF('DF raw data'!N51="","",'DF raw data'!N51) -> 1756-D | C51: =IF('DF raw data'!C51="","",'DF raw data'!C51) ->  | D51: =IF('DF raw data'!D51="","",'DF raw data'!D51) -> 
A52: =IF('DF raw data'!M52="","",'DF raw data'!M52) -> NTC voltage | B52: =IF('DF raw data'!N52="","",'DF raw data'!N52) -> 0.42026 | C52: =IF('DF raw data'!C52="","",'DF raw data'!C52) ->  | D52: =IF('DF raw data'!D52="","",'DF raw data'!D52) -> 
A53: =IF('DF raw data'!M53="","",'DF raw data'!M53) -> PS-Gap: | B53: =IF('DF raw data'!N53="","",'DF raw data'!N53) -> 30 | C53: =IF('DF raw data'!C53="","",'DF raw data'!C53) ->  | D53: =IF('DF raw data'!D53="","",'DF raw data'!D53) -> 
A54: =IF('DF raw data'!M54="","",'DF raw data'!M54) -> PS-Temperature: | B54: =IF('DF raw data'!N54="","",'DF raw data'!N54) -> 24.2 | C54: =IF('DF raw data'!C54="","",'DF raw data'!C54) ->  | D54: =IF('DF raw data'!D54="","",'DF raw data'!D54) -> 
A55: =IF('DF raw data'!M55="","",'DF raw data'!M55) -> PS-Encoder: | B55: =IF('DF raw data'!N55="","",'DF raw data'!N55) -> 39.7522 | C55: =IF('DF raw data'!C55="","",'DF raw data'!C55) ->  | D55: =IF('DF raw data'!D55="","",'DF raw data'!D55) -> 
A56: =IF('DF raw data'!M56="","",'DF raw data'!M56) ->  | B56: =IF('DF raw data'!N56="","",'DF raw data'!N56) -> 
A57: =IF('DF raw data'!M57="","",'DF raw data'!M57) -> Monitor-Index | B57: =IF('DF raw data'!N57="","",'DF raw data'!N57) -> [1,1,4]
A58: =IF('DF raw data'!M58="","",'DF raw data'!M58) ->  | B58: =IF('DF raw data'!N58="","",'DF raw data'!N58) -> 
A59: =IF('DF raw data'!M59="","",'DF raw data'!M59) -> Time [s] | B59: =IF('DF raw data'!N59="","",'DF raw data'!N59) -> Y [mm]
A60: =IF('DF raw data'!M60="","",'DF raw data'!M60) ->  | B60: =IF('DF raw data'!N60="","",'DF raw data'!N60) -> 
A61: =IF('DF raw data'!M61="","",'DF raw data'!M61) -> 208.1 | B61: =IF('DF raw data'!N61="","",'DF raw data'!N61) -> 31.38
A62: =IF('DF raw data'!M62="","",'DF raw data'!M62) ->  | B62: =IF('DF raw data'!N62="","",'DF raw data'!N62) -> 
A63: =IF('DF raw data'!M63="","",'DF raw data'!M63) -> Measurement-Index | B63: =IF('DF raw data'!N63="","",'DF raw data'!N63) -> [1,1,1201,2]
A64: =IF('DF raw data'!M64="","",'DF raw data'!M64) ->  | B64: =IF('DF raw data'!N64="","",'DF raw data'!N64) -> 
A65: =IF('DF raw data'!M65="","",'DF raw data'!M65) -> Z [mm] | B65: =IF('DF raw data'!N65="","",'DF raw data'!N65) -> By [T] | C65: =IF('DF raw data'!O65="","",'DF raw data'!O65) -> Bx [T] | D65: =IF('DF raw data'!P65="","",'DF raw data'!P65) -> Bz [T] | F65: By_corr | G65: Bx_corr | H65: Bz_corr | J65: Iy | K65: Jy | L65: Ix | M65: Jx | N65: PI
B66: =IF('DF raw data'!N66="","",'DF raw data'!N66) ->  | C66: =IF('DF raw data'!O66="","",'DF raw data'!O66) ->  | D66: =IF('DF raw data'!P66="","",'DF raw data'!P66) -> 
A67: =IF('DF raw data'!M67="","",'DF raw data'!M67) -> -300 | B67: =IF('DF raw data'!N67="","",'DF raw data'!N67) -> -8.98956e-06 | C67: =IF('DF raw data'!O67="","",'DF raw data'!O67) -> -1.3573e-05 | D67: =IF('DF raw data'!P67="","",'DF raw data'!P67) -> -5.35789e-05 | F67: =(1-$G$1*($B$54-$G$2))*(B67-F$5) -> 1.206125026e-05 | G67: =(1-$G$1*($B$54-$G$2))*(C67-G$5) -> 2.213313906e-05 | H67: =(1-$G$1*($B$54-$G$2))*(D67-H$5) -> -4.845244181e-06 | J67: =F67*$G$3+J66 -> 6.030625129e-06 | K67: =J67*$G$3+K66 -> 3.015312565e-06 | L67: =G67*$G$3+L66 -> 1.106656953e-05 | M67: =L67*$G$3+M66 -> 5.533284765e-06 | N67: =(J67^2+L67^2)*$G$3+N66 -> 7.94187003e-11
A68: =IF('DF raw data'!M68="","",'DF raw data'!M68) -> -299.5 | B68: =IF('DF raw data'!N68="","",'DF raw data'!N68) -> -1.74472e-05 | C68: =IF('DF raw data'!O68="","",'DF raw data'!O68) -> -8.89486e-06 | D68: =IF('DF raw data'!P68="","",'DF raw data'!P68) -> -5.31194e-05 | F68: 3.568088171e-06 | G68: 2.683092725e-05 | H68: -4.383814281e-06 | J68: =F68*$G$3+J67 -> 7.814669215e-06 | K68: =J68*$G$3+K67 -> 6.922647172e-06 | L68: =G68*$G$3+L67 -> 2.448203315e-05 | M68: =L68*$G$3+M67 -> 1.777430134e-05 | N68: =(J68^2+L68^2)*$G$3+N67 -> 4.096382014e-10
A69: =IF('DF raw data'!M69="","",'DF raw data'!M69) -> -299 | B69: =IF('DF raw data'!N69="","",'DF raw data'!N69) -> -1.73838e-05 | C69: =IF('DF raw data'!O69="","",'DF raw data'!O69) -> -4.35763e-06 | D69: =IF('DF raw data'!P69="","",'DF raw data'!P69) -> -5.22668e-05 | F69: 3.631754451e-06 | G69: 3.138721361e-05 | H69: -3.527633361e-06 | J69: 9.63054644e-06 | K69: 1.173792039e-05 | L69: 4.017563996e-05 | M69: 3.786212132e-05 | N69: 1.263052937e-09
A70: =IF('DF raw data'!M70="","",'DF raw data'!M70) -> -298.5 | B70: =IF('DF raw data'!N70="","",'DF raw data'!N70) -> -2.09079e-05 | C70: =IF('DF raw data'!O70="","",'DF raw data'!O70) -> -1.25777e-05 | D70: =IF('DF raw data'!P70="","",'DF raw data'!P70) -> -5.20051e-05 | F70: 9.285323054e-08 | G70: 2.313261932e-05 | H70: -3.264834221e-06 | J70: 9.676973055e-06 | K70: 1.657640692e-05 | L70: 5.174194962e-05 | M70: 6.373309613e-05 | N70: 2.648489516e-09
A71: =IF('DF raw data'!M71="","",'DF raw data'!M71) -> -298 | B71: =IF('DF raw data'!N71="","",'DF raw data'!N71) -> -9.63093e-06 | C71: =IF('DF raw data'!O71="","",'DF raw data'!O71) -> -1.97342e-05 | D71: =IF('DF raw data'!P71="","",'DF raw data'!P71) -> -5.25353e-05 | F71: 1.14171865e-05 | G71: 1.594606202e-05 | H71: -3.797261061e-06 | J71: 1.538556631e-05 | K71: 2.426919007e-05 | L71: 5.971498063e-05 | M71: 9.359058645e-05 | N71: 4.549786797e-09
A72: =IF('DF raw data'!M72="","",'DF raw data'!M72) -> -297.5 | B72: =IF('DF raw data'!N72="","",'DF raw data'!N72) -> -2.84042e-05 | C72: =IF('DF raw data'!O72="","",'DF raw data'!O72) -> -1.92005e-05 | D72: =IF('DF raw data'!P72="","",'DF raw data'!P72) -> -5.23072e-05 | F72: -7.434931229e-06 | G72: 1.648200356e-05 | H72: -3.568203041e-06 | J72: 1.166810069e-05 | K72: 3.010324042e-05 | L72: 6.795598241e-05 | M72: 0.0001275685776 | N72: 6.926866856e-09
A73: =IF('DF raw data'!M73="","",'DF raw data'!M73) -> -297 | B73: =IF('DF raw data'!N73="","",'DF raw data'!N73) -> -2.67389e-05 | C73: =IF('DF raw data'!O73="","",'DF raw data'!O73) -> -1.72245e-05 | D73: =IF('DF raw data'!P73="","",'DF raw data'!P73) -> -5.11483e-05 | F73: -5.762636969e-06 | G73: 1.846630276e-05 | H73: -2.404435661e-06 | J73: 8.786782208e-06 | K73: 3.449663152e-05 | L73: 7.718913379e-05 | M73: 0.0001661631445 | N73: 9.944551815e-09
A74: =IF('DF raw data'!M74="","",'DF raw data'!M74) -> -296.5 | B74: =IF('DF raw data'!N74="","",'DF raw data'!N74) -> -1.45655e-05 | C74: =IF('DF raw data'!O74="","",'DF raw data'!O74) -> -9.39407e-06 | D74: =IF('DF raw data'!P74="","",'DF raw data'!P74) -> -5.07537e-05 | F74: 6.461891311e-06 | G74: 2.632962057e-05 | H74: -2.008178341e-06 | J74: 1.201772786e-05 | K74: 4.050549545e-05 | L74: 9.035394407e-05 | M74: 0.0002113401166 | N74: 1.409868231e-08
A75: =IF('DF raw data'!M75="","",'DF raw data'!M75) -> -296 | B75: =IF('DF raw data'!N75="","",'DF raw data'!N75) -> -1.23867e-05 | C75: =IF('DF raw data'!O75="","",'DF raw data'!O75) -> -4.94239e-06 | D75: =IF('DF raw data'!P75="","",'DF raw data'!P75) -> -5.14883e-05 | F75: 8.649842271e-06 | G75: 3.079999762e-05 | H75: -2.745863661e-06 | J75: 1.6342649e-05 | K75: 4.867681995e-05 | L75: 0.0001057539429 | M75: 0.000264217088 | N75: 1.982417162e-08
A76: =IF('DF raw data'!M76="","",'DF raw data'!M76) -> -295.5 | B76: =IF('DF raw data'!N76="","",'DF raw data'!N76) -> -1.85373e-05 | C76: =IF('DF raw data'!O76="","",'DF raw data'!O76) -> -1.12622e-05 | D76: =IF('DF raw data'!P76="","",'DF raw data'!P76) -> -5.19158e-05 | F76: 2.473409751e-06 | G76: 2.445364442e-05 | H76: -3.175159161e-06 | J76: 1.757935387e-05 | K76: 5.746649689e-05 | L76: 0.0001179807651 | M76: 0.0003232074706 | N76: 2.693841892e-08
A77: =IF('DF raw data'!M77="","",'DF raw data'!M77) -> -295 | B77: =IF('DF raw data'!N77="","",'DF raw data'!N77) -> -1.732e-05 | C77: =IF('DF raw data'!O77="","",'DF raw data'!O77) -> -1.45619e-05 | D77: =IF('DF raw data'!P77="","",'DF raw data'!P77) -> -5.1721e-05 | F77: 3.695822411e-06 | G77: 2.114008568e-05 | H77: -2.979541001e-06 | J77: 1.942726508e-05 | K77: 6.718012943e-05 | L77: 0.0001285508079 | M77: 0.0003874828745 | N77: 3.538978335e-08
A78: =IF('DF raw data'!M78="","",'DF raw data'!M78) -> -294.5 | B78: =IF('DF raw data'!N78="","",'DF raw data'!N78) -> -1.50134e-05 | C78: =IF('DF raw data'!O78="","",'DF raw data'!O78) -> -1.2861e-05 | D78: =IF('DF raw data'!P78="","",'DF raw data'!P78) -> -5.18223e-05 | F78: 6.012110131e-06 | G78: 2.284812946e-05 | H78: -3.081266461e-06 | J78: 2.243332014e-05 | K78: 7.83967895e-05 | L78: 0.0001399748727 | M78: 0.0004574703109 | N78: 4.543789276e-08
A79: =IF('DF raw data'!M79="","",'DF raw data'!M79) -> -294 | B79: =IF('DF raw data'!N79="","",'DF raw data'!N79) -> -1.34755e-05 | C79: =IF('DF raw data'!O79="","",'DF raw data'!O79) -> -9.40227e-06 | D79: =IF('DF raw data'!P79="","",'DF raw data'!P79) -> -5.2268e-05 | F79: 7.556469311e-06 | G79: 2.632138613e-05 | H79: -3.528838401e-06 | J79: 2.62115548e-05 | K79: 9.15025669e-05 | L79: 0.0001531355657 | M79: 0.0005340380937 | N79: 5.750666631e-08
A80: =IF('DF raw data'!M80="","",'DF raw data'!M80) -> -293.5 | B80: =IF('DF raw data'!N80="","",'DF raw data'!N80) -> -2.12923e-05 | C80: =IF('DF raw data'!O80="","",'DF raw data'!O80) -> -8.81937e-06 | D80: =IF('DF raw data'!P80="","",'DF raw data'!P80) -> -5.19993e-05 | F80: -2.931612495e-07 | G80: 2.690673431e-05 | H80: -3.259009861e-06 | J80: 2.606497417e-05 | K80: 0.000104535054 | L80: 0.0001665889329 | M80: 0.0006173325602 | N80: 7.172229403e-08
A81: =IF('DF raw data'!M81="","",'DF raw data'!M81) -> -293 | B81: =IF('DF raw data'!N81="","",'DF raw data'!N81) -> -2.34074e-05 | C81: =IF('DF raw data'!O81="","",'DF raw data'!O81) -> -1.16419e-05 | D81: =IF('DF raw data'!P81="","",'DF raw data'!P81) -> -5.10387e-05 | F81: -2.417144669e-06 | G81: 2.407234968e-05 | H81: -2.294375341e-06 | J81: 2.485640184e-05 | K81: 0.0001169632549 | L81: 0.0001786251077 | M81: 0.000706645114 | N81: 8.798467894e-08
A82: =IF('DF raw data'!M82="","",'DF raw data'!M82) -> -292.5 | B82: =IF('DF raw data'!N82="","",'DF raw data'!N82) -> -9.43982e-06 | C82: =IF('DF raw data'!O82="","",'DF raw data'!O82) -> -1.30882e-05 | D82: =IF('DF raw data'!P82="","",'DF raw data'!P82) -> -5.06395e-05 | F82: 1.160909917e-05 | G82: 2.261997522e-05 | H82: -1.893498701e-06 | J82: 3.066095142e-05 | K82: 0.0001322937306 | L82: 0.0001899350953 | M82: 0.0008016126617 | N82: 1.064923961e-07
A83: =IF('DF raw data'!M83="","",'DF raw data'!M83) -> -292 | B83: =IF('DF raw data'!N83="","",'DF raw data'!N83) -> -1.23227e-05 | C83: =IF('DF raw data'!O83="","",'DF raw data'!O83) -> -5.33481e-06 | D83: =IF('DF raw data'!P83="","",'DF raw data'!P83) -> -5.11417e-05 | F83: 8.714111071e-06 | G83: 3.040592946e-05 | H83: -2.397807941e-06 | J83: 3.501800696e-05 | K83: 0.0001498027341 | L83: 0.0002051380601 | M83: 0.0009041816917 | N83: 1.281463384e-07
A84: =IF('DF raw data'!M84="","",'DF raw data'!M84) -> -291.5 | B84: =IF('DF raw data'!N84="","",'DF raw data'!N84) -> -6.42868e-06 | C84: =IF('DF raw data'!O84="","",'DF raw data'!O84) -> -1.31232e-05 | D84: =IF('DF raw data'!P84="","",'DF raw data'!P84) -> -5.02917e-05 | F84: 1.463288595e-05 | G84: 2.258482822e-05 | H84: -1.544237941e-06 | J84: 4.233444994e-05 | K84: 0.0001709699591 | L84: 0.0002164304742 | M84: 0.001012396929 | N84: 1.524635163e-07
A85: =IF('DF raw data'!M85="","",'DF raw data'!M85) -> -291 | B85: =IF('DF raw data'!N85="","",'DF raw data'!N85) -> -1.18732e-05 | C85: =IF('DF raw data'!O85="","",'DF raw data'!O85) -> -6.53466e-06 | D85: =IF('DF raw data'!P85="","",'DF raw data'!P85) -> -5.29619e-05 | F85: 9.165498971e-06 | G85: 2.920104009e-05 | H85: -4.225652781e-06 | J85: 4.691719942e-05 | K85: 0.0001944285588 | L85: 0.0002310309942 | M85: 0.001127912426 | N85: 1.802517882e-07
A86: =IF('DF raw data'!M86="","",'DF raw data'!M86) -> -290.5 | B86: =IF('DF raw data'!N86="","",'DF raw data'!N86) -> -1.68108e-05 | C86: =IF('DF raw data'!O86="","",'DF raw data'!O86) -> -7.18503e-06 | D86: =IF('DF raw data'!P86="","",'DF raw data'!P86) -> -4.65661e-05 | F86: 4.207161051e-06 | G86: 2.854793853e-05 | H86: 2.197009579e-06 | J86: 4.902077995e-05 | K86: 0.0002189389488 | L86: 0.0002453049635 | M86: 0.001250564908 | N86: 2.115405692e-07
A87: =IF('DF raw data'!M87="","",'DF raw data'!M87) -> -290 | B87: =IF('DF raw data'!N87="","",'DF raw data'!N87) -> -2.41097e-05 | C87: =IF('DF raw data'!O87="","",'DF raw data'!O87) -> -1.08132e-05 | D87: =IF('DF raw data'!P87="","",'DF raw data'!P87) -> -5.45432e-05 | F87: -3.122394329e-06 | G87: 2.490453022e-05 | H87: -5.813594241e-06 | J87: 4.745958278e-05 | K87: 0.0002426687401 | L87: 0.0002577572286 | M87: 0.001379443522 | N87: 2.458861696e-07
A88: =IF('DF raw data'!M88="","",'DF raw data'!M88) -> -289.5 | B88: =IF('DF raw data'!N88="","",'DF raw data'!N88) -> -2.0401e-05 | C88: =IF('DF raw data'!O88="","",'DF raw data'!O88) -> 9.10969e-07 | D88: =IF('DF raw data'!P88="","",'DF raw data'!P88) -> -4.33219e-05 | F88: 6.018822105e-07 | G88: 3.667794073e-05 | H88: 5.454835219e-06 | J88: 4.776052389e-05 | K88: 0.0002665490021 | L88: 0.0002760961989 | M88: 0.001517491621 | N88: 2.85141259e-07
A89: =IF('DF raw data'!M89="","",'DF raw data'!M89) -> -289 | B89: =IF('DF raw data'!N89="","",'DF raw data'!N89) -> -1.93041e-05 | C89: =IF('DF raw data'!O89="","",'DF raw data'!O89) -> 1.85998e-06 | D89: =IF('DF raw data'!P89="","",'DF raw data'!P89) -> -5.50538e-05 | F89: 1.703389191e-06 | G89: 3.763093758e-05 | H89: -6.326338761e-06 | J89: 4.861221848e-05 | K89: 0.0002908551113 | L89: 0.0002949116677 | M89: 0.001664947455 | N89: 3.298092788e-07
A90: =IF('DF raw data'!M90="","",'DF raw data'!M90) -> -288.5 | B90: =IF('DF raw data'!N90="","",'DF raw data'!N90) -> -1.76462e-05 | C90: =IF('DF raw data'!O90="","",'DF raw data'!O90) -> -4.99365e-06 | D90: =IF('DF raw data'!P90="","",'DF raw data'!P90) -> -4.29133e-05 | F90: 3.368252371e-06 | G90: 3.074852233e-05 | H90: 5.865151339e-06 | J90: 5.029634467e-05 | K90: 0.0003160032837 | L90: 0.0003102859289 | M90: 0.00182009042 | N90: 3.792128188e-07
A91: =IF('DF raw data'!M91="","",'DF raw data'!M91) -> -288 | B91: =IF('DF raw data'!N91="","",'DF raw data'!N91) -> -1.01465e-05 | C91: =IF('DF raw data'!O91="","",'DF raw data'!O91) -> -4.28253e-06 | D91: =IF('DF raw data'!P91="","",'DF raw data'!P91) -> -4.78556e-05 | F91: 1.089945111e-05 | G91: 3.146262903e-05 | H91: 9.020936788e-07 | J91: 5.574607022e-05 | K91: 0.0003438763188 | L91: 0.0003260172434 | M91: 0.001983099041 | N91: 4.339102524e-07
A92: =IF('DF raw data'!M92="","",'DF raw data'!M92) -> -287.5 | B92: =IF('DF raw data'!N92="","",'DF raw data'!N92) -> -1.6157e-05 | C92: =IF('DF raw data'!O92="","",'DF raw data'!O92) -> 1.37995e-06 | D92: =IF('DF raw data'!P92="","",'DF raw data'!P92) -> -6.66838e-05 | F92: 4.863707011e-06 | G92: 3.714889145e-05 | H92: -1.800518476e-05 | J92: 5.817792373e-05 | K92: 0.0003729652806 | L92: 0.0003445916891 | M92: 0.002155394886 | N92: 4.949743039e-07
A93: =IF('DF raw data'!M93="","",'DF raw data'!M93) -> -287 | B93: =IF('DF raw data'!N93="","",'DF raw data'!N93) -> -1.5649e-05 | C93: =IF('DF raw data'!O93="","",'DF raw data'!O93) -> -2.0669e-06 | D93: =IF('DF raw data'!P93="","",'DF raw data'!P93) -> -5.96775e-05 | F93: 5.373840611e-06 | G93: 3.368756468e-05 | H93: -1.09694583e-05 | J93: 6.086484403e-05 | K93: 0.0004033977027 | L93: 0.0003614354715 | M93: 0.002336112622 | N93: 5.621443686e-07
A94: =IF('DF raw data'!M94="","",'DF raw data'!M94) -> -286.5 | B94: =IF('DF raw data'!N94="","",'DF raw data'!N94) -> -2.03872e-05 | C94: =IF('DF raw data'!O94="","",'DF raw data'!O94) -> -7.26722e-06 | D94: =IF('DF raw data'!P94="","",'DF raw data'!P94) -> -6.46543e-05 | F94: 6.157401705e-07 | G94: 2.846540334e-05 | H94: -1.596716086e-05 | J94: 6.117271412e-05 | K94: 0.0004339840597 | L94: 0.0003756681731 | M94: 0.002523946708 | N94: 6.345787072e-07
A95: =IF('DF raw data'!M95="","",'DF raw data'!M95) -> -286 | B95: =IF('DF raw data'!N95="","",'DF raw data'!N95) -> -1.38605e-05 | C95: =IF('DF raw data'!O95="","",'DF raw data'!O95) -> -2.51434e-06 | D95: =IF('DF raw data'!P95="","",'DF raw data'!P95) -> -5.13283e-05 | F95: 7.169852311e-06 | G95: 3.323824543e-05 | H95: -2.585191661e-06 | J95: 6.475764027e-05 | K95: 0.0004663628798 | L95: 0.0003922872959 | M95: 0.002720090356 | N95: 7.136201445e-07
A96: =IF('DF raw data'!M96="","",'DF raw data'!M96) -> -285.5 | B96: =IF('DF raw data'!N96="","",'DF raw data'!N96) -> -2.0648e-05 | C96: =IF('DF raw data'!O96="","",'DF raw data'!O96) -> -9.94256e-06 | D96: =IF('DF raw data'!P96="","",'DF raw data'!P96) -> -5.77145e-05 | F96: 3.538448105e-07 | G96: 2.577882691e-05 | H96: -8.998213701e-06 | J96: 6.493456268e-05 | K96: 0.0004988301612 | L96: 0.0004051767093 | M96: 0.002922678711 | N96: 7.978124761e-07
A97: =IF('DF raw data'!M97="","",'DF raw data'!M97) -> -285 | B97: =IF('DF raw data'!N97="","",'DF raw data'!N97) -> -1.21938e-05 | C97: =IF('DF raw data'!O97="","",'DF raw data'!O97) -> -1.3736e-05 | D97: =IF('DF raw data'!P97="","",'DF raw data'!P97) -> -5.23931e-05 | F97: 8.843552451e-06 | G97: 2.196945446e-05 | H97: -3.654463821e-06 | J97: 6.93563389e-05 | K97: 0.0005335083306 | L97: 0.0004161614365 | M97: 0.003130759429 | N97: 8.868127976e-07
A98: =IF('DF raw data'!M98="","",'DF raw data'!M98) -> -284.5 | B98: =IF('DF raw data'!N98="","",'DF raw data'!N98) -> -2.01999e-05 | C98: =IF('DF raw data'!O98="","",'DF raw data'!O98) -> -1.09987e-05 | D98: =IF('DF raw data'!P98="","",'DF raw data'!P98) -> -5.6914e-05 | F98: 8.038268305e-07 | G98: 2.471825112e-05 | H98: -8.194351601e-06 | J98: 6.975825232e-05 | K98: 0.0005683874568 | L98: 0.0004285205621 | M98: 0.00334501971 | N98: 9.810608405e-07
A99: =IF('DF raw data'!M99="","",'DF raw data'!M99) -> -284 | B99: =IF('DF raw data'!N99="","",'DF raw data'!N99) -> -2.53989e-05 | C99: =IF('DF raw data'!O99="","",'DF raw data'!O99) -> -5.06829e-06 | D99: =IF('DF raw data'!P99="","",'DF raw data'!P99) -> -4.28812e-05 | F99: -4.417008969e-06 | G99: 3.067356884e-05 | H99: 5.897386159e-06 | J99: 6.754974783e-05 | K99: 0.0006021623307 | L99: 0.0004438573465 | M99: 0.003566948383 | N99: 1.081846997e-06
A100: =IF('DF raw data'!M100="","",'DF raw data'!M100) -> -283.5 | B100: =IF('DF raw data'!N100="","",'DF raw data'!N100) -> -1.75105e-05 | C100: =IF('DF raw data'!O100="","",'DF raw data'!O100) -> -3.11943e-06 | D100: =IF('DF raw data'!P100="","",'DF raw data'!P100) -> -5.46076e-05 | F100: 3.504522311e-06 | G100: 3.263061405e-05 | H100: -5.878264721e-06 | J100: 6.930200899e-05 | K100: 0.0006368133352 | L100: 0.0004601726536 | M100: 0.00379703471 | N100: 1.190127817e-06
A101: =IF('DF raw data'!M101="","",'DF raw data'!M101) -> -283 | B101: =IF('DF raw data'!N101="","",'DF raw data'!N101) -> -1.97552e-05 | C101: =IF('DF raw data'!O101="","",'DF raw data'!O101) -> -1.21798e-05 | D101: =IF('DF raw data'!P101="","",'DF raw data'!P101) -> -5.11841e-05 | F101: 1.250394571e-06 | G101: 2.35321905e-05 | H101: -2.440386021e-06 | J101: 6.992720628e-05 | K101: 0.0006717769384 | L101: 0.0004719387488 | M101: 0.004033004085 | N101: 1.303935815e-06
A102: =IF('DF raw data'!M102="","",'DF raw data'!M102) -> -282.5 | B102: =IF('DF raw data'!N102="","",'DF raw data'!N102) -> -3.64202e-05 | C102: =IF('DF raw data'!O102="","",'DF raw data'!O102) -> -1.03503e-05 | D102: =IF('DF raw data'!P102="","",'DF raw data'!P102) -> -4.16027e-05 | F102: -1.548459843e-05 | G102: 2.53693744e-05 | H102: 7.181255859e-06 | J102: 6.218490706e-05 | K102: 0.0007028693919 | L102: 0.000484623436 | M102: 0.004275315803 | N102: 1.423299234e-06
A103: =IF('DF raw data'!M103="","",'DF raw data'!M103) -> -282 | B103: =IF('DF raw data'!N103="","",'DF raw data'!N103) -> -1.87961e-05 | C103: =IF('DF raw data'!O103="","",'DF raw data'!O103) -> -7.14222e-06 | D103: =IF('DF raw data'!P103="","",'DF raw data'!P103) -> -4.81253e-05 | F103: 2.213522791e-06 | G103: 2.859092834e-05 | H103: 6.312609388e-07 | J103: 6.329166846e-05 | K103: 0.0007345152261 | L103: 0.0004989189002 | M103: 0.004524775253 | N103: 1.549762186e-06
A104: =IF('DF raw data'!M104="","",'DF raw data'!M104) -> -281.5 | B104: =IF('DF raw data'!N104="","",'DF raw data'!N104) -> -5.78677e-06 | C104: =IF('DF raw data'!O104="","",'DF raw data'!O104) -> -9.86188e-06 | D104: =IF('DF raw data'!P104="","",'DF raw data'!P104) -> -5.21923e-05 | F104: 1.527749198e-05 | G104: 2.585984576e-05 | H104: -3.452820461e-06 | J104: 7.093041444e-05 | K104: 0.0007699804333 | L104: 0.0005118488231 | M104: 0.004780699664 | N104: 1.683272356e-06
A105: =IF('DF raw data'!M105="","",'DF raw data'!M105) -> -281 | B105: =IF('DF raw data'!N105="","",'DF raw data'!N105) -> -2.02668e-05 | C105: =IF('DF raw data'!O105="","",'DF raw data'!O105) -> -6.75328e-06 | D105: =IF('DF raw data'!P105="","",'DF raw data'!P105) -> -5.26842e-05 | F105: 7.366458505e-07 | G105: 2.898150188e-05 | H105: -3.946786441e-06 | J105: 7.129873737e-05 | K105: 0.000805629802 | L105: 0.000526339574 | M105: 0.005043869451 | N105: 1.824330785e-06
A106: =IF('DF raw data'!M106="","",'DF raw data'!M106) -> -280.5 | B106: =IF('DF raw data'!N106="","",'DF raw data'!N106) -> -1.44999e-05 | C106: =IF('DF raw data'!O106="","",'DF raw data'!O106) -> -6.09566e-06 | D106: =IF('DF raw data'!P106="","",'DF raw data'!P106) -> -5.3354e-05 | F106: 6.527766831e-06 | G106: 2.964188389e-05 | H106: -4.619399601e-06 | J106: 7.456262078e-05 | K106: 0.0008429111124 | L106: 0.0005411605159 | M106: 0.005314449709 | N106: 1.973537929e-06
A107: =IF('DF raw data'!M107="","",'DF raw data'!M107) -> -280 | B107: =IF('DF raw data'!N107="","",'DF raw data'!N107) -> -1.3161e-05 | C107: =IF('DF raw data'!O107="","",'DF raw data'!O107) -> -7.01108e-06 | D107: =IF('DF raw data'!P107="","",'DF raw data'!P107) -> -4.31456e-05 | F107: 7.872290211e-06 | G107: 2.872261912e-05 | H107: 5.631875679e-06 | J107: 7.849876589e-05 | K107: 0.0008821604954 | L107: 0.0005555218255 | M107: 0.005592210622 | N107: 2.130921207e-06
A108: =IF('DF raw data'!M108="","",'DF raw data'!M108) -> -279.5 | B108: =IF('DF raw data'!N108="","",'DF raw data'!N108) -> -1.50746e-05 | C108: =IF('DF raw data'!O108="","",'DF raw data'!O108) -> -4.58143e-06 | D108: =IF('DF raw data'!P108="","",'DF raw data'!P108) -> -5.61002e-05 | F108: 5.950653091e-06 | G108: 3.116247365e-05 | H108: -7.377133641e-06 | J108: 8.147409244e-05 | K108: 0.0009228975416 | L108: 0.0005711030623 | M108: 0.005877762153 | N108: 2.297319574e-06
A109: =IF('DF raw data'!M109="","",'DF raw data'!M109) -> -279 | B109: =IF('DF raw data'!N109="","",'DF raw data'!N109) -> -1.55919e-05 | C109: =IF('DF raw data'!O109="","",'DF raw data'!O109) -> -1.296e-05 | D109: =IF('DF raw data'!P109="","",'DF raw data'!P109) -> -4.88685e-05 | F109: 5.431180431e-06 | G109: 2.274871366e-05 | H109: -1.150605012e-07 | J109: 8.418968265e-05 | K109: 0.0009649923829 | L109: 0.0005824774192 | M109: 0.006169000863 | N109: 2.470503498e-06
A110: =IF('DF raw data'!M110="","",'DF raw data'!M110) -> -278.5 | B110: =IF('DF raw data'!N110="","",'DF raw data'!N110) -> -2.76407e-05 | C110: =IF('DF raw data'!O110="","",'DF raw data'!O110) -> -5.7557e-06 | D110: =IF('DF raw data'!P110="","",'DF raw data'!P110) -> -4.41148e-05 | F110: -6.668224529e-06 | G110: 2.998327172e-05 | H110: 4.658605039e-06 | J110: 8.085557039e-05 | K110: 0.001005420168 | L110: 0.000597469055 | M110: 0.00646773539 | N110: 2.652256945e-06
A111: =IF('DF raw data'!M111="","",'DF raw data'!M111) -> -278 | B111: =IF('DF raw data'!N111="","",'DF raw data'!N111) -> -8.15894e-06 | C111: =IF('DF raw data'!O111="","",'DF raw data'!O111) -> -8.38876e-06 | D111: =IF('DF raw data'!P111="","",'DF raw data'!P111) -> -4.99006e-05 | F111: 1.289535886e-05 | G111: 2.733915287e-05 | H111: -1.151495321e-06 | J111: 8.730324982e-05 | K111: 0.001049071793 | L111: 0.0006111386314 | M111: 0.006773304706 | N111: 2.842813087e-06
A112: =IF('DF raw data'!M112="","",'DF raw data'!M112) -> -277.5 | B112: =IF('DF raw data'!N112="","",'DF raw data'!N112) -> -1.70041e-05 | C112: =IF('DF raw data'!O112="","",'DF raw data'!O112) -> -1.17608e-05 | D112: =IF('DF raw data'!P112="","",'DF raw data'!P112) -> -4.50892e-05 | F112: 4.013049191e-06 | G112: 2.39529503e-05 | H112: 3.680112559e-06 | J112: 8.930977441e-05 | K112: 0.00109372668 | L112: 0.0006231151066 | M112: 0.007084862259 | N112: 3.040937423e-06
A113: =IF('DF raw data'!M113="","",'DF raw data'!M113) -> -277 | B113: =IF('DF raw data'!N113="","",'DF raw data'!N113) -> -2.22507e-05 | C113: =IF('DF raw data'!O113="","",'DF raw data'!O113) -> -5.20673e-06 | D113: =IF('DF raw data'!P113="","",'DF raw data'!P113) -> -5.63889e-05 | F113: -1.255586529e-06 | G113: 3.053454739e-05 | H113: -7.667046181e-06 | J113: 8.868198115e-05 | K113: 0.001138067671 | L113: 0.0006383823803 | M113: 0.007404053449 | N113: 3.248635702e-06
A114: =IF('DF raw data'!M114="","",'DF raw data'!M114) -> -276.5 | B114: =IF('DF raw data'!N114="","",'DF raw data'!N114) -> -1.61711e-05 | C114: =IF('DF raw data'!O114="","",'DF raw data'!O114) -> -3.76521e-06 | D114: =IF('DF raw data'!P114="","",'DF raw data'!P114) -> -4.51272e-05 | F114: 4.849547791e-06 | G114: 3.198212178e-05 | H114: 3.641952959e-06 | J114: 9.110675504e-05 | K114: 0.001183621048 | L114: 0.0006543734412 | M114: 0.00773124017 | N114: 3.466888222e-06
A115: =IF('DF raw data'!M115="","",'DF raw data'!M115) -> -276 | B115: =IF('DF raw data'!N115="","",'DF raw data'!N115) -> -2.96825e-05 | C115: =IF('DF raw data'!O115="","",'DF raw data'!O115) -> -7.58784e-06 | D115: =IF('DF raw data'!P115="","",'DF raw data'!P115) -> -5.71705e-05 | F115: -8.718600089e-06 | G115: 2.814343673e-05 | H115: -8.451928901e-06 | J115: 8.6747455e-05 | K115: 0.001226994776 | L115: 0.0006684451595 | M115: 0.00806546275 | N115: 3.694060249e-06
A116: =IF('DF raw data'!M116="","",'DF raw data'!M116) -> -275.5 | B116: =IF('DF raw data'!N116="","",'DF raw data'!N116) -> -1.11066e-05 | C116: =IF('DF raw data'!O116="","",'DF raw data'!O116) -> -1.52758e-05 | D116: =IF('DF raw data'!P116="","",'DF raw data'!P116) -> -4.95875e-05 | F116: 9.935318691e-06 | G116: 2.04231873e-05 | H116: -8.370803012e-07 | J116: 9.171511434e-05 | K116: 0.001272852333 | L116: 0.0006786567532 | M116: 0.008404791126 | N116: 3.928553574e-06
A117: =IF('DF raw data'!M117="","",'DF raw data'!M117) -> -275 | B117: =IF('DF raw data'!N117="","",'DF raw data'!N117) -> -1.61008e-05 | C117: =IF('DF raw data'!O117="","",'DF raw data'!O117) -> -1.38367e-05 | D117: =IF('DF raw data'!P117="","",'DF raw data'!P117) -> -5.48554e-05 | F117: 4.920143051e-06 | G117: 2.186833152e-05 | H117: -6.127105481e-06 | J117: 9.417518587e-05 | K117: 0.001319939926 | L117: 0.000689590919 | M117: 0.008749586586 | N117: 4.170755875e-06
A118: =IF('DF raw data'!M118="","",'DF raw data'!M118) -> -274.5 | B118: =IF('DF raw data'!N118="","",'DF raw data'!N118) -> -2.19343e-05 | C118: =IF('DF raw data'!O118="","",'DF raw data'!O118) -> -1.26277e-05 | D118: =IF('DF raw data'!P118="","",'DF raw data'!P118) -> -5.0133e-05 | F118: -9.378576495e-07 | G118: 2.308240932e-05 | H118: -1.384871401e-06 | J118: 9.370625704e-05 | K118: 0.001366793054 | L118: 0.0007011321236 | M118: 0.009100152648 | N118: 4.420939433e-06
A119: =IF('DF raw data'!M119="","",'DF raw data'!M119) -> -274 | B119: =IF('DF raw data'!N119="","",'DF raw data'!N119) -> -1.80834e-05 | C119: =IF('DF raw data'!O119="","",'DF raw data'!O119) -> -9.66442e-06 | D119: =IF('DF raw data'!P119="","",'DF raw data'!P119) -> -6.00553e-05 | F119: 2.929216131e-06 | G119: 2.60581351e-05 | H119: -1.134884506e-05 | J119: 9.517086511e-05 | K119: 0.001414378487 | L119: 0.0007141611912 | M119: 0.009457233243 | N119: 4.680481284e-06
A120: =IF('DF raw data'!M120="","",'DF raw data'!M120) -> -273.5 | B120: =IF('DF raw data'!N120="","",'DF raw data'!N120) -> -2.58406e-05 | C120: =IF('DF raw data'!O120="","",'DF raw data'!O120) -> -1.72885e-05 | D120: =IF('DF raw data'!P120="","",'DF raw data'!P120) -> -5.31938e-05 | F120: -4.860564109e-06 | G120: 1.840203396e-05 | H120: -4.458526761e-06 | J120: 9.274058305e-05 | K120: 0.001460748779 | L120: 0.0007233622081 | M120: 0.009818914347 | N120: 4.946408134e-06
A121: =IF('DF raw data'!M121="","",'DF raw data'!M121) -> -273 | B121: =IF('DF raw data'!N121="","",'DF raw data'!N121) -> -1.51978e-05 | C121: =IF('DF raw data'!O121="","",'DF raw data'!O121) -> -1.47826e-05 | D121: =IF('DF raw data'!P121="","",'DF raw data'!P121) -> -6.37684e-05 | F121: 5.826935651e-06 | G121: 2.091845874e-05 | H121: -1.507754008e-05 | J121: 9.565405088e-05 | K121: 0.001508575804 | L121: 0.0007338214375 | M121: 0.01018582507 | N121: 5.220229933e-06
A122: =IF('DF raw data'!M122="","",'DF raw data'!M122) -> -272.5 | B122: =IF('DF raw data'!N122="","",'DF raw data'!N122) -> -1.50103e-05 | C122: =IF('DF raw data'!O122="","",'DF raw data'!O122) -> -1.72346e-05 | D122: =IF('DF raw data'!P122="","",'DF raw data'!P122) -> -5.67201e-05 | F122: 6.015223151e-06 | G122: 1.845616034e-05 | H122: -7.999637221e-06 | J122: 9.866166246e-05 | K122: 0.001557906635 | L122: 0.0007430495177 | M122: 0.01055734982 | N122: 5.501158288e-06
A123: =IF('DF raw data'!M123="","",'DF raw data'!M123) -> -272 | B123: =IF('DF raw data'!N123="","",'DF raw data'!N123) -> -2.85956e-05 | C123: =IF('DF raw data'!O123="","",'DF raw data'!O123) -> -2.10611e-05 | D123: =IF('DF raw data'!P123="","",'DF raw data'!P123) -> -5.33741e-05 | F123: -7.627135109e-06 | G123: 1.461358904e-05 | H123: -4.639584021e-06 | J123: 9.48480949e-05 | K123: 0.001605330683 | L123: 0.0007503563122 | M123: 0.01093252798 | N123: 5.787173666e-06
A124: =IF('DF raw data'!M124="","",'DF raw data'!M124) -> -271.5 | B124: =IF('DF raw data'!N124="","",'DF raw data'!N124) -> -2.05252e-05 | C124: =IF('DF raw data'!O124="","",'DF raw data'!O124) -> -1.73097e-05 | D124: =IF('DF raw data'!P124="","",'DF raw data'!P124) -> -4.94886e-05 | F124: 4.771605705e-07 | G124: 1.838074492e-05 | H124: -7.377649212e-07 | J124: 9.508667519e-05 | K124: 0.00165287402 | L124: 0.0007595466847 | M124: 0.01131230132 | N124: 6.080149987e-06
A125: =IF('DF raw data'!M125="","",'DF raw data'!M125) -> -271 | B125: =IF('DF raw data'!N125="","",'DF raw data'!N125) -> -8.73512e-06 | C125: =IF('DF raw data'!O125="","",'DF raw data'!O125) -> -1.67367e-05 | D125: =IF('DF raw data'!P125="","",'DF raw data'!P125) -> -5.07966e-05 | F125: 1.231675891e-05 | G125: 1.895615152e-05 | H125: -2.051258521e-06 | J125: 0.0001012450546 | K125: 0.001703496548 | L125: 0.0007690247604 | M125: 0.0116968137 | N125: 6.380974809e-06
A126: =IF('DF raw data'!M126="","",'DF raw data'!M126) -> -270.5 | B126: =IF('DF raw data'!N126="","",'DF raw data'!N126) -> -3.30192e-06 | C126: =IF('DF raw data'!O126="","",'DF raw data'!O126) -> -1.09631e-05 | D126: =IF('DF raw data'!P126="","",'DF raw data'!P126) -> -3.06555e-05 | F126: 1.777277835e-05 | G126: 2.475400064e-05 | H126: 1.81744341e-05 | J126: 0.0001101314438 | K126: 0.001758562269 | L126: 0.0007814017607 | M126: 0.01208751458 | N126: 6.692333632e-06
A127: =IF('DF raw data'!M127="","",'DF raw data'!M127) -> -270 | B127: =IF('DF raw data'!N127="","",'DF raw data'!N127) -> -1.61053e-05 | C127: =IF('DF raw data'!O127="","",'DF raw data'!O127) -> -1.39116e-05 | D127: =IF('DF raw data'!P127="","",'DF raw data'!P127) -> -4.79543e-05 | F127: 4.915624151e-06 | G127: 2.179311694e-05 | H127: 8.029791388e-07 | J127: 0.0001125892559 | K127: 0.001814856897 | L127: 0.0007922983192 | M127: 0.01248366374 | N127: 7.012540116e-06
A128: =IF('DF raw data'!M128="","",'DF raw data'!M128) -> -269.5 | B128: =IF('DF raw data'!N128="","",'DF raw data'!N128) -> -2.15571e-05 | C128: =IF('DF raw data'!O128="","",'DF raw data'!O128) -> -1.74665e-05 | D128: =IF('DF raw data'!P128="","",'DF raw data'!P128) -> -3.90428e-05 | F128: -5.590734095e-07 | G128: 1.822328636e-05 | H128: 9.751907439e-06 | J128: 0.0001123097192 | K128: 0.001871011757 | L128: 0.0008014099624 | M128: 0.01288436872 | N128: 7.339975816e-06
A129: =IF('DF raw data'!M129="","",'DF raw data'!M129) -> -269 | B129: =IF('DF raw data'!N129="","",'DF raw data'!N129) -> -1.09092e-05 | C129: =IF('DF raw data'!O129="","",'DF raw data'!O129) -> -1.62353e-05 | D129: =IF('DF raw data'!P129="","",'DF raw data'!P129) -> -5.74488e-05 | F129: 1.013354777e-05 | G129: 1.94596574e-05 | H129: -8.731397761e-06 | J129: 0.0001173764931 | K129: 0.001929700004 | L129: 0.0008111397911 | M129: 0.01328993862 | N129: 7.675838317e-06
A130: =IF('DF raw data'!M130="","",'DF raw data'!M130) -> -268.5 | B130: =IF('DF raw data'!N130="","",'DF raw data'!N130) -> -2.7317e-05 | C130: =IF('DF raw data'!O130="","",'DF raw data'!O130) -> -2.37301e-05 | D130: =IF('DF raw data'!P130="","",'DF raw data'!P130) -> -4.91167e-05 | F130: -6.343164989e-06 | G130: 1.193337924e-05 | H130: -3.643029412e-07 | J130: 0.0001142049106 | K130: 0.001986802459 | L130: 0.0008171064807 | M130: 0.01369849186 | N130: 8.016191198e-06
A131: =IF('DF raw data'!M131="","",'DF raw data'!M131) -> -268 | B131: =IF('DF raw data'!N131="","",'DF raw data'!N131) -> -1.43085e-05 | C131: =IF('DF raw data'!O131="","",'DF raw data'!O131) -> -8.37881e-06 | D131: =IF('DF raw data'!P131="","",'DF raw data'!P131) -> -5.20331e-05 | F131: =(1-$G$1*($B$54-$G$2))*(B131-F$5) -> 6.719970711e-06 | G131: =(1-$G$1*($B$54-$G$2))*(C131-G$5) -> 2.734914466e-05 | H131: =(1-$G$1*($B$54-$G$2))*(D131-H$5) -> -3.292951821e-06 | J131: 0.0001175648959 | K131: 0.002045584907 | L131: 0.000830781053 | M131: 0.01411388239 | N131: 8.36820053e-06
A132: =IF('DF raw data'!M132="","",'DF raw data'!M132) -> -267.5 | B132: =IF('DF raw data'!N132="","",'DF raw data'!N132) -> -1.71914e-05 | C132: =IF('DF raw data'!O132="","",'DF raw data'!O132) -> -1.51522e-05 | D132: =IF('DF raw data'!P132="","",'DF raw data'!P132) -> -5.25307e-05 | F132: 3.824962531e-06 | G132: 2.054730642e-05 | H132: -3.792641741e-06 | J132: =F132*$G$3+J131 -> 0.0001194773772 | K132: =J132*$G$3+K131 -> 0.002105323595 | L132: =G132*$G$3+L131 -> 0.0008410547062 | M132: =L132*$G$3+M131 -> 0.01453440974 | N132: =(J132^2+L132^2)*$G$3+N131 -> 8.729024461e-06
A133: =IF('DF raw data'!M133="","",'DF raw data'!M133) -> -267 | B133: =IF('DF raw data'!N133="","",'DF raw data'!N133) -> -3.14123e-05 | C133: =IF('DF raw data'!O133="","",'DF raw data'!O133) -> -1.54097e-05 | D133: =IF('DF raw data'!P133="","",'DF raw data'!P133) -> -5.75384e-05 | F133: -1.045566525e-05 | G133: 2.028872492e-05 | H133: -8.821374081e-06 | J133: 0.0001142495446 | K133: 0.002162448368 | L133: 0.0008511990687 | M133: 0.01496000927 | N133: 9.097820867e-06
A134: =IF('DF raw data'!M134="","",'DF raw data'!M134) -> -266.5 | B134: =IF('DF raw data'!N134="","",'DF raw data'!N134) -> -1.22594e-05 | C134: =IF('DF raw data'!O134="","",'DF raw data'!O134) -> -1.98227e-05 | D134: =IF('DF raw data'!P134="","",'DF raw data'!P134) -> -5.0278e-05 | F134: 8.777676931e-06 | G134: 1.585719032e-05 | H134: -1.530480401e-06 | J134: 0.000118638383 | K134: 0.002221767559 | L134: 0.0008591276639 | M134: 0.01538957311 | N134: 9.473908572e-06
A135: =IF('DF raw data'!M135="","",'DF raw data'!M135) -> -266 | B135: =IF('DF raw data'!N135="","",'DF raw data'!N135) -> -1.14251e-05 | C135: =IF('DF raw data'!O135="","",'DF raw data'!O135) -> -2.36208e-05 | D135: =IF('DF raw data'!P135="","",'DF raw data'!P135) -> -5.22761e-05 | F135: 9.615480991e-06 | G135: 1.20431383e-05 | H135: -3.536972421e-06 | J135: 0.0001234461235 | K135: 0.002283490621 | L135: 0.000865149233 | M135: 0.01582214772 | N135: 9.855769642e-06
A136: =IF('DF raw data'!M136="","",'DF raw data'!M136) -> -265.5 | B136: =IF('DF raw data'!N136="","",'DF raw data'!N136) -> -9.44003e-06 | C136: =IF('DF raw data'!O136="","",'DF raw data'!O136) -> -2.76587e-05 | D136: =IF('DF raw data'!P136="","",'DF raw data'!P136) -> -5.03719e-05 | F136: 1.160888828e-05 | G136: 7.988279119e-06 | H136: -1.624774781e-06 | J136: 0.0001292505677 | K136: 0.002348115905 | L136: 0.0008691433726 | M136: 0.01625671941 | N136: 1.02418276e-05
A137: =IF('DF raw data'!M137="","",'DF raw data'!M137) -> -265 | B137: =IF('DF raw data'!N137="","",'DF raw data'!N137) -> -1.46958e-05 | C137: =IF('DF raw data'!O137="","",'DF raw data'!O137) -> -2.36748e-05 | D137: =IF('DF raw data'!P137="","",'DF raw data'!P137) -> -4.75596e-05 | F137: 6.331044051e-06 | G137: 1.19889115e-05 | H137: 1.199336879e-06 | J137: 0.0001324160897 | K137: 0.00241432395 | L137: 0.0008751378283 | M137: 0.01669428832 | N137: 1.063352772e-05
A138: =IF('DF raw data'!M138="","",'DF raw data'!M138) -> -264.5 | B138: =IF('DF raw data'!N138="","",'DF raw data'!N138) -> -2.16114e-05 | C138: =IF('DF raw data'!O138="","",'DF raw data'!O138) -> -1.96777e-05 | D138: =IF('DF raw data'!P138="","",'DF raw data'!P138) -> -5.42347e-05 | F138: -6.136014695e-07 | G138: 1.600279932e-05 | H138: -5.503798541e-06 | J138: 0.000132109289 | K138: 0.002480378594 | L138: 0.000883139228 | M138: 0.01713585794 | N138: 1.10322216e-05
A139: =IF('DF raw data'!M139="","",'DF raw data'!M139) -> -264 | B139: =IF('DF raw data'!N139="","",'DF raw data'!N139) -> -1.15506e-05 | C139: =IF('DF raw data'!O139="","",'DF raw data'!O139) -> -1.25198e-05 | D139: =IF('DF raw data'!P139="","",'DF raw data'!P139) -> -5.62236e-05 | F139: 9.489453891e-06 | G139: 2.31907625e-05 | H139: -7.501051921e-06 | J139: 0.0001368540159 | K139: 0.002548805602 | L139: 0.0008947346092 | M139: 0.01758322524 | N139: 1.144186112e-05
A140: =IF('DF raw data'!M140="","",'DF raw data'!M140) -> -263.5 | B140: =IF('DF raw data'!N140="","",'DF raw data'!N140) -> -1.27716e-05 | C140: =IF('DF raw data'!O140="","",'DF raw data'!O140) -> -7.12503e-06 | D140: =IF('DF raw data'!P140="","",'DF raw data'!P140) -> -5.08652e-05 | F140: 8.263325691e-06 | G140: 2.860819053e-05 | H140: -2.120146641e-06 | J140: 0.0001409856788 | K140: 0.002619298441 | L140: 0.0009090387045 | M140: 0.01803774459 | N140: 1.186497528e-05
A141: =IF('DF raw data'!M141="","",'DF raw data'!M141) -> -263 | B141: =IF('DF raw data'!N141="","",'DF raw data'!N141) -> -1.7708e-05 | C141: =IF('DF raw data'!O141="","",'DF raw data'!O141) -> -9.87511e-06 | D141: =IF('DF raw data'!P141="","",'DF raw data'!P141) -> -4.62235e-05 | F141: 3.306192811e-06 | G141: 2.58465602e-05 | H141: 2.541048499e-06 | J141: 0.0001426387752 | K141: 0.002690617829 | L141: 0.0009219619846 | M141: 0.01849872559 | N141: 1.230015514e-05
A142: =IF('DF raw data'!M142="","",'DF raw data'!M142) -> -262.5 | B142: =IF('DF raw data'!N142="","",'DF raw data'!N142) -> -2.09742e-05 | C142: =IF('DF raw data'!O142="","",'DF raw data'!O142) -> -1.86928e-05 | D142: =IF('DF raw data'!P142="","",'DF raw data'!P142) -> -4.84754e-05 | F142: 2.627477054e-08 | G142: 1.69918359e-05 | H142: 2.796905188e-07 | J142: 0.0001426519125 | K142: 0.002761943785 | L142: 0.0009304579025 | M142: 0.01896395454 | N142: 1.274320588e-05
A143: =IF('DF raw data'!M143="","",'DF raw data'!M143) -> -262 | B143: =IF('DF raw data'!N143="","",'DF raw data'!N143) -> -2.0017e-05 | C143: =IF('DF raw data'!O143="","",'DF raw data'!O143) -> -2.21067e-05 | D143: =IF('DF raw data'!P143="","",'DF raw data'!P143) -> -4.27361e-05 | F143: 9.874950105e-07 | G143: 1.356359752e-05 | H143: 6.043095579e-06 | J143: 0.00014314566 | K143: 0.002833516615 | L143: 0.0009372397013 | M143: 0.01943257439 | N143: 1.319266035e-05
A144: =IF('DF raw data'!M144="","",'DF raw data'!M144) -> -261.5 | B144: =IF('DF raw data'!N144="","",'DF raw data'!N144) -> -2.57124e-05 | C144: =IF('DF raw data'!O144="","",'DF raw data'!O144) -> -2.51898e-05 | D144: =IF('DF raw data'!P144="","",'DF raw data'!P144) -> -5.34698e-05 | F144: -4.731825669e-06 | G144: 1.04675485e-05 | H144: -4.735685961e-06 | J144: 0.0001407797472 | K144: 0.002903906489 | L144: 0.0009424734756 | M144: 0.01990381113 | N144: 1.364669795e-05
A145: =IF('DF raw data'!M145="","",'DF raw data'!M145) -> -261 | B145: =IF('DF raw data'!N145="","",'DF raw data'!N145) -> -2.25763e-05 | C145: =IF('DF raw data'!O145="","",'DF raw data'!O145) -> -2.47071e-05 | D145: =IF('DF raw data'!P145="","",'DF raw data'!P145) -> -4.81955e-05 | F145: -1.582554049e-06 | G145: 1.095227584e-05 | H145: 5.607660988e-07 | J145: 0.0001399884702 | K145: 0.002973900724 | L145: 0.0009479496135 | M145: 0.02037778593 | N145: 1.410580057e-05
A146: =IF('DF raw data'!M146="","",'DF raw data'!M146) -> -260.5 | B146: =IF('DF raw data'!N146="","",'DF raw data'!N146) -> -1.258e-05 | C146: =IF('DF raw data'!O146="","",'DF raw data'!O146) -> -2.25147e-05 | D146: =IF('DF raw data'!P146="","",'DF raw data'!P146) -> -4.96877e-05 | F146: 8.455730411e-06 | G146: 1.315388392e-05 | H146: -9.377011412e-07 | J146: 0.0001442163354 | K146: 0.003046008892 | L146: 0.0009545265554 | M146: 0.02085504921 | N146: 1.457176021e-05
A147: =IF('DF raw data'!M147="","",'DF raw data'!M147) -> -260 | B147: =IF('DF raw data'!N147="","",'DF raw data'!N147) -> -1.55949e-05 | C147: =IF('DF raw data'!O147="","",'DF raw data'!O147) -> -2.57307e-05 | D147: =IF('DF raw data'!P147="","",'DF raw data'!P147) -> -4.42995e-05 | F147: 5.428167831e-06 | G147: 9.924376719e-06 | H147: 4.473129299e-06 | J147: 0.0001469304193 | K147: 0.003119474101 | L147: 0.0009594887438 | M147: 0.02133479358 | N147: 1.504286381e-05
A148: =IF('DF raw data'!M148="","",'DF raw data'!M148) -> -259.5 | B148: =IF('DF raw data'!N148="","",'DF raw data'!N148) -> -2.17448e-05 | C148: =IF('DF raw data'!O148="","",'DF raw data'!O148) -> -2.85455e-05 | D148: =IF('DF raw data'!P148="","",'DF raw data'!P148) -> -4.62644e-05 | F148: -7.475617495e-07 | G148: 7.097754559e-06 | H148: 2.499976719e-06 | J148: 0.0001465566384 | K148: 0.003192752421 | L148: 0.0009630376211 | M148: 0.02181631239 | N148: 1.551732397e-05
A149: =IF('DF raw data'!M149="","",'DF raw data'!M149) -> -259 | B149: =IF('DF raw data'!N149="","",'DF raw data'!N149) -> -1.98225e-05 | C149: =IF('DF raw data'!O149="","",'DF raw data'!O149) -> -2.2067e-05 | D149: =IF('DF raw data'!P149="","",'DF raw data'!P149) -> -4.62324e-05 | F149: 1.182811911e-06 | G149: 1.360346426e-05 | H149: 2.532111119e-06 | J149: 0.0001471480444 | K149: 0.003266326443 | L149: 0.0009698393532 | M149: 0.02230123207 | N149: 1.599844443e-05
A150: =IF('DF raw data'!M150="","",'DF raw data'!M150) -> -258.5 | B150: =IF('DF raw data'!N150="","",'DF raw data'!N150) -> -1.61046e-05 | C150: =IF('DF raw data'!O150="","",'DF raw data'!O150) -> -2.55428e-05 | D150: =IF('DF raw data'!P150="","",'DF raw data'!P150) -> -4.91438e-05 | F150: 4.916327091e-06 | G150: 1.01130659e-05 | H150: -3.915167612e-07 | J150: 0.0001496062079 | K150: 0.003341129547 | L150: 0.0009748958862 | M150: 0.02278868001 | N150: 1.648484643e-05
A151: =IF('DF raw data'!M151="","",'DF raw data'!M151) -> -258 | B151: =IF('DF raw data'!N151="","",'DF raw data'!N151) -> -2.00089e-05 | C151: =IF('DF raw data'!O151="","",'DF raw data'!O151) -> -2.12584e-05 | D151: =IF('DF raw data'!P151="","",'DF raw data'!P151) -> -5.52938e-05 | F151: 9.956290305e-07 | G151: 1.441546038e-05 | H151: -6.567346761e-06 | J151: 0.0001501040225 | K151: 0.003416181558 | L151: 0.0009821036163 | M151: 0.02327973182 | N151: 1.697837579e-05
A152: =IF('DF raw data'!M152="","",'DF raw data'!M152) -> -257.5 | B152: =IF('DF raw data'!N152="","",'DF raw data'!N152) -> -2.44929e-05 | C152: =IF('DF raw data'!O152="","",'DF raw data'!O152) -> -2.02329e-05 | D152: =IF('DF raw data'!P152="","",'DF raw data'!P152) -> -5.7075e-05 | F152: -3.507203769e-06 | G152: 1.544526748e-05 | H152: -8.356027801e-06 | J152: 0.0001483504206 | K152: 0.003490356768 | L152: 0.0009898262501 | M152: 0.02377464495 | N152: 1.747925772e-05
A153: =IF('DF raw data'!M153="","",'DF raw data'!M153) -> -257 | B153: =IF('DF raw data'!N153="","",'DF raw data'!N153) -> -8.03714e-06 | C153: =IF('DF raw data'!O153="","",'DF raw data'!O153) -> -1.9425e-05 | D153: =IF('DF raw data'!P153="","",'DF raw data'!P153) -> -4.01656e-05 | F153: 1.301767042e-05 | G153: 1.625656066e-05 | H153: 8.624391679e-06 | J153: 0.0001548592558 | K153: 0.003567786396 | L153: 0.0009979545304 | M153: 0.02427362221 | N153: 1.798920504e-05
A154: =IF('DF raw data'!M154="","",'DF raw data'!M154) -> -256.5 | B154: =IF('DF raw data'!N154="","",'DF raw data'!N154) -> -2.64789e-05 | C154: =IF('DF raw data'!O154="","",'DF raw data'!O154) -> -2.82776e-05 | D154: =IF('DF raw data'!P154="","",'DF raw data'!P154) -> -5.70853e-05 | F154: -5.501544969e-06 | G154: 7.366779739e-06 | H154: -8.366371061e-06 | J154: 0.0001521084833 | K154: 0.003643840638 | L154: 0.00100163792 | M154: 0.02477444117 | N154: 1.850241279e-05
A155: =IF('DF raw data'!M155="","",'DF raw data'!M155) -> -256 | B155: =IF('DF raw data'!N155="","",'DF raw data'!N155) -> -2.43623e-05 | C155: =IF('DF raw data'!O155="","",'DF raw data'!O155) -> -2.88311e-05 | D155: =IF('DF raw data'!P155="","",'DF raw data'!P155) -> -6.0858e-05 | F155: -3.376055249e-06 | G155: 6.810955039e-06 | H155: -1.21549164e-05 | J155: 0.0001504204557 | K155: 0.003719050866 | L155: 0.001005043398 | M155: 0.02527696287 | N155: 1.901878207e-05
A156: =IF('DF raw data'!M156="","",'DF raw data'!M156) -> -255.5 | B156: =IF('DF raw data'!N156="","",'DF raw data'!N156) -> -2.60329e-05 | C156: =IF('DF raw data'!O156="","",'DF raw data'!O156) -> -2.22874e-05 | D156: =IF('DF raw data'!P156="","",'DF raw data'!P156) -> -5.3448e-05 | F156: -5.053671769e-06 | G156: 1.338213858e-05 | H156: -4.713794401e-06 | J156: 0.0001478936198 | K156: 0.003792997676 | L156: 0.001011734467 | M156: 0.0257828301 | N156: 1.954152164e-05
A157: =IF('DF raw data'!M157="","",'DF raw data'!M157) -> -255 | B157: =IF('DF raw data'!N157="","",'DF raw data'!N157) -> -1.75106e-05 | C157: =IF('DF raw data'!O157="","",'DF raw data'!O157) -> -2.17315e-05 | D157: =IF('DF raw data'!P157="","",'DF raw data'!P157) -> -5.45876e-05 | F157: 3.504421891e-06 | G157: 1.394037336e-05 | H157: -5.858180721e-06 | J157: 0.0001496458307 | K157: 0.003867820591 | L157: 0.001018704654 | M157: 0.02629218243 | N157: 2.007159817e-05
A158: =IF('DF raw data'!M158="","",'DF raw data'!M158) -> -254.5 | B158: =IF('DF raw data'!N158="","",'DF raw data'!N158) -> -3.21881e-05 | C158: =IF('DF raw data'!O158="","",'DF raw data'!O158) -> -1.93583e-05 | D158: =IF('DF raw data'!P158="","",'DF raw data'!P158) -> -4.67672e-05 | F158: -1.123472361e-05 | G158: 1.63235408e-05 | H158: 1.995064959e-06 | J158: 0.0001440284689 | K158: 0.003939834825 | L158: 0.001026866424 | M158: 0.02680561564 | N158: 2.060919759e-05
A159: =IF('DF raw data'!M159="","",'DF raw data'!M159) -> -254 | B159: =IF('DF raw data'!N159="","",'DF raw data'!N159) -> -2.64257e-05 | C159: =IF('DF raw data'!O159="","",'DF raw data'!O159) -> -2.2927e-05 | D159: =IF('DF raw data'!P159="","",'DF raw data'!P159) -> -4.05391e-05 | F159: -5.448121529e-06 | G159: 1.273985226e-05 | H159: 8.249322979e-06 | J159: 0.0001413044082 | K159: 0.004010487029 | L159: 0.00103323635 | M159: 0.02732223382 | N159: 2.115296974e-05
A160: =IF('DF raw data'!M160="","",'DF raw data'!M160) -> -253.5 | B160: =IF('DF raw data'!N160="","",'DF raw data'!N160) -> -2.66131e-05 | C160: =IF('DF raw data'!O160="","",'DF raw data'!O160) -> -2.73805e-05 | D160: =IF('DF raw data'!P160="","",'DF raw data'!P160) -> -4.76724e-05 | F160: -5.636308609e-06 | G160: 8.267647559e-06 | H160: 1.086063119e-06 | J160: 0.0001384862539 | K160: 0.004079730156 | L160: 0.001037370174 | M160: 0.02784091891 | N160: 2.17006274e-05
A161: =IF('DF raw data'!M161="","",'DF raw data'!M161) -> -253 | B161: =IF('DF raw data'!N161="","",'DF raw data'!N161) -> -2.45687e-05 | C161: =IF('DF raw data'!O161="","",'DF raw data'!O161) -> -3.08359e-05 | D161: =IF('DF raw data'!P161="","",'DF raw data'!P161) -> -3.86966e-05 | F161: -3.583322129e-06 | G161: 4.797734879e-06 | H161: 1.009956148e-05 | J161: 0.0001366945928 | K161: 0.004148077453 | L161: 0.001039769042 | M161: 0.02836080343 | N161: 2.225052994e-05
A162: =IF('DF raw data'!M162="","",'DF raw data'!M162) -> -252.5 | B162: =IF('DF raw data'!N162="","",'DF raw data'!N162) -> -2.25097e-05 | C162: =IF('DF raw data'!O162="","",'DF raw data'!O162) -> -2.65716e-05 | D162: =IF('DF raw data'!P162="","",'DF raw data'!P162) -> -5.23199e-05 | F162: -1.515674329e-06 | G162: 9.079944939e-06 | H162: -3.580956381e-06 | J162: 0.0001359367556 | K162: 0.004216045831 | L162: 0.001044309014 | M162: 0.02888295793 | N162: 2.280506e-05
